Workbook

Sheet INFO
A1: COMPETIÇÃO: | C1: 32º Campeonato Brasileiro Individual
A2: LOCAL: | C2: SÃO PAULO/SP
A3: DATA: | C3: 16 a 19/junho de 2022
A4: CATEGORIA: | C4: Master
A6: FONTE UTILIZADA: | B6: ARIAL
A8: CORES UTILIZADAS:
B10: R: 255 | C10: 1a Divisão (Série Ouro) | D10: R: 255 | E10: 5a Divisão (Copa) | F10: R: 0
B11: G: 255 | D11: G: 192 | F11: G: 176
B12: B: 0 | D12: B: 0 | F12: B: 240
B14: R: 0 | C14: =$C$10 -> 1a Divisão (Série Ouro) | D14: R: 255 | E14: =$E$10 -> 5a Divisão (Copa) | F14: R: 204
B15: G: 96 | D15: G: 226 | F15: G: 236
B16: B: 39 | D16: B: 133 | F16: B: 255
B18: R: 0 | C18: 2a Divisão (Série Prata) | D18: R: 191 | E18: 6a Divisão | F18: R: 54
B19: G: 255 | D19: G: 191 | F19: G: 96
B20: B: 0 | D20: B: 191 | F20: B: 146
B22: R: 0 | C22: =$C$18 -> 2a Divisão (Série Prata) | D22: R: 234 | E22: =$E$18 -> 6a Divisão | F22: R: 255
B23: G: 32 | D23: G: 234 | F23: G: 255
B24: B: 96 | D24: B: 234 | F24: B: 204
B26: R: 54 | C26: 3a Divisão (Série Bronze) | D26: R: 247 | E26: 7a Divisão | F26: R: 255
B27: G: 96 | D27: G: 150 | F27: G: 0
B28: B: 146 | D28: B: 70 | F28: B: 255
B30: R: 184 | C30: =$C$26 -> 3a Divisão (Série Bronze) | D30: R: 250 | E30: =$E$26 -> 7a Divisão | F30: R: 255
B31: G: 204 | D31: G: 191 | F31: G: 255
B32: B: 228 | D32: B: 143 | F32: B: 204
C34: 4a Divisão (Série Extra) | D34: R: 0
D35: G: 176
D36: B: 80
C38: =$C$34 -> 4a Divisão (Série Extra) | D38: R: 204
D39: G: 255
D40: B: 204

Sheet RANKING
A1: COL. | B1: BOTONISTA | C1: ESTADO | D1: POTES
A2: 1 | B2: TERUEL | C2: SAO PAULO | D2: POTE 1
A3: 2 | B3: BRYANT | C3: SAO PAULO
A4: 3 | B4: SAMMARTINO | C4: SAO PAULO
A5: 4 | B5: ANOEL | C5: SAO PAULO
A6: 5 | B6: HENRIQUE | C6: SAO PAULO
A7: 6 | B7: MARCO PAI | C7: SAO PAULO
A8: 7 | B8: ZANELLA | C8: SAO PAULO
A9: 8 | B9: BASILIO | C9: SAO PAULO
A10: 9 | B10: SIRIO | C10: SAO PAULO
A11: 10 | B11: PAULINHO MEIRA | C11: SAO PAULO
A12: 11 | B12: RODOLF | C12: SAO PAULO
A13: 12 | B13: TELE | C13: SAO PAULO
A14: 13 | B14: MARIO JR | C14: SAO PAULO | D14: POTE 2
A15: 14 | B15: ELIAHOU | C15: SAO PAULO
A16: 15 | B16: OLINO | C16: SAO PAULO
A17: 16 | B17: EVANIR | C17: SAO PAULO
A18: 17 | B18: MARCELO LEITE | C18: SAO PAULO
A19: 18 | B19: RAVANELLI | C19: SAO PAULO
A20: 19 | B20: BARBA | C20: SAO PAULO
A21: 20 | B21: FLAVIO MORAES | C21: SAO PAULO
A22: 21 | B22: MARIO NOVAES | C22: SAO PAULO
A23: 22 | B23: BRITAO | C23: SAO PAULO
A24: 23 | B24: BENE | C24: SAO PAULO
A25: 24 | B25: JULINHO | C25: SAO PAULO
A26: 25 | B26: DEMETRIUS | C26: SAO PAULO | D26: POTE 3
A27: 26 | B27: FLOSI | C27: SAO PAULO
A28: 27 | B28: PEPE | C28: SAO PAULO
A29: 28 | B29: CELSO | C29: SAO PAULO
A30: 29 | B30: DEMA | C30: SAO PAULO
A31: 30 | B31: BABY | C31: SAO PAULO
A32: 31 | B32: CORUJEIRA | C32: SAO PAULO
A33: 32 | B33: WALNIR | C33: SAO PAULO
A34: 33 | B34: KLEBER | C34: SAO PAULO
A35: 34 | B35: SERGIO PIVATTO | C35: SAO PAULO
A36: 35 | B36: MARCELO PAIVA | C36: SAO PAULO
A37: 36 | B37: MARCELO ARANHA | C37: SAO PAULO
A38: 37 | B38: PINNA | C38: SAO PAULO | D38: POTE 4
A39: 38 | B39: MARCELLUS | C39: PERNAMBUCO
A40: 39 | B40: EDER SERGIO | C40: PERNAMBUCO
A41: 40 | B41: GERALDO ROUXINOL | C41: PERNAMBUCO
A42: 41 | B42: SERGIO FT | C42: PERNAMBUCO
A43: 42 | B43: HUMBERTO SECURAO | C43: PERNAMBUCO
A44: 43 | B44: PENTINHO | C44: PERNAMBUCO
A45: 44 | B45: ADRIANO BRANQUINHO | C45: PERNAMBUCO
A46: 45 | B46: MANOEL MOURA | C46: CEARA
A47: 46 | B47: FERNANDO CAMPOS | C47: CEARA
A48: 47 | B48: RICARDO SIMOES | C48: CEARA
A49: 48 | B49: PRACIANO | C49: CEARA
A50: 49 | B50: ARMANDO | C50: RIO DE JANEIRO | D50: POTE 5
A51: 50 | B51: BAD | C51: RIO DE JANEIRO
A52: 51 | B52: LUIZ CARLOS | C52: RIO DE JANEIRO
A53: 52 | B53: MARCO ANTONIO | C53: RIO DE JANEIRO
A54: 53 | B54: NALDO CANTUARIA | C54: RIO DE JANEIRO
A55: 54 | B55: PAULO FONSECA | C55: RIO DE JANEIRO
A56: 55 | B56: PC | C56: RIO DE JANEIRO
A57: 56 | B57: RAMOS | C57: RIO DE JANEIRO
A58: 57 | B58: RICARDINHO | C58: RIO DE JANEIRO
A59: 58 | B59: ZE LUIZ | C59: RIO DE JANEIRO
A60: 59 | B60: JOSE CARLOS | C60: RIO DE JANEIRO
A61: 60 | B61: CAU MENDES | C61: RIO DE JANEIRO
A62: 61 | B62: VILLANO | C62: RIO DE JANEIRO | D62: POTE 6
A63: 62 | B63: FRED MARTINS | C63: RIO DE JANEIRO
A64: 63 | B64: CB | C64: RIO GRANDE DO SUL
A65: 64 | B65: CASTILHO | C65: RIO GRANDE DO SUL
A66: 65 | B66: CESAR VIDAL | C66: RIO GRANDE DO SUL
A67: 66 | B67: CLAUDIO MASTRANGELO | C67: RIO GRANDE DO SUL
A68: 67 | B68: NANNINI | C68: RIO GRANDE DO SUL
A69: 68 | B69: ROBERTO SANTOS | C69: RIO GRANDE DO SUL
A70: 69 | B70: PATRICK | C70: RIO GRANDE DO SUL
A71: 70 | B71: IVO JR | C71: SANTA CATARINA
A72: 71 | B72: FLAVIO AYRES | C72: SANTA CATARINA
A73: 72 | B73: SCHUMACHER | C73: SANTA CATARINA
A74: 73 | B74: DALLA STELLA | C74: PARANA | D74: POTE 7
A75: 74 | B75: MAICON | C75: PARANA
A76: 75 | B76: RONY | C76: PARANA
A77: 76 | B77: RUBAO | C77: PARANA
A78: 77 | B78: BITTENCOURT | C78: PARANA
A79: 78 | B79: RONALDO | C79: PARANA
A80: 79 | B80: ANDRE LEAL | C80: PARANA
A81: 80 | B81: LUIZ RICARDO | C81: PARANA
A82: 81 | B82: NICOLAZZI | C82: PARANA
A83: 82 | B83: SETTON | C83: ALAGOAS
A84: 83 | B84: JOAQUIM | C84: ALAGOAS
A85: 84 | B85: ROBERTO ALVES | C85: ALAGOAS
A86: 85 | B86: PAULO SCHMIDT | C86: MINAS GERAIS | D86: POTE 8
A87: 86 | B87: ELCIO BURATINI | C87: MINAS GERAIS
A88: 87 | B88: FERNANDO SCHMIDT | C88: MINAS GERAIS
A89: 88 | B89: WAGNER SCHMIDT | C89: MINAS GERAIS
A90: 89 | B90: FERNANDO CASCAVEL | C90: MINAS GERAIS
A91: 90 | B91: HEAVY | C91: MINAS GERAIS
A92: 91 | B92: GIOVANNI | C92: MINAS GERAIS
A93: 92 | B93: IVAN | C93: GOIAS
A94: 93 | B94: MIGUEL MARIALVA | C94: AMAZONAS
A95: 94 | B95: PAULO SOUZA | C95: AMAZONAS
A96: 95 | B96: SIMPLA | C96: DISTRITO FEDERAL
A97: 96 | B97: PATERNO | C97: SAO PAULO

Sheet SORTEIO
C1: SORTEIO DOS GRUPOS 12 x 8
A9: GRUPO 1 | B9: GRUPO 2 | C9: GRUPO 3 | D9: GRUPO 4 | E9: GRUPO 5 | F9: GRUPO 6 | K9: GRUPO 1 | P9: GRUPO 2 | U9: GRUPO 3 | Z9: GRUPO 4 | AE9: =K9 -> GRUPO 1 | AH9: =P9 -> GRUPO 2 | AK9: =U9 -> GRUPO 3 | AN9: =Z9 -> GRUPO 4
A10: 7 | B10: 9 | C10: 5 | D10: 3 | E10: 8 | F10: 4 | K10: =A32 -> 7 | L10: =VLOOKUP(K10,RANKING!$A$2:$C$97,2,FALSE) -> ZANELLA | M10: =VLOOKUP(K10,RANKING!$A$2:$C$97,3,FALSE) -> SAO PAULO | N10: =VLOOKUP(M10,ESTADOS!$A$2:$B$27,2,FALSE) -> SP | P10: =B32 -> 9 | Q10: =VLOOKUP(P10,RANKING!$A$2:$C$97,2,FALSE) -> SIRIO | R10: =VLOOKUP(P10,RANKING!$A$2:$C$97,3,FALSE) -> SAO PAULO | S10: =VLOOKUP(R10,ESTADOS!$A$2:$B$27,2,FALSE) -> SP | U10: =C32 -> 5 | V10: =VLOOKUP(U10,RANKING!$A$2:$C$97,2,FALSE) -> HENRIQUE | W10: =VLOOKUP(U10,RANKING!$A$2:$C$97,3,FALSE) -> SAO PAULO | X10: =VLOOKUP(W10,ESTADOS!$A$2:$B$27,2,FALSE) -> SP | Z10: =D32 -> 3 | AA10: =VLOOKUP(Z10,RANKING!$A$2:$C$97,2,FALSE) -> SAMMARTINO | AB10: =VLOOKUP(Z10,RANKING!$A$2:$C$97,3,FALSE) -> SAO PAULO | AC10: =VLOOKUP(AB10,ESTADOS!$A$2:$B$27,2,FALSE) -> SP | AE10: =K10 -> 7 | AF10: =IF($A10="","",CONCATENATE(L10,"-",N10)) -> ZANELLA-SP | AH10: =P10 -> 9 | AI10: =IF($B10="","",CONCATENATE(Q10,"-",S10)) -> SIRIO-SP | AK10: =U10 -> 5 | AL10: =IF($C10="","",CONCATENATE(V10,"-",X10)) -> HENRIQUE-SP | AN10: =Z10 -> 3 | AO10: =IF($D10="","",CONCATENATE(AA10,"-",AC10)) -> SAMMARTINO-SP
A11: 9 | B11: 6 | C11: 1 | D11: 3 | E11: 7 | F11: 12 | K11: 21 | L11: =VLOOKUP(K11,RANKING!$A$2:$C$97,2,FALSE) -> MARIO NOVAES | M11: =VLOOKUP(K11,RANKING!$A$2:$C$97,3,FALSE) -> SAO PAULO | N11: =VLOOKUP(M11,ESTADOS!$A$2:$B$27,2,FALSE) -> SP | P11: 18 | Q11: =VLOOKUP(P11,RANKING!$A$2:$C$97,2,FALSE) -> RAVANELLI | R11: =VLOOKUP(P11,RANKING!$A$2:$C$97,3,FALSE) -> SAO PAULO | S11: =VLOOKUP(R11,ESTADOS!$A$2:$B$27,2,FALSE) -> SP | U11: 13 | V11: =VLOOKUP(U11,RANKING!$A$2:$C$97,2,FALSE) -> MARIO JR | W11: =VLOOKUP(U11,RANKING!$A$2:$C$97,3,FALSE) -> SAO PAULO | X11: =VLOOKUP(W11,ESTADOS!$A$2:$B$27,2,FALSE) -> SP | Z11: 15 | AA11: =VLOOKUP(Z11,RANKING!$A$2:$C$97,2,FALSE) -> OLINO | AB11: =VLOOKUP(Z11,RANKING!$A$2:$C$97,3,FALSE) -> SAO PAULO | AC11: =VLOOKUP(AB11,ESTADOS!$A$2:$B$27,2,FALSE) -> SP | AE11: =K11 -> 21 | AF11: =IF($A11="","",CONCATENATE(L11,"-",N11)) -> MARIO NOVAES-SP | AH11: =P11 -> 18 | AI11: =IF($B11="","",CONCATENATE(Q11,"-",S11)) -> RAVANELLI-SP | AK11: =U11 -> 13 | AL11: =IF($C11="","",CONCATENATE(V11,"-",X11)) -> MARIO JR-SP | AN11: =Z11 -> 15 | AO11: =IF($D11="","",CONCATENATE(AA11,"-",AC11)) -> OLINO-SP
A12: 9 | B12: 3 | C12: 6 | D12: 1 | E12: 2 | F12: 7 | K12: 33 | L12: =VLOOKUP(K12,RANKING!$A$2:$C$97,2,FALSE) -> KLEBER | M12: =VLOOKUP(K12,RANKING!$A$2:$C$97,3,FALSE) -> SAO PAULO | N12: =VLOOKUP(M12,ESTADOS!$A$2:$B$27,2,FALSE) -> SP | P12: 27 | Q12: =VLOOKUP(P12,RANKING!$A$2:$C$97,2,FALSE) -> PEPE | R12: =VLOOKUP(P12,RANKING!$A$2:$C$97,3,FALSE) -> SAO PAULO | S12: =VLOOKUP(R12,ESTADOS!$A$2:$B$27,2,FALSE) -> SP | U12: 30 | V12: =VLOOKUP(U12,RANKING!$A$2:$C$97,2,FALSE) -> BABY | W12: =VLOOKUP(U12,RANKING!$A$2:$C$97,3,FALSE) -> SAO PAULO | X12: =VLOOKUP(W12,ESTADOS!$A$2:$B$27,2,FALSE) -> SP | Z12: 25 | AA12: =VLOOKUP(Z12,RANKING!$A$2:$C$97,2,FALSE) -> DEMETRIUS | AB12: =VLOOKUP(Z12,RANKING!$A$2:$C$97,3,FALSE) -> SAO PAULO | AC12: =VLOOKUP(AB12,ESTADOS!$A$2:$B$27,2,FALSE) -> SP | AE12: 33 | AF12: KLEBER-SP | AH12: 27 | AI12: PEPE-SP | AK12: 30 | AL12: BABY-SP | AN12: 25 | AO12: DEMETRIUS-SP
A13: 5 | B13: 1 | C13: 4 | D13: 7 | E13: 8 | F13: 12 | K13: 41 | L13: =VLOOKUP(K13,RANKING!$A$2:$C$97,2,FALSE) -> SERGIO FT | M13: =VLOOKUP(K13,RANKING!$A$2:$C$97,3,FALSE) -> PERNAMBUCO | N13: =VLOOKUP(M13,ESTADOS!$A$2:$B$27,2,FALSE) -> PE | P13: 37 | Q13: =VLOOKUP(P13,RANKING!$A$2:$C$97,2,FALSE) -> PINNA | R13: =VLOOKUP(P13,RANKING!$A$2:$C$97,3,FALSE) -> SAO PAULO | S13: =VLOOKUP(R13,ESTADOS!$A$2:$B$27,2,FALSE) -> SP | U13: 40 | V13: =VLOOKUP(U13,RANKING!$A$2:$C$97,2,FALSE) -> GERALDO ROUXINOL | W13: =VLOOKUP(U13,RANKING!$A$2:$C$97,3,FALSE) -> PERNAMBUCO | X13: =VLOOKUP(W13,ESTADOS!$A$2:$B$27,2,FALSE) -> PE | Z13: 43 | AA13: =VLOOKUP(Z13,RANKING!$A$2:$C$97,2,FALSE) -> PENTINHO | AB13: =VLOOKUP(Z13,RANKING!$A$2:$C$97,3,FALSE) -> PERNAMBUCO | AC13: =VLOOKUP(AB13,ESTADOS!$A$2:$B$27,2,FALSE) -> PE | AE13: 41 | AF13: SERGIO FT-PE | AH13: 37 | AI13: PINNA-SP | AK13: 40 | AL13: GERALDO ROUXINOL-PE | AN13: 43 | AO13: PENTINHO-PE
A14: 11 | B14: 7 | C14: 3 | D14: 6 | E14: 10 | F14: 12 | K14: 59 | L14: =VLOOKUP(K14,RANKING!$A$2:$C$97,2,FALSE) -> JOSE CARLOS | M14: =VLOOKUP(K14,RANKING!$A$2:$C$97,3,FALSE) -> RIO DE JANEIRO | N14: =VLOOKUP(M14,ESTADOS!$A$2:$B$27,2,FALSE) -> RJ | P14: 55 | Q14: =VLOOKUP(P14,RANKING!$A$2:$C$97,2,FALSE) -> PC | R14: =VLOOKUP(P14,RANKING!$A$2:$C$97,3,FALSE) -> RIO DE JANEIRO | S14: =VLOOKUP(R14,ESTADOS!$A$2:$B$27,2,FALSE) -> RJ | U14: 51 | V14: =VLOOKUP(U14,RANKING!$A$2:$C$97,2,FALSE) -> LUIZ CARLOS | W14: =VLOOKUP(U14,RANKING!$A$2:$C$97,3,FALSE) -> RIO DE JANEIRO | X14: =VLOOKUP(W14,ESTADOS!$A$2:$B$27,2,FALSE) -> RJ | Z14: 54 | AA14: =VLOOKUP(Z14,RANKING!$A$2:$C$97,2,FALSE) -> PAULO FONSECA | AB14: =VLOOKUP(Z14,RANKING!$A$2:$C$97,3,FALSE) -> RIO DE JANEIRO | AC14: =VLOOKUP(AB14,ESTADOS!$A$2:$B$27,2,FALSE) -> RJ | AE14: 59 | AF14: JOSE CARLOS-RJ | AH14: 55 | AI14: PC-RJ | AK14: 51 | AL14: LUIZ CARLOS-RJ | AN14: 54 | AO14: PAULO FONSECA-RJ
A15: 9 | B15: 10 | C15: 12 | D15: 1 | E15: 3 | F15: 11 | K15: 69 | L15: =VLOOKUP(K15,RANKING!$A$2:$C$97,2,FALSE) -> PATRICK | M15: =VLOOKUP(K15,RANKING!$A$2:$C$97,3,FALSE) -> RIO GRANDE DO SUL | N15: =VLOOKUP(M15,ESTADOS!$A$2:$B$27,2,FALSE) -> RS | P15: 70 | Q15: =VLOOKUP(P15,RANKING!$A$2:$C$97,2,FALSE) -> IVO JR | R15: =VLOOKUP(P15,RANKING!$A$2:$C$97,3,FALSE) -> SANTA CATARINA | S15: =VLOOKUP(R15,ESTADOS!$A$2:$B$27,2,FALSE) -> SC | U15: 72 | V15: =VLOOKUP(U15,RANKING!$A$2:$C$97,2,FALSE) -> SCHUMACHER | W15: =VLOOKUP(U15,RANKING!$A$2:$C$97,3,FALSE) -> SANTA CATARINA | X15: =VLOOKUP(W15,ESTADOS!$A$2:$B$27,2,FALSE) -> SC | Z15: 61 | AA15: =VLOOKUP(Z15,RANKING!$A$2:$C$97,2,FALSE) -> VILLANO | AB15: =VLOOKUP(Z15,RANKING!$A$2:$C$97,3,FALSE) -> RIO DE JANEIRO | AC15: =VLOOKUP(AB15,ESTADOS!$A$2:$B$27,2,FALSE) -> RJ | AE15: 69 | AF15: PATRICK-RS | AH15: 70 | AI15: IVO JR-SC | AK15: 72 | AL15: SCHUMACHER-SC | AN15: 61 | AO15: VILLANO-RJ
A16: 11 | B16: 1 | C16: 5 | D16: 2 | E16: 4 | F16: 12 | K16: 83 | L16: =VLOOKUP(K16,RANKING!$A$2:$C$97,2,FALSE) -> JOAQUIM | M16: =VLOOKUP(K16,RANKING!$A$2:$C$97,3,FALSE) -> ALAGOAS | N16: =VLOOKUP(M16,ESTADOS!$A$2:$B$27,2,FALSE) -> AL | P16: 73 | Q16: =VLOOKUP(P16,RANKING!$A$2:$C$97,2,FALSE) -> DALLA STELLA | R16: =VLOOKUP(P16,RANKING!$A$2:$C$97,3,FALSE) -> PARANA | S16: =VLOOKUP(R16,ESTADOS!$A$2:$B$27,2,FALSE) -> PR | U16: 77 | V16: =VLOOKUP(U16,RANKING!$A$2:$C$97,2,FALSE) -> BITTENCOURT | W16: =VLOOKUP(U16,RANKING!$A$2:$C$97,3,FALSE) -> PARANA | X16: =VLOOKUP(W16,ESTADOS!$A$2:$B$27,2,FALSE) -> PR | Z16: 74 | AA16: =VLOOKUP(Z16,RANKING!$A$2:$C$97,2,FALSE) -> MAICON | AB16: =VLOOKUP(Z16,RANKING!$A$2:$C$97,3,FALSE) -> PARANA | AC16: =VLOOKUP(AB16,ESTADOS!$A$2:$B$27,2,FALSE) -> PR | AE16: 83 | AF16: JOAQUIM-AL | AH16: 73 | AI16: DALLA STELLA-PR | AK16: 77 | AL16: BITTENCOURT-PR | AN16: 74 | AO16: MAICON-PR
A17: 8 | B17: 4 | C17: 5 | D17: 9 | E17: 2 | F17: 1 | K17: 92 | L17: =VLOOKUP(K17,RANKING!$A$2:$C$97,2,FALSE) -> IVAN | M17: =VLOOKUP(K17,RANKING!$A$2:$C$97,3,FALSE) -> GOIAS | N17: =VLOOKUP(M17,ESTADOS!$A$2:$B$27,2,FALSE) -> GO | P17: 88 | Q17: =VLOOKUP(P17,RANKING!$A$2:$C$97,2,FALSE) -> WAGNER SCHMIDT | R17: =VLOOKUP(P17,RANKING!$A$2:$C$97,3,FALSE) -> MINAS GERAIS | S17: =VLOOKUP(R17,ESTADOS!$A$2:$B$27,2,FALSE) -> MG | U17: 89 | V17: =VLOOKUP(U17,RANKING!$A$2:$C$97,2,FALSE) -> FERNANDO CASCAVEL | W17: =VLOOKUP(U17,RANKING!$A$2:$C$97,3,FALSE) -> MINAS GERAIS | X17: =VLOOKUP(W17,ESTADOS!$A$2:$B$27,2,FALSE) -> MG | Z17: 93 | AA17: =VLOOKUP(Z17,RANKING!$A$2:$C$97,2,FALSE) -> MIGUEL MARIALVA | AB17: =VLOOKUP(Z17,RANKING!$A$2:$C$97,3,FALSE) -> AMAZONAS | AC17: =VLOOKUP(AB17,ESTADOS!$A$2:$B$27,2,FALSE) -> AM | AE17: 92 | AF17: IVAN-GO | AH17: 88 | AI17: WAGNER SCHMIDT-MG | AK17: 89 | AL17: FERNANDO CASCAVEL-MG | AN17: 93 | AO17: MIGUEL MARIALVA-AM
A19: GRUPO 7 | B19: GRUPO 8 | C19: GRUPO 9 | D19: GRUPO 10 | E19: GRUPO 11 | F19: GRUPO 12 | K19: GRUPO 5 | P19: GRUPO 6 | U19: GRUPO 7 | Z19: GRUPO 8 | AE19: =K19 -> GRUPO 5 | AH19: =P19 -> GRUPO 6 | AK19: =U19 -> GRUPO 7 | AN19: =Z19 -> GRUPO 8
A20: 11 | B20: 1 | C20: 10 | D20: 12 | E20: 2 | F20: 6 | K20: =E32 -> 8 | L20: =VLOOKUP(K20,RANKING!$A$2:$C$97,2,FALSE) -> BASILIO | M20: =VLOOKUP(K20,RANKING!$A$2:$C$97,3,FALSE) -> SAO PAULO | N20: =VLOOKUP(M20,ESTADOS!$A$2:$B$27,2,FALSE) -> SP | P20: =F32 -> 4 | Q20: =VLOOKUP(P20,RANKING!$A$2:$C$97,2,FALSE) -> ANOEL | R20: =VLOOKUP(P20,RANKING!$A$2:$C$97,3,FALSE) -> SAO PAULO | S20: =VLOOKUP(R20,ESTADOS!$A$2:$B$27,2,FALSE) -> SP | U20: =A42 -> 11 | V20: =VLOOKUP(U20,RANKING!$A$2:$C$97,2,FALSE) -> RODOLF | W20: =VLOOKUP(U20,RANKING!$A$2:$C$97,3,FALSE) -> SAO PAULO | X20: =VLOOKUP(W20,ESTADOS!$A$2:$B$27,2,FALSE) -> SP | Z20: =B42 -> 1 | AA20: =VLOOKUP(Z20,RANKING!$A$2:$C$97,2,FALSE) -> TERUEL | AB20: =VLOOKUP(Z20,RANKING!$A$2:$C$97,3,FALSE) -> SAO PAULO | AC20: =VLOOKUP(AB20,ESTADOS!$A$2:$B$27,2,FALSE) -> SP | AE20: =K20 -> 8 | AF20: =IF($E10="","",CONCATENATE(L20,"-",N20)) -> BASILIO-SP | AH20: =P20 -> 4 | AI20: =IF($F10="","",CONCATENATE(Q20,"-",S20)) -> ANOEL-SP | AK20: =U20 -> 11 | AL20: =IF($A20="","",CONCATENATE(V20,"-",X20)) -> RODOLF-SP | AN20: =Z20 -> 1 | AO20: =IF($B20="","",CONCATENATE(AA20,"-",AC20)) -> TERUEL-SP
A21: 10 | B21: 5 | C21: 8 | D21: 11 | E21: 4 | F21: 2 | K21: 19 | L21: =VLOOKUP(K21,RANKING!$A$2:$C$97,2,FALSE) -> BARBA | M21: =VLOOKUP(K21,RANKING!$A$2:$C$97,3,FALSE) -> SAO PAULO | N21: =VLOOKUP(M21,ESTADOS!$A$2:$B$27,2,FALSE) -> SP | P21: 24 | Q21: =VLOOKUP(P21,RANKING!$A$2:$C$97,2,FALSE) -> JULINHO | R21: =VLOOKUP(P21,RANKING!$A$2:$C$97,3,FALSE) -> SAO PAULO | S21: =VLOOKUP(R21,ESTADOS!$A$2:$B$27,2,FALSE) -> SP | U21: 22 | V21: =VLOOKUP(U21,RANKING!$A$2:$C$97,2,FALSE) -> BRITAO | W21: =VLOOKUP(U21,RANKING!$A$2:$C$97,3,FALSE) -> SAO PAULO | X21: =VLOOKUP(W21,ESTADOS!$A$2:$B$27,2,FALSE) -> SP | Z21: 17 | AA21: =VLOOKUP(Z21,RANKING!$A$2:$C$97,2,FALSE) -> MARCELO LEITE | AB21: =VLOOKUP(Z21,RANKING!$A$2:$C$97,3,FALSE) -> SAO PAULO | AC21: =VLOOKUP(AB21,ESTADOS!$A$2:$B$27,2,FALSE) -> SP | AE21: =K21 -> 19 | AF21: =IF($E11="","",CONCATENATE(L21,"-",N21)) -> BARBA-SP | AH21: =P21 -> 24 | AI21: =IF($F11="","",CONCATENATE(Q21,"-",S21)) -> JULINHO-SP | AK21: =U21 -> 22 | AL21: =IF($A21="","",CONCATENATE(V21,"-",X21)) -> BRITAO-SP | AN21: =Z21 -> 17 | AO21: =IF($B21="","",CONCATENATE(AA21,"-",AC21)) -> MARCELO LEITE-SP
A22: 12 | B22: 5 | C22: 8 | D22: 10 | E22: 4 | F22: 11 | K22: 26 | L22: =VLOOKUP(K22,RANKING!$A$2:$C$97,2,FALSE) -> FLOSI | M22: =VLOOKUP(K22,RANKING!$A$2:$C$97,3,FALSE) -> SAO PAULO | N22: =VLOOKUP(M22,ESTADOS!$A$2:$B$27,2,FALSE) -> SP | P22: 31 | Q22: =VLOOKUP(P22,RANKING!$A$2:$C$97,2,FALSE) -> CORUJEIRA | R22: =VLOOKUP(P22,RANKING!$A$2:$C$97,3,FALSE) -> SAO PAULO | S22: =VLOOKUP(R22,ESTADOS!$A$2:$B$27,2,FALSE) -> SP | U22: 36 | V22: =VLOOKUP(U22,RANKING!$A$2:$C$97,2,FALSE) -> MARCELO ARANHA | W22: =VLOOKUP(U22,RANKING!$A$2:$C$97,3,FALSE) -> SAO PAULO | X22: =VLOOKUP(W22,ESTADOS!$A$2:$B$27,2,FALSE) -> SP | Z22: 29 | AA22: =VLOOKUP(Z22,RANKING!$A$2:$C$97,2,FALSE) -> DEMA | AB22: =VLOOKUP(Z22,RANKING!$A$2:$C$97,3,FALSE) -> SAO PAULO | AC22: =VLOOKUP(AB22,ESTADOS!$A$2:$B$27,2,FALSE) -> SP | AE22: 26 | AF22: FLOSI-SP | AH22: 31 | AI22: CORUJEIRA-SP | AK22: 36 | AL22: MARCELO ARANHA-SP | AN22: 29 | AO22: DEMA-SP
A23: 11 | B23: 6 | C23: 10 | D23: 3 | E23: 9 | F23: 2 | K23: 44 | L23: =VLOOKUP(K23,RANKING!$A$2:$C$97,2,FALSE) -> ADRIANO BRANQUINHO | M23: =VLOOKUP(K23,RANKING!$A$2:$C$97,3,FALSE) -> PERNAMBUCO | N23: =VLOOKUP(M23,ESTADOS!$A$2:$B$27,2,FALSE) -> PE | P23: 48 | Q23: =VLOOKUP(P23,RANKING!$A$2:$C$97,2,FALSE) -> PRACIANO | R23: =VLOOKUP(P23,RANKING!$A$2:$C$97,3,FALSE) -> CEARA | S23: =VLOOKUP(R23,ESTADOS!$A$2:$B$27,2,FALSE) -> CE | U23: 47 | V23: =VLOOKUP(U23,RANKING!$A$2:$C$97,2,FALSE) -> RICARDO SIMOES | W23: =VLOOKUP(U23,RANKING!$A$2:$C$97,3,FALSE) -> CEARA | X23: =VLOOKUP(W23,ESTADOS!$A$2:$B$27,2,FALSE) -> CE | Z23: 42 | AA23: =VLOOKUP(Z23,RANKING!$A$2:$C$97,2,FALSE) -> HUMBERTO SECURAO | AB23: =VLOOKUP(Z23,RANKING!$A$2:$C$97,3,FALSE) -> PERNAMBUCO | AC23: =VLOOKUP(AB23,ESTADOS!$A$2:$B$27,2,FALSE) -> PE | AE23: 44 | AF23: ADRIANO BRANQUINHO-PE | AH23: 48 | AI23: PRACIANO-CE | AK23: 47 | AL23: RICARDO SIMOES-CE | AN23: 42 | AO23: HUMBERTO SECURAO-PE
A24: 4 | B24: 8 | C24: 5 | D24: 1 | E24: 9 | F24: 2 | K24: 58 | L24: =VLOOKUP(K24,RANKING!$A$2:$C$97,2,FALSE) -> ZE LUIZ | M24: =VLOOKUP(K24,RANKING!$A$2:$C$97,3,FALSE) -> RIO DE JANEIRO | N24: =VLOOKUP(M24,ESTADOS!$A$2:$B$27,2,FALSE) -> RJ | P24: 60 | Q24: =VLOOKUP(P24,RANKING!$A$2:$C$97,2,FALSE) -> CAU MENDES | R24: =VLOOKUP(P24,RANKING!$A$2:$C$97,3,FALSE) -> RIO DE JANEIRO | S24: =VLOOKUP(R24,ESTADOS!$A$2:$B$27,2,FALSE) -> RJ | U24: 52 | V24: =VLOOKUP(U24,RANKING!$A$2:$C$97,2,FALSE) -> MARCO ANTONIO | W24: =VLOOKUP(U24,RANKING!$A$2:$C$97,3,FALSE) -> RIO DE JANEIRO | X24: =VLOOKUP(W24,ESTADOS!$A$2:$B$27,2,FALSE) -> RJ | Z24: 56 | AA24: =VLOOKUP(Z24,RANKING!$A$2:$C$97,2,FALSE) -> RAMOS | AB24: =VLOOKUP(Z24,RANKING!$A$2:$C$97,3,FALSE) -> RIO DE JANEIRO | AC24: =VLOOKUP(AB24,ESTADOS!$A$2:$B$27,2,FALSE) -> RJ | AE24: 58 | AF24: ZE LUIZ-RJ | AH24: 60 | AI24: CAU MENDES-RJ | AK24: 52 | AL24: MARCO ANTONIO-RJ | AN24: 56 | AO24: RAMOS-RJ
A25: 2 | B25: 7 | C25: 6 | D25: 5 | E25: 8 | F25: 4 | K25: 63 | L25: =VLOOKUP(K25,RANKING!$A$2:$C$97,2,FALSE) -> CB | M25: =VLOOKUP(K25,RANKING!$A$2:$C$97,3,FALSE) -> RIO GRANDE DO SUL | N25: =VLOOKUP(M25,ESTADOS!$A$2:$B$27,2,FALSE) -> RS | P25: 71 | Q25: =VLOOKUP(P25,RANKING!$A$2:$C$97,2,FALSE) -> FLAVIO AYRES | R25: =VLOOKUP(P25,RANKING!$A$2:$C$97,3,FALSE) -> SANTA CATARINA | S25: =VLOOKUP(R25,ESTADOS!$A$2:$B$27,2,FALSE) -> SC | U25: 62 | V25: =VLOOKUP(U25,RANKING!$A$2:$C$97,2,FALSE) -> FRED MARTINS | W25: =VLOOKUP(U25,RANKING!$A$2:$C$97,3,FALSE) -> RIO DE JANEIRO | X25: =VLOOKUP(W25,ESTADOS!$A$2:$B$27,2,FALSE) -> RJ | Z25: 67 | AA25: =VLOOKUP(Z25,RANKING!$A$2:$C$97,2,FALSE) -> NANNINI | AB25: =VLOOKUP(Z25,RANKING!$A$2:$C$97,3,FALSE) -> RIO GRANDE DO SUL | AC25: =VLOOKUP(AB25,ESTADOS!$A$2:$B$27,2,FALSE) -> RS | AE25: 63 | AF25: CB-RS | AH25: 71 | AI25: FLAVIO AYRES-SC | AK25: 62 | AL25: FRED MARTINS-RJ | AN25: 67 | AO25: NANNINI-RS
A26: 6 | B26: 7 | C26: 3 | D26: 10 | E26: 8 | F26: 9 | K26: 76 | L26: =VLOOKUP(K26,RANKING!$A$2:$C$97,2,FALSE) -> RUBAO | M26: =VLOOKUP(K26,RANKING!$A$2:$C$97,3,FALSE) -> PARANA | N26: =VLOOKUP(M26,ESTADOS!$A$2:$B$27,2,FALSE) -> PR | P26: 84 | Q26: =VLOOKUP(P26,RANKING!$A$2:$C$97,2,FALSE) -> ROBERTO ALVES | R26: =VLOOKUP(P26,RANKING!$A$2:$C$97,3,FALSE) -> ALAGOAS | S26: =VLOOKUP(R26,ESTADOS!$A$2:$B$27,2,FALSE) -> AL | U26: 78 | V26: =VLOOKUP(U26,RANKING!$A$2:$C$97,2,FALSE) -> RONALDO | W26: =VLOOKUP(U26,RANKING!$A$2:$C$97,3,FALSE) -> PARANA | X26: =VLOOKUP(W26,ESTADOS!$A$2:$B$27,2,FALSE) -> PR | Z26: 79 | AA26: =VLOOKUP(Z26,RANKING!$A$2:$C$97,2,FALSE) -> ANDRE LEAL | AB26: =VLOOKUP(Z26,RANKING!$A$2:$C$97,3,FALSE) -> PARANA | AC26: =VLOOKUP(AB26,ESTADOS!$A$2:$B$27,2,FALSE) -> PR | AE26: 76 | AF26: RUBAO-PR | AH26: 84 | AI26: ROBERTO ALVES-AL | AK26: 78 | AL26: RONALDO-PR | AN26: 79 | AO26: ANDRE LEAL-PR
A27: 6 | B27: 10 | C27: 7 | D27: 3 | E27: 11 | F27: 12 | K27: 86 | L27: =VLOOKUP(K27,RANKING!$A$2:$C$97,2,FALSE) -> ELCIO BURATINI | M27: =VLOOKUP(K27,RANKING!$A$2:$C$97,3,FALSE) -> MINAS GERAIS | N27: =VLOOKUP(M27,ESTADOS!$A$2:$B$27,2,FALSE) -> MG | P27: 85 | Q27: =VLOOKUP(P27,RANKING!$A$2:$C$97,2,FALSE) -> PAULO SCHMIDT | R27: =VLOOKUP(P27,RANKING!$A$2:$C$97,3,FALSE) -> MINAS GERAIS | S27: =VLOOKUP(R27,ESTADOS!$A$2:$B$27,2,FALSE) -> MG | U27: 90 | V27: =VLOOKUP(U27,RANKING!$A$2:$C$97,2,FALSE) -> HEAVY | W27: =VLOOKUP(U27,RANKING!$A$2:$C$97,3,FALSE) -> MINAS GERAIS | X27: =VLOOKUP(W27,ESTADOS!$A$2:$B$27,2,FALSE) -> MG | Z27: 94 | AA27: =VLOOKUP(Z27,RANKING!$A$2:$C$97,2,FALSE) -> PAULO SOUZA | AB27: =VLOOKUP(Z27,RANKING!$A$2:$C$97,3,FALSE) -> AMAZONAS | AC27: =VLOOKUP(AB27,ESTADOS!$A$2:$B$27,2,FALSE) -> AM | AE27: 86 | AF27: ELCIO BURATINI-MG | AH27: 85 | AI27: PAULO SCHMIDT-MG | AK27: 90 | AL27: HEAVY-MG | AN27: 94 | AO27: PAULO SOUZA-AM
K29: GRUPO 9 | P29: GRUPO 10 | U29: GRUPO 11 | Z29: GRUPO 12 | AE29: =K29 -> GRUPO 9 | AH29: =P29 -> GRUPO 10 | AK29: =U29 -> GRUPO 11 | AN29: =Z29 -> GRUPO 12
K30: =C42 -> 10 | L30: =VLOOKUP(K30,RANKING!$A$2:$C$97,2,FALSE) -> PAULINHO MEIRA | M30: =VLOOKUP(K30,RANKING!$A$2:$C$97,3,FALSE) -> SAO PAULO | N30: =VLOOKUP(M30,ESTADOS!$A$2:$B$27,2,FALSE) -> SP | P30: =D42 -> 12 | Q30: =VLOOKUP(P30,RANKING!$A$2:$C$97,2,FALSE) -> TELE | R30: =VLOOKUP(P30,RANKING!$A$2:$C$97,3,FALSE) -> SAO PAULO | S30: =VLOOKUP(R30,ESTADOS!$A$2:$B$27,2,FALSE) -> SP | U30: =E42 -> 2 | V30: =VLOOKUP(U30,RANKING!$A$2:$C$97,2,FALSE) -> BRYANT | W30: =VLOOKUP(U30,RANKING!$A$2:$C$97,3,FALSE) -> SAO PAULO | X30: =VLOOKUP(W30,ESTADOS!$A$2:$B$27,2,FALSE) -> SP | Z30: =F42 -> 6 | AA30: =VLOOKUP(Z30,RANKING!$A$2:$C$97,2,FALSE) -> MARCO PAI | AB30: =VLOOKUP(Z30,RANKING!$A$2:$C$97,3,FALSE) -> SAO PAULO | AC30: =VLOOKUP(AB30,ESTADOS!$A$2:$B$27,2,FALSE) -> SP | AE30: =K30 -> 10 | AF30: =IF($C20="","",CONCATENATE(L30,"-",N30)) -> PAULINHO MEIRA-SP | AH30: =P30 -> 12 | AI30: =IF($D20="","",CONCATENATE(Q30,"-",S30)) -> TELE-SP | AK30: =U30 -> 2 | AL30: =IF($E20="","",CONCATENATE(V30,"-",X30)) -> BRYANT-SP | AN30: =Z30 -> 6 | AO30: =IF($F20="","",CONCATENATE(AA30,"-",AC30)) -> MARCO PAI-SP
A31: GRUPO 1 | B31: GRUPO 2 | C31: GRUPO 3 | D31: GRUPO 4 | E31: GRUPO 5 | F31: GRUPO 6 | K31: 20 | L31: =VLOOKUP(K31,RANKING!$A$2:$C$97,2,FALSE) -> FLAVIO MORAES | M31: =VLOOKUP(K31,RANKING!$A$2:$C$97,3,FALSE) -> SAO PAULO | N31: =VLOOKUP(M31,ESTADOS!$A$2:$B$27,2,FALSE) -> SP | P31: 23 | Q31: =VLOOKUP(P31,RANKING!$A$2:$C$97,2,FALSE) -> BENE | R31: =VLOOKUP(P31,RANKING!$A$2:$C$97,3,FALSE) -> SAO PAULO | S31: =VLOOKUP(R31,ESTADOS!$A$2:$B$27,2,FALSE) -> SP | U31: 16 | V31: =VLOOKUP(U31,RANKING!$A$2:$C$97,2,FALSE) -> EVANIR | W31: =VLOOKUP(U31,RANKING!$A$2:$C$97,3,FALSE) -> SAO PAULO | X31: =VLOOKUP(W31,ESTADOS!$A$2:$B$27,2,FALSE) -> SP | Z31: 14 | AA31: =VLOOKUP(Z31,RANKING!$A$2:$C$97,2,FALSE) -> ELIAHOU | AB31: =VLOOKUP(Z31,RANKING!$A$2:$C$97,3,FALSE) -> SAO PAULO | AC31: =VLOOKUP(AB31,ESTADOS!$A$2:$B$27,2,FALSE) -> SP | AE31: =K31 -> 20 | AF31: =IF($C21="","",CONCATENATE(L31,"-",N31)) -> FLAVIO MORAES-SP | AH31: =P31 -> 23 | AI31: =IF($D21="","",CONCATENATE(Q31,"-",S31)) -> BENE-SP | AK31: =U31 -> 16 | AL31: =IF($E21="","",CONCATENATE(V31,"-",X31)) -> EVANIR-SP | AN31: =Z31 -> 14 | AO31: =IF($F21="","",CONCATENATE(AA31,"-",AC31)) -> ELIAHOU-SP
A32: =A10 -> 7 | B32: 9 | C32: 5 | D32: 3 | E32: 8 | F32: 4 | K32: 32 | L32: =VLOOKUP(K32,RANKING!$A$2:$C$97,2,FALSE) -> WALNIR | M32: =VLOOKUP(K32,RANKING!$A$2:$C$97,3,FALSE) -> SAO PAULO | N32: =VLOOKUP(M32,ESTADOS!$A$2:$B$27,2,FALSE) -> SP | P32: 34 | Q32: =VLOOKUP(P32,RANKING!$A$2:$C$97,2,FALSE) -> SERGIO PIVATTO | R32: =VLOOKUP(P32,RANKING!$A$2:$C$97,3,FALSE) -> SAO PAULO | S32: =VLOOKUP(R32,ESTADOS!$A$2:$B$27,2,FALSE) -> SP | U32: 28 | V32: =VLOOKUP(U32,RANKING!$A$2:$C$97,2,FALSE) -> CELSO | W32: =VLOOKUP(U32,RANKING!$A$2:$C$97,3,FALSE) -> SAO PAULO | X32: =VLOOKUP(W32,ESTADOS!$A$2:$B$27,2,FALSE) -> SP | Z32: 35 | AA32: =VLOOKUP(Z32,RANKING!$A$2:$C$97,2,FALSE) -> MARCELO PAIVA | AB32: =VLOOKUP(Z32,RANKING!$A$2:$C$97,3,FALSE) -> SAO PAULO | AC32: =VLOOKUP(AB32,ESTADOS!$A$2:$B$27,2,FALSE) -> SP | AE32: 32 | AF32: WALNIR-SP | AH32: 34 | AI32: SERGIO PIVATTO-SP | AK32: 28 | AL32: CELSO-SP | AN32: 35 | AO32: MARCELO PAIVA-SP
A33: =A11+12 -> 21 | B33: 18 | C33: 13 | D33: 15 | E33: 19 | F33: 24 | K33: 46 | L33: =VLOOKUP(K33,RANKING!$A$2:$C$97,2,FALSE) -> FERNANDO CAMPOS | M33: =VLOOKUP(K33,RANKING!$A$2:$C$97,3,FALSE) -> CEARA | N33: =VLOOKUP(M33,ESTADOS!$A$2:$B$27,2,FALSE) -> CE | P33: 39 | Q33: =VLOOKUP(P33,RANKING!$A$2:$C$97,2,FALSE) -> EDER SERGIO | R33: =VLOOKUP(P33,RANKING!$A$2:$C$97,3,FALSE) -> PERNAMBUCO | S33: =VLOOKUP(R33,ESTADOS!$A$2:$B$27,2,FALSE) -> PE | U33: 45 | V33: =VLOOKUP(U33,RANKING!$A$2:$C$97,2,FALSE) -> MANOEL MOURA | W33: =VLOOKUP(U33,RANKING!$A$2:$C$97,3,FALSE) -> CEARA | X33: =VLOOKUP(W33,ESTADOS!$A$2:$B$27,2,FALSE) -> CE | Z33: 38 | AA33: =VLOOKUP(Z33,RANKING!$A$2:$C$97,2,FALSE) -> MARCELLUS | AB33: =VLOOKUP(Z33,RANKING!$A$2:$C$97,3,FALSE) -> PERNAMBUCO | AC33: =VLOOKUP(AB33,ESTADOS!$A$2:$B$27,2,FALSE) -> PE | AE33: 46 | AF33: FERNANDO CAMPOS-CE | AH33: 39 | AI33: EDER SERGIO-PE | AK33: 45 | AL33: MANOEL MOURA-CE | AN33: 38 | AO33: MARCELLUS-PE
A34: =A12+24 -> 33 | B34: 27 | C34: 30 | D34: 25 | E34: 26 | F34: 31 | K34: 53 | L34: =VLOOKUP(K34,RANKING!$A$2:$C$97,2,FALSE) -> NALDO CANTUARIA | M34: =VLOOKUP(K34,RANKING!$A$2:$C$97,3,FALSE) -> RIO DE JANEIRO | N34: =VLOOKUP(M34,ESTADOS!$A$2:$B$27,2,FALSE) -> RJ | P34: 49 | Q34: =VLOOKUP(P34,RANKING!$A$2:$C$97,2,FALSE) -> ARMANDO | R34: =VLOOKUP(P34,RANKING!$A$2:$C$97,3,FALSE) -> RIO DE JANEIRO | S34: =VLOOKUP(R34,ESTADOS!$A$2:$B$27,2,FALSE) -> RJ | U34: 57 | V34: =VLOOKUP(U34,RANKING!$A$2:$C$97,2,FALSE) -> RICARDINHO | W34: =VLOOKUP(U34,RANKING!$A$2:$C$97,3,FALSE) -> RIO DE JANEIRO | X34: =VLOOKUP(W34,ESTADOS!$A$2:$B$27,2,FALSE) -> RJ | Z34: 50 | AA34: =VLOOKUP(Z34,RANKING!$A$2:$C$97,2,FALSE) -> BAD | AB34: =VLOOKUP(Z34,RANKING!$A$2:$C$97,3,FALSE) -> RIO DE JANEIRO | AC34: =VLOOKUP(AB34,ESTADOS!$A$2:$B$27,2,FALSE) -> RJ | AE34: 53 | AF34: NALDO CANTUARIA-RJ | AH34: 49 | AI34: ARMANDO-RJ | AK34: 57 | AL34: RICARDINHO-RJ | AN34: 50 | AO34: BAD-RJ
A35: =A13+36 -> 41 | B35: 37 | C35: 40 | D35: 43 | E35: 44 | F35: 48 | K35: 66 | L35: =VLOOKUP(K35,RANKING!$A$2:$C$97,2,FALSE) -> CLAUDIO MASTRANGELO | M35: =VLOOKUP(K35,RANKING!$A$2:$C$97,3,FALSE) -> RIO GRANDE DO SUL | N35: =VLOOKUP(M35,ESTADOS!$A$2:$B$27,2,FALSE) -> RS | P35: 65 | Q35: =VLOOKUP(P35,RANKING!$A$2:$C$97,2,FALSE) -> CESAR VIDAL | R35: =VLOOKUP(P35,RANKING!$A$2:$C$97,3,FALSE) -> RIO GRANDE DO SUL | S35: =VLOOKUP(R35,ESTADOS!$A$2:$B$27,2,FALSE) -> RS | U35: 68 | V35: =VLOOKUP(U35,RANKING!$A$2:$C$97,2,FALSE) -> ROBERTO SANTOS | W35: =VLOOKUP(U35,RANKING!$A$2:$C$97,3,FALSE) -> RIO GRANDE DO SUL | X35: =VLOOKUP(W35,ESTADOS!$A$2:$B$27,2,FALSE) -> RS | Z35: 64 | AA35: =VLOOKUP(Z35,RANKING!$A$2:$C$97,2,FALSE) -> CASTILHO | AB35: =VLOOKUP(Z35,RANKING!$A$2:$C$97,3,FALSE) -> RIO GRANDE DO SUL | AC35: =VLOOKUP(AB35,ESTADOS!$A$2:$B$27,2,FALSE) -> RS | AE35: 66 | AF35: CLAUDIO MASTRANGELO-RS | AH35: 65 | AI35: CESAR VIDAL-RS | AK35: 68 | AL35: ROBERTO SANTOS-RS | AN35: 64 | AO35: CASTILHO-RS
A36: =A14+48 -> 59 | B36: 55 | C36: 51 | D36: 54 | E36: 58 | F36: 60 | K36: 75 | L36: =VLOOKUP(K36,RANKING!$A$2:$C$97,2,FALSE) -> RONY | M36: =VLOOKUP(K36,RANKING!$A$2:$C$97,3,FALSE) -> PARANA | N36: =VLOOKUP(M36,ESTADOS!$A$2:$B$27,2,FALSE) -> PR | P36: 82 | Q36: =VLOOKUP(P36,RANKING!$A$2:$C$97,2,FALSE) -> SETTON | R36: =VLOOKUP(P36,RANKING!$A$2:$C$97,3,FALSE) -> ALAGOAS | S36: =VLOOKUP(R36,ESTADOS!$A$2:$B$27,2,FALSE) -> AL | U36: 80 | V36: =VLOOKUP(U36,RANKING!$A$2:$C$97,2,FALSE) -> LUIZ RICARDO | W36: =VLOOKUP(U36,RANKING!$A$2:$C$97,3,FALSE) -> PARANA | X36: =VLOOKUP(W36,ESTADOS!$A$2:$B$27,2,FALSE) -> PR | Z36: 81 | AA36: =VLOOKUP(Z36,RANKING!$A$2:$C$97,2,FALSE) -> NICOLAZZI | AB36: =VLOOKUP(Z36,RANKING!$A$2:$C$97,3,FALSE) -> PARANA | AC36: =VLOOKUP(AB36,ESTADOS!$A$2:$B$27,2,FALSE) -> PR | AE36: 75 | AF36: RONY-PR | AH36: 82 | AI36: SETTON-AL | AK36: 80 | AL36: LUIZ RICARDO-PR | AN36: 81 | AO36: NICOLAZZI-PR
A37: =A15+60 -> 69 | B37: 70 | C37: 72 | D37: 61 | E37: 63 | F37: 71 | K37: 91 | L37: =VLOOKUP(K37,RANKING!$A$2:$C$97,2,FALSE) -> GIOVANNI | M37: =VLOOKUP(K37,RANKING!$A$2:$C$97,3,FALSE) -> MINAS GERAIS | N37: =VLOOKUP(M37,ESTADOS!$A$2:$B$27,2,FALSE) -> MG | P37: 87 | Q37: =VLOOKUP(P37,RANKING!$A$2:$C$97,2,FALSE) -> FERNANDO SCHMIDT | R37: =VLOOKUP(P37,RANKING!$A$2:$C$97,3,FALSE) -> MINAS GERAIS | S37: =VLOOKUP(R37,ESTADOS!$A$2:$B$27,2,FALSE) -> MG | U37: 95 | V37: =VLOOKUP(U37,RANKING!$A$2:$C$97,2,FALSE) -> SIMPLA | W37: =VLOOKUP(U37,RANKING!$A$2:$C$97,3,FALSE) -> DISTRITO FEDERAL | X37: =VLOOKUP(W37,ESTADOS!$A$2:$B$27,2,FALSE) -> DF | Z37: 96 | AA37: =VLOOKUP(Z37,RANKING!$A$2:$C$97,2,FALSE) -> PATERNO | AB37: =VLOOKUP(Z37,RANKING!$A$2:$C$97,3,FALSE) -> SAO PAULO | AC37: =VLOOKUP(AB37,ESTADOS!$A$2:$B$27,2,FALSE) -> SP | AE37: 91 | AF37: GIOVANNI-MG | AH37: 87 | AI37: FERNANDO SCHMIDT-MG | AK37: 95 | AL37: SIMPLA-DF | AN37: 96 | AO37: PATERNO-SP
A38: =A16+72 -> 83 | B38: 73 | C38: 77 | D38: 74 | E38: 76 | F38: 84
A39: =A17+84 -> 92 | B39: 88 | C39: 89 | D39: 93 | E39: 86 | F39: 85
A41: GRUPO 7 | B41: GRUPO 8 | C41: GRUPO 9 | D41: GRUPO 10 | E41: GRUPO 11 | F41: GRUPO 12
A42: =A20 -> 11 | B42: 1 | C42: 10 | D42: 12 | E42: 2 | F42: 6
A43: =A21+12 -> 22 | B43: 17 | C43: 20 | D43: 23 | E43: 16 | F43: 14
A44: =A22+24 -> 36 | B44: 29 | C44: 32 | D44: 34 | E44: 28 | F44: 35
A45: =A23+36 -> 47 | B45: 42 | C45: 46 | D45: 39 | E45: 45 | F45: 38
A46: =A24+48 -> 52 | B46: 56 | C46: 53 | D46: 49 | E46: 57 | F46: 50
A47: =A25+60 -> 62 | B47: 67 | C47: 66 | D47: 65 | E47: 68 | F47: 64
A48: =A26+72 -> 78 | B48: 79 | C48: 75 | D48: 82 | E48: 80 | F48: 81
A49: =A27+84 -> 90 | B49: 94 | C49: 91 | D49: 87 | E49: 95 | F49: 96

Sheet ESTADOS
A1: ESTADO | B1: SIGLA
A2: ACRE | B2: AC
A3: ALAGOAS | B3: AL
A4: AMAPA | B4: AP
A5: AMAZONAS | B5: AM
A6: BAHIA | B6: BA
A7: CEARA | B7: CE
A8: DISTRITO FEDERAL | B8: DF
A9: ESPIRITO SANTO | B9: ES
A10: GOIAS | B10: GO
A11: MARANHAO | B11: MA
A12: MATO GROSSO | B12: MT
A13: MATO GROSSO DO SUL | B13: MS
A14: MINAS GERAIS | B14: MG
A15: PARA | B15: PA
A16: PARANA | B16: PR
A17: PERNAMBUCO | B17: PE
A18: PIAUI | B18: PI
A19: RIO DE JANEIRO | B19: RJ
A20: RIO GRANDE DO NORTE | B20: RN
A21: RIO GRANDE DO SUL | B21: RS
A22: RONDONIA | B22: RO
A23: RORAIMA | B23: RR
A24: SANTA CATARINA | B24: SC
A25: SAO PAULO | B25: SP
A26: SERGIPE | B26: SE
A27: TOCANTINS | B27: TO

Sheet G1 (2) (hidden)
C6: São Paulo/SP
C8: XXXII Brasileiro Individual | H8: Categoria: | I8: Adulto | N8: 11 a 14/junho de 2020
C9: Grupo 1 | F9: Grupo 2 | I9: Grupo 3 | L9: Grupo 4 | P9: >>> Atenção <<<
C10: 1 | D10: J1 | F10: 1 | G10: J9 | I10: 1 | J10: J17 | L10: 1 | M10: J25 | P10: Para completar o cálculo da 1a Fase proceda da seguinte forma:
C11: 2 | D11: J2 | F11: 2 | G11: J10 | I11: 2 | J11: J18 | L11: 2 | M11: J26 | P11: 1) Coloque os Botonistas do mesmo Estado/Clube dentro de cada bloco.
C12: 3 | D12: J3 | F12: 3 | G12: J11 | I12: 3 | J12: J19 | L12: 3 | M12: J27 | P12: • 2 botonistas: posições 1 e 2 ou 3 e 7 ou 4 e 8 ou 5 e 6
C13: 4 | D13: J4 | F13: 4 | G13: J12 | I13: 4 | J13: J20 | L13: 4 | M13: J28 | P13: • 3 botonistas: posições 3, 4 e 7
C14: 5 | D14: J5 | F14: 5 | G14: J13 | I14: 5 | J14: J21 | L14: 5 | M14: J29 | P14: • 4 botonistas: posições 1, 2, 5 e 6 ou 3, 4, 7 e 8
C15: 6 | D15: J6 | F15: 6 | G15: J14 | I15: 6 | J15: J22 | L15: 6 | M15: J30 | P15: OBS: Em caso de WO, inserir a letra "S" no campo ao lado no nome.
C16: 7 | D16: J7 | F16: 7 | G16: J15 | I16: 7 | J16: J23 | L16: 7 | M16: J31
C17: 8 | D17: J8 | F17: 8 | G17: J16 | I17: 8 | J17: J24 | L17: 8 | M17: J32
C19: Grupo 5 | F19: Grupo 6 | I19: Grupo 7 | L19: Grupo 8
C20: 1 | D20: J33 | F20: 1 | G20: J41 | I20: 1 | J20: J49 | L20: 1 | M20: J57
C21: 2 | D21: J34 | F21: 2 | G21: J42 | I21: 2 | J21: J50 | L21: 2 | M21: J58
C22: 3 | D22: J35 | F22: 3 | G22: J43 | I22: 3 | J22: J51 | L22: 3 | M22: J59
C23: 4 | D23: J36 | F23: 4 | G23: J44 | I23: 4 | J23: J52 | L23: 4 | M23: J60
C24: 5 | D24: J37 | F24: 5 | G24: J45 | I24: 5 | J24: J53 | L24: 5 | M24: J61
C25: 6 | D25: J38 | F25: 6 | G25: J46 | I25: 6 | J25: J54 | L25: 6 | M25: J62
C26: 7 | D26: J39 | F26: 7 | G26: J47 | I26: 7 | J26: J55 | L26: 7 | M26: J63
C27: 8 | D27: J40 | F27: 8 | G27: J48 | I27: 8 | J27: J56 | L27: 8 | M27: J64
C29: Grupo 9 | F29: Grupo 10 | I29: Grupo 11 | L29: Grupo 12
C30: 1 | D30: J65 | F30: 1 | G30: J73 | I30: 1 | J30: J81 | L30: 1 | M30: J89
C31: 2 | D31: J66 | F31: 2 | G31: J74 | I31: 2 | J31: J82 | L31: 2 | M31: J90
C32: 3 | D32: J67 | F32: 3 | G32: J75 | I32: 3 | J32: J83 | L32: 3 | M32: J91
C33: 4 | D33: J68 | F33: 4 | G33: J76 | I33: 4 | J33: J84 | L33: 4 | M33: J92
C34: 5 | D34: J69 | F34: 5 | G34: J77 | I34: 5 | J34: J85 | L34: 5 | M34: J93
C35: 6 | D35: J70 | F35: 6 | G35: J78 | I35: 6 | J35: J86 | L35: 6 | M35: J94
C36: 7 | D36: J71 | F36: 7 | G36: J79 | I36: 7 | J36: J87 | L36: 7 | M36: J95
C37: 8 | D37: J72 | F37: 8 | G37: J80 | I37: 8 | J37: J88 | L37: 8 | M37: J96
C39: Grupo 13 | F39: Grupo 14 | I39: Grupo 15 | L39: Grupo 16
C40: 1 | D40: J97 | F40: 1 | G40: J105 | I40: 1 | J40: J113 | L40: 1 | M40: J121
C41: 2 | D41: J98 | F41: 2 | G41: J106 | I41: 2 | J41: J114 | L41: 2 | M41: J122
C42: 3 | D42: J99 | F42: 3 | G42: J107 | I42: 3 | J42: J115 | L42: 3 | M42: J123
C43: 4 | D43: J100 | F43: 4 | G43: J108 | I43: 4 | J43: J116 | L43: 4 | M43: J124
C44: 5 | D44: J101 | F44: 5 | G44: J109 | I44: 5 | J44: J117 | L44: 5 | M44: J125
C45: 6 | D45: J102 | F45: 6 | G45: J110 | I45: 6 | J45: J118 | L45: 6 | M45: J126
C46: 7 | D46: J103 | F46: 7 | G46: J111 | I46: 7 | J46: J119 | L46: 7 | M46: J127
C47: 8 | D47: J104 | F47: 8 | G47: J112 | I47: 8 | J47: J120 | L47: 8 | M47: J128

Sheet G1
C6: =INFO!$C$1 -> 32º Campeonato Brasileiro Individual
C8: =INFO!$C$2 -> SÃO PAULO/SP | H8: Categoria: | I8: =INFO!$C$4 -> Master | N8: =INFO!$C$3 -> 16 a 19/junho de 2022 | P8: Esta coluna foi ocultada pela direção técnica, pois na 1ª fase não é necessário
C9: Grupo 1 | F9: Grupo 2 | I9: Grupo 3 | L9: Grupo 4 | P9: >>> Atenção <<<
C10: 1 | D10: =SORTEIO!$AF10 -> ZANELLA-SP | F10: 1 | G10: =SORTEIO!$AI10 -> SIRIO-SP | I10: 1 | J10: =SORTEIO!$AL10 -> HENRIQUE-SP | L10: 1 | M10: =SORTEIO!$AO10 -> SAMMARTINO-SP | P10: Para completar o cálculo da 1a Fase proceda da seguinte forma:
C11: 2 | D11: =SORTEIO!$AF11 -> MARIO NOVAES-SP | F11: 2 | G11: =SORTEIO!$AI11 -> RAVANELLI-SP | I11: 2 | J11: =SORTEIO!$AL11 -> MARIO JR-SP | L11: 2 | M11: =SORTEIO!$AO11 -> OLINO-SP | P11: 1) Coloque os Botonistas do mesmo Estado/Clube dentro de cada bloco.
C12: 3 | D12: =SORTEIO!$AF13 -> SERGIO FT-PE | F12: 3 | G12: =SORTEIO!$AI12 -> PEPE-SP | I12: 3 | J12: =SORTEIO!$AL13 -> GERALDO ROUXINOL-PE | L12: 3 | M12: =SORTEIO!$AO13 -> PENTINHO-PE | P12: • 2 botonistas: posições 1 e 4 ou 2 e 3 ou 5 e 8 ou 6 e 7
C13: 4 | D13: =SORTEIO!$AF12 -> KLEBER-SP | F13: 4 | G13: =SORTEIO!$AI13 -> PINNA-SP | I13: 4 | J13: =SORTEIO!$AL12 -> BABY-SP | L13: 4 | M13: =SORTEIO!$AO12 -> DEMETRIUS-SP | P13: • 3 botonistas: posições 1, 2 e 4 ou 5, 6 e 8
C14: 5 | D14: =SORTEIO!$AF14 -> JOSE CARLOS-RJ | F14: 5 | G14: =SORTEIO!$AI14 -> PC-RJ | I14: 5 | J14: =SORTEIO!$AL14 -> LUIZ CARLOS-RJ | L14: 5 | M14: =SORTEIO!$AO14 -> PAULO FONSECA-RJ | P14: • 4 botonistas: posições 1 a 4 ou 5 a 8
C15: 6 | D15: =SORTEIO!$AF15 -> PATRICK-RS | F15: 6 | G15: =SORTEIO!$AI15 -> IVO JR-SC | I15: 6 | J15: =SORTEIO!$AL15 -> SCHUMACHER-SC | L15: 6 | M15: =SORTEIO!$AO16 -> MAICON-PR | P15: OBS: Em caso de WO, inserir a letra "S" no campo ao lado no nome.
C16: 7 | D16: =SORTEIO!$AF16 -> JOAQUIM-AL | F16: 7 | G16: =SORTEIO!$AI16 -> DALLA STELLA-PR | I16: 7 | J16: =SORTEIO!$AL16 -> BITTENCOURT-PR | L16: 7 | M16: =SORTEIO!$AO17 -> MIGUEL MARIALVA-AM
C17: 8 | D17: =SORTEIO!$AF17 -> IVAN-GO | F17: 8 | G17: =SORTEIO!$AI17 -> WAGNER SCHMIDT-MG | I17: 8 | J17: =SORTEIO!$AL17 -> FERNANDO CASCAVEL-MG | L17: 8 | M17: =SORTEIO!$AO15 -> VILLANO-RJ
C19: Grupo 5 | F19: Grupo 6 | I19: Grupo 7 | L19: Grupo 8
C20: 1 | D20: =SORTEIO!$AF20 -> BASILIO-SP | F20: 1 | G20: =SORTEIO!$AI20 -> ANOEL-SP | I20: 1 | J20: =SORTEIO!$AL20 -> RODOLF-SP | L20: 1 | M20: =SORTEIO!$AO20 -> TERUEL-SP
C21: 2 | D21: =SORTEIO!$AF21 -> BARBA-SP | F21: 2 | G21: =SORTEIO!$AI21 -> JULINHO-SP | I21: 2 | J21: =SORTEIO!$AL21 -> BRITAO-SP | L21: 2 | M21: =SORTEIO!$AO21 -> MARCELO LEITE-SP
C22: 3 | D22: =SORTEIO!$AF23 -> ADRIANO BRANQUINHO-PE | F22: 3 | G22: =SORTEIO!$AI23 -> PRACIANO-CE | H22: S | I22: 3 | J22: =SORTEIO!$AL23 -> RICARDO SIMOES-CE | L22: 3 | M22: =SORTEIO!$AO23 -> HUMBERTO SECURAO-PE
C23: 4 | D23: =SORTEIO!$AF22 -> FLOSI-SP | F23: 4 | G23: =SORTEIO!$AI22 -> CORUJEIRA-SP | I23: 4 | J23: =SORTEIO!$AL22 -> MARCELO ARANHA-SP | L23: 4 | M23: =SORTEIO!$AO22 -> DEMA-SP
C24: 5 | D24: =SORTEIO!$AF24 -> ZE LUIZ-RJ | F24: 5 | G24: =SORTEIO!$AI24 -> CAU MENDES-RJ | I24: 5 | J24: =SORTEIO!$AL24 -> MARCO ANTONIO-RJ | L24: 5 | M24: =SORTEIO!$AO24 -> RAMOS-RJ
C25: 6 | D25: =SORTEIO!$AF25 -> CB-RS | F25: 6 | G25: =SORTEIO!$AI25 -> FLAVIO AYRES-SC | I25: 6 | J25: =SORTEIO!$AL26 -> RONALDO-PR | L25: 6 | M25: =SORTEIO!$AO25 -> NANNINI-RS
C26: 7 | D26: =SORTEIO!$AF26 -> RUBAO-PR | F26: 7 | G26: =SORTEIO!$AI26 -> ROBERTO ALVES-AL | I26: 7 | J26: =SORTEIO!$AL27 -> HEAVY-MG | L26: 7 | M26: =SORTEIO!$AO26 -> ANDRE LEAL-PR
C27: 8 | D27: =SORTEIO!$AF27 -> ELCIO BURATINI-MG | F27: 8 | G27: =SORTEIO!$AI27 -> PAULO SCHMIDT-MG | I27: 8 | J27: =SORTEIO!$AL25 -> FRED MARTINS-RJ | L27: 8 | M27: =SORTEIO!$AO27 -> PAULO SOUZA-AM
C29: Grupo 9 | F29: Grupo 10 | I29: Grupo 11 | L29: Grupo 12
C30: 1 | D30: =SORTEIO!$AF30 -> PAULINHO MEIRA-SP | E30: S | F30: 1 | G30: =SORTEIO!$AI30 -> TELE-SP | I30: 1 | J30: =SORTEIO!$AL30 -> BRYANT-SP | L30: 1 | M30: =SORTEIO!$AO30 -> MARCO PAI-SP
C31: 2 | D31: =SORTEIO!$AF31 -> FLAVIO MORAES-SP | F31: 2 | G31: =SORTEIO!$AI31 -> BENE-SP | I31: 2 | J31: =SORTEIO!$AL31 -> EVANIR-SP | L31: 2 | M31: =SORTEIO!$AO31 -> ELIAHOU-SP
C32: 3 | D32: =SORTEIO!$AF33 -> FERNANDO CAMPOS-CE | F32: 3 | G32: =SORTEIO!$AI33 -> EDER SERGIO-PE | I32: 3 | J32: =SORTEIO!$AL33 -> MANOEL MOURA-CE | L32: 3 | M32: =SORTEIO!$AO33 -> MARCELLUS-PE
C33: 4 | D33: =SORTEIO!$AF32 -> WALNIR-SP | F33: 4 | G33: =SORTEIO!$AI32 -> SERGIO PIVATTO-SP | I33: 4 | J33: =SORTEIO!$AL32 -> CELSO-SP | L33: 4 | M33: =SORTEIO!$AO32 -> MARCELO PAIVA-SP
C34: 5 | D34: =SORTEIO!$AF34 -> NALDO CANTUARIA-RJ | F34: 5 | G34: =SORTEIO!$AI34 -> ARMANDO-RJ | I34: 5 | J34: =SORTEIO!$AL34 -> RICARDINHO-RJ | L34: 5 | M34: =SORTEIO!$AO34 -> BAD-RJ
C35: 6 | D35: =SORTEIO!$AF35 -> CLAUDIO MASTRANGELO-RS | E35: S | F35: 6 | G35: =SORTEIO!$AI35 -> CESAR VIDAL-RS | I35: 6 | J35: =SORTEIO!$AL35 -> ROBERTO SANTOS-RS | K35: S | L35: 6 | M35: =SORTEIO!$AO35 -> CASTILHO-RS
C36: 7 | D36: =SORTEIO!$AF36 -> RONY-PR | F36: 7 | G36: =SORTEIO!$AI36 -> SETTON-AL | I36: 7 | J36: =SORTEIO!$AL36 -> LUIZ RICARDO-PR | L36: 7 | M36: =SORTEIO!$AO36 -> NICOLAZZI-PR | N36: S
C37: 8 | D37: =SORTEIO!$AF37 -> GIOVANNI-MG | F37: 8 | G37: =SORTEIO!$AI37 -> FERNANDO SCHMIDT-MG | I37: 8 | J37: =SORTEIO!$AL37 -> SIMPLA-DF | L37: 8 | M37: =SORTEIO!$AO37 -> PATERNO-SP

Sheet F1
S1: =#REF!+#REF!+#REF!+#REF! -> 
C2: =INFO!$C$1 -> 32º Campeonato Brasileiro Individual
C4: =CONCATENATE('G1'!$I$8, " - 1a Divisão") -> Master - 1a Divisão | Q4: =CONCATENATE("1ª Fase - ", 'G1'!$C$9) -> 1ª Fase - Grupo 1 | U4: =F7 -> ZANELLA-SP | AA4: =IF(RIGHT(U4,4)="(WO)",0,1) -> 1 | AC4: =F8 -> MARIO NOVAES-SP | AI4: =IF(RIGHT(AC4,4)="(WO)",0,1) -> 1 | AK4: =M8 -> SERGIO FT-PE | AQ4: =IF(RIGHT(AK4,4)="(WO)",0,1) -> 1 | AS4: =M7 -> KLEBER-SP | AY4: =IF(RIGHT(AS4,4)="(WO)",0,1) -> 1 | BA4: =F9 -> JOSE CARLOS-RJ | BG4: =IF(RIGHT(BA4,4)="(WO)",0,1) -> 1 | BI4: =F10 -> PATRICK-RS | BO4: =IF(RIGHT(BI4,4)="(WO)",0,1) -> 1 | BQ4: =M10 -> JOAQUIM-AL | BW4: =IF(RIGHT(BQ4,4)="(WO)",0,1) -> 1 | BY4: =M9 -> IVAN-GO | CE4: =IF(RIGHT(BY4,4)="(WO)",0,1) -> 1
B5: Grp | C5: Rod. | D5: Data/Hora | E5: Mesa | F5: Jogos | S5: Ok | U5: J | V5: V | W5: E | X5: D | Y5: GP | Z5: GC | AA5: PG | AC5: J | AD5: V | AE5: E | AF5: D | AG5: GP | AH5: GC | AI5: PG | AK5: J | AL5: V | AM5: E | AN5: D | AO5: GP | AP5: GC | AQ5: PG | AS5: J | AT5: V | AU5: E | AV5: D | AW5: GP | AX5: GC | AY5: PG | BA5: J | BB5: V | BC5: E | BD5: D | BE5: GP | BF5: GC | BG5: PG | BI5: J | BJ5: V | BK5: E | BL5: D | BM5: GP | BN5: GC | BO5: PG | BQ5: J | BR5: V | BS5: E | BT5: D | BU5: GP | BV5: GC | BW5: PG | BY5: J | BZ5: V | CA5: E | CB5: D | CC5: GP | CD5: GC | CE5: PG | CH5: Rodada
B7: 1 | C7: 1 | D7: 2022-06-17 | E7: 1 | F7: ='G1'!$D$10 & IF('G1'!$E$10="S"," (WO)","") -> ZANELLA-SP | K7: 1 | L7: 4 | M7: ='G1'!$D$13 & IF('G1'!$E$13="S"," (WO)","") -> KLEBER-SP | S7: =COUNTBLANK(K7:L7) -> 0 | U7: =IF(S7=0,1,0) -> 1 | V7: =IF(AND(S7=0,K7>L7),1,0)*AA4 -> 0 | W7: =IF(AND(S7=0,K7=L7),1,0)*AA4 -> 0 | X7: =U7-V7-W7 -> 1 | Y7: =K7 -> 1 | Z7: =L7 -> 4 | AA7: =((V7*3)+W7)*AA4 -> 0 | AS7: =IF(S7=0,1,0) -> 1 | AT7: =IF(AND(S7=0,L7>K7),1,0)*AY4 -> 1 | AU7: =IF(AND(S7=0,K7=L7),1,0)*AY4 -> 0 | AV7: =AS7-AT7-AU7 -> 0 | AW7: =L7 -> 4 | AX7: =K7 -> 1 | AY7: =((AT7*3)+AU7)*AY4 -> 3 | CH7: 1ª
B8: 1 | E8: =E7+1 -> 2 | F8: ='G1'!$D$11 & IF('G1'!$E$11="S"," (WO)","") -> MARIO NOVAES-SP | K8: 4 | L8: 1 | M8: ='G1'!$D$12 & IF('G1'!$E$12="S"," (WO)","") -> SERGIO FT-PE | S8: =COUNTBLANK(K8:L8) -> 0 | AC8: =IF(S8=0,1,0) -> 1 | AD8: =IF(AND(S8=0,K8>L8),1,0)*AI4 -> 1 | AE8: =IF(AND(S8=0,K8=L8),1,0)*AI4 -> 0 | AF8: =AC8-AD8-AE8 -> 0 | AG8: =K8 -> 4 | AH8: =L8 -> 1 | AI8: =((AD8*3)+AE8)*AI4 -> 3 | AK8: =IF(S8=0,1,0) -> 1 | AL8: =IF(AND(S8=0,L8>K8),1,0)*AQ4 -> 0 | AM8: =IF(AND(S8=0,K8=L8),1,0)*AQ4 -> 0 | AN8: =AK8-AL8-AM8 -> 1 | AO8: =L8 -> 1 | AP8: =K8 -> 4 | AQ8: =((AL8*3)+AM8)*AQ4 -> 0
B9: 1 | D9: 09:00:00 | E9: =E8+1 -> 3 | F9: ='G1'!$D$14 & IF('G1'!$E$14="S"," (WO)","") -> JOSE CARLOS-RJ | K9: 4 | L9: 1 | M9: ='G1'!$D$17 & IF('G1'!$E$17="S"," (WO)","") -> IVAN-GO | S9: =COUNTBLANK(K9:L9) -> 0 | BA9: =IF(S9=0,1,0) -> 1 | BB9: =IF(AND(S9=0,K9>L9),1,0)*BG4 -> 1 | BC9: =IF(AND(S9=0,K9=L9),1,0)*BG4 -> 0 | BD9: =BA9-BB9-BC9 -> 0 | BE9: =K9 -> 4 | BF9: =L9 -> 1 | BG9: =((BB9*3)+BC9)*BG4 -> 3 | BY9: =IF(S9=0,1,0) -> 1 | BZ9: =IF(AND(S9=0,L9>K9),1,0)*CE4 -> 0 | CA9: =IF(AND(S9=0,K9=L9),1,0)*CE4 -> 0 | CB9: =BY9-BZ9-CA9 -> 1 | CC9: =L9 -> 1 | CD9: =K9 -> 4 | CE9: =((BZ9*3)+CA9)*CE4 -> 0
B10: 1 | E10: =E9+1 -> 4 | F10: ='G1'!$D$15 & IF('G1'!$E$15="S"," (WO)","") -> PATRICK-RS | K10: 1 | L10: 4 | M10: ='G1'!$D$16 & IF('G1'!$E$16="S"," (WO)","") -> JOAQUIM-AL | S10: =COUNTBLANK(K10:L10) -> 0 | BI10: =IF(S10=0,1,0) -> 1 | BJ10: =IF(AND(S10=0,K10>L10),1,0)*BO4 -> 0 | BK10: =IF(AND(S10=0,K10=L10),1,0)*BO4 -> 0 | BL10: =BI10-BJ10-BK10 -> 1 | BM10: =K10 -> 1 | BN10: =L10 -> 4 | BO10: =((BJ10*3)+BK10)*BO4 -> 0 | BQ10: =IF(S10=0,1,0) -> 1 | BR10: =IF(AND(S10=0,L10>K10),1,0)*BW4 -> 1 | BS10: =IF(AND(S10=0,K10=L10),1,0)*BW4 -> 0 | BT10: =BQ10-BR10-BS10 -> 0 | BU10: =L10 -> 4 | BV10: =K10 -> 1 | BW10: =((BR10*3)+BS10)*BW4 -> 3
B11: 1
B12: 1 | C12: 2 | D12: =$D$7 -> 2022-06-17 | E12: 5 | F12: =F7 -> ZANELLA-SP | K12: 3 | L12: 2 | M12: =M8 -> SERGIO FT-PE | S12: =COUNTBLANK(K12:L12) -> 0 | U12: =IF(S12=0,1,0) -> 1 | V12: =IF(AND(S12=0,K12>L12),1,0)*AA4 -> 1 | W12: =IF(AND(S12=0,K12=L12),1,0)*AA4 -> 0 | X12: =U12-V12-W12 -> 0 | Y12: =K12 -> 3 | Z12: =L12 -> 2 | AA12: =((V12*3)+W12)*AA4 -> 3 | AK12: =IF(S12=0,1,0) -> 1 | AL12: =IF(AND(S12=0,L12>K12),1,0)*AQ4 -> 0 | AM12: =IF(AND(S12=0,K12=L12),1,0)*AQ4 -> 0 | AN12: =AK12-AL12-AM12 -> 1 | AO12: =L12 -> 2 | AP12: =K12 -> 3 | AQ12: =((AL12*3)+AM12)*AQ4 -> 0 | CH12: 2ª
B13: 1 | E13: =E12+1 -> 6 | F13: =F8 -> MARIO NOVAES-SP | K13: 6 | L13: 3 | M13: =M7 -> KLEBER-SP | S13: =COUNTBLANK(K13:L13) -> 0 | AC13: =IF(S13=0,1,0) -> 1 | AD13: =IF(AND(S13=0,K13>L13),1,0)*AI4 -> 1 | AE13: =IF(AND(S13=0,K13=L13),1,0)*AI4 -> 0 | AF13: =AC13-AD13-AE13 -> 0 | AG13: =K13 -> 6 | AH13: =L13 -> 3 | AI13: =((AD13*3)+AE13)*AI4 -> 3 | AS13: =IF(S13=0,1,0) -> 1 | AT13: =IF(AND(S13=0,L13>K13),1,0)*AY4 -> 0 | AU13: =IF(AND(S13=0,K13=L13),1,0)*AY4 -> 0 | AV13: =AS13-AT13-AU13 -> 1 | AW13: =L13 -> 3 | AX13: =K13 -> 6 | AY13: =((AT13*3)+AU13)*AY4 -> 0
B14: 1 | D14: 09:30:00 | E14: =E13+1 -> 7 | F14: =F9 -> JOSE CARLOS-RJ | K14: 4 | L14: 2 | M14: =M10 -> JOAQUIM-AL | S14: =COUNTBLANK(K14:L14) -> 0 | BA14: =IF(S14=0,1,0) -> 1 | BB14: =IF(AND(S14=0,K14>L14),1,0)*BG4 -> 1 | BC14: =IF(AND(S14=0,K14=L14),1,0)*BG4 -> 0 | BD14: =BA14-BB14-BC14 -> 0 | BE14: =K14 -> 4 | BF14: =L14 -> 2 | BG14: =((BB14*3)+BC14)*BG4 -> 3 | BQ14: =IF(S14=0,1,0) -> 1 | BR14: =IF(AND(S14=0,L14>K14),1,0)*BW4 -> 0 | BS14: =IF(AND(S14=0,K14=L14),1,0)*BW4 -> 0 | BT14: =BQ14-BR14-BS14 -> 1 | BU14: =L14 -> 2 | BV14: =K14 -> 4 | BW14: =((BR14*3)+BS14)*BW4 -> 0
B15: 1 | E15: =E14+1 -> 8 | F15: =F10 -> PATRICK-RS | K15: 2 | L15: 2 | M15: =M9 -> IVAN-GO | S15: =COUNTBLANK(K15:L15) -> 0 | BI15: =IF(S15=0,1,0) -> 1 | BJ15: =IF(AND(S15=0,K15>L15),1,0)*BO4 -> 0 | BK15: =IF(AND(S15=0,K15=L15),1,0)*BO4 -> 1 | BL15: =BI15-BJ15-BK15 -> 0 | BM15: =K15 -> 2 | BN15: =L15 -> 2 | BO15: =((BJ15*3)+BK15)*BO4 -> 1 | BY15: =IF(S15=0,1,0) -> 1 | BZ15: =IF(AND(S15=0,L15>K15),1,0)*CE4 -> 0 | CA15: =IF(AND(S15=0,K15=L15),1,0)*CE4 -> 1 | CB15: =BY15-BZ15-CA15 -> 0 | CC15: =L15 -> 2 | CD15: =K15 -> 2 | CE15: =((BZ15*3)+CA15)*CE4 -> 1
B17: 1 | C17: 3 | D17: =$D$7 -> 2022-06-17 | E17: 9 | F17: =F12 -> ZANELLA-SP | K17: 2 | L17: 4 | M17: =F13 -> MARIO NOVAES-SP | S17: =COUNTBLANK(K17:L17) -> 0 | U17: =IF(S17=0,1,0) -> 1 | V17: =IF(AND(S17=0,K17>L17),1,0)*AA4 -> 0 | W17: =IF(AND(S17=0,K17=L17),1,0)*AA4 -> 0 | X17: =U17-V17-W17 -> 1 | Y17: =K17 -> 2 | Z17: =L17 -> 4 | AA17: =((V17*3)+W17)*AA4 -> 0 | AC17: =IF(S17=0,1,0) -> 1 | AD17: =IF(AND(S17=0,L17>K17),1,0)*AI4 -> 1 | AE17: =IF(AND(S17=0,K17=L17),1,0)*AI4 -> 0 | AF17: =AC17-AD17-AE17 -> 0 | AG17: =L17 -> 4 | AH17: =K17 -> 2 | AI17: =((AD17*3)+AE17)*AI4 -> 3 | CH17: 3ª
B18: 1 | E18: =E17+1 -> 10 | F18: =M12 -> SERGIO FT-PE | K18: 2 | L18: 6 | M18: =M13 -> KLEBER-SP | S18: =COUNTBLANK(K18:L18) -> 0 | AK18: =IF(S18=0,1,0) -> 1 | AL18: =IF(AND(S18=0,K18>L18),1,0)*AQ4 -> 0 | AM18: =IF(AND(S18=0,K18=L18),1,0)*AQ4 -> 0 | AN18: =AK18-AL18-AM18 -> 1 | AO18: =K18 -> 2 | AP18: =L18 -> 6 | AQ18: =((AL18*3)+AM18)*AQ4 -> 0 | AS18: =IF(S18=0,1,0) -> 1 | AT18: =IF(AND(S18=0,L18>K18),1,0)*AY4 -> 1 | AU18: =IF(AND(S18=0,K18=L18),1,0)*AY4 -> 0 | AV18: =AS18-AT18-AU18 -> 0 | AW18: =L18 -> 6 | AX18: =K18 -> 2 | AY18: =((AT18*3)+AU18)*AY4 -> 3
B19: 1 | D19: 10:00:00 | E19: =E18+1 -> 11 | F19: =F14 -> JOSE CARLOS-RJ | K19: 3 | L19: 2 | M19: =F15 -> PATRICK-RS | S19: =COUNTBLANK(K19:L19) -> 0 | BA19: =IF(S19=0,1,0) -> 1 | BB19: =IF(AND(S19=0,K19>L19),1,0)*BG4 -> 1 | BC19: =IF(AND(S19=0,K19=L19),1,0)*BG4 -> 0 | BD19: =BA19-BB19-BC19 -> 0 | BE19: =K19 -> 3 | BF19: =L19 -> 2 | BG19: =((BB19*3)+BC19)*BG4 -> 3 | BI19: =IF(S19=0,1,0) -> 1 | BJ19: =IF(AND(S19=0,L19>K19),1,0)*BO4 -> 0 | BK19: =IF(AND(S19=0,K19=L19),1,0)*BO4 -> 0 | BL19: =BI19-BJ19-BK19 -> 1 | BM19: =L19 -> 2 | BN19: =K19 -> 3 | BO19: =((BJ19*3)+BK19)*BO4 -> 0
B20: 1 | E20: =E19+1 -> 12 | F20: =M14 -> JOAQUIM-AL | K20: 3 | L20: 4 | M20: =M15 -> IVAN-GO | S20: =COUNTBLANK(K20:L20) -> 0 | BQ20: =IF(S20=0,1,0) -> 1 | BR20: =IF(AND(S20=0,K20>L20),1,0)*BW4 -> 0 | BS20: =IF(AND(S20=0,K20=L20),1,0)*BW4 -> 0 | BT20: =BQ20-BR20-BS20 -> 1 | BU20: =K20 -> 3 | BV20: =L20 -> 4 | BW20: =((BR20*3)+BS20)*BW4 -> 0 | BY20: =IF(S20=0,1,0) -> 1 | BZ20: =IF(AND(S20=0,L20>K20),1,0)*CE4 -> 1 | CA20: =IF(AND(S20=0,K20=L20),1,0)*CE4 -> 0 | CB20: =BY20-BZ20-CA20 -> 0 | CC20: =L20 -> 4 | CD20: =K20 -> 3 | CE20: =((BZ20*3)+CA20)*CE4 -> 3
B22: 1 | C22: 4 | D22: =$D$7 -> 2022-06-17 | E22: 13 | F22: =F19 -> JOSE CARLOS-RJ | K22: 4 | L22: 4 | M22: =M17 -> MARIO NOVAES-SP | S22: =COUNTBLANK(K22:L22) -> 0 | AC22: =IF(S22=0,1,0) -> 1 | AD22: =IF(AND(S22=0,L22>K22),1,0)*AI4 -> 0 | AE22: =IF(AND(S22=0,K22=L22),1,0)*AI4 -> 1 | AF22: =AC22-AD22-AE22 -> 0 | AG22: =L22 -> 4 | AH22: =K22 -> 4 | AI22: =((AD22*3)+AE22)*AI4 -> 1 | BA22: =IF(S22=0,1,0) -> 1 | BB22: =IF(AND(S22=0,K22>L22),1,0)*BG4 -> 0 | BC22: =IF(AND(S22=0,K22=L22),1,0)*BG4 -> 1 | BD22: =BA22-BB22-BC22 -> 0 | BE22: =K22 -> 4 | BF22: =L22 -> 4 | BG22: =((BB22*3)+BC22)*BG4 -> 1 | CH22: 4ª
B23: 1 | E23: =E22+1 -> 14 | F23: =M19 -> PATRICK-RS | K23: 3 | L23: 2 | M23: =F18 -> SERGIO FT-PE | S23: =COUNTBLANK(K23:L23) -> 0 | AK23: =IF(S23=0,1,0) -> 1 | AL23: =IF(AND(S23=0,L23>K23),1,0)*AQ4 -> 0 | AM23: =IF(AND(S23=0,K23=L23),1,0)*AQ4 -> 0 | AN23: =AK23-AL23-AM23 -> 1 | AO23: =L23 -> 2 | AP23: =K23 -> 3 | AQ23: =((AL23*3)+AM23)*AQ4 -> 0 | BI23: =IF(S23=0,1,0) -> 1 | BJ23: =IF(AND(S23=0,K23>L23),1,0)*BO4 -> 1 | BK23: =IF(AND(S23=0,K23=L23),1,0)*BO4 -> 0 | BL23: =BI23-BJ23-BK23 -> 0 | BM23: =K23 -> 3 | BN23: =L23 -> 2 | BO23: =((BJ23*3)+BK23)*BO4 -> 3
B24: 1 | D24: 10:30:00 | E24: =E23+1 -> 15 | F24: =F20 -> JOAQUIM-AL | K24: 2 | L24: 4 | M24: =M18 -> KLEBER-SP | S24: =COUNTBLANK(K24:L24) -> 0 | AS24: =IF(S24=0,1,0) -> 1 | AT24: =IF(AND(S24=0,L24>K24),1,0)*AY4 -> 1 | AU24: =IF(AND(S24=0,K24=L24),1,0)*AY4 -> 0 | AV24: =AS24-AT24-AU24 -> 0 | AW24: =L24 -> 4 | AX24: =K24 -> 2 | AY24: =((AT24*3)+AU24)*AY4 -> 3 | BQ24: =IF(S24=0,1,0) -> 1 | BR24: =IF(AND(S24=0,K24>L24),1,0)*BW4 -> 0 | BS24: =IF(AND(S24=0,K24=L24),1,0)*BW4 -> 0 | BT24: =BQ24-BR24-BS24 -> 1 | BU24: =K24 -> 2 | BV24: =L24 -> 4 | BW24: =((BR24*3)+BS24)*BW4 -> 0
B25: 1 | E25: =E24+1 -> 16 | F25: =M20 -> IVAN-GO | K25: 4 | L25: 3 | M25: =F17 -> ZANELLA-SP | S25: =COUNTBLANK(K25:L25) -> 0 | U25: =IF(S25=0,1,0) -> 1 | V25: =IF(AND(S25=0,L25>K25),1,0)*AA4 -> 0 | W25: =IF(AND(S25=0,K25=L25),1,0)*AA4 -> 0 | X25: =U25-V25-W25 -> 1 | Y25: =L25 -> 3 | Z25: =K25 -> 4 | AA25: =((V25*3)+W25)*AA4 -> 0 | BY25: =IF(S25=0,1,0) -> 1 | BZ25: =IF(AND(S25=0,K25>L25),1,0)*CE4 -> 1 | CA25: =IF(AND(S25=0,K25=L25),1,0)*CE4 -> 0 | CB25: =BY25-BZ25-CA25 -> 0 | CC25: =K25 -> 4 | CD25: =L25 -> 3 | CE25: =((BZ25*3)+CA25)*CE4 -> 3
B27: 1 | C27: 5 | D27: =$D$7 -> 2022-06-17 | E27: 17 | F27: =F22 -> JOSE CARLOS-RJ | K27: 6 | L27: 1 | M27: =M23 -> SERGIO FT-PE | S27: =COUNTBLANK(K27:L27) -> 0 | AK27: =IF(S27=0,1,0) -> 1 | AL27: =IF(AND(S27=0,L27>K27),1,0)*AQ4 -> 0 | AM27: =IF(AND(S27=0,K27=L27),1,0)*AQ4 -> 0 | AN27: =AK27-AL27-AM27 -> 1 | AO27: =L27 -> 1 | AP27: =K27 -> 6 | AQ27: =((AL27*3)+AM27)*AQ4 -> 0 | BA27: =IF(S27=0,1,0) -> 1 | BB27: =IF(AND(S27=0,K27>L27),1,0)*BG4 -> 1 | BC27: =IF(AND(S27=0,K27=L27),1,0)*BG4 -> 0 | BD27: =BA27-BB27-BC27 -> 0 | BE27: =K27 -> 6 | BF27: =L27 -> 1 | BG27: =((BB27*3)+BC27)*BG4 -> 3 | CH27: 5ª
B28: 1 | E28: =E27+1 -> 18 | F28: =F23 -> PATRICK-RS | K28: 1 | L28: 5 | M28: =M24 -> KLEBER-SP | S28: =COUNTBLANK(K28:L28) -> 0 | AS28: =IF(S28=0,1,0) -> 1 | AT28: =IF(AND(S28=0,L28>K28),1,0)*AY4 -> 1 | AU28: =IF(AND(S28=0,K28=L28),1,0)*AY4 -> 0 | AV28: =AS28-AT28-AU28 -> 0 | AW28: =L28 -> 5 | AX28: =K28 -> 1 | AY28: =((AT28*3)+AU28)*AY4 -> 3 | BI28: =IF(S28=0,1,0) -> 1 | BJ28: =IF(AND(S28=0,K28>L28),1,0)*BO4 -> 0 | BK28: =IF(AND(S28=0,K28=L28),1,0)*BO4 -> 0 | BL28: =BI28-BJ28-BK28 -> 1 | BM28: =K28 -> 1 | BN28: =L28 -> 5 | BO28: =((BJ28*3)+BK28)*BO4 -> 0
B29: 1 | D29: 11:00:00 | E29: =E28+1 -> 19 | F29: =F24 -> JOAQUIM-AL | K29: 4 | L29: 3 | M29: =M25 -> ZANELLA-SP | S29: =COUNTBLANK(K29:L29) -> 0 | U29: =IF(S29=0,1,0) -> 1 | V29: =IF(AND(S29=0,L29>K29),1,0)*AA4 -> 0 | W29: =IF(AND(S29=0,K29=L29),1,0)*AA4 -> 0 | X29: =U29-V29-W29 -> 1 | Y29: =L29 -> 3 | Z29: =K29 -> 4 | AA29: =((V29*3)+W29)*AA4 -> 0 | BQ29: =IF(S29=0,1,0) -> 1 | BR29: =IF(AND(S29=0,K29>L29),1,0)*BW4 -> 1 | BS29: =IF(AND(S29=0,K29=L29),1,0)*BW4 -> 0 | BT29: =BQ29-BR29-BS29 -> 0 | BU29: =K29 -> 4 | BV29: =L29 -> 3 | BW29: =((BR29*3)+BS29)*BW4 -> 3
B30: 1 | E30: =E29+1 -> 20 | F30: =F25 -> IVAN-GO | K30: 5 | L30: 4 | M30: =M22 -> MARIO NOVAES-SP | S30: =COUNTBLANK(K30:L30) -> 0 | AC30: =IF(S30=0,1,0) -> 1 | AD30: =IF(AND(S30=0,L30>K30),1,0)*AI4 -> 0 | AE30: =IF(AND(S30=0,K30=L30),1,0)*AI4 -> 0 | AF30: =AC30-AD30-AE30 -> 1 | AG30: =L30 -> 4 | AH30: =K30 -> 5 | AI30: =((AD30*3)+AE30)*AI4 -> 0 | BY30: =IF(S30=0,1,0) -> 1 | BZ30: =IF(AND(S30=0,K30>L30),1,0)*CE4 -> 1 | CA30: =IF(AND(S30=0,K30=L30),1,0)*CE4 -> 0 | CB30: =BY30-BZ30-CA30 -> 0 | CC30: =K30 -> 5 | CD30: =L30 -> 4 | CE30: =((BZ30*3)+CA30)*CE4 -> 3
B32: 1 | C32: 6 | D32: =$D$7 -> 2022-06-17 | E32: 21 | F32: =F28 -> PATRICK-RS | K32: 4 | L32: 4 | M32: =M30 -> MARIO NOVAES-SP | S32: =COUNTBLANK(K32:L32) -> 0 | AC32: =IF(S32=0,1,0) -> 1 | AD32: =IF(AND(S32=0,L32>K32),1,0)*AI4 -> 0 | AE32: =IF(AND(S32=0,K32=L32),1,0)*AI4 -> 1 | AF32: =AC32-AD32-AE32 -> 0 | AG32: =L32 -> 4 | AH32: =K32 -> 4 | AI32: =((AD32*3)+AE32)*AI4 -> 1 | BI32: =IF(S32=0,1,0) -> 1 | BJ32: =IF(AND(S32=0,K32>L32),1,0)*BO4 -> 0 | BK32: =IF(AND(S32=0,K32=L32),1,0)*BO4 -> 1 | BL32: =BI32-BJ32-BK32 -> 0 | BM32: =K32 -> 4 | BN32: =L32 -> 4 | BO32: =((BJ32*3)+BK32)*BO4 -> 1 | CH32: 6ª
B33: 1 | E33: =E32+1 -> 22 | F33: =F27 -> JOSE CARLOS-RJ | K33: 6 | L33: 3 | M33: =M29 -> ZANELLA-SP | S33: =COUNTBLANK(K33:L33) -> 0 | U33: =IF(S33=0,1,0) -> 1 | V33: =IF(AND(S33=0,L33>K33),1,0)*AA4 -> 0 | W33: =IF(AND(S33=0,K33=L33),1,0)*AA4 -> 0 | X33: =U33-V33-W33 -> 1 | Y33: =L33 -> 3 | Z33: =K33 -> 6 | AA33: =((V33*3)+W33)*AA4 -> 0 | BA33: =IF(S33=0,1,0) -> 1 | BB33: =IF(AND(S33=0,K33>L33),1,0)*BG4 -> 1 | BC33: =IF(AND(S33=0,K33=L33),1,0)*BG4 -> 0 | BD33: =BA33-BB33-BC33 -> 0 | BE33: =K33 -> 6 | BF33: =L33 -> 3 | BG33: =((BB33*3)+BC33)*BG4 -> 3
B34: 1 | D34: 11:30:00 | E34: =E33+1 -> 23 | F34: =F30 -> IVAN-GO | K34: 2 | L34: 3 | M34: =M28 -> KLEBER-SP | S34: =COUNTBLANK(K34:L34) -> 0 | AS34: =IF(S34=0,1,0) -> 1 | AT34: =IF(AND(S34=0,L34>K34),1,0)*AY4 -> 1 | AU34: =IF(AND(S34=0,K34=L34),1,0)*AY4 -> 0 | AV34: =AS34-AT34-AU34 -> 0 | AW34: =L34 -> 3 | AX34: =K34 -> 2 | AY34: =((AT34*3)+AU34)*AY4 -> 3 | BY34: =IF(S34=0,1,0) -> 1 | BZ34: =IF(AND(S34=0,K34>L34),1,0)*CE4 -> 0 | CA34: =IF(AND(S34=0,K34=L34),1,0)*CE4 -> 0 | CB34: =BY34-BZ34-CA34 -> 1 | CC34: =K34 -> 2 | CD34: =L34 -> 3 | CE34: =((BZ34*3)+CA34)*CE4 -> 0
B35: 1 | E35: =E34+1 -> 24 | F35: =F29 -> JOAQUIM-AL | K35: 5 | L35: 1 | M35: =M27 -> SERGIO FT-PE | S35: =COUNTBLANK(K35:L35) -> 0 | AK35: =IF(S35=0,1,0) -> 1 | AL35: =IF(AND(S35=0,L35>K35),1,0)*AQ4 -> 0 | AM35: =IF(AND(S35=0,K35=L35),1,0)*AQ4 -> 0 | AN35: =AK35-AL35-AM35 -> 1 | AO35: =L35 -> 1 | AP35: =K35 -> 5 | AQ35: =((AL35*3)+AM35)*AQ4 -> 0 | BQ35: =IF(S35=0,1,0) -> 1 | BR35: =IF(AND(S35=0,K35>L35),1,0)*BW4 -> 1 | BS35: =IF(AND(S35=0,K35=L35),1,0)*BW4 -> 0 | BT35: =BQ35-BR35-BS35 -> 0 | BU35: =K35 -> 5 | BV35: =L35 -> 1 | BW35: =((BR35*3)+BS35)*BW4 -> 3
B37: 1 | C37: 7 | D37: =$D$7 -> 2022-06-17 | E37: 25 | F37: =F34 -> IVAN-GO | K37: 2 | L37: 4 | M37: =M35 -> SERGIO FT-PE | S37: =COUNTBLANK(K37:L37) -> 0 | AK37: =IF(S37=0,1,0) -> 1 | AL37: =IF(AND(S37=0,L37>K37),1,0)*AQ4 -> 1 | AM37: =IF(AND(S37=0,K37=L37),1,0)*AQ4 -> 0 | AN37: =AK37-AL37-AM37 -> 0 | AO37: =L37 -> 4 | AP37: =K37 -> 2 | AQ37: =((AL37*3)+AM37)*AQ4 -> 3 | BY37: =IF(S37=0,1,0) -> 1 | BZ37: =IF(AND(S37=0,K37>L37),1,0)*CE4 -> 0 | CA37: =IF(AND(S37=0,K37=L37),1,0)*CE4 -> 0 | CB37: =BY37-BZ37-CA37 -> 1 | CC37: =K37 -> 2 | CD37: =L37 -> 4 | CE37: =((BZ37*3)+CA37)*CE4 -> 0 | CH37: 7ª
B38: 1 | E38: =E37+1 -> 26 | F38: =F32 -> PATRICK-RS | K38: 3 | L38: 4 | M38: =M33 -> ZANELLA-SP | S38: =COUNTBLANK(K38:L38) -> 0 | U38: =IF(S38=0,1,0) -> 1 | V38: =IF(AND(S38=0,L38>K38),1,0)*AA4 -> 1 | W38: =IF(AND(S38=0,K38=L38),1,0)*AA4 -> 0 | X38: =U38-V38-W38 -> 0 | Y38: =L38 -> 4 | Z38: =K38 -> 3 | AA38: =((V38*3)+W38)*AA4 -> 3 | BI38: =IF(S38=0,1,0) -> 1 | BJ38: =IF(AND(S38=0,K38>L38),1,0)*BO4 -> 0 | BK38: =IF(AND(S38=0,K38=L38),1,0)*BO4 -> 0 | BL38: =BI38-BJ38-BK38 -> 1 | BM38: =K38 -> 3 | BN38: =L38 -> 4 | BO38: =((BJ38*3)+BK38)*BO4 -> 0
B39: 1 | D39: 12:00:00 | E39: =E38+1 -> 27 | F39: =F35 -> JOAQUIM-AL | K39: 5 | L39: 3 | M39: =M32 -> MARIO NOVAES-SP | S39: =COUNTBLANK(K39:L39) -> 0 | AC39: =IF(S39=0,1,0) -> 1 | AD39: =IF(AND(S39=0,L39>K39),1,0)*AI4 -> 0 | AE39: =IF(AND(S39=0,K39=L39),1,0)*AI4 -> 0 | AF39: =AC39-AD39-AE39 -> 1 | AG39: =L39 -> 3 | AH39: =K39 -> 5 | AI39: =((AD39*3)+AE39)*AI4 -> 0 | BQ39: =IF(S39=0,1,0) -> 1 | BR39: =IF(AND(S39=0,K39>L39),1,0)*BW4 -> 1 | BS39: =IF(AND(S39=0,K39=L39),1,0)*BW4 -> 0 | BT39: =BQ39-BR39-BS39 -> 0 | BU39: =K39 -> 5 | BV39: =L39 -> 3 | BW39: =((BR39*3)+BS39)*BW4 -> 3
B40: 1 | E40: =E39+1 -> 28 | F40: =F33 -> JOSE CARLOS-RJ | K40: 2 | L40: 3 | M40: =M34 -> KLEBER-SP | S40: =COUNTBLANK(K40:L40) -> 0 | AS40: =IF(S40=0,1,0) -> 1 | AT40: =IF(AND(S40=0,L40>K40),1,0)*AY4 -> 1 | AU40: =IF(AND(S40=0,K40=L40),1,0)*AY4 -> 0 | AV40: =AS40-AT40-AU40 -> 0 | AW40: =L40 -> 3 | AX40: =K40 -> 2 | AY40: =((AT40*3)+AU40)*AY4 -> 3 | BA40: =IF(S40=0,1,0) -> 1 | BB40: =IF(AND(S40=0,K40>L40),1,0)*BG4 -> 0 | BC40: =IF(AND(S40=0,K40=L40),1,0)*BG4 -> 0 | BD40: =BA40-BB40-BC40 -> 1 | BE40: =K40 -> 2 | BF40: =L40 -> 3 | BG40: =((BB40*3)+BC40)*BG4 -> 0
S41: =SUM(S7:S40) -> 0 | U41: =SUM(U7:U40) -> 7 | V41: 2 | W41: 0 | X41: 5 | Y41: 19 | Z41: 27 | AA41: =SUM(AA7:AA40) -> 6 | AC41: =SUM(AC7:AC40) -> 7 | AD41: 3 | AE41: 2 | AF41: 2 | AG41: 29 | AH41: 24 | AI41: 11 | AK41: =SUM(AK7:AK40) -> 7 | AL41: 1 | AM41: 0 | AN41: 6 | AO41: 13 | AP41: 29 | AQ41: 3 | AS41: =SUM(AS7:AS40) -> 7 | AT41: 6 | AU41: 0 | AV41: 1 | AW41: 28 | AX41: 16 | AY41: 18 | BA41: =SUM(BA7:BA40) -> 7 | BB41: 5 | BC41: 1 | BD41: 1 | BE41: 29 | BF41: 16 | BG41: 16 | BI41: =SUM(BI7:BI40) -> 7 | BJ41: 1 | BK41: 2 | BL41: 4 | BM41: 16 | BN41: 24 | BO41: 5 | BQ41: =SUM(BQ7:BQ40) -> 7 | BR41: 4 | BS41: 0 | BT41: 3 | BU41: 25 | BV41: 20 | BW41: 12 | BY41: =SUM(BY7:BY40) -> 7 | BZ41: 3 | CA41: 1 | CB41: 3 | CC41: 20 | CD41: 23 | CE41: 10
C43: Class | D43: Botonistas | I43: PG | J43: J | K43: V | L43: E | M43: D | N43: GP | O43: GC | P43: SG | Q43: Sorteio | S43: Cl | U43: Botonista | AC43: J | AD43: V | AE43: E | AF43: D | AG43: GP | AH43: GC | AI43: PG | AJ43: Chave Sort | AR43: Cl | AT43: Botonista | BA43: J | BB43: V | BC43: E | BD43: D | BE43: GP | BF43: GC | BG43: PG | BH43: Chave Sort
B44: =IF($S$41=0,"è","") -> è | C44: =AR44 -> 1 | D44: =AT44 -> KLEBER-SP | I44: =BG44 -> 18 | J44: =BA44 -> 7 | K44: 6 | L44: 0 | M44: 1 | N44: 28 | O44: 16 | P44: =N44-O44 -> 12 | Q44: =IF(INT(BH44)=INT(BH45),ASC(CHAR(252)),"") ->  | S44: =RANK(AJ44,AJ44:AJ51,0) -> 6 | U44: =F7 -> ZANELLA-SP | AC44: =U41 -> 7 | AD44: =V41 -> 2 | AE44: 0 | AF44: 5 | AG44: 19 | AH44: 27 | AI44: 6 | AJ44: =(AI44*1000000000)+(AD44*1000000)+((AG44-AH44)*1000)+AG44+AR44/100 -> 6001992019 | AR44: 1 | AT44: =VLOOKUP(AR44,S44:AJ51,3,FALSE) -> KLEBER-SP | BA44: =VLOOKUP(AR44,S44:AJ51,11,FALSE) -> 7 | BB44: =VLOOKUP(AR44,S44:AJ51,12,FALSE) -> 6 | BC44: =VLOOKUP(AR44,S44:AJ51,13,FALSE) -> 0 | BD44: =VLOOKUP(AR44,S44:AJ51,14,FALSE) -> 1 | BE44: =VLOOKUP(AR44,S44:AJ51,15,FALSE) -> 28 | BF44: =VLOOKUP(AR44,S44:AJ51,16,FALSE) -> 16 | BG44: =VLOOKUP(AR44,S44:AJ51,17,FALSE) -> 18 | BH44: =VLOOKUP(AR44,S44:AJ51,18,FALSE) -> 1.800601203e+10 | BI44: =VLOOKUP($AR44,$S$37:$AI$42,17,FALSE) -> 
B45: =IF($S$41=0,"è","") -> è | C45: 2 | D45: =AT45 -> JOSE CARLOS-RJ | I45: =BG45 -> 16 | J45: 7 | K45: 5 | L45: 1 | M45: 1 | N45: 29 | O45: 16 | P45: =N45-O45 -> 13 | Q45: =IF(OR(INT(BH45)=INT(BH44),INT(BH46)=INT(BH45)),ASC(CHAR(252)),"") ->  | S45: =RANK(AJ45,AJ44:AJ51,0) -> 4 | U45: =F8 -> MARIO NOVAES-SP | AC45: =AC41 -> 7 | AD45: =AD41 -> 3 | AE45: 2 | AF45: 2 | AG45: 29 | AH45: 24 | AI45: 11 | AJ45: =(AI45*1000000000)+(AD45*1000000)+((AG45-AH45)*1000)+AG45+AR45/100 -> 1.100300503e+10 | AR45: 2 | AT45: =VLOOKUP(AR45,S44:AJ51,3,FALSE) -> JOSE CARLOS-RJ | BA45: =VLOOKUP(AR45,S44:AJ51,11,FALSE) -> 7 | BB45: =VLOOKUP(AR45,S44:AJ51,12,FALSE) -> 5 | BC45: =VLOOKUP(AR45,S44:AJ51,13,FALSE) -> 1 | BD45: =VLOOKUP(AR45,S44:AJ51,14,FALSE) -> 1 | BE45: =VLOOKUP(AR45,S44:AJ51,15,FALSE) -> 29 | BF45: =VLOOKUP(AR45,S44:AJ51,16,FALSE) -> 16 | BG45: =VLOOKUP(AR45,S44:AJ51,17,FALSE) -> 16 | BH45: =VLOOKUP(AR45,S44:AJ51,18,FALSE) -> 1.600501303e+10
B46: =IF($S$41=0,"è","") -> è | C46: 3 | D46: JOAQUIM-AL | I46: 12 | J46: 7 | K46: 4 | L46: 0 | M46: 3 | N46: 25 | O46: 20 | P46: 5 | S46: =RANK(AJ46,AJ44:AJ51,0) -> 8 | U46: =M8 -> SERGIO FT-PE | AC46: =AK41 -> 7 | AD46: =AL41 -> 1 | AE46: 0 | AF46: 6 | AG46: 13 | AH46: 29 | AI46: 3 | AJ46: 3000984013 | AR46: 3 | AT46: =VLOOKUP(AR46,S44:AJ51,3,FALSE) -> JOAQUIM-AL | BA46: =VLOOKUP(AR46,S44:AJ51,11,FALSE) -> 7 | BB46: =VLOOKUP(AR46,S44:AJ51,12,FALSE) -> 4 | BC46: =VLOOKUP(AR46,S44:AJ51,13,FALSE) -> 0 | BD46: =VLOOKUP(AR46,S44:AJ51,14,FALSE) -> 3 | BE46: =VLOOKUP(AR46,S44:AJ51,15,FALSE) -> 25 | BF46: =VLOOKUP(AR46,S44:AJ51,16,FALSE) -> 20 | BG46: =VLOOKUP(AR46,S44:AJ51,17,FALSE) -> 12 | BH46: =VLOOKUP(AR46,S44:AJ51,18,FALSE) -> 1.200400503e+10
B47: =IF($S$41=0,"è","") -> è | C47: 4 | D47: MARIO NOVAES-SP | I47: 11 | J47: 7 | K47: 3 | L47: 2 | M47: 2 | N47: 29 | O47: 24 | P47: 5 | S47: =RANK(AJ47,AJ44:AJ51,0) -> 1 | U47: =M7 -> KLEBER-SP | AC47: =AS41 -> 7 | AD47: =AT41 -> 6 | AE47: 0 | AF47: 1 | AG47: 28 | AH47: 16 | AI47: 18 | AJ47: 1.800601203e+10 | AR47: 4 | AT47: =VLOOKUP(AR47,S44:AJ51,3,FALSE) -> MARIO NOVAES-SP | BA47: =VLOOKUP(AR47,S44:AJ51,11,FALSE) -> 7 | BB47: =VLOOKUP(AR47,S44:AJ51,12,FALSE) -> 3 | BC47: =VLOOKUP(AR47,S44:AJ51,13,FALSE) -> 2 | BD47: =VLOOKUP(AR47,S44:AJ51,14,FALSE) -> 2 | BE47: =VLOOKUP(AR47,S44:AJ51,15,FALSE) -> 29 | BF47: =VLOOKUP(AR47,S44:AJ51,16,FALSE) -> 24 | BG47: =VLOOKUP(AR47,S44:AJ51,17,FALSE) -> 11 | BH47: =VLOOKUP(AR47,S44:AJ51,18,FALSE) -> 1.100300503e+10
B48: =IF($S$41=0,"è","") -> è | C48: 5 | D48: IVAN-GO | I48: 10 | J48: 7 | K48: 3 | L48: 1 | M48: 3 | N48: 20 | O48: 23 | P48: -3 | S48: =RANK(AJ48,AJ44:AJ51,0) -> 2 | U48: =F9 -> JOSE CARLOS-RJ | AC48: =BA41 -> 7 | AD48: =BB41 -> 5 | AE48: 1 | AF48: 1 | AG48: 29 | AH48: 16 | AI48: 16 | AJ48: 1.600501303e+10 | AR48: 5 | AT48: =VLOOKUP(AR48,S44:AJ51,3,FALSE) -> IVAN-GO | BA48: =VLOOKUP(AR48,S44:AJ51,11,FALSE) -> 7 | BB48: =VLOOKUP(AR48,S44:AJ51,12,FALSE) -> 3 | BC48: =VLOOKUP(AR48,S44:AJ51,13,FALSE) -> 1 | BD48: =VLOOKUP(AR48,S44:AJ51,14,FALSE) -> 3 | BE48: =VLOOKUP(AR48,S44:AJ51,15,FALSE) -> 20 | BF48: =VLOOKUP(AR48,S44:AJ51,16,FALSE) -> 23 | BG48: =VLOOKUP(AR48,S44:AJ51,17,FALSE) -> 10 | BH48: =VLOOKUP(AR48,S44:AJ51,18,FALSE) -> 1.000299702e+10
B49: =IF($S$41=0,"ó","") -> ó | C49: 6 | D49: ZANELLA-SP | I49: 6 | J49: 7 | K49: 2 | L49: 0 | M49: 5 | N49: 19 | O49: 27 | P49: -8 | S49: =RANK(AJ49,AJ44:AJ51,0) -> 7 | U49: =F10 -> PATRICK-RS | AC49: =BI41 -> 7 | AD49: =BJ41 -> 1 | AE49: 2 | AF49: 4 | AG49: 16 | AH49: 24 | AI49: 5 | AJ49: 5000992016 | AR49: 6 | AT49: =VLOOKUP(AR49,S44:AJ51,3,FALSE) -> ZANELLA-SP | BA49: =VLOOKUP(AR49,S44:AJ51,11,FALSE) -> 7 | BB49: =VLOOKUP(AR49,S44:AJ51,12,FALSE) -> 2 | BC49: =VLOOKUP(AR49,S44:AJ51,13,FALSE) -> 0 | BD49: =VLOOKUP(AR49,S44:AJ51,14,FALSE) -> 5 | BE49: =VLOOKUP(AR49,S44:AJ51,15,FALSE) -> 19 | BF49: =VLOOKUP(AR49,S44:AJ51,16,FALSE) -> 27 | BG49: =VLOOKUP(AR49,S44:AJ51,17,FALSE) -> 6 | BH49: =VLOOKUP(AR49,S44:AJ51,18,FALSE) -> 6001992019
B50: =IF($S$41=0,"Ø","") -> Ø | C50: =AR50 -> 7 | D50: PATRICK-RS | I50: 5 | J50: 7 | K50: 1 | L50: 2 | M50: 4 | N50: 16 | O50: 24 | P50: -8 | S50: =RANK(AJ50,AJ44:AJ51,0) -> 3 | U50: =M10 -> JOAQUIM-AL | AC50: =BQ41 -> 7 | AD50: 4 | AE50: 0 | AF50: 3 | AG50: 25 | AH50: 20 | AI50: 12 | AJ50: 1.200400503e+10 | AR50: 7 | AT50: =VLOOKUP(AR50,S44:AJ51,3,FALSE) -> PATRICK-RS | BA50: =VLOOKUP(AR50,S44:AJ51,11,FALSE) -> 7 | BB50: =VLOOKUP(AR50,S44:AJ51,12,FALSE) -> 1 | BC50: =VLOOKUP(AR50,S44:AJ51,13,FALSE) -> 2 | BD50: =VLOOKUP(AR50,S44:AJ51,14,FALSE) -> 4 | BE50: =VLOOKUP(AR50,S44:AJ51,15,FALSE) -> 16 | BF50: =VLOOKUP(AR50,S44:AJ51,16,FALSE) -> 24 | BG50: =VLOOKUP(AR50,S44:AJ51,17,FALSE) -> 5 | BH50: =VLOOKUP(AR50,S44:AJ51,18,FALSE) -> 5000992016
B51: =IF($S$41=0,"Ø","") -> Ø | C51: =AR51 -> 8 | D51: =AT51 -> SERGIO FT-PE | I51: 3 | J51: =BA51 -> 7 | K51: =BB51 -> 1 | L51: 0 | M51: 6 | N51: 13 | O51: 29 | P51: -16 | S51: =RANK(AJ51,AJ44:AJ51,0) -> 5 | U51: =M9 -> IVAN-GO | AC51: =BY41 -> 7 | AD51: 3 | AE51: 1 | AF51: 3 | AG51: 20 | AH51: 23 | AI51: 10 | AJ51: 1.000299702e+10 | AR51: 8 | AT51: =VLOOKUP(AR51,S44:AJ51,3,FALSE) -> SERGIO FT-PE | BA51: =VLOOKUP(AR51,S44:AJ51,11,FALSE) -> 7 | BB51: =VLOOKUP(AR51,S44:AJ51,12,FALSE) -> 1 | BC51: =VLOOKUP(AR51,S44:AJ51,13,FALSE) -> 0 | BD51: =VLOOKUP(AR51,S44:AJ51,14,FALSE) -> 6 | BE51: =VLOOKUP(AR51,S44:AJ51,15,FALSE) -> 13 | BF51: =VLOOKUP(AR51,S44:AJ51,16,FALSE) -> 29 | BG51: =VLOOKUP(AR51,S44:AJ51,17,FALSE) -> 3 | BH51: =VLOOKUP(AR51,S44:AJ51,18,FALSE) -> 3000984013
C53: è | D53: 1a Divisão | I53: ó | J53: 1a ou 5a Divisão | N53: Ø | O53: 5a Divisão
C56: =$C$4 -> Master - 1a Divisão | Q56: =CONCATENATE("1ª Fase - ", 'G1'!$F$9) -> 1ª Fase - Grupo 2 | U56: =F59 -> SIRIO-SP | AA56: =IF(RIGHT(U56,4)="(WO)",0,1) -> 1 | AC56: =F60 -> RAVANELLI-SP | AI56: =IF(RIGHT(AC56,4)="(WO)",0,1) -> 1 | AK56: =M60 -> PEPE-SP | AQ56: =IF(RIGHT(AK56,4)="(WO)",0,1) -> 1 | AS56: =M59 -> PINNA-SP | AY56: =IF(RIGHT(AS56,4)="(WO)",0,1) -> 1 | BA56: =F61 -> PC-RJ | BG56: =IF(RIGHT(BA56,4)="(WO)",0,1) -> 1 | BI56: =F62 -> IVO JR-SC | BO56: =IF(RIGHT(BI56,4)="(WO)",0,1) -> 1 | BQ56: =M62 -> DALLA STELLA-PR | BW56: =IF(RIGHT(BQ56,4)="(WO)",0,1) -> 1 | BY56: =M61 -> WAGNER SCHMIDT-MG | CE56: =IF(RIGHT(BY56,4)="(WO)",0,1) -> 1
B57: Grp | C57: Rod. | D57: Data/Hora | E57: Mesa | F57: Jogos | S57: Ok | U57: J | V57: V | W57: E | X57: D | Y57: GP | Z57: GC | AA57: PG | AC57: J | AD57: V | AE57: E | AF57: D | AG57: GP | AH57: GC | AI57: PG | AK57: J | AL57: V | AM57: E | AN57: D | AO57: GP | AP57: GC | AQ57: PG | AS57: J | AT57: V | AU57: E | AV57: D | AW57: GP | AX57: GC | AY57: PG | BA57: J | BB57: V | BC57: E | BD57: D | BE57: GP | BF57: GC | BG57: PG | BI57: J | BJ57: V | BK57: E | BL57: D | BM57: GP | BN57: GC | BO57: PG | BQ57: J | BR57: V | BS57: E | BT57: D | BU57: GP | BV57: GC | BW57: PG | BY57: J | BZ57: V | CA57: E | CB57: D | CC57: GP | CD57: GC | CE57: PG | CH57: Rodada
B59: 1 | C59: 1 | D59: 2022-06-17 | E59: 5 | F59: ='G1'!$G$10 & IF('G1'!$H$10="S"," (WO)","") -> SIRIO-SP | K59: 7 | L59: 2 | M59: ='G1'!$G$13 & IF('G1'!$H$13="S"," (WO)","") -> PINNA-SP | S59: =COUNTBLANK(K59:L59) -> 0 | U59: =IF(S59=0,1,0) -> 1 | V59: =IF(AND(S59=0,K59>L59),1,0)*AA56 -> 1 | W59: =IF(AND(S59=0,K59=L59),1,0)*AA56 -> 0 | X59: =U59-V59-W59 -> 0 | Y59: =K59 -> 7 | Z59: =L59 -> 2 | AA59: =((V59*3)+W59)*AA56 -> 3 | AS59: =IF(S59=0,1,0) -> 1 | AT59: =IF(AND(S59=0,L59>K59),1,0)*AY56 -> 0 | AU59: =IF(AND(S59=0,K59=L59),1,0)*AY56 -> 0 | AV59: =AS59-AT59-AU59 -> 1 | AW59: =L59 -> 2 | AX59: =K59 -> 7 | AY59: =((AT59*3)+AU59)*AY56 -> 0 | CH59: 1ª
B60: 1 | E60: =E59+1 -> 6 | F60: ='G1'!$G$11 & IF('G1'!$H$11="S"," (WO)","") -> RAVANELLI-SP | K60: 3 | L60: 0 | M60: ='G1'!$G$12 & IF('G1'!$H$12="S"," (WO)","") -> PEPE-SP | S60: =COUNTBLANK(K60:L60) -> 0 | AC60: =IF(S60=0,1,0) -> 1 | AD60: =IF(AND(S60=0,K60>L60),1,0)*AI56 -> 1 | AE60: =IF(AND(S60=0,K60=L60),1,0)*AI56 -> 0 | AF60: =AC60-AD60-AE60 -> 0 | AG60: =K60 -> 3 | AH60: =L60 -> 0 | AI60: =((AD60*3)+AE60)*AI56 -> 3 | AK60: =IF(S60=0,1,0) -> 1 | AL60: =IF(AND(S60=0,L60>K60),1,0)*AQ56 -> 0 | AM60: =IF(AND(S60=0,K60=L60),1,0)*AQ56 -> 0 | AN60: =AK60-AL60-AM60 -> 1 | AO60: =L60 -> 0 | AP60: =K60 -> 3 | AQ60: =((AL60*3)+AM60)*AQ56 -> 0
B61: 1 | D61: =$D$9 -> 09:00:00 | E61: =E60+1 -> 7 | F61: ='G1'!$G$14 & IF('G1'!$H$14="S"," (WO)","") -> PC-RJ | K61: 4 | L61: 2 | M61: ='G1'!$G$17 & IF('G1'!$H$17="S"," (WO)","") -> WAGNER SCHMIDT-MG | S61: =COUNTBLANK(K61:L61) -> 0 | BA61: =IF(S61=0,1,0) -> 1 | BB61: =IF(AND(S61=0,K61>L61),1,0)*BG56 -> 1 | BC61: =IF(AND(S61=0,K61=L61),1,0)*BG56 -> 0 | BD61: =BA61-BB61-BC61 -> 0 | BE61: =K61 -> 4 | BF61: =L61 -> 2 | BG61: =((BB61*3)+BC61)*BG56 -> 3 | BY61: =IF(S61=0,1,0) -> 1 | BZ61: =IF(AND(S61=0,L61>K61),1,0)*CE56 -> 0 | CA61: =IF(AND(S61=0,K61=L61),1,0)*CE56 -> 0 | CB61: =BY61-BZ61-CA61 -> 1 | CC61: =L61 -> 2 | CD61: =K61 -> 4 | CE61: =((BZ61*3)+CA61)*CE56 -> 0
B62: 1 | E62: =E61+1 -> 8 | F62: ='G1'!$G$15 & IF('G1'!$H$15="S"," (WO)","") -> IVO JR-SC | K62: 5 | L62: 2 | M62: ='G1'!$G$16 & IF('G1'!$H$16="S"," (WO)","") -> DALLA STELLA-PR | S62: =COUNTBLANK(K62:L62) -> 0 | BI62: =IF(S62=0,1,0) -> 1 | BJ62: =IF(AND(S62=0,K62>L62),1,0)*BO56 -> 1 | BK62: =IF(AND(S62=0,K62=L62),1,0)*BO56 -> 0 | BL62: =BI62-BJ62-BK62 -> 0 | BM62: =K62 -> 5 | BN62: =L62 -> 2 | BO62: =((BJ62*3)+BK62)*BO56 -> 3 | BQ62: =IF(S62=0,1,0) -> 1 | BR62: =IF(AND(S62=0,L62>K62),1,0)*BW56 -> 0 | BS62: =IF(AND(S62=0,K62=L62),1,0)*BW56 -> 0 | BT62: =BQ62-BR62-BS62 -> 1 | BU62: =L62 -> 2 | BV62: =K62 -> 5 | BW62: =((BR62*3)+BS62)*BW56 -> 0
B63: 1
B64: 1 | C64: 2 | D64: =$D$7 -> 2022-06-17 | E64: 9 | F64: =F59 -> SIRIO-SP | K64: 3 | L64: 3 | M64: =M60 -> PEPE-SP | S64: =COUNTBLANK(K64:L64) -> 0 | U64: =IF(S64=0,1,0) -> 1 | V64: =IF(AND(S64=0,K64>L64),1,0)*AA56 -> 0 | W64: =IF(AND(S64=0,K64=L64),1,0)*AA56 -> 1 | X64: =U64-V64-W64 -> 0 | Y64: =K64 -> 3 | Z64: =L64 -> 3 | AA64: =((V64*3)+W64)*AA56 -> 1 | AK64: =IF(S64=0,1,0) -> 1 | AL64: =IF(AND(S64=0,L64>K64),1,0)*AQ56 -> 0 | AM64: =IF(AND(S64=0,K64=L64),1,0)*AQ56 -> 1 | AN64: =AK64-AL64-AM64 -> 0 | AO64: =L64 -> 3 | AP64: =K64 -> 3 | AQ64: =((AL64*3)+AM64)*AQ56 -> 1 | CH64: 2ª
B65: 1 | E65: =E64+1 -> 10 | F65: =F60 -> RAVANELLI-SP | K65: 0 | L65: 4 | M65: =M59 -> PINNA-SP | S65: =COUNTBLANK(K65:L65) -> 0 | AC65: =IF(S65=0,1,0) -> 1 | AD65: =IF(AND(S65=0,K65>L65),1,0)*AI56 -> 0 | AE65: =IF(AND(S65=0,K65=L65),1,0)*AI56 -> 0 | AF65: =AC65-AD65-AE65 -> 1 | AG65: =K65 -> 0 | AH65: =L65 -> 4 | AI65: =((AD65*3)+AE65)*AI56 -> 0 | AS65: =IF(S65=0,1,0) -> 1 | AT65: =IF(AND(S65=0,L65>K65),1,0)*AY56 -> 1 | AU65: =IF(AND(S65=0,K65=L65),1,0)*AY56 -> 0 | AV65: =AS65-AT65-AU65 -> 0 | AW65: =L65 -> 4 | AX65: =K65 -> 0 | AY65: =((AT65*3)+AU65)*AY56 -> 3
B66: 1 | D66: =$D$14 -> 09:30:00 | E66: =E65+1 -> 11 | F66: =F61 -> PC-RJ | K66: 5 | L66: 5 | M66: =M62 -> DALLA STELLA-PR | S66: =COUNTBLANK(K66:L66) -> 0 | BA66: =IF(S66=0,1,0) -> 1 | BB66: =IF(AND(S66=0,K66>L66),1,0)*BG56 -> 0 | BC66: =IF(AND(S66=0,K66=L66),1,0)*BG56 -> 1 | BD66: =BA66-BB66-BC66 -> 0 | BE66: =K66 -> 5 | BF66: =L66 -> 5 | BG66: =((BB66*3)+BC66)*BG56 -> 1 | BQ66: =IF(S66=0,1,0) -> 1 | BR66: =IF(AND(S66=0,L66>K66),1,0)*BW56 -> 0 | BS66: =IF(AND(S66=0,K66=L66),1,0)*BW56 -> 1 | BT66: =BQ66-BR66-BS66 -> 0 | BU66: =L66 -> 5 | BV66: =K66 -> 5 | BW66: =((BR66*3)+BS66)*BW56 -> 1
B67: 1 | E67: =E66+1 -> 12 | F67: =F62 -> IVO JR-SC | K67: 5 | L67: 0 | M67: =M61 -> WAGNER SCHMIDT-MG | S67: =COUNTBLANK(K67:L67) -> 0 | BI67: =IF(S67=0,1,0) -> 1 | BJ67: =IF(AND(S67=0,K67>L67),1,0)*BO56 -> 1 | BK67: =IF(AND(S67=0,K67=L67),1,0)*BO56 -> 0 | BL67: =BI67-BJ67-BK67 -> 0 | BM67: =K67 -> 5 | BN67: =L67 -> 0 | BO67: =((BJ67*3)+BK67)*BO56 -> 3 | BY67: =IF(S67=0,1,0) -> 1 | BZ67: =IF(AND(S67=0,L67>K67),1,0)*CE56 -> 0 | CA67: =IF(AND(S67=0,K67=L67),1,0)*CE56 -> 0 | CB67: =BY67-BZ67-CA67 -> 1 | CC67: =L67 -> 0 | CD67: =K67 -> 5 | CE67: =((BZ67*3)+CA67)*CE56 -> 0
B69: 1 | C69: 3 | D69: =$D$7 -> 2022-06-17 | E69: 13 | F69: =F64 -> SIRIO-SP | K69: 5 | L69: 3 | M69: =F65 -> RAVANELLI-SP | S69: =COUNTBLANK(K69:L69) -> 0 | U69: =IF(S69=0,1,0) -> 1 | V69: =IF(AND(S69=0,K69>L69),1,0)*AA56 -> 1 | W69: =IF(AND(S69=0,K69=L69),1,0)*AA56 -> 0 | X69: =U69-V69-W69 -> 0 | Y69: =K69 -> 5 | Z69: =L69 -> 3 | AA69: =((V69*3)+W69)*AA56 -> 3 | AC69: =IF(S69=0,1,0) -> 1 | AD69: =IF(AND(S69=0,L69>K69),1,0)*AI56 -> 0 | AE69: =IF(AND(S69=0,K69=L69),1,0)*AI56 -> 0 | AF69: =AC69-AD69-AE69 -> 1 | AG69: =L69 -> 3 | AH69: =K69 -> 5 | AI69: =((AD69*3)+AE69)*AI56 -> 0 | CH69: 3ª
B70: 1 | E70: =E69+1 -> 14 | F70: =M64 -> PEPE-SP | K70: 3 | L70: 5 | M70: =M65 -> PINNA-SP | S70: =COUNTBLANK(K70:L70) -> 0 | AK70: =IF(S70=0,1,0) -> 1 | AL70: =IF(AND(S70=0,K70>L70),1,0)*AQ56 -> 0 | AM70: =IF(AND(S70=0,K70=L70),1,0)*AQ56 -> 0 | AN70: =AK70-AL70-AM70 -> 1 | AO70: =K70 -> 3 | AP70: =L70 -> 5 | AQ70: =((AL70*3)+AM70)*AQ56 -> 0 | AS70: =IF(S70=0,1,0) -> 1 | AT70: =IF(AND(S70=0,L70>K70),1,0)*AY56 -> 1 | AU70: =IF(AND(S70=0,K70=L70),1,0)*AY56 -> 0 | AV70: =AS70-AT70-AU70 -> 0 | AW70: =L70 -> 5 | AX70: =K70 -> 3 | AY70: =((AT70*3)+AU70)*AY56 -> 3
B71: 1 | D71: =$D$19 -> 10:00:00 | E71: =E70+1 -> 15 | F71: =F66 -> PC-RJ | K71: 3 | L71: 2 | M71: =F67 -> IVO JR-SC | S71: =COUNTBLANK(K71:L71) -> 0 | BA71: =IF(S71=0,1,0) -> 1 | BB71: =IF(AND(S71=0,K71>L71),1,0)*BG56 -> 1 | BC71: =IF(AND(S71=0,K71=L71),1,0)*BG56 -> 0 | BD71: =BA71-BB71-BC71 -> 0 | BE71: =K71 -> 3 | BF71: =L71 -> 2 | BG71: =((BB71*3)+BC71)*BG56 -> 3 | BI71: =IF(S71=0,1,0) -> 1 | BJ71: =IF(AND(S71=0,L71>K71),1,0)*BO56 -> 0 | BK71: =IF(AND(S71=0,K71=L71),1,0)*BO56 -> 0 | BL71: =BI71-BJ71-BK71 -> 1 | BM71: =L71 -> 2 | BN71: =K71 -> 3 | BO71: =((BJ71*3)+BK71)*BO56 -> 0
B72: 1 | E72: =E71+1 -> 16 | F72: =M66 -> DALLA STELLA-PR | K72: 7 | L72: 0 | M72: =M67 -> WAGNER SCHMIDT-MG | S72: =COUNTBLANK(K72:L72) -> 0 | BQ72: =IF(S72=0,1,0) -> 1 | BR72: =IF(AND(S72=0,K72>L72),1,0)*BW56 -> 1 | BS72: =IF(AND(S72=0,K72=L72),1,0)*BW56 -> 0 | BT72: =BQ72-BR72-BS72 -> 0 | BU72: =K72 -> 7 | BV72: =L72 -> 0 | BW72: =((BR72*3)+BS72)*BW56 -> 3 | BY72: =IF(S72=0,1,0) -> 1 | BZ72: =IF(AND(S72=0,L72>K72),1,0)*CE56 -> 0 | CA72: =IF(AND(S72=0,K72=L72),1,0)*CE56 -> 0 | CB72: =BY72-BZ72-CA72 -> 1 | CC72: =L72 -> 0 | CD72: =K72 -> 7 | CE72: =((BZ72*3)+CA72)*CE56 -> 0
B74: 1 | C74: 4 | D74: =$D$7 -> 2022-06-17 | E74: 17 | F74: =F71 -> PC-RJ | K74: 0 | L74: 6 | M74: =M69 -> RAVANELLI-SP | S74: =COUNTBLANK(K74:L74) -> 0 | AC74: =IF(S74=0,1,0) -> 1 | AD74: =IF(AND(S74=0,L74>K74),1,0)*AI56 -> 1 | AE74: =IF(AND(S74=0,K74=L74),1,0)*AI56 -> 0 | AF74: =AC74-AD74-AE74 -> 0 | AG74: =L74 -> 6 | AH74: =K74 -> 0 | AI74: =((AD74*3)+AE74)*AI56 -> 3 | BA74: =IF(S74=0,1,0) -> 1 | BB74: =IF(AND(S74=0,K74>L74),1,0)*BG56 -> 0 | BC74: =IF(AND(S74=0,K74=L74),1,0)*BG56 -> 0 | BD74: =BA74-BB74-BC74 -> 1 | BE74: =K74 -> 0 | BF74: =L74 -> 6 | BG74: =((BB74*3)+BC74)*BG56 -> 0 | CH74: 4ª
B75: 1 | E75: =E74+1 -> 18 | F75: =M71 -> IVO JR-SC | K75: 3 | L75: 0 | M75: =F70 -> PEPE-SP | S75: =COUNTBLANK(K75:L75) -> 0 | AK75: =IF(S75=0,1,0) -> 1 | AL75: =IF(AND(S75=0,L75>K75),1,0)*AQ56 -> 0 | AM75: =IF(AND(S75=0,K75=L75),1,0)*AQ56 -> 0 | AN75: =AK75-AL75-AM75 -> 1 | AO75: =L75 -> 0 | AP75: =K75 -> 3 | AQ75: =((AL75*3)+AM75)*AQ56 -> 0 | BI75: =IF(S75=0,1,0) -> 1 | BJ75: =IF(AND(S75=0,K75>L75),1,0)*BO56 -> 1 | BK75: =IF(AND(S75=0,K75=L75),1,0)*BO56 -> 0 | BL75: =BI75-BJ75-BK75 -> 0 | BM75: =K75 -> 3 | BN75: =L75 -> 0 | BO75: =((BJ75*3)+BK75)*BO56 -> 3
B76: 1 | D76: =$D$24 -> 10:30:00 | E76: =E75+1 -> 19 | F76: =F72 -> DALLA STELLA-PR | K76: 6 | L76: 4 | M76: =M70 -> PINNA-SP | S76: =COUNTBLANK(K76:L76) -> 0 | AS76: =IF(S76=0,1,0) -> 1 | AT76: =IF(AND(S76=0,L76>K76),1,0)*AY56 -> 0 | AU76: =IF(AND(S76=0,K76=L76),1,0)*AY56 -> 0 | AV76: =AS76-AT76-AU76 -> 1 | AW76: =L76 -> 4 | AX76: =K76 -> 6 | AY76: =((AT76*3)+AU76)*AY56 -> 0 | BQ76: =IF(S76=0,1,0) -> 1 | BR76: =IF(AND(S76=0,K76>L76),1,0)*BW56 -> 1 | BS76: =IF(AND(S76=0,K76=L76),1,0)*BW56 -> 0 | BT76: =BQ76-BR76-BS76 -> 0 | BU76: =K76 -> 6 | BV76: =L76 -> 4 | BW76: =((BR76*3)+BS76)*BW56 -> 3
B77: 1 | E77: =E76+1 -> 20 | F77: =M72 -> WAGNER SCHMIDT-MG | K77: 0 | L77: 10 | M77: =F69 -> SIRIO-SP | S77: =COUNTBLANK(K77:L77) -> 0 | U77: =IF(S77=0,1,0) -> 1 | V77: =IF(AND(S77=0,L77>K77),1,0)*AA56 -> 1 | W77: =IF(AND(S77=0,K77=L77),1,0)*AA56 -> 0 | X77: =U77-V77-W77 -> 0 | Y77: =L77 -> 10 | Z77: =K77 -> 0 | AA77: =((V77*3)+W77)*AA56 -> 3 | BY77: =IF(S77=0,1,0) -> 1 | BZ77: =IF(AND(S77=0,K77>L77),1,0)*CE56 -> 0 | CA77: =IF(AND(S77=0,K77=L77),1,0)*CE56 -> 0 | CB77: =BY77-BZ77-CA77 -> 1 | CC77: =K77 -> 0 | CD77: =L77 -> 10 | CE77: =((BZ77*3)+CA77)*CE56 -> 0
B79: 1 | C79: 5 | D79: =$D$7 -> 2022-06-17 | E79: 21 | F79: =F74 -> PC-RJ | K79: 2 | L79: 3 | M79: =M75 -> PEPE-SP | S79: =COUNTBLANK(K79:L79) -> 0 | AK79: =IF(S79=0,1,0) -> 1 | AL79: =IF(AND(S79=0,L79>K79),1,0)*AQ56 -> 1 | AM79: =IF(AND(S79=0,K79=L79),1,0)*AQ56 -> 0 | AN79: =AK79-AL79-AM79 -> 0 | AO79: =L79 -> 3 | AP79: =K79 -> 2 | AQ79: =((AL79*3)+AM79)*AQ56 -> 3 | BA79: =IF(S79=0,1,0) -> 1 | BB79: =IF(AND(S79=0,K79>L79),1,0)*BG56 -> 0 | BC79: =IF(AND(S79=0,K79=L79),1,0)*BG56 -> 0 | BD79: =BA79-BB79-BC79 -> 1 | BE79: =K79 -> 2 | BF79: =L79 -> 3 | BG79: =((BB79*3)+BC79)*BG56 -> 0 | CH79: 5ª
B80: 1 | E80: =E79+1 -> 22 | F80: =F75 -> IVO JR-SC | K80: 4 | L80: 5 | M80: =M76 -> PINNA-SP | S80: =COUNTBLANK(K80:L80) -> 0 | AS80: =IF(S80=0,1,0) -> 1 | AT80: =IF(AND(S80=0,L80>K80),1,0)*AY56 -> 1 | AU80: =IF(AND(S80=0,K80=L80),1,0)*AY56 -> 0 | AV80: =AS80-AT80-AU80 -> 0 | AW80: =L80 -> 5 | AX80: =K80 -> 4 | AY80: =((AT80*3)+AU80)*AY56 -> 3 | BI80: =IF(S80=0,1,0) -> 1 | BJ80: =IF(AND(S80=0,K80>L80),1,0)*BO56 -> 0 | BK80: =IF(AND(S80=0,K80=L80),1,0)*BO56 -> 0 | BL80: =BI80-BJ80-BK80 -> 1 | BM80: =K80 -> 4 | BN80: =L80 -> 5 | BO80: =((BJ80*3)+BK80)*BO56 -> 0
B81: 1 | D81: =$D$29 -> 11:00:00 | E81: =E80+1 -> 23 | F81: =F76 -> DALLA STELLA-PR | K81: 8 | L81: 6 | M81: =M77 -> SIRIO-SP | S81: =COUNTBLANK(K81:L81) -> 0 | U81: =IF(S81=0,1,0) -> 1 | V81: =IF(AND(S81=0,L81>K81),1,0)*AA56 -> 0 | W81: =IF(AND(S81=0,K81=L81),1,0)*AA56 -> 0 | X81: =U81-V81-W81 -> 1 | Y81: =L81 -> 6 | Z81: =K81 -> 8 | AA81: =((V81*3)+W81)*AA56 -> 0 | BQ81: =IF(S81=0,1,0) -> 1 | BR81: =IF(AND(S81=0,K81>L81),1,0)*BW56 -> 1 | BS81: =IF(AND(S81=0,K81=L81),1,0)*BW56 -> 0 | BT81: =BQ81-BR81-BS81 -> 0 | BU81: =K81 -> 8 | BV81: =L81 -> 6 | BW81: =((BR81*3)+BS81)*BW56 -> 3
B82: 1 | E82: =E81+1 -> 24 | F82: =F77 -> WAGNER SCHMIDT-MG | K82: 0 | L82: 5 | M82: =M74 -> RAVANELLI-SP | S82: =COUNTBLANK(K82:L82) -> 0 | AC82: =IF(S82=0,1,0) -> 1 | AD82: =IF(AND(S82=0,L82>K82),1,0)*AI56 -> 1 | AE82: =IF(AND(S82=0,K82=L82),1,0)*AI56 -> 0 | AF82: =AC82-AD82-AE82 -> 0 | AG82: =L82 -> 5 | AH82: =K82 -> 0 | AI82: =((AD82*3)+AE82)*AI56 -> 3 | BY82: =IF(S82=0,1,0) -> 1 | BZ82: =IF(AND(S82=0,K82>L82),1,0)*CE56 -> 0 | CA82: =IF(AND(S82=0,K82=L82),1,0)*CE56 -> 0 | CB82: =BY82-BZ82-CA82 -> 1 | CC82: =K82 -> 0 | CD82: =L82 -> 5 | CE82: =((BZ82*3)+CA82)*CE56 -> 0
B84: 1 | C84: 6 | D84: =$D$7 -> 2022-06-17 | E84: 25 | F84: =F80 -> IVO JR-SC | K84: 5 | L84: 1 | M84: =M82 -> RAVANELLI-SP | S84: =COUNTBLANK(K84:L84) -> 0 | AC84: =IF(S84=0,1,0) -> 1 | AD84: =IF(AND(S84=0,L84>K84),1,0)*AI56 -> 0 | AE84: =IF(AND(S84=0,K84=L84),1,0)*AI56 -> 0 | AF84: =AC84-AD84-AE84 -> 1 | AG84: =L84 -> 1 | AH84: =K84 -> 5 | AI84: =((AD84*3)+AE84)*AI56 -> 0 | BI84: =IF(S84=0,1,0) -> 1 | BJ84: =IF(AND(S84=0,K84>L84),1,0)*BO56 -> 1 | BK84: =IF(AND(S84=0,K84=L84),1,0)*BO56 -> 0 | BL84: =BI84-BJ84-BK84 -> 0 | BM84: =K84 -> 5 | BN84: =L84 -> 1 | BO84: =((BJ84*3)+BK84)*BO56 -> 3 | CH84: 6ª
B85: 1 | E85: =E84+1 -> 26 | F85: =F79 -> PC-RJ | K85: 2 | L85: 4 | M85: =M81 -> SIRIO-SP | S85: =COUNTBLANK(K85:L85) -> 0 | U85: =IF(S85=0,1,0) -> 1 | V85: =IF(AND(S85=0,L85>K85),1,0)*AA56 -> 1 | W85: =IF(AND(S85=0,K85=L85),1,0)*AA56 -> 0 | X85: =U85-V85-W85 -> 0 | Y85: =L85 -> 4 | Z85: =K85 -> 2 | AA85: =((V85*3)+W85)*AA56 -> 3 | BA85: =IF(S85=0,1,0) -> 1 | BB85: =IF(AND(S85=0,K85>L85),1,0)*BG56 -> 0 | BC85: =IF(AND(S85=0,K85=L85),1,0)*BG56 -> 0 | BD85: =BA85-BB85-BC85 -> 1 | BE85: =K85 -> 2 | BF85: =L85 -> 4 | BG85: =((BB85*3)+BC85)*BG56 -> 0
B86: 1 | D86: =$D$34 -> 11:30:00 | E86: =E85+1 -> 27 | F86: =F82 -> WAGNER SCHMIDT-MG | K86: 2 | L86: 7 | M86: =M80 -> PINNA-SP | S86: =COUNTBLANK(K86:L86) -> 0 | AS86: =IF(S86=0,1,0) -> 1 | AT86: =IF(AND(S86=0,L86>K86),1,0)*AY56 -> 1 | AU86: =IF(AND(S86=0,K86=L86),1,0)*AY56 -> 0 | AV86: =AS86-AT86-AU86 -> 0 | AW86: =L86 -> 7 | AX86: =K86 -> 2 | AY86: =((AT86*3)+AU86)*AY56 -> 3 | BY86: =IF(S86=0,1,0) -> 1 | BZ86: =IF(AND(S86=0,K86>L86),1,0)*CE56 -> 0 | CA86: =IF(AND(S86=0,K86=L86),1,0)*CE56 -> 0 | CB86: =BY86-BZ86-CA86 -> 1 | CC86: =K86 -> 2 | CD86: =L86 -> 7 | CE86: =((BZ86*3)+CA86)*CE56 -> 0
B87: 1 | E87: =E86+1 -> 28 | F87: =F81 -> DALLA STELLA-PR | K87: 5 | L87: 1 | M87: =M79 -> PEPE-SP | S87: =COUNTBLANK(K87:L87) -> 0 | AK87: =IF(S87=0,1,0) -> 1 | AL87: =IF(AND(S87=0,L87>K87),1,0)*AQ56 -> 0 | AM87: =IF(AND(S87=0,K87=L87),1,0)*AQ56 -> 0 | AN87: =AK87-AL87-AM87 -> 1 | AO87: =L87 -> 1 | AP87: =K87 -> 5 | AQ87: =((AL87*3)+AM87)*AQ56 -> 0 | BQ87: =IF(S87=0,1,0) -> 1 | BR87: =IF(AND(S87=0,K87>L87),1,0)*BW56 -> 1 | BS87: =IF(AND(S87=0,K87=L87),1,0)*BW56 -> 0 | BT87: =BQ87-BR87-BS87 -> 0 | BU87: =K87 -> 5 | BV87: =L87 -> 1 | BW87: =((BR87*3)+BS87)*BW56 -> 3
B89: 1 | C89: 7 | D89: =$D$7 -> 2022-06-17 | E89: 29 | F89: =F86 -> WAGNER SCHMIDT-MG | K89: 1 | L89: 3 | M89: =M87 -> PEPE-SP | S89: =COUNTBLANK(K89:L89) -> 0 | AK89: =IF(S89=0,1,0) -> 1 | AL89: =IF(AND(S89=0,L89>K89),1,0)*AQ56 -> 1 | AM89: =IF(AND(S89=0,K89=L89),1,0)*AQ56 -> 0 | AN89: =AK89-AL89-AM89 -> 0 | AO89: =L89 -> 3 | AP89: =K89 -> 1 | AQ89: =((AL89*3)+AM89)*AQ56 -> 3 | BY89: =IF(S89=0,1,0) -> 1 | BZ89: =IF(AND(S89=0,K89>L89),1,0)*CE56 -> 0 | CA89: =IF(AND(S89=0,K89=L89),1,0)*CE56 -> 0 | CB89: =BY89-BZ89-CA89 -> 1 | CC89: =K89 -> 1 | CD89: =L89 -> 3 | CE89: =((BZ89*3)+CA89)*CE56 -> 0 | CH89: 7ª
B90: 1 | E90: =E89+1 -> 30 | F90: =F84 -> IVO JR-SC | K90: 6 | L90: 6 | M90: =M85 -> SIRIO-SP | S90: =COUNTBLANK(K90:L90) -> 0 | U90: =IF(S90=0,1,0) -> 1 | V90: =IF(AND(S90=0,L90>K90),1,0)*AA56 -> 0 | W90: =IF(AND(S90=0,K90=L90),1,0)*AA56 -> 1 | X90: =U90-V90-W90 -> 0 | Y90: =L90 -> 6 | Z90: =K90 -> 6 | AA90: =((V90*3)+W90)*AA56 -> 1 | BI90: =IF(S90=0,1,0) -> 1 | BJ90: =IF(AND(S90=0,K90>L90),1,0)*BO56 -> 0 | BK90: =IF(AND(S90=0,K90=L90),1,0)*BO56 -> 1 | BL90: =BI90-BJ90-BK90 -> 0 | BM90: =K90 -> 6 | BN90: =L90 -> 6 | BO90: =((BJ90*3)+BK90)*BO56 -> 1
B91: 1 | D91: =$D$39 -> 12:00:00 | E91: =E90+1 -> 31 | F91: =F87 -> DALLA STELLA-PR | K91: 8 | L91: 4 | M91: =M84 -> RAVANELLI-SP | S91: =COUNTBLANK(K91:L91) -> 0 | AC91: =IF(S91=0,1,0) -> 1 | AD91: =IF(AND(S91=0,L91>K91),1,0)*AI56 -> 0 | AE91: =IF(AND(S91=0,K91=L91),1,0)*AI56 -> 0 | AF91: =AC91-AD91-AE91 -> 1 | AG91: =L91 -> 4 | AH91: =K91 -> 8 | AI91: =((AD91*3)+AE91)*AI56 -> 0 | BQ91: =IF(S91=0,1,0) -> 1 | BR91: =IF(AND(S91=0,K91>L91),1,0)*BW56 -> 1 | BS91: =IF(AND(S91=0,K91=L91),1,0)*BW56 -> 0 | BT91: =BQ91-BR91-BS91 -> 0 | BU91: =K91 -> 8 | BV91: =L91 -> 4 | BW91: =((BR91*3)+BS91)*BW56 -> 3
B92: 1 | E92: =E91+1 -> 32 | F92: =F85 -> PC-RJ | K92: 1 | L92: 6 | M92: =M86 -> PINNA-SP | S92: =COUNTBLANK(K92:L92) -> 0 | AS92: =IF(S92=0,1,0) -> 1 | AT92: =IF(AND(S92=0,L92>K92),1,0)*AY56 -> 1 | AU92: =IF(AND(S92=0,K92=L92),1,0)*AY56 -> 0 | AV92: =AS92-AT92-AU92 -> 0 | AW92: =L92 -> 6 | AX92: =K92 -> 1 | AY92: =((AT92*3)+AU92)*AY56 -> 3 | BA92: =IF(S92=0,1,0) -> 1 | BB92: =IF(AND(S92=0,K92>L92),1,0)*BG56 -> 0 | BC92: =IF(AND(S92=0,K92=L92),1,0)*BG56 -> 0 | BD92: =BA92-BB92-BC92 -> 1 | BE92: =K92 -> 1 | BF92: =L92 -> 6 | BG92: =((BB92*3)+BC92)*BG56 -> 0
S93: =SUM(S59:S92) -> 0 | U93: =SUM(U59:U92) -> 7 | V93: 4 | W93: 2 | X93: 1 | Y93: 41 | Z93: 24 | AA93: =SUM(AA59:AA92) -> 14 | AC93: =SUM(AC59:AC92) -> 7 | AD93: 3 | AE93: 0 | AF93: 4 | AG93: 22 | AH93: 22 | AI93: 9 | AK93: =SUM(AK59:AK92) -> 7 | AL93: 2 | AM93: 1 | AN93: 4 | AO93: 13 | AP93: 22 | AQ93: 7 | AS93: =SUM(AS59:AS92) -> 7 | AT93: 5 | AU93: 0 | AV93: 2 | AW93: 33 | AX93: 23 | AY93: 15 | BA93: =SUM(BA59:BA92) -> 7 | BB93: 2 | BC93: 1 | BD93: 4 | BE93: 17 | BF93: 28 | BG93: 7 | BI93: =SUM(BI59:BI92) -> 7 | BJ93: 4 | BK93: 1 | BL93: 2 | BM93: 30 | BN93: 17 | BO93: 13 | BQ93: =SUM(BQ59:BQ92) -> 7 | BR93: 5 | BS93: 1 | BT93: 1 | BU93: 41 | BV93: 25 | BW93: 16 | BY93: =SUM(BY59:BY92) -> 7 | BZ93: 0 | CA93: 0 | CB93: 7 | CC93: 5 | CD93: 41 | CE93: 0
C95: Class | D95: Botonistas | I95: PG | J95: J | K95: V | L95: E | M95: D | N95: GP | O95: GC | P95: SG | Q95: Sorteio | S95: Cl | U95: Botonista | AC95: J | AD95: V | AE95: E | AF95: D | AG95: GP | AH95: GC | AI95: PG | AJ95: Chave Sort | AR95: Cl | AT95: Botonista | BA95: J | BB95: V | BC95: E | BD95: D | BE95: GP | BF95: GC | BG95: PG | BH95: Chave Sort
B96: =IF($S$93=0,"è","") -> è | C96: =AR96 -> 1 | D96: =AT96 -> DALLA STELLA-PR | I96: =BG96 -> 16 | J96: =BA96 -> 7 | K96: 5 | L96: 1 | M96: 1 | N96: 41 | O96: 25 | P96: =N96-O96 -> 16 | Q96: =IF(INT(BH96)=INT(BH97),ASC(CHAR(252)),"") ->  | S96: =RANK(AJ96,AJ96:AJ103,0) -> 3 | U96: =F59 -> SIRIO-SP | AC96: =U93 -> 7 | AD96: 4 | AE96: 2 | AF96: 1 | AG96: 41 | AH96: 24 | AI96: 14 | AJ96: =(AI96*1000000000)+(AD96*1000000)+((AG96-AH96)*1000)+AG96+AR96/100 -> 1.400401704e+10 | AR96: 1 | AT96: =VLOOKUP(AR96,S96:AJ103,3,FALSE) -> DALLA STELLA-PR | BA96: =VLOOKUP(AR96,S96:AJ103,11,FALSE) -> 7 | BB96: =VLOOKUP(AR96,S96:AJ103,12,FALSE) -> 5 | BC96: =VLOOKUP(AR96,S96:AJ103,13,FALSE) -> 1 | BD96: =VLOOKUP(AR96,S96:AJ103,14,FALSE) -> 1 | BE96: =VLOOKUP(AR96,S96:AJ103,15,FALSE) -> 41 | BF96: =VLOOKUP(AR96,S96:AJ103,16,FALSE) -> 25 | BG96: =VLOOKUP(AR96,S96:AJ103,17,FALSE) -> 16 | BH96: =VLOOKUP(AR96,S96:AJ103,18,FALSE) -> 1.600501604e+10 | BI96: =VLOOKUP($AR96,$S$37:$AI$42,17,FALSE) -> 
B97: =IF($S$93=0,"è","") -> è | C97: 2 | D97: =AT97 -> PINNA-SP | I97: 15 | J97: 7 | K97: 5 | L97: 0 | M97: 2 | N97: 33 | O97: 23 | P97: 10 | Q97: =IF(OR(INT(BH97)=INT(BH96),INT(BH98)=INT(BH97)),ASC(CHAR(252)),"") ->  | S97: =RANK(AJ97,AJ96:AJ103,0) -> 5 | U97: =F60 -> RAVANELLI-SP | AC97: =AC93 -> 7 | AD97: =AD93 -> 3 | AE97: 0 | AF97: 4 | AG97: 22 | AH97: 22 | AI97: 9 | AJ97: =(AI97*1000000000)+(AD97*1000000)+((AG97-AH97)*1000)+AG97+AR97/100 -> 9003000022 | AR97: 2 | AT97: =VLOOKUP(AR97,S96:AJ103,3,FALSE) -> PINNA-SP | BA97: =VLOOKUP(AR97,S96:AJ103,11,FALSE) -> 7 | BB97: =VLOOKUP(AR97,S96:AJ103,12,FALSE) -> 5 | BC97: =VLOOKUP(AR97,S96:AJ103,13,FALSE) -> 0 | BD97: =VLOOKUP(AR97,S96:AJ103,14,FALSE) -> 2 | BE97: =VLOOKUP(AR97,S96:AJ103,15,FALSE) -> 33 | BF97: =VLOOKUP(AR97,S96:AJ103,16,FALSE) -> 23 | BG97: =VLOOKUP(AR97,S96:AJ103,17,FALSE) -> 15 | BH97: =VLOOKUP(AR97,S96:AJ103,18,FALSE) -> 1.500501003e+10
B98: =IF($S$93=0,"è","") -> è | C98: 3 | D98: SIRIO-SP | I98: 14 | J98: 7 | K98: 4 | L98: 2 | M98: 1 | N98: 41 | O98: 24 | P98: 17 | S98: =RANK(AJ98,AJ96:AJ103,0) -> 6 | U98: =M60 -> PEPE-SP | AC98: =AK93 -> 7 | AD98: 2 | AE98: 1 | AF98: 4 | AG98: 13 | AH98: 22 | AI98: 7 | AJ98: 7001991013 | AR98: 3 | AT98: =VLOOKUP(AR98,S96:AJ103,3,FALSE) -> SIRIO-SP | BA98: =VLOOKUP(AR98,S96:AJ103,11,FALSE) -> 7 | BB98: =VLOOKUP(AR98,S96:AJ103,12,FALSE) -> 4 | BC98: =VLOOKUP(AR98,S96:AJ103,13,FALSE) -> 2 | BD98: =VLOOKUP(AR98,S96:AJ103,14,FALSE) -> 1 | BE98: =VLOOKUP(AR98,S96:AJ103,15,FALSE) -> 41 | BF98: =VLOOKUP(AR98,S96:AJ103,16,FALSE) -> 24 | BG98: =VLOOKUP(AR98,S96:AJ103,17,FALSE) -> 14 | BH98: =VLOOKUP(AR98,S96:AJ103,18,FALSE) -> 1.400401704e+10
B99: =IF($S$93=0,"è","") -> è | C99: 4 | D99: IVO JR-SC | I99: 13 | J99: 7 | K99: 4 | L99: 1 | M99: 2 | N99: 30 | O99: 17 | P99: 13 | S99: =RANK(AJ99,AJ96:AJ103,0) -> 2 | U99: =M59 -> PINNA-SP | AC99: =AS93 -> 7 | AD99: 5 | AE99: 0 | AF99: 2 | AG99: 33 | AH99: 23 | AI99: 15 | AJ99: 1.500501003e+10 | AR99: 4 | AT99: =VLOOKUP(AR99,S96:AJ103,3,FALSE) -> IVO JR-SC | BA99: =VLOOKUP(AR99,S96:AJ103,11,FALSE) -> 7 | BB99: =VLOOKUP(AR99,S96:AJ103,12,FALSE) -> 4 | BC99: =VLOOKUP(AR99,S96:AJ103,13,FALSE) -> 1 | BD99: =VLOOKUP(AR99,S96:AJ103,14,FALSE) -> 2 | BE99: =VLOOKUP(AR99,S96:AJ103,15,FALSE) -> 30 | BF99: =VLOOKUP(AR99,S96:AJ103,16,FALSE) -> 17 | BG99: =VLOOKUP(AR99,S96:AJ103,17,FALSE) -> 13 | BH99: =VLOOKUP(AR99,S96:AJ103,18,FALSE) -> 1.300401303e+10
B100: =IF($S$93=0,"è","") -> è | C100: 5 | D100: RAVANELLI-SP | I100: 9 | J100: 7 | K100: 3 | L100: 0 | M100: 4 | N100: 22 | O100: 22 | P100: 0 | S100: =RANK(AJ100,AJ96:AJ103,0) -> 7 | U100: =F61 -> PC-RJ | AC100: =BA93 -> 7 | AD100: 2 | AE100: 1 | AF100: 4 | AG100: 17 | AH100: 28 | AI100: 7 | AJ100: 7001989017 | AR100: 5 | AT100: =VLOOKUP(AR100,S96:AJ103,3,FALSE) -> RAVANELLI-SP | BA100: =VLOOKUP(AR100,S96:AJ103,11,FALSE) -> 7 | BB100: =VLOOKUP(AR100,S96:AJ103,12,FALSE) -> 3 | BC100: =VLOOKUP(AR100,S96:AJ103,13,FALSE) -> 0 | BD100: =VLOOKUP(AR100,S96:AJ103,14,FALSE) -> 4 | BE100: =VLOOKUP(AR100,S96:AJ103,15,FALSE) -> 22 | BF100: =VLOOKUP(AR100,S96:AJ103,16,FALSE) -> 22 | BG100: =VLOOKUP(AR100,S96:AJ103,17,FALSE) -> 9 | BH100: =VLOOKUP(AR100,S96:AJ103,18,FALSE) -> 9003000022
B101: =IF($S$93=0,"ó","") -> ó | C101: 6 | D101: PEPE-SP | I101: 7 | J101: 7 | K101: 2 | L101: 1 | M101: 4 | N101: 13 | O101: 22 | P101: -9 | S101: =RANK(AJ101,AJ96:AJ103,0) -> 4 | U101: =F62 -> IVO JR-SC | AC101: =BI93 -> 7 | AD101: 4 | AE101: 1 | AF101: 2 | AG101: 30 | AH101: 17 | AI101: 13 | AJ101: 1.300401303e+10 | AR101: 6 | AT101: =VLOOKUP(AR101,S96:AJ103,3,FALSE) -> PEPE-SP | BA101: =VLOOKUP(AR101,S96:AJ103,11,FALSE) -> 7 | BB101: =VLOOKUP(AR101,S96:AJ103,12,FALSE) -> 2 | BC101: =VLOOKUP(AR101,S96:AJ103,13,FALSE) -> 1 | BD101: =VLOOKUP(AR101,S96:AJ103,14,FALSE) -> 4 | BE101: =VLOOKUP(AR101,S96:AJ103,15,FALSE) -> 13 | BF101: =VLOOKUP(AR101,S96:AJ103,16,FALSE) -> 22 | BG101: =VLOOKUP(AR101,S96:AJ103,17,FALSE) -> 7 | BH101: =VLOOKUP(AR101,S96:AJ103,18,FALSE) -> 7001991013
B102: =IF($S$93=0,"Ø","") -> Ø | C102: =AR102 -> 7 | D102: PC-RJ | I102: 7 | J102: 7 | K102: 2 | L102: 1 | M102: 4 | N102: 17 | O102: 28 | P102: -11 | S102: =RANK(AJ102,AJ96:AJ103,0) -> 1 | U102: =M62 -> DALLA STELLA-PR | AC102: =BQ93 -> 7 | AD102: 5 | AE102: 1 | AF102: 1 | AG102: 41 | AH102: 25 | AI102: 16 | AJ102: 1.600501604e+10 | AR102: 7 | AT102: =VLOOKUP(AR102,S96:AJ103,3,FALSE) -> PC-RJ | BA102: =VLOOKUP(AR102,S96:AJ103,11,FALSE) -> 7 | BB102: =VLOOKUP(AR102,S96:AJ103,12,FALSE) -> 2 | BC102: =VLOOKUP(AR102,S96:AJ103,13,FALSE) -> 1 | BD102: =VLOOKUP(AR102,S96:AJ103,14,FALSE) -> 4 | BE102: =VLOOKUP(AR102,S96:AJ103,15,FALSE) -> 17 | BF102: =VLOOKUP(AR102,S96:AJ103,16,FALSE) -> 28 | BG102: =VLOOKUP(AR102,S96:AJ103,17,FALSE) -> 7 | BH102: =VLOOKUP(AR102,S96:AJ103,18,FALSE) -> 7001989017
B103: =IF($S$93=0,"Ø","") -> Ø | C103: =AR103 -> 8 | D103: WAGNER SCHMIDT-MG | I103: 0 | J103: 7 | K103: 0 | L103: 0 | M103: 7 | N103: 5 | O103: 41 | P103: -36 | S103: =RANK(AJ103,AJ96:AJ103,0) -> 8 | U103: =M61 -> WAGNER SCHMIDT-MG | AC103: =BY93 -> 7 | AD103: 0 | AE103: 0 | AF103: 7 | AG103: 5 | AH103: 41 | AI103: 0 | AJ103: -35994.92 | AR103: 8 | AT103: =VLOOKUP(AR103,S96:AJ103,3,FALSE) -> WAGNER SCHMIDT-MG | BA103: =VLOOKUP(AR103,S96:AJ103,11,FALSE) -> 7 | BB103: =VLOOKUP(AR103,S96:AJ103,12,FALSE) -> 0 | BC103: =VLOOKUP(AR103,S96:AJ103,13,FALSE) -> 0 | BD103: =VLOOKUP(AR103,S96:AJ103,14,FALSE) -> 7 | BE103: =VLOOKUP(AR103,S96:AJ103,15,FALSE) -> 5 | BF103: =VLOOKUP(AR103,S96:AJ103,16,FALSE) -> 41 | BG103: =VLOOKUP(AR103,S96:AJ103,17,FALSE) -> 0 | BH103: =VLOOKUP(AR103,S96:AJ103,18,FALSE) -> -35994.92
C105: è | D105: 1a Divisão | I105: ó | J105: 1a ou 5a Divisão | N105: Ø | O105: 5a Divisão
C108: =$C$4 -> Master - 1a Divisão | Q108: =CONCATENATE("1ª Fase - ", 'G1'!$I$9) -> 1ª Fase - Grupo 3 | U108: =F111 -> HENRIQUE-SP | AA108: =IF(RIGHT(U108,4)="(WO)",0,1) -> 1 | AC108: =F112 -> MARIO JR-SP | AI108: =IF(RIGHT(AC108,4)="(WO)",0,1) -> 1 | AK108: =M112 -> GERALDO ROUXINOL-PE | AQ108: =IF(RIGHT(AK108,4)="(WO)",0,1) -> 1 | AS108: =M111 -> BABY-SP | AY108: =IF(RIGHT(AS108,4)="(WO)",0,1) -> 1 | BA108: =F113 -> LUIZ CARLOS-RJ | BG108: =IF(RIGHT(BA108,4)="(WO)",0,1) -> 1 | BI108: =F114 -> SCHUMACHER-SC | BO108: =IF(RIGHT(BI108,4)="(WO)",0,1) -> 1 | BQ108: =M114 -> BITTENCOURT-PR | BW108: =IF(RIGHT(BQ108,4)="(WO)",0,1) -> 1 | BY108: =M113 -> FERNANDO CASCAVEL-MG | CE108: =IF(RIGHT(BY108,4)="(WO)",0,1) -> 1
B109: Grp | C109: Rod. | D109: Data/Hora | E109: Mesa | F109: Jogos | S109: Ok | U109: J | V109: V | W109: E | X109: D | Y109: GP | Z109: GC | AA109: PG | AC109: J | AD109: V | AE109: E | AF109: D | AG109: GP | AH109: GC | AI109: PG | AK109: J | AL109: V | AM109: E | AN109: D | AO109: GP | AP109: GC | AQ109: PG | AS109: J | AT109: V | AU109: E | AV109: D | AW109: GP | AX109: GC | AY109: PG | BA109: J | BB109: V | BC109: E | BD109: D | BE109: GP | BF109: GC | BG109: PG | BI109: J | BJ109: V | BK109: E | BL109: D | BM109: GP | BN109: GC | BO109: PG | BQ109: J | BR109: V | BS109: E | BT109: D | BU109: GP | BV109: GC | BW109: PG | BY109: J | BZ109: V | CA109: E | CB109: D | CC109: GP | CD109: GC | CE109: PG | CH109: Rodada
B111: 1 | C111: 1 | D111: 2022-06-17 | E111: 9 | F111: ='G1'!$J$10 & IF('G1'!$K$10="S"," (WO)","") -> HENRIQUE-SP | K111: 3 | L111: 1 | M111: ='G1'!$J$13 & IF('G1'!$K$13="S"," (WO)","") -> BABY-SP | S111: =COUNTBLANK(K111:L111) -> 0 | U111: =IF(S111=0,1,0) -> 1 | V111: =IF(AND(S111=0,K111>L111),1,0)*AA108 -> 1 | W111: =IF(AND(S111=0,K111=L111),1,0)*AA108 -> 0 | X111: =U111-V111-W111 -> 0 | Y111: =K111 -> 3 | Z111: =L111 -> 1 | AA111: =((V111*3)+W111)*AA108 -> 3 | AS111: =IF(S111=0,1,0) -> 1 | AT111: =IF(AND(S111=0,L111>K111),1,0)*AY108 -> 0 | AU111: =IF(AND(S111=0,K111=L111),1,0)*AY108 -> 0 | AV111: =AS111-AT111-AU111 -> 1 | AW111: =L111 -> 1 | AX111: =K111 -> 3 | AY111: =((AT111*3)+AU111)*AY108 -> 0 | CH111: 1ª
B112: 1 | E112: =E111+1 -> 10 | F112: ='G1'!$J$11 & IF('G1'!$K$11="S"," (WO)","") -> MARIO JR-SP | K112: 2 | L112: 6 | M112: ='G1'!$J$12 & IF('G1'!$K$12="S"," (WO)","") -> GERALDO ROUXINOL-PE | S112: =COUNTBLANK(K112:L112) -> 0 | AC112: =IF(S112=0,1,0) -> 1 | AD112: =IF(AND(S112=0,K112>L112),1,0)*AI108 -> 0 | AE112: =IF(AND(S112=0,K112=L112),1,0)*AI108 -> 0 | AF112: =AC112-AD112-AE112 -> 1 | AG112: =K112 -> 2 | AH112: =L112 -> 6 | AI112: =((AD112*3)+AE112)*AI108 -> 0 | AK112: =IF(S112=0,1,0) -> 1 | AL112: =IF(AND(S112=0,L112>K112),1,0)*AQ108 -> 1 | AM112: =IF(AND(S112=0,K112=L112),1,0)*AQ108 -> 0 | AN112: =AK112-AL112-AM112 -> 0 | AO112: =L112 -> 6 | AP112: =K112 -> 2 | AQ112: =((AL112*3)+AM112)*AQ108 -> 3
B113: 1 | D113: =$D$9 -> 09:00:00 | E113: =E112+1 -> 11 | F113: ='G1'!$J$14 & IF('G1'!$K$14="S"," (WO)","") -> LUIZ CARLOS-RJ | K113: 5 | L113: 1 | M113: ='G1'!$J$17 & IF('G1'!$K$17="S"," (WO)","") -> FERNANDO CASCAVEL-MG | S113: =COUNTBLANK(K113:L113) -> 0 | BA113: =IF(S113=0,1,0) -> 1 | BB113: =IF(AND(S113=0,K113>L113),1,0)*BG108 -> 1 | BC113: =IF(AND(S113=0,K113=L113),1,0)*BG108 -> 0 | BD113: =BA113-BB113-BC113 -> 0 | BE113: =K113 -> 5 | BF113: =L113 -> 1 | BG113: =((BB113*3)+BC113)*BG108 -> 3 | BY113: =IF(S113=0,1,0) -> 1 | BZ113: =IF(AND(S113=0,L113>K113),1,0)*CE108 -> 0 | CA113: =IF(AND(S113=0,K113=L113),1,0)*CE108 -> 0 | CB113: =BY113-BZ113-CA113 -> 1 | CC113: =L113 -> 1 | CD113: =K113 -> 5 | CE113: =((BZ113*3)+CA113)*CE108 -> 0
B114: 1 | E114: =E113+1 -> 12 | F114: ='G1'!$J$15 & IF('G1'!$K$15="S"," (WO)","") -> SCHUMACHER-SC | K114: 2 | L114: 2 | M114: ='G1'!$J$16 & IF('G1'!$K$16="S"," (WO)","") -> BITTENCOURT-PR | S114: =COUNTBLANK(K114:L114) -> 0 | BI114: =IF(S114=0,1,0) -> 1 | BJ114: =IF(AND(S114=0,K114>L114),1,0)*BO108 -> 0 | BK114: =IF(AND(S114=0,K114=L114),1,0)*BO108 -> 1 | BL114: =BI114-BJ114-BK114 -> 0 | BM114: =K114 -> 2 | BN114: =L114 -> 2 | BO114: =((BJ114*3)+BK114)*BO108 -> 1 | BQ114: =IF(S114=0,1,0) -> 1 | BR114: =IF(AND(S114=0,L114>K114),1,0)*BW108 -> 0 | BS114: =IF(AND(S114=0,K114=L114),1,0)*BW108 -> 1 | BT114: =BQ114-BR114-BS114 -> 0 | BU114: =L114 -> 2 | BV114: =K114 -> 2 | BW114: =((BR114*3)+BS114)*BW108 -> 1
B115: 1
B116: 1 | C116: 2 | D116: =$D$7 -> 2022-06-17 | E116: 13 | F116: =F111 -> HENRIQUE-SP | K116: 4 | L116: 1 | M116: =M112 -> GERALDO ROUXINOL-PE | S116: =COUNTBLANK(K116:L116) -> 0 | U116: =IF(S116=0,1,0) -> 1 | V116: =IF(AND(S116=0,K116>L116),1,0)*AA108 -> 1 | W116: =IF(AND(S116=0,K116=L116),1,0)*AA108 -> 0 | X116: =U116-V116-W116 -> 0 | Y116: =K116 -> 4 | Z116: =L116 -> 1 | AA116: =((V116*3)+W116)*AA108 -> 3 | AK116: =IF(S116=0,1,0) -> 1 | AL116: =IF(AND(S116=0,L116>K116),1,0)*AQ108 -> 0 | AM116: =IF(AND(S116=0,K116=L116),1,0)*AQ108 -> 0 | AN116: =AK116-AL116-AM116 -> 1 | AO116: =L116 -> 1 | AP116: =K116 -> 4 | AQ116: =((AL116*3)+AM116)*AQ108 -> 0 | CH116: 2ª
B117: 1 | E117: =E116+1 -> 14 | F117: =F112 -> MARIO JR-SP | K117: 2 | L117: 3 | M117: =M111 -> BABY-SP | S117: =COUNTBLANK(K117:L117) -> 0 | AC117: =IF(S117=0,1,0) -> 1 | AD117: =IF(AND(S117=0,K117>L117),1,0)*AI108 -> 0 | AE117: =IF(AND(S117=0,K117=L117),1,0)*AI108 -> 0 | AF117: =AC117-AD117-AE117 -> 1 | AG117: =K117 -> 2 | AH117: =L117 -> 3 | AI117: =((AD117*3)+AE117)*AI108 -> 0 | AS117: =IF(S117=0,1,0) -> 1 | AT117: =IF(AND(S117=0,L117>K117),1,0)*AY108 -> 1 | AU117: =IF(AND(S117=0,K117=L117),1,0)*AY108 -> 0 | AV117: =AS117-AT117-AU117 -> 0 | AW117: =L117 -> 3 | AX117: =K117 -> 2 | AY117: =((AT117*3)+AU117)*AY108 -> 3
B118: 1 | D118: =$D$14 -> 09:30:00 | E118: =E117+1 -> 15 | F118: =F113 -> LUIZ CARLOS-RJ | K118: 5 | L118: 5 | M118: =M114 -> BITTENCOURT-PR | S118: =COUNTBLANK(K118:L118) -> 0 | BA118: =IF(S118=0,1,0) -> 1 | BB118: =IF(AND(S118=0,K118>L118),1,0)*BG108 -> 0 | BC118: =IF(AND(S118=0,K118=L118),1,0)*BG108 -> 1 | BD118: =BA118-BB118-BC118 -> 0 | BE118: =K118 -> 5 | BF118: =L118 -> 5 | BG118: =((BB118*3)+BC118)*BG108 -> 1 | BQ118: =IF(S118=0,1,0) -> 1 | BR118: =IF(AND(S118=0,L118>K118),1,0)*BW108 -> 0 | BS118: =IF(AND(S118=0,K118=L118),1,0)*BW108 -> 1 | BT118: =BQ118-BR118-BS118 -> 0 | BU118: =L118 -> 5 | BV118: =K118 -> 5 | BW118: =((BR118*3)+BS118)*BW108 -> 1
B119: 1 | E119: =E118+1 -> 16 | F119: =F114 -> SCHUMACHER-SC | K119: 3 | L119: 1 | M119: =M113 -> FERNANDO CASCAVEL-MG | S119: =COUNTBLANK(K119:L119) -> 0 | BI119: =IF(S119=0,1,0) -> 1 | BJ119: =IF(AND(S119=0,K119>L119),1,0)*BO108 -> 1 | BK119: =IF(AND(S119=0,K119=L119),1,0)*BO108 -> 0 | BL119: =BI119-BJ119-BK119 -> 0 | BM119: =K119 -> 3 | BN119: =L119 -> 1 | BO119: =((BJ119*3)+BK119)*BO108 -> 3 | BY119: =IF(S119=0,1,0) -> 1 | BZ119: =IF(AND(S119=0,L119>K119),1,0)*CE108 -> 0 | CA119: =IF(AND(S119=0,K119=L119),1,0)*CE108 -> 0 | CB119: =BY119-BZ119-CA119 -> 1 | CC119: =L119 -> 1 | CD119: =K119 -> 3 | CE119: =((BZ119*3)+CA119)*CE108 -> 0
B121: 1 | C121: 3 | D121: =$D$7 -> 2022-06-17 | E121: 17 | F121: =F116 -> HENRIQUE-SP | K121: 4 | L121: 2 | M121: =F117 -> MARIO JR-SP | S121: =COUNTBLANK(K121:L121) -> 0 | U121: =IF(S121=0,1,0) -> 1 | V121: =IF(AND(S121=0,K121>L121),1,0)*AA108 -> 1 | W121: =IF(AND(S121=0,K121=L121),1,0)*AA108 -> 0 | X121: =U121-V121-W121 -> 0 | Y121: =K121 -> 4 | Z121: =L121 -> 2 | AA121: =((V121*3)+W121)*AA108 -> 3 | AC121: =IF(S121=0,1,0) -> 1 | AD121: =IF(AND(S121=0,L121>K121),1,0)*AI108 -> 0 | AE121: =IF(AND(S121=0,K121=L121),1,0)*AI108 -> 0 | AF121: =AC121-AD121-AE121 -> 1 | AG121: =L121 -> 2 | AH121: =K121 -> 4 | AI121: =((AD121*3)+AE121)*AI108 -> 0 | CH121: 3ª
B122: 1 | E122: =E121+1 -> 18 | F122: =M116 -> GERALDO ROUXINOL-PE | K122: 4 | L122: 4 | M122: =M117 -> BABY-SP | S122: =COUNTBLANK(K122:L122) -> 0 | AK122: =IF(S122=0,1,0) -> 1 | AL122: =IF(AND(S122=0,K122>L122),1,0)*AQ108 -> 0 | AM122: =IF(AND(S122=0,K122=L122),1,0)*AQ108 -> 1 | AN122: =AK122-AL122-AM122 -> 0 | AO122: =K122 -> 4 | AP122: =L122 -> 4 | AQ122: =((AL122*3)+AM122)*AQ108 -> 1 | AS122: =IF(S122=0,1,0) -> 1 | AT122: =IF(AND(S122=0,L122>K122),1,0)*AY108 -> 0 | AU122: =IF(AND(S122=0,K122=L122),1,0)*AY108 -> 1 | AV122: =AS122-AT122-AU122 -> 0 | AW122: =L122 -> 4 | AX122: =K122 -> 4 | AY122: =((AT122*3)+AU122)*AY108 -> 1
B123: 1 | D123: =$D$19 -> 10:00:00 | E123: =E122+1 -> 19 | F123: =F118 -> LUIZ CARLOS-RJ | K123: 3 | L123: 3 | M123: =F119 -> SCHUMACHER-SC | S123: =COUNTBLANK(K123:L123) -> 0 | BA123: =IF(S123=0,1,0) -> 1 | BB123: =IF(AND(S123=0,K123>L123),1,0)*BG108 -> 0 | BC123: =IF(AND(S123=0,K123=L123),1,0)*BG108 -> 1 | BD123: =BA123-BB123-BC123 -> 0 | BE123: =K123 -> 3 | BF123: =L123 -> 3 | BG123: =((BB123*3)+BC123)*BG108 -> 1 | BI123: =IF(S123=0,1,0) -> 1 | BJ123: =IF(AND(S123=0,L123>K123),1,0)*BO108 -> 0 | BK123: =IF(AND(S123=0,K123=L123),1,0)*BO108 -> 1 | BL123: =BI123-BJ123-BK123 -> 0 | BM123: =L123 -> 3 | BN123: =K123 -> 3 | BO123: =((BJ123*3)+BK123)*BO108 -> 1
B124: 1 | E124: =E123+1 -> 20 | F124: =M118 -> BITTENCOURT-PR | K124: 3 | L124: 2 | M124: =M119 -> FERNANDO CASCAVEL-MG | S124: =COUNTBLANK(K124:L124) -> 0 | BQ124: =IF(S124=0,1,0) -> 1 | BR124: =IF(AND(S124=0,K124>L124),1,0)*BW108 -> 1 | BS124: =IF(AND(S124=0,K124=L124),1,0)*BW108 -> 0 | BT124: =BQ124-BR124-BS124 -> 0 | BU124: =K124 -> 3 | BV124: =L124 -> 2 | BW124: =((BR124*3)+BS124)*BW108 -> 3 | BY124: =IF(S124=0,1,0) -> 1 | BZ124: =IF(AND(S124=0,L124>K124),1,0)*CE108 -> 0 | CA124: =IF(AND(S124=0,K124=L124),1,0)*CE108 -> 0 | CB124: =BY124-BZ124-CA124 -> 1 | CC124: =L124 -> 2 | CD124: =K124 -> 3 | CE124: =((BZ124*3)+CA124)*CE108 -> 0
B126: 1 | C126: 4 | D126: =$D$7 -> 2022-06-17 | E126: 21 | F126: =F123 -> LUIZ CARLOS-RJ | K126: 5 | L126: 3 | M126: =M121 -> MARIO JR-SP | S126: =COUNTBLANK(K126:L126) -> 0 | AC126: =IF(S126=0,1,0) -> 1 | AD126: =IF(AND(S126=0,L126>K126),1,0)*AI108 -> 0 | AE126: =IF(AND(S126=0,K126=L126),1,0)*AI108 -> 0 | AF126: =AC126-AD126-AE126 -> 1 | AG126: =L126 -> 3 | AH126: =K126 -> 5 | AI126: =((AD126*3)+AE126)*AI108 -> 0 | BA126: =IF(S126=0,1,0) -> 1 | BB126: =IF(AND(S126=0,K126>L126),1,0)*BG108 -> 1 | BC126: =IF(AND(S126=0,K126=L126),1,0)*BG108 -> 0 | BD126: =BA126-BB126-BC126 -> 0 | BE126: =K126 -> 5 | BF126: =L126 -> 3 | BG126: =((BB126*3)+BC126)*BG108 -> 3 | CH126: 4ª
B127: 1 | E127: =E126+1 -> 22 | F127: =M123 -> SCHUMACHER-SC | K127: 0 | L127: 3 | M127: =F122 -> GERALDO ROUXINOL-PE | S127: =COUNTBLANK(K127:L127) -> 0 | AK127: =IF(S127=0,1,0) -> 1 | AL127: =IF(AND(S127=0,L127>K127),1,0)*AQ108 -> 1 | AM127: =IF(AND(S127=0,K127=L127),1,0)*AQ108 -> 0 | AN127: =AK127-AL127-AM127 -> 0 | AO127: =L127 -> 3 | AP127: =K127 -> 0 | AQ127: =((AL127*3)+AM127)*AQ108 -> 3 | BI127: =IF(S127=0,1,0) -> 1 | BJ127: =IF(AND(S127=0,K127>L127),1,0)*BO108 -> 0 | BK127: =IF(AND(S127=0,K127=L127),1,0)*BO108 -> 0 | BL127: =BI127-BJ127-BK127 -> 1 | BM127: =K127 -> 0 | BN127: =L127 -> 3 | BO127: =((BJ127*3)+BK127)*BO108 -> 0
B128: 1 | D128: =$D$24 -> 10:30:00 | E128: =E127+1 -> 23 | F128: =F124 -> BITTENCOURT-PR | K128: 5 | L128: 4 | M128: =M122 -> BABY-SP | S128: =COUNTBLANK(K128:L128) -> 0 | AS128: =IF(S128=0,1,0) -> 1 | AT128: =IF(AND(S128=0,L128>K128),1,0)*AY108 -> 0 | AU128: =IF(AND(S128=0,K128=L128),1,0)*AY108 -> 0 | AV128: =AS128-AT128-AU128 -> 1 | AW128: =L128 -> 4 | AX128: =K128 -> 5 | AY128: =((AT128*3)+AU128)*AY108 -> 0 | BQ128: =IF(S128=0,1,0) -> 1 | BR128: =IF(AND(S128=0,K128>L128),1,0)*BW108 -> 1 | BS128: =IF(AND(S128=0,K128=L128),1,0)*BW108 -> 0 | BT128: =BQ128-BR128-BS128 -> 0 | BU128: =K128 -> 5 | BV128: =L128 -> 4 | BW128: =((BR128*3)+BS128)*BW108 -> 3
B129: 1 | E129: =E128+1 -> 24 | F129: =M124 -> FERNANDO CASCAVEL-MG | K129: 4 | L129: 2 | M129: =F121 -> HENRIQUE-SP | S129: =COUNTBLANK(K129:L129) -> 0 | U129: =IF(S129=0,1,0) -> 1 | V129: =IF(AND(S129=0,L129>K129),1,0)*AA108 -> 0 | W129: =IF(AND(S129=0,K129=L129),1,0)*AA108 -> 0 | X129: =U129-V129-W129 -> 1 | Y129: =L129 -> 2 | Z129: =K129 -> 4 | AA129: =((V129*3)+W129)*AA108 -> 0 | BY129: =IF(S129=0,1,0) -> 1 | BZ129: =IF(AND(S129=0,K129>L129),1,0)*CE108 -> 1 | CA129: =IF(AND(S129=0,K129=L129),1,0)*CE108 -> 0 | CB129: =BY129-BZ129-CA129 -> 0 | CC129: =K129 -> 4 | CD129: =L129 -> 2 | CE129: =((BZ129*3)+CA129)*CE108 -> 3
B131: 1 | C131: 5 | D131: =$D$7 -> 2022-06-17 | E131: 25 | F131: =F126 -> LUIZ CARLOS-RJ | K131: 4 | L131: 2 | M131: =M127 -> GERALDO ROUXINOL-PE | S131: =COUNTBLANK(K131:L131) -> 0 | AK131: =IF(S131=0,1,0) -> 1 | AL131: =IF(AND(S131=0,L131>K131),1,0)*AQ108 -> 0 | AM131: =IF(AND(S131=0,K131=L131),1,0)*AQ108 -> 0 | AN131: =AK131-AL131-AM131 -> 1 | AO131: =L131 -> 2 | AP131: =K131 -> 4 | AQ131: =((AL131*3)+AM131)*AQ108 -> 0 | BA131: =IF(S131=0,1,0) -> 1 | BB131: =IF(AND(S131=0,K131>L131),1,0)*BG108 -> 1 | BC131: =IF(AND(S131=0,K131=L131),1,0)*BG108 -> 0 | BD131: =BA131-BB131-BC131 -> 0 | BE131: =K131 -> 4 | BF131: =L131 -> 2 | BG131: =((BB131*3)+BC131)*BG108 -> 3 | CH131: 5ª
B132: 1 | E132: =E131+1 -> 26 | F132: =F127 -> SCHUMACHER-SC | K132: 4 | L132: 4 | M132: =M128 -> BABY-SP | S132: =COUNTBLANK(K132:L132) -> 0 | AS132: =IF(S132=0,1,0) -> 1 | AT132: =IF(AND(S132=0,L132>K132),1,0)*AY108 -> 0 | AU132: =IF(AND(S132=0,K132=L132),1,0)*AY108 -> 1 | AV132: =AS132-AT132-AU132 -> 0 | AW132: =L132 -> 4 | AX132: =K132 -> 4 | AY132: =((AT132*3)+AU132)*AY108 -> 1 | BI132: =IF(S132=0,1,0) -> 1 | BJ132: =IF(AND(S132=0,K132>L132),1,0)*BO108 -> 0 | BK132: =IF(AND(S132=0,K132=L132),1,0)*BO108 -> 1 | BL132: =BI132-BJ132-BK132 -> 0 | BM132: =K132 -> 4 | BN132: =L132 -> 4 | BO132: =((BJ132*3)+BK132)*BO108 -> 1
B133: 1 | D133: =$D$29 -> 11:00:00 | E133: =E132+1 -> 27 | F133: =F128 -> BITTENCOURT-PR | K133: 3 | L133: 1 | M133: =M129 -> HENRIQUE-SP | S133: =COUNTBLANK(K133:L133) -> 0 | U133: =IF(S133=0,1,0) -> 1 | V133: =IF(AND(S133=0,L133>K133),1,0)*AA108 -> 0 | W133: =IF(AND(S133=0,K133=L133),1,0)*AA108 -> 0 | X133: =U133-V133-W133 -> 1 | Y133: =L133 -> 1 | Z133: =K133 -> 3 | AA133: =((V133*3)+W133)*AA108 -> 0 | BQ133: =IF(S133=0,1,0) -> 1 | BR133: =IF(AND(S133=0,K133>L133),1,0)*BW108 -> 1 | BS133: =IF(AND(S133=0,K133=L133),1,0)*BW108 -> 0 | BT133: =BQ133-BR133-BS133 -> 0 | BU133: =K133 -> 3 | BV133: =L133 -> 1 | BW133: =((BR133*3)+BS133)*BW108 -> 3
B134: 1 | E134: =E133+1 -> 28 | F134: =F129 -> FERNANDO CASCAVEL-MG | K134: 3 | L134: 3 | M134: =M126 -> MARIO JR-SP | S134: =COUNTBLANK(K134:L134) -> 0 | AC134: =IF(S134=0,1,0) -> 1 | AD134: =IF(AND(S134=0,L134>K134),1,0)*AI108 -> 0 | AE134: =IF(AND(S134=0,K134=L134),1,0)*AI108 -> 1 | AF134: =AC134-AD134-AE134 -> 0 | AG134: =L134 -> 3 | AH134: =K134 -> 3 | AI134: =((AD134*3)+AE134)*AI108 -> 1 | BY134: =IF(S134=0,1,0) -> 1 | BZ134: =IF(AND(S134=0,K134>L134),1,0)*CE108 -> 0 | CA134: =IF(AND(S134=0,K134=L134),1,0)*CE108 -> 1 | CB134: =BY134-BZ134-CA134 -> 0 | CC134: =K134 -> 3 | CD134: =L134 -> 3 | CE134: =((BZ134*3)+CA134)*CE108 -> 1
B136: 1 | C136: 6 | D136: =$D$7 -> 2022-06-17 | E136: 29 | F136: =F132 -> SCHUMACHER-SC | K136: 3 | L136: 6 | M136: =M134 -> MARIO JR-SP | S136: =COUNTBLANK(K136:L136) -> 0 | AC136: =IF(S136=0,1,0) -> 1 | AD136: =IF(AND(S136=0,L136>K136),1,0)*AI108 -> 1 | AE136: =IF(AND(S136=0,K136=L136),1,0)*AI108 -> 0 | AF136: =AC136-AD136-AE136 -> 0 | AG136: =L136 -> 6 | AH136: =K136 -> 3 | AI136: =((AD136*3)+AE136)*AI108 -> 3 | BI136: =IF(S136=0,1,0) -> 1 | BJ136: =IF(AND(S136=0,K136>L136),1,0)*BO108 -> 0 | BK136: =IF(AND(S136=0,K136=L136),1,0)*BO108 -> 0 | BL136: =BI136-BJ136-BK136 -> 1 | BM136: =K136 -> 3 | BN136: =L136 -> 6 | BO136: =((BJ136*3)+BK136)*BO108 -> 0 | CH136: 6ª
B137: 1 | E137: =E136+1 -> 30 | F137: =F131 -> LUIZ CARLOS-RJ | K137: 1 | L137: 5 | M137: =M133 -> HENRIQUE-SP | S137: =COUNTBLANK(K137:L137) -> 0 | U137: =IF(S137=0,1,0) -> 1 | V137: =IF(AND(S137=0,L137>K137),1,0)*AA108 -> 1 | W137: =IF(AND(S137=0,K137=L137),1,0)*AA108 -> 0 | X137: =U137-V137-W137 -> 0 | Y137: =L137 -> 5 | Z137: =K137 -> 1 | AA137: =((V137*3)+W137)*AA108 -> 3 | BA137: =IF(S137=0,1,0) -> 1 | BB137: =IF(AND(S137=0,K137>L137),1,0)*BG108 -> 0 | BC137: =IF(AND(S137=0,K137=L137),1,0)*BG108 -> 0 | BD137: =BA137-BB137-BC137 -> 1 | BE137: =K137 -> 1 | BF137: =L137 -> 5 | BG137: =((BB137*3)+BC137)*BG108 -> 0
B138: 1 | D138: =$D$34 -> 11:30:00 | E138: =E137+1 -> 31 | F138: =F134 -> FERNANDO CASCAVEL-MG | K138: 3 | L138: 4 | M138: =M132 -> BABY-SP | S138: =COUNTBLANK(K138:L138) -> 0 | AS138: =IF(S138=0,1,0) -> 1 | AT138: =IF(AND(S138=0,L138>K138),1,0)*AY108 -> 1 | AU138: =IF(AND(S138=0,K138=L138),1,0)*AY108 -> 0 | AV138: =AS138-AT138-AU138 -> 0 | AW138: =L138 -> 4 | AX138: =K138 -> 3 | AY138: =((AT138*3)+AU138)*AY108 -> 3 | BY138: =IF(S138=0,1,0) -> 1 | BZ138: =IF(AND(S138=0,K138>L138),1,0)*CE108 -> 0 | CA138: =IF(AND(S138=0,K138=L138),1,0)*CE108 -> 0 | CB138: =BY138-BZ138-CA138 -> 1 | CC138: =K138 -> 3 | CD138: =L138 -> 4 | CE138: =((BZ138*3)+CA138)*CE108 -> 0
B139: 1 | E139: =E138+1 -> 32 | F139: =F133 -> BITTENCOURT-PR | K139: 3 | L139: 3 | M139: =M131 -> GERALDO ROUXINOL-PE | S139: =COUNTBLANK(K139:L139) -> 0 | AK139: =IF(S139=0,1,0) -> 1 | AL139: =IF(AND(S139=0,L139>K139),1,0)*AQ108 -> 0 | AM139: =IF(AND(S139=0,K139=L139),1,0)*AQ108 -> 1 | AN139: =AK139-AL139-AM139 -> 0 | AO139: =L139 -> 3 | AP139: =K139 -> 3 | AQ139: =((AL139*3)+AM139)*AQ108 -> 1 | BQ139: =IF(S139=0,1,0) -> 1 | BR139: =IF(AND(S139=0,K139>L139),1,0)*BW108 -> 0 | BS139: =IF(AND(S139=0,K139=L139),1,0)*BW108 -> 1 | BT139: =BQ139-BR139-BS139 -> 0 | BU139: =K139 -> 3 | BV139: =L139 -> 3 | BW139: =((BR139*3)+BS139)*BW108 -> 1
B141: 1 | C141: 7 | D141: =$D$7 -> 2022-06-17 | E141: 33 | F141: =F138 -> FERNANDO CASCAVEL-MG | K141: 3 | L141: 2 | M141: =M139 -> GERALDO ROUXINOL-PE | S141: =COUNTBLANK(K141:L141) -> 0 | AK141: =IF(S141=0,1,0) -> 1 | AL141: =IF(AND(S141=0,L141>K141),1,0)*AQ108 -> 0 | AM141: =IF(AND(S141=0,K141=L141),1,0)*AQ108 -> 0 | AN141: =AK141-AL141-AM141 -> 1 | AO141: =L141 -> 2 | AP141: =K141 -> 3 | AQ141: =((AL141*3)+AM141)*AQ108 -> 0 | BY141: =IF(S141=0,1,0) -> 1 | BZ141: =IF(AND(S141=0,K141>L141),1,0)*CE108 -> 1 | CA141: =IF(AND(S141=0,K141=L141),1,0)*CE108 -> 0 | CB141: =BY141-BZ141-CA141 -> 0 | CC141: =K141 -> 3 | CD141: =L141 -> 2 | CE141: =((BZ141*3)+CA141)*CE108 -> 3 | CH141: 7ª
B142: 1 | E142: =E141+1 -> 34 | F142: =F136 -> SCHUMACHER-SC | K142: 2 | L142: 3 | M142: =M137 -> HENRIQUE-SP | S142: =COUNTBLANK(K142:L142) -> 0 | U142: =IF(S142=0,1,0) -> 1 | V142: =IF(AND(S142=0,L142>K142),1,0)*AA108 -> 1 | W142: =IF(AND(S142=0,K142=L142),1,0)*AA108 -> 0 | X142: =U142-V142-W142 -> 0 | Y142: =L142 -> 3 | Z142: =K142 -> 2 | AA142: =((V142*3)+W142)*AA108 -> 3 | BI142: =IF(S142=0,1,0) -> 1 | BJ142: =IF(AND(S142=0,K142>L142),1,0)*BO108 -> 0 | BK142: =IF(AND(S142=0,K142=L142),1,0)*BO108 -> 0 | BL142: =BI142-BJ142-BK142 -> 1 | BM142: =K142 -> 2 | BN142: =L142 -> 3 | BO142: =((BJ142*3)+BK142)*BO108 -> 0
B143: 1 | D143: =$D$39 -> 12:00:00 | E143: =E142+1 -> 35 | F143: =F139 -> BITTENCOURT-PR | K143: 4 | L143: 6 | M143: =M136 -> MARIO JR-SP | S143: =COUNTBLANK(K143:L143) -> 0 | AC143: =IF(S143=0,1,0) -> 1 | AD143: =IF(AND(S143=0,L143>K143),1,0)*AI108 -> 1 | AE143: =IF(AND(S143=0,K143=L143),1,0)*AI108 -> 0 | AF143: =AC143-AD143-AE143 -> 0 | AG143: =L143 -> 6 | AH143: =K143 -> 4 | AI143: =((AD143*3)+AE143)*AI108 -> 3 | BQ143: =IF(S143=0,1,0) -> 1 | BR143: =IF(AND(S143=0,K143>L143),1,0)*BW108 -> 0 | BS143: =IF(AND(S143=0,K143=L143),1,0)*BW108 -> 0 | BT143: =BQ143-BR143-BS143 -> 1 | BU143: =K143 -> 4 | BV143: =L143 -> 6 | BW143: =((BR143*3)+BS143)*BW108 -> 0
B144: 1 | E144: =E143+1 -> 36 | F144: =F137 -> LUIZ CARLOS-RJ | K144: 5 | L144: 5 | M144: =M138 -> BABY-SP | S144: =COUNTBLANK(K144:L144) -> 0 | AS144: =IF(S144=0,1,0) -> 1 | AT144: =IF(AND(S144=0,L144>K144),1,0)*AY108 -> 0 | AU144: =IF(AND(S144=0,K144=L144),1,0)*AY108 -> 1 | AV144: =AS144-AT144-AU144 -> 0 | AW144: =L144 -> 5 | AX144: =K144 -> 5 | AY144: =((AT144*3)+AU144)*AY108 -> 1 | BA144: =IF(S144=0,1,0) -> 1 | BB144: =IF(AND(S144=0,K144>L144),1,0)*BG108 -> 0 | BC144: =IF(AND(S144=0,K144=L144),1,0)*BG108 -> 1 | BD144: =BA144-BB144-BC144 -> 0 | BE144: =K144 -> 5 | BF144: =L144 -> 5 | BG144: =((BB144*3)+BC144)*BG108 -> 1
S145: =SUM(S111:S144) -> 0 | U145: =SUM(U111:U144) -> 7 | V145: 5 | W145: 0 | X145: 2 | Y145: 22 | Z145: 14 | AA145: =SUM(AA111:AA144) -> 15 | AC145: =SUM(AC111:AC144) -> 7 | AD145: 2 | AE145: 1 | AF145: 4 | AG145: 24 | AH145: 28 | AI145: 7 | AK145: =SUM(AK111:AK144) -> 7 | AL145: 2 | AM145: 2 | AN145: 3 | AO145: 21 | AP145: 20 | AQ145: 8 | AS145: =SUM(AS111:AS144) -> 7 | AT145: 2 | AU145: 3 | AV145: 2 | AW145: 25 | AX145: 26 | AY145: 9 | BA145: =SUM(BA111:BA144) -> 7 | BB145: 3 | BC145: 3 | BD145: 1 | BE145: 28 | BF145: 24 | BG145: 12 | BI145: =SUM(BI111:BI144) -> 7 | BJ145: 1 | BK145: 3 | BL145: 3 | BM145: 17 | BN145: 22 | BO145: 6 | BQ145: =SUM(BQ111:BQ144) -> 7 | BR145: 3 | BS145: 3 | BT145: 1 | BU145: 25 | BV145: 23 | BW145: 12 | BY145: =SUM(BY111:BY144) -> 7 | BZ145: 2 | CA145: 1 | CB145: 4 | CC145: 17 | CD145: 22 | CE145: 7
C147: Class | D147: Botonistas | I147: PG | J147: J | K147: V | L147: E | M147: D | N147: GP | O147: GC | P147: SG | Q147: Sorteio | S147: Cl | U147: Botonista | AC147: J | AD147: V | AE147: E | AF147: D | AG147: GP | AH147: GC | AI147: PG | AJ147: Chave Sort | AR147: Cl | AT147: Botonista | BA147: J | BB147: V | BC147: E | BD147: D | BE147: GP | BF147: GC | BG147: PG | BH147: Chave Sort
B148: =IF($S$145=0,"è","") -> è | C148: =AR148 -> 1 | D148: =AT148 -> HENRIQUE-SP | I148: =BG148 -> 15 | J148: =BA148 -> 7 | K148: 5 | L148: 0 | M148: 2 | N148: 22 | O148: 14 | P148: =N148-O148 -> 8 | Q148: =IF(INT(BH148)=INT(BH149),ASC(CHAR(252)),"") ->  | S148: =RANK(AJ148,AJ148:AJ155,0) -> 1 | U148: =F111 -> HENRIQUE-SP | AC148: =U145 -> 7 | AD148: 5 | AE148: 0 | AF148: 2 | AG148: 22 | AH148: 14 | AI148: 15 | AJ148: =(AI148*1000000000)+(AD148*1000000)+((AG148-AH148)*1000)+AG148+AR148/100 -> 1.500500802e+10 | AR148: 1 | AT148: =VLOOKUP(AR148,S148:AJ155,3,FALSE) -> HENRIQUE-SP | BA148: =VLOOKUP(AR148,S148:AJ155,11,FALSE) -> 7 | BB148: =VLOOKUP(AR148,S148:AJ155,12,FALSE) -> 5 | BC148: =VLOOKUP(AR148,S148:AJ155,13,FALSE) -> 0 | BD148: =VLOOKUP(AR148,S148:AJ155,14,FALSE) -> 2 | BE148: =VLOOKUP(AR148,S148:AJ155,15,FALSE) -> 22 | BF148: =VLOOKUP(AR148,S148:AJ155,16,FALSE) -> 14 | BG148: =VLOOKUP(AR148,S148:AJ155,17,FALSE) -> 15 | BH148: =VLOOKUP(AR148,S148:AJ155,18,FALSE) -> 1.500500802e+10 | BI148: =VLOOKUP($AR148,$S$37:$AI$42,17,FALSE) -> 
B149: =IF($S$145=0,"è","") -> è | C149: 2 | D149: =AT149 -> LUIZ CARLOS-RJ | I149: 12 | J149: 7 | K149: 3 | L149: 3 | M149: 1 | N149: 28 | O149: 24 | P149: 4 | Q149: =IF(OR(INT(BH149)=INT(BH148),INT(BH150)=INT(BH149)),ASC(CHAR(252)),"") ->  | S149: =RANK(AJ149,AJ148:AJ155,0) -> 6 | U149: =F112 -> MARIO JR-SP | AC149: =AC145 -> 7 | AD149: 2 | AE149: 1 | AF149: 4 | AG149: 24 | AH149: 28 | AI149: 7 | AJ149: =(AI149*1000000000)+(AD149*1000000)+((AG149-AH149)*1000)+AG149+AR149/100 -> 7001996024 | AR149: 2 | AT149: =VLOOKUP(AR149,S148:AJ155,3,FALSE) -> LUIZ CARLOS-RJ | BA149: =VLOOKUP(AR149,S148:AJ155,11,FALSE) -> 7 | BB149: =VLOOKUP(AR149,S148:AJ155,12,FALSE) -> 3 | BC149: =VLOOKUP(AR149,S148:AJ155,13,FALSE) -> 3 | BD149: =VLOOKUP(AR149,S148:AJ155,14,FALSE) -> 1 | BE149: =VLOOKUP(AR149,S148:AJ155,15,FALSE) -> 28 | BF149: =VLOOKUP(AR149,S148:AJ155,16,FALSE) -> 24 | BG149: =VLOOKUP(AR149,S148:AJ155,17,FALSE) -> 12 | BH149: =VLOOKUP(AR149,S148:AJ155,18,FALSE) -> 1.200300403e+10
B150: =IF($S$145=0,"è","") -> è | C150: 3 | D150: BITTENCOURT-PR | I150: 12 | J150: 7 | K150: 3 | L150: 3 | M150: 1 | N150: 25 | O150: 23 | P150: 2 | S150: =RANK(AJ150,AJ148:AJ155,0) -> 5 | U150: =M112 -> GERALDO ROUXINOL-PE | AC150: =AK145 -> 7 | AD150: 2 | AE150: 2 | AF150: 3 | AG150: 21 | AH150: 20 | AI150: 8 | AJ150: 8002001021 | AR150: 3 | AT150: =VLOOKUP(AR150,S148:AJ155,3,FALSE) -> BITTENCOURT-PR | BA150: =VLOOKUP(AR150,S148:AJ155,11,FALSE) -> 7 | BB150: =VLOOKUP(AR150,S148:AJ155,12,FALSE) -> 3 | BC150: =VLOOKUP(AR150,S148:AJ155,13,FALSE) -> 3 | BD150: =VLOOKUP(AR150,S148:AJ155,14,FALSE) -> 1 | BE150: =VLOOKUP(AR150,S148:AJ155,15,FALSE) -> 25 | BF150: =VLOOKUP(AR150,S148:AJ155,16,FALSE) -> 23 | BG150: =VLOOKUP(AR150,S148:AJ155,17,FALSE) -> 12 | BH150: =VLOOKUP(AR150,S148:AJ155,18,FALSE) -> 1.200300203e+10
B151: =IF($S$145=0,"è","") -> è | C151: 4 | D151: BABY-SP | I151: 9 | J151: 7 | K151: 2 | L151: 3 | M151: 2 | N151: 25 | O151: 26 | P151: -1 | S151: =RANK(AJ151,AJ148:AJ155,0) -> 4 | U151: =M111 -> BABY-SP | AC151: =AS145 -> 7 | AD151: 2 | AE151: 3 | AF151: 2 | AG151: 25 | AH151: 26 | AI151: 9 | AJ151: 9001999025 | AR151: 4 | AT151: =VLOOKUP(AR151,S148:AJ155,3,FALSE) -> BABY-SP | BA151: =VLOOKUP(AR151,S148:AJ155,11,FALSE) -> 7 | BB151: =VLOOKUP(AR151,S148:AJ155,12,FALSE) -> 2 | BC151: =VLOOKUP(AR151,S148:AJ155,13,FALSE) -> 3 | BD151: =VLOOKUP(AR151,S148:AJ155,14,FALSE) -> 2 | BE151: =VLOOKUP(AR151,S148:AJ155,15,FALSE) -> 25 | BF151: =VLOOKUP(AR151,S148:AJ155,16,FALSE) -> 26 | BG151: =VLOOKUP(AR151,S148:AJ155,17,FALSE) -> 9 | BH151: =VLOOKUP(AR151,S148:AJ155,18,FALSE) -> 9001999025
B152: =IF($S$145=0,"è","") -> è | C152: 5 | D152: GERALDO ROUXINOL-PE | I152: 8 | J152: 7 | K152: 2 | L152: 2 | M152: 3 | N152: 21 | O152: 20 | P152: 1 | S152: =RANK(AJ152,AJ148:AJ155,0) -> 2 | U152: =F113 -> LUIZ CARLOS-RJ | AC152: =BA145 -> 7 | AD152: 3 | AE152: 3 | AF152: 1 | AG152: 28 | AH152: 24 | AI152: 12 | AJ152: 1.200300403e+10 | AR152: 5 | AT152: =VLOOKUP(AR152,S148:AJ155,3,FALSE) -> GERALDO ROUXINOL-PE | BA152: =VLOOKUP(AR152,S148:AJ155,11,FALSE) -> 7 | BB152: =VLOOKUP(AR152,S148:AJ155,12,FALSE) -> 2 | BC152: =VLOOKUP(AR152,S148:AJ155,13,FALSE) -> 2 | BD152: =VLOOKUP(AR152,S148:AJ155,14,FALSE) -> 3 | BE152: =VLOOKUP(AR152,S148:AJ155,15,FALSE) -> 21 | BF152: =VLOOKUP(AR152,S148:AJ155,16,FALSE) -> 20 | BG152: =VLOOKUP(AR152,S148:AJ155,17,FALSE) -> 8 | BH152: =VLOOKUP(AR152,S148:AJ155,18,FALSE) -> 8002001021
B153: =IF($S$145=0,"ó","") -> ó | C153: 6 | D153: MARIO JR-SP | I153: 7 | J153: 7 | K153: 2 | L153: 1 | M153: 4 | N153: 24 | O153: 28 | P153: -4 | S153: =RANK(AJ153,AJ148:AJ155,0) -> 8 | U153: =F114 -> SCHUMACHER-SC | AC153: =BI145 -> 7 | AD153: 1 | AE153: 3 | AF153: 3 | AG153: 17 | AH153: 22 | AI153: 6 | AJ153: 6000995017 | AR153: 6 | AT153: =VLOOKUP(AR153,S148:AJ155,3,FALSE) -> MARIO JR-SP | BA153: =VLOOKUP(AR153,S148:AJ155,11,FALSE) -> 7 | BB153: =VLOOKUP(AR153,S148:AJ155,12,FALSE) -> 2 | BC153: =VLOOKUP(AR153,S148:AJ155,13,FALSE) -> 1 | BD153: =VLOOKUP(AR153,S148:AJ155,14,FALSE) -> 4 | BE153: =VLOOKUP(AR153,S148:AJ155,15,FALSE) -> 24 | BF153: =VLOOKUP(AR153,S148:AJ155,16,FALSE) -> 28 | BG153: =VLOOKUP(AR153,S148:AJ155,17,FALSE) -> 7 | BH153: =VLOOKUP(AR153,S148:AJ155,18,FALSE) -> 7001996024
B154: =IF($S$145=0,"Ø","") -> Ø | C154: =AR154 -> 7 | D154: FERNANDO CASCAVEL-MG | I154: 7 | J154: 7 | K154: 2 | L154: 1 | M154: 4 | N154: 17 | O154: 22 | P154: -5 | S154: =RANK(AJ154,AJ148:AJ155,0) -> 3 | U154: =M114 -> BITTENCOURT-PR | AC154: =BQ145 -> 7 | AD154: 3 | AE154: 3 | AF154: 1 | AG154: 25 | AH154: 23 | AI154: 12 | AJ154: 1.200300203e+10 | AR154: 7 | AT154: =VLOOKUP(AR154,S148:AJ155,3,FALSE) -> FERNANDO CASCAVEL-MG | BA154: =VLOOKUP(AR154,S148:AJ155,11,FALSE) -> 7 | BB154: =VLOOKUP(AR154,S148:AJ155,12,FALSE) -> 2 | BC154: =VLOOKUP(AR154,S148:AJ155,13,FALSE) -> 1 | BD154: =VLOOKUP(AR154,S148:AJ155,14,FALSE) -> 4 | BE154: =VLOOKUP(AR154,S148:AJ155,15,FALSE) -> 17 | BF154: =VLOOKUP(AR154,S148:AJ155,16,FALSE) -> 22 | BG154: =VLOOKUP(AR154,S148:AJ155,17,FALSE) -> 7 | BH154: =VLOOKUP(AR154,S148:AJ155,18,FALSE) -> 7001995017
B155: =IF($S$145=0,"Ø","") -> Ø | C155: =AR155 -> 8 | D155: SCHUMACHER-SC | I155: 6 | J155: 7 | K155: 1 | L155: 3 | M155: 3 | N155: 17 | O155: 22 | P155: -5 | S155: =RANK(AJ155,AJ148:AJ155,0) -> 7 | U155: =M113 -> FERNANDO CASCAVEL-MG | AC155: =BY145 -> 7 | AD155: 2 | AE155: 1 | AF155: 4 | AG155: 17 | AH155: 22 | AI155: 7 | AJ155: 7001995017 | AR155: 8 | AT155: =VLOOKUP(AR155,S148:AJ155,3,FALSE) -> SCHUMACHER-SC | BA155: =VLOOKUP(AR155,S148:AJ155,11,FALSE) -> 7 | BB155: =VLOOKUP(AR155,S148:AJ155,12,FALSE) -> 1 | BC155: =VLOOKUP(AR155,S148:AJ155,13,FALSE) -> 3 | BD155: =VLOOKUP(AR155,S148:AJ155,14,FALSE) -> 3 | BE155: =VLOOKUP(AR155,S148:AJ155,15,FALSE) -> 17 | BF155: =VLOOKUP(AR155,S148:AJ155,16,FALSE) -> 22 | BG155: =VLOOKUP(AR155,S148:AJ155,17,FALSE) -> 6 | BH155: =VLOOKUP(AR155,S148:AJ155,18,FALSE) -> 6000995017
C157: è | D157: 1a Divisão | I157: ó | J157: 1a ou 5a Divisão | N157: Ø | O157: 5a Divisão
C160: =$C$4 -> Master - 1a Divisão | Q160: =CONCATENATE("1ª Fase - ", 'G1'!$L$9) -> 1ª Fase - Grupo 4 | U160: =F163 -> SAMMARTINO-SP | AA160: =IF(RIGHT(U160,4)="(WO)",0,1) -> 1 | AC160: =F164 -> OLINO-SP | AI160: =IF(RIGHT(AC160,4)="(WO)",0,1) -> 1 | AK160: =M164 -> PENTINHO-PE | AQ160: =IF(RIGHT(AK160,4)="(WO)",0,1) -> 1 | AS160: =M163 -> DEMETRIUS-SP | AY160: =IF(RIGHT(AS160,4)="(WO)",0,1) -> 1 | BA160: =F165 -> PAULO FONSECA-RJ | BG160: =IF(RIGHT(BA160,4)="(WO)",0,1) -> 1 | BI160: =F166 -> MAICON-PR | BO160: =IF(RIGHT(BI160,4)="(WO)",0,1) -> 1 | BQ160: =M166 -> MIGUEL MARIALVA-AM | BW160: =IF(RIGHT(BQ160,4)="(WO)",0,1) -> 1 | BY160: =M165 -> VILLANO-RJ | CE160: =IF(RIGHT(BY160,4)="(WO)",0,1) -> 1
B161: Grp | C161: Rod. | D161: Data/Hora | E161: Mesa | F161: Jogos | S161: Ok | U161: J | V161: V | W161: E | X161: D | Y161: GP | Z161: GC | AA161: PG | AC161: J | AD161: V | AE161: E | AF161: D | AG161: GP | AH161: GC | AI161: PG | AK161: J | AL161: V | AM161: E | AN161: D | AO161: GP | AP161: GC | AQ161: PG | AS161: J | AT161: V | AU161: E | AV161: D | AW161: GP | AX161: GC | AY161: PG | BA161: J | BB161: V | BC161: E | BD161: D | BE161: GP | BF161: GC | BG161: PG | BI161: J | BJ161: V | BK161: E | BL161: D | BM161: GP | BN161: GC | BO161: PG | BQ161: J | BR161: V | BS161: E | BT161: D | BU161: GP | BV161: GC | BW161: PG | BY161: J | BZ161: V | CA161: E | CB161: D | CC161: GP | CD161: GC | CE161: PG | CH161: Rodada
B163: 1 | C163: 1 | D163: 2022-06-17 | E163: 13 | F163: ='G1'!$M$10 & IF('G1'!$N$10="S"," (WO)","") -> SAMMARTINO-SP | K163: 4 | L163: 2 | M163: ='G1'!$M$13 & IF('G1'!$N$13="S"," (WO)","") -> DEMETRIUS-SP | S163: =COUNTBLANK(K163:L163) -> 0 | U163: =IF(S163=0,1,0) -> 1 | V163: =IF(AND(S163=0,K163>L163),1,0)*AA160 -> 1 | W163: =IF(AND(S163=0,K163=L163),1,0)*AA160 -> 0 | X163: =U163-V163-W163 -> 0 | Y163: =K163 -> 4 | Z163: =L163 -> 2 | AA163: =((V163*3)+W163)*AA160 -> 3 | AS163: =IF(S163=0,1,0) -> 1 | AT163: =IF(AND(S163=0,L163>K163),1,0)*AY160 -> 0 | AU163: =IF(AND(S163=0,K163=L163),1,0)*AY160 -> 0 | AV163: =AS163-AT163-AU163 -> 1 | AW163: =L163 -> 2 | AX163: =K163 -> 4 | AY163: =((AT163*3)+AU163)*AY160 -> 0 | CH163: 1ª
B164: 1 | E164: =E163+1 -> 14 | F164: ='G1'!$M$11 & IF('G1'!$N$11="S"," (WO)","") -> OLINO-SP | K164: 4 | L164: 3 | M164: ='G1'!$M$12 & IF('G1'!$N$12="S"," (WO)","") -> PENTINHO-PE | S164: =COUNTBLANK(K164:L164) -> 0 | AC164: =IF(S164=0,1,0) -> 1 | AD164: =IF(AND(S164=0,K164>L164),1,0)*AI160 -> 1 | AE164: =IF(AND(S164=0,K164=L164),1,0)*AI160 -> 0 | AF164: =AC164-AD164-AE164 -> 0 | AG164: =K164 -> 4 | AH164: =L164 -> 3 | AI164: =((AD164*3)+AE164)*AI160 -> 3 | AK164: =IF(S164=0,1,0) -> 1 | AL164: =IF(AND(S164=0,L164>K164),1,0)*AQ160 -> 0 | AM164: =IF(AND(S164=0,K164=L164),1,0)*AQ160 -> 0 | AN164: =AK164-AL164-AM164 -> 1 | AO164: =L164 -> 3 | AP164: =K164 -> 4 | AQ164: =((AL164*3)+AM164)*AQ160 -> 0
B165: 1 | D165: =$D$9 -> 09:00:00 | E165: =E164+1 -> 15 | F165: ='G1'!$M$14 & IF('G1'!$N$14="S"," (WO)","") -> PAULO FONSECA-RJ | K165: 4 | L165: 2 | M165: ='G1'!$M$17 & IF('G1'!$N$17="S"," (WO)","") -> VILLANO-RJ | S165: =COUNTBLANK(K165:L165) -> 0 | BA165: =IF(S165=0,1,0) -> 1 | BB165: =IF(AND(S165=0,K165>L165),1,0)*BG160 -> 1 | BC165: =IF(AND(S165=0,K165=L165),1,0)*BG160 -> 0 | BD165: =BA165-BB165-BC165 -> 0 | BE165: =K165 -> 4 | BF165: =L165 -> 2 | BG165: =((BB165*3)+BC165)*BG160 -> 3 | BY165: =IF(S165=0,1,0) -> 1 | BZ165: =IF(AND(S165=0,L165>K165),1,0)*CE160 -> 0 | CA165: =IF(AND(S165=0,K165=L165),1,0)*CE160 -> 0 | CB165: =BY165-BZ165-CA165 -> 1 | CC165: =L165 -> 2 | CD165: =K165 -> 4 | CE165: =((BZ165*3)+CA165)*CE160 -> 0
B166: 1 | E166: =E165+1 -> 16 | F166: ='G1'!$M$15 & IF('G1'!$N$15="S"," (WO)","") -> MAICON-PR | K166: 5 | L166: 3 | M166: ='G1'!$M$16 & IF('G1'!$N$16="S"," (WO)","") -> MIGUEL MARIALVA-AM | S166: =COUNTBLANK(K166:L166) -> 0 | BI166: =IF(S166=0,1,0) -> 1 | BJ166: =IF(AND(S166=0,K166>L166),1,0)*BO160 -> 1 | BK166: =IF(AND(S166=0,K166=L166),1,0)*BO160 -> 0 | BL166: =BI166-BJ166-BK166 -> 0 | BM166: =K166 -> 5 | BN166: =L166 -> 3 | BO166: =((BJ166*3)+BK166)*BO160 -> 3 | BQ166: =IF(S166=0,1,0) -> 1 | BR166: =IF(AND(S166=0,L166>K166),1,0)*BW160 -> 0 | BS166: =IF(AND(S166=0,K166=L166),1,0)*BW160 -> 0 | BT166: =BQ166-BR166-BS166 -> 1 | BU166: =L166 -> 3 | BV166: =K166 -> 5 | BW166: =((BR166*3)+BS166)*BW160 -> 0
B167: 1
B168: 1 | C168: 2 | D168: =$D$7 -> 2022-06-17 | E168: 17 | F168: =F163 -> SAMMARTINO-SP | K168: 6 | L168: 6 | M168: =M164 -> PENTINHO-PE | S168: =COUNTBLANK(K168:L168) -> 0 | U168: =IF(S168=0,1,0) -> 1 | V168: =IF(AND(S168=0,K168>L168),1,0)*AA160 -> 0 | W168: =IF(AND(S168=0,K168=L168),1,0)*AA160 -> 1 | X168: =U168-V168-W168 -> 0 | Y168: =K168 -> 6 | Z168: =L168 -> 6 | AA168: =((V168*3)+W168)*AA160 -> 1 | AK168: =IF(S168=0,1,0) -> 1 | AL168: =IF(AND(S168=0,L168>K168),1,0)*AQ160 -> 0 | AM168: =IF(AND(S168=0,K168=L168),1,0)*AQ160 -> 1 | AN168: =AK168-AL168-AM168 -> 0 | AO168: =L168 -> 6 | AP168: =K168 -> 6 | AQ168: =((AL168*3)+AM168)*AQ160 -> 1 | CH168: 2ª
B169: 1 | E169: =E168+1 -> 18 | F169: =F164 -> OLINO-SP | K169: 5 | L169: 2 | M169: =M163 -> DEMETRIUS-SP | S169: =COUNTBLANK(K169:L169) -> 0 | AC169: =IF(S169=0,1,0) -> 1 | AD169: =IF(AND(S169=0,K169>L169),1,0)*AI160 -> 1 | AE169: =IF(AND(S169=0,K169=L169),1,0)*AI160 -> 0 | AF169: =AC169-AD169-AE169 -> 0 | AG169: =K169 -> 5 | AH169: =L169 -> 2 | AI169: =((AD169*3)+AE169)*AI160 -> 3 | AS169: =IF(S169=0,1,0) -> 1 | AT169: =IF(AND(S169=0,L169>K169),1,0)*AY160 -> 0 | AU169: =IF(AND(S169=0,K169=L169),1,0)*AY160 -> 0 | AV169: =AS169-AT169-AU169 -> 1 | AW169: =L169 -> 2 | AX169: =K169 -> 5 | AY169: =((AT169*3)+AU169)*AY160 -> 0
B170: 1 | D170: =$D$14 -> 09:30:00 | E170: =E169+1 -> 19 | F170: =F165 -> PAULO FONSECA-RJ | K170: 4 | L170: 4 | M170: =M166 -> MIGUEL MARIALVA-AM | S170: =COUNTBLANK(K170:L170) -> 0 | BA170: =IF(S170=0,1,0) -> 1 | BB170: =IF(AND(S170=0,K170>L170),1,0)*BG160 -> 0 | BC170: =IF(AND(S170=0,K170=L170),1,0)*BG160 -> 1 | BD170: =BA170-BB170-BC170 -> 0 | BE170: =K170 -> 4 | BF170: =L170 -> 4 | BG170: =((BB170*3)+BC170)*BG160 -> 1 | BQ170: =IF(S170=0,1,0) -> 1 | BR170: =IF(AND(S170=0,L170>K170),1,0)*BW160 -> 0 | BS170: =IF(AND(S170=0,K170=L170),1,0)*BW160 -> 1 | BT170: =BQ170-BR170-BS170 -> 0 | BU170: =L170 -> 4 | BV170: =K170 -> 4 | BW170: =((BR170*3)+BS170)*BW160 -> 1
B171: 1 | E171: =E170+1 -> 20 | F171: =F166 -> MAICON-PR | K171: 4 | L171: 0 | M171: =M165 -> VILLANO-RJ | S171: =COUNTBLANK(K171:L171) -> 0 | BI171: =IF(S171=0,1,0) -> 1 | BJ171: =IF(AND(S171=0,K171>L171),1,0)*BO160 -> 1 | BK171: =IF(AND(S171=0,K171=L171),1,0)*BO160 -> 0 | BL171: =BI171-BJ171-BK171 -> 0 | BM171: =K171 -> 4 | BN171: =L171 -> 0 | BO171: =((BJ171*3)+BK171)*BO160 -> 3 | BY171: =IF(S171=0,1,0) -> 1 | BZ171: =IF(AND(S171=0,L171>K171),1,0)*CE160 -> 0 | CA171: =IF(AND(S171=0,K171=L171),1,0)*CE160 -> 0 | CB171: =BY171-BZ171-CA171 -> 1 | CC171: =L171 -> 0 | CD171: =K171 -> 4 | CE171: =((BZ171*3)+CA171)*CE160 -> 0
B173: 1 | C173: 3 | D173: =$D$7 -> 2022-06-17 | E173: 21 | F173: =F168 -> SAMMARTINO-SP | K173: 4 | L173: 3 | M173: =F169 -> OLINO-SP | S173: =COUNTBLANK(K173:L173) -> 0 | U173: =IF(S173=0,1,0) -> 1 | V173: =IF(AND(S173=0,K173>L173),1,0)*AA160 -> 1 | W173: =IF(AND(S173=0,K173=L173),1,0)*AA160 -> 0 | X173: =U173-V173-W173 -> 0 | Y173: =K173 -> 4 | Z173: =L173 -> 3 | AA173: =((V173*3)+W173)*AA160 -> 3 | AC173: =IF(S173=0,1,0) -> 1 | AD173: =IF(AND(S173=0,L173>K173),1,0)*AI160 -> 0 | AE173: =IF(AND(S173=0,K173=L173),1,0)*AI160 -> 0 | AF173: =AC173-AD173-AE173 -> 1 | AG173: =L173 -> 3 | AH173: =K173 -> 4 | AI173: =((AD173*3)+AE173)*AI160 -> 0 | CH173: 3ª
B174: 1 | E174: =E173+1 -> 22 | F174: =M168 -> PENTINHO-PE | K174: 8 | L174: 3 | M174: =M169 -> DEMETRIUS-SP | S174: =COUNTBLANK(K174:L174) -> 0 | AK174: =IF(S174=0,1,0) -> 1 | AL174: =IF(AND(S174=0,K174>L174),1,0)*AQ160 -> 1 | AM174: =IF(AND(S174=0,K174=L174),1,0)*AQ160 -> 0 | AN174: =AK174-AL174-AM174 -> 0 | AO174: =K174 -> 8 | AP174: =L174 -> 3 | AQ174: =((AL174*3)+AM174)*AQ160 -> 3 | AS174: =IF(S174=0,1,0) -> 1 | AT174: =IF(AND(S174=0,L174>K174),1,0)*AY160 -> 0 | AU174: =IF(AND(S174=0,K174=L174),1,0)*AY160 -> 0 | AV174: =AS174-AT174-AU174 -> 1 | AW174: =L174 -> 3 | AX174: =K174 -> 8 | AY174: =((AT174*3)+AU174)*AY160 -> 0
B175: 1 | D175: =$D$19 -> 10:00:00 | E175: =E174+1 -> 23 | F175: =F170 -> PAULO FONSECA-RJ | K175: 3 | L175: 6 | M175: =F171 -> MAICON-PR | S175: =COUNTBLANK(K175:L175) -> 0 | BA175: =IF(S175=0,1,0) -> 1 | BB175: =IF(AND(S175=0,K175>L175),1,0)*BG160 -> 0 | BC175: =IF(AND(S175=0,K175=L175),1,0)*BG160 -> 0 | BD175: =BA175-BB175-BC175 -> 1 | BE175: =K175 -> 3 | BF175: =L175 -> 6 | BG175: =((BB175*3)+BC175)*BG160 -> 0 | BI175: =IF(S175=0,1,0) -> 1 | BJ175: =IF(AND(S175=0,L175>K175),1,0)*BO160 -> 1 | BK175: =IF(AND(S175=0,K175=L175),1,0)*BO160 -> 0 | BL175: =BI175-BJ175-BK175 -> 0 | BM175: =L175 -> 6 | BN175: =K175 -> 3 | BO175: =((BJ175*3)+BK175)*BO160 -> 3
B176: 1 | E176: =E175+1 -> 24 | F176: =M170 -> MIGUEL MARIALVA-AM | K176: 4 | L176: 3 | M176: =M171 -> VILLANO-RJ | S176: =COUNTBLANK(K176:L176) -> 0 | BQ176: =IF(S176=0,1,0) -> 1 | BR176: =IF(AND(S176=0,K176>L176),1,0)*BW160 -> 1 | BS176: =IF(AND(S176=0,K176=L176),1,0)*BW160 -> 0 | BT176: =BQ176-BR176-BS176 -> 0 | BU176: =K176 -> 4 | BV176: =L176 -> 3 | BW176: =((BR176*3)+BS176)*BW160 -> 3 | BY176: =IF(S176=0,1,0) -> 1 | BZ176: =IF(AND(S176=0,L176>K176),1,0)*CE160 -> 0 | CA176: =IF(AND(S176=0,K176=L176),1,0)*CE160 -> 0 | CB176: =BY176-BZ176-CA176 -> 1 | CC176: =L176 -> 3 | CD176: =K176 -> 4 | CE176: =((BZ176*3)+CA176)*CE160 -> 0
B178: 1 | C178: 4 | D178: =$D$7 -> 2022-06-17 | E178: 25 | F178: =F175 -> PAULO FONSECA-RJ | K178: 2 | L178: 5 | M178: =M173 -> OLINO-SP | S178: =COUNTBLANK(K178:L178) -> 0 | AC178: =IF(S178=0,1,0) -> 1 | AD178: =IF(AND(S178=0,L178>K178),1,0)*AI160 -> 1 | AE178: =IF(AND(S178=0,K178=L178),1,0)*AI160 -> 0 | AF178: =AC178-AD178-AE178 -> 0 | AG178: =L178 -> 5 | AH178: =K178 -> 2 | AI178: =((AD178*3)+AE178)*AI160 -> 3 | BA178: =IF(S178=0,1,0) -> 1 | BB178: =IF(AND(S178=0,K178>L178),1,0)*BG160 -> 0 | BC178: =IF(AND(S178=0,K178=L178),1,0)*BG160 -> 0 | BD178: =BA178-BB178-BC178 -> 1 | BE178: =K178 -> 2 | BF178: =L178 -> 5 | BG178: =((BB178*3)+BC178)*BG160 -> 0 | CH178: 4ª
B179: 1 | E179: =E178+1 -> 26 | F179: =M175 -> MAICON-PR | K179: 5 | L179: 5 | M179: =F174 -> PENTINHO-PE | S179: =COUNTBLANK(K179:L179) -> 0 | AK179: =IF(S179=0,1,0) -> 1 | AL179: =IF(AND(S179=0,L179>K179),1,0)*AQ160 -> 0 | AM179: =IF(AND(S179=0,K179=L179),1,0)*AQ160 -> 1 | AN179: =AK179-AL179-AM179 -> 0 | AO179: =L179 -> 5 | AP179: =K179 -> 5 | AQ179: =((AL179*3)+AM179)*AQ160 -> 1 | BI179: =IF(S179=0,1,0) -> 1 | BJ179: =IF(AND(S179=0,K179>L179),1,0)*BO160 -> 0 | BK179: =IF(AND(S179=0,K179=L179),1,0)*BO160 -> 1 | BL179: =BI179-BJ179-BK179 -> 0 | BM179: =K179 -> 5 | BN179: =L179 -> 5 | BO179: =((BJ179*3)+BK179)*BO160 -> 1
B180: 1 | D180: =$D$24 -> 10:30:00 | E180: =E179+1 -> 27 | F180: =F176 -> MIGUEL MARIALVA-AM | K180: 3 | L180: 4 | M180: =M174 -> DEMETRIUS-SP | S180: =COUNTBLANK(K180:L180) -> 0 | AS180: =IF(S180=0,1,0) -> 1 | AT180: =IF(AND(S180=0,L180>K180),1,0)*AY160 -> 1 | AU180: =IF(AND(S180=0,K180=L180),1,0)*AY160 -> 0 | AV180: =AS180-AT180-AU180 -> 0 | AW180: =L180 -> 4 | AX180: =K180 -> 3 | AY180: =((AT180*3)+AU180)*AY160 -> 3 | BQ180: =IF(S180=0,1,0) -> 1 | BR180: =IF(AND(S180=0,K180>L180),1,0)*BW160 -> 0 | BS180: =IF(AND(S180=0,K180=L180),1,0)*BW160 -> 0 | BT180: =BQ180-BR180-BS180 -> 1 | BU180: =K180 -> 3 | BV180: =L180 -> 4 | BW180: =((BR180*3)+BS180)*BW160 -> 0
B181: 1 | E181: =E180+1 -> 28 | F181: =M176 -> VILLANO-RJ | K181: 1 | L181: 6 | M181: =F173 -> SAMMARTINO-SP | S181: =COUNTBLANK(K181:L181) -> 0 | U181: =IF(S181=0,1,0) -> 1 | V181: =IF(AND(S181=0,L181>K181),1,0)*AA160 -> 1 | W181: =IF(AND(S181=0,K181=L181),1,0)*AA160 -> 0 | X181: =U181-V181-W181 -> 0 | Y181: =L181 -> 6 | Z181: =K181 -> 1 | AA181: =((V181*3)+W181)*AA160 -> 3 | BY181: =IF(S181=0,1,0) -> 1 | BZ181: =IF(AND(S181=0,K181>L181),1,0)*CE160 -> 0 | CA181: =IF(AND(S181=0,K181=L181),1,0)*CE160 -> 0 | CB181: =BY181-BZ181-CA181 -> 1 | CC181: =K181 -> 1 | CD181: =L181 -> 6 | CE181: =((BZ181*3)+CA181)*CE160 -> 0
B183: 1 | C183: 5 | D183: =$D$7 -> 2022-06-17 | E183: 29 | F183: =F178 -> PAULO FONSECA-RJ | K183: 5 | L183: 6 | M183: =M179 -> PENTINHO-PE | S183: =COUNTBLANK(K183:L183) -> 0 | AK183: =IF(S183=0,1,0) -> 1 | AL183: =IF(AND(S183=0,L183>K183),1,0)*AQ160 -> 1 | AM183: =IF(AND(S183=0,K183=L183),1,0)*AQ160 -> 0 | AN183: =AK183-AL183-AM183 -> 0 | AO183: =L183 -> 6 | AP183: =K183 -> 5 | AQ183: =((AL183*3)+AM183)*AQ160 -> 3 | BA183: =IF(S183=0,1,0) -> 1 | BB183: =IF(AND(S183=0,K183>L183),1,0)*BG160 -> 0 | BC183: =IF(AND(S183=0,K183=L183),1,0)*BG160 -> 0 | BD183: =BA183-BB183-BC183 -> 1 | BE183: =K183 -> 5 | BF183: =L183 -> 6 | BG183: =((BB183*3)+BC183)*BG160 -> 0 | CH183: 5ª
B184: 1 | E184: =E183+1 -> 30 | F184: =F179 -> MAICON-PR | K184: 7 | L184: 2 | M184: =M180 -> DEMETRIUS-SP | S184: =COUNTBLANK(K184:L184) -> 0 | AS184: =IF(S184=0,1,0) -> 1 | AT184: =IF(AND(S184=0,L184>K184),1,0)*AY160 -> 0 | AU184: =IF(AND(S184=0,K184=L184),1,0)*AY160 -> 0 | AV184: =AS184-AT184-AU184 -> 1 | AW184: =L184 -> 2 | AX184: =K184 -> 7 | AY184: =((AT184*3)+AU184)*AY160 -> 0 | BI184: =IF(S184=0,1,0) -> 1 | BJ184: =IF(AND(S184=0,K184>L184),1,0)*BO160 -> 1 | BK184: =IF(AND(S184=0,K184=L184),1,0)*BO160 -> 0 | BL184: =BI184-BJ184-BK184 -> 0 | BM184: =K184 -> 7 | BN184: =L184 -> 2 | BO184: =((BJ184*3)+BK184)*BO160 -> 3
B185: 1 | D185: =$D$29 -> 11:00:00 | E185: =E184+1 -> 31 | F185: =F180 -> MIGUEL MARIALVA-AM | K185: 3 | L185: 6 | M185: =M181 -> SAMMARTINO-SP | S185: =COUNTBLANK(K185:L185) -> 0 | U185: =IF(S185=0,1,0) -> 1 | V185: =IF(AND(S185=0,L185>K185),1,0)*AA160 -> 1 | W185: =IF(AND(S185=0,K185=L185),1,0)*AA160 -> 0 | X185: =U185-V185-W185 -> 0 | Y185: =L185 -> 6 | Z185: =K185 -> 3 | AA185: =((V185*3)+W185)*AA160 -> 3 | BQ185: =IF(S185=0,1,0) -> 1 | BR185: =IF(AND(S185=0,K185>L185),1,0)*BW160 -> 0 | BS185: =IF(AND(S185=0,K185=L185),1,0)*BW160 -> 0 | BT185: =BQ185-BR185-BS185 -> 1 | BU185: =K185 -> 3 | BV185: =L185 -> 6 | BW185: =((BR185*3)+BS185)*BW160 -> 0
B186: 1 | E186: =E185+1 -> 32 | F186: =F181 -> VILLANO-RJ | K186: 3 | L186: 5 | M186: =M178 -> OLINO-SP | S186: =COUNTBLANK(K186:L186) -> 0 | AC186: =IF(S186=0,1,0) -> 1 | AD186: =IF(AND(S186=0,L186>K186),1,0)*AI160 -> 1 | AE186: =IF(AND(S186=0,K186=L186),1,0)*AI160 -> 0 | AF186: =AC186-AD186-AE186 -> 0 | AG186: =L186 -> 5 | AH186: =K186 -> 3 | AI186: =((AD186*3)+AE186)*AI160 -> 3 | BY186: =IF(S186=0,1,0) -> 1 | BZ186: =IF(AND(S186=0,K186>L186),1,0)*CE160 -> 0 | CA186: =IF(AND(S186=0,K186=L186),1,0)*CE160 -> 0 | CB186: =BY186-BZ186-CA186 -> 1 | CC186: =K186 -> 3 | CD186: =L186 -> 5 | CE186: =((BZ186*3)+CA186)*CE160 -> 0
B188: 1 | C188: 6 | D188: =$D$7 -> 2022-06-17 | E188: 33 | F188: =F184 -> MAICON-PR | K188: 4 | L188: 3 | M188: =M186 -> OLINO-SP | S188: =COUNTBLANK(K188:L188) -> 0 | AC188: =IF(S188=0,1,0) -> 1 | AD188: =IF(AND(S188=0,L188>K188),1,0)*AI160 -> 0 | AE188: =IF(AND(S188=0,K188=L188),1,0)*AI160 -> 0 | AF188: =AC188-AD188-AE188 -> 1 | AG188: =L188 -> 3 | AH188: =K188 -> 4 | AI188: =((AD188*3)+AE188)*AI160 -> 0 | BI188: =IF(S188=0,1,0) -> 1 | BJ188: =IF(AND(S188=0,K188>L188),1,0)*BO160 -> 1 | BK188: =IF(AND(S188=0,K188=L188),1,0)*BO160 -> 0 | BL188: =BI188-BJ188-BK188 -> 0 | BM188: =K188 -> 4 | BN188: =L188 -> 3 | BO188: =((BJ188*3)+BK188)*BO160 -> 3 | CH188: 6ª
B189: 1 | E189: =E188+1 -> 34 | F189: =F183 -> PAULO FONSECA-RJ | K189: 5 | L189: 5 | M189: =M185 -> SAMMARTINO-SP | S189: =COUNTBLANK(K189:L189) -> 0 | U189: =IF(S189=0,1,0) -> 1 | V189: =IF(AND(S189=0,L189>K189),1,0)*AA160 -> 0 | W189: =IF(AND(S189=0,K189=L189),1,0)*AA160 -> 1 | X189: =U189-V189-W189 -> 0 | Y189: =L189 -> 5 | Z189: =K189 -> 5 | AA189: =((V189*3)+W189)*AA160 -> 1 | BA189: =IF(S189=0,1,0) -> 1 | BB189: =IF(AND(S189=0,K189>L189),1,0)*BG160 -> 0 | BC189: =IF(AND(S189=0,K189=L189),1,0)*BG160 -> 1 | BD189: =BA189-BB189-BC189 -> 0 | BE189: =K189 -> 5 | BF189: =L189 -> 5 | BG189: =((BB189*3)+BC189)*BG160 -> 1
B190: 1 | D190: =$D$34 -> 11:30:00 | E190: =E189+1 -> 35 | F190: =F186 -> VILLANO-RJ | K190: 4 | L190: 2 | M190: =M184 -> DEMETRIUS-SP | S190: =COUNTBLANK(K190:L190) -> 0 | AS190: =IF(S190=0,1,0) -> 1 | AT190: =IF(AND(S190=0,L190>K190),1,0)*AY160 -> 0 | AU190: =IF(AND(S190=0,K190=L190),1,0)*AY160 -> 0 | AV190: =AS190-AT190-AU190 -> 1 | AW190: =L190 -> 2 | AX190: =K190 -> 4 | AY190: =((AT190*3)+AU190)*AY160 -> 0 | BY190: =IF(S190=0,1,0) -> 1 | BZ190: =IF(AND(S190=0,K190>L190),1,0)*CE160 -> 1 | CA190: =IF(AND(S190=0,K190=L190),1,0)*CE160 -> 0 | CB190: =BY190-BZ190-CA190 -> 0 | CC190: =K190 -> 4 | CD190: =L190 -> 2 | CE190: =((BZ190*3)+CA190)*CE160 -> 3
B191: 1 | E191: =E190+1 -> 36 | F191: =F185 -> MIGUEL MARIALVA-AM | K191: 4 | L191: 6 | M191: =M183 -> PENTINHO-PE | S191: =COUNTBLANK(K191:L191) -> 0 | AK191: =IF(S191=0,1,0) -> 1 | AL191: =IF(AND(S191=0,L191>K191),1,0)*AQ160 -> 1 | AM191: =IF(AND(S191=0,K191=L191),1,0)*AQ160 -> 0 | AN191: =AK191-AL191-AM191 -> 0 | AO191: =L191 -> 6 | AP191: =K191 -> 4 | AQ191: =((AL191*3)+AM191)*AQ160 -> 3 | BQ191: =IF(S191=0,1,0) -> 1 | BR191: =IF(AND(S191=0,K191>L191),1,0)*BW160 -> 0 | BS191: =IF(AND(S191=0,K191=L191),1,0)*BW160 -> 0 | BT191: =BQ191-BR191-BS191 -> 1 | BU191: =K191 -> 4 | BV191: =L191 -> 6 | BW191: =((BR191*3)+BS191)*BW160 -> 0
B193: 1 | C193: 7 | D193: =$D$7 -> 2022-06-17 | E193: 37 | F193: =F190 -> VILLANO-RJ | K193: 3 | L193: 5 | M193: =M191 -> PENTINHO-PE | S193: =COUNTBLANK(K193:L193) -> 0 | AK193: =IF(S193=0,1,0) -> 1 | AL193: =IF(AND(S193=0,L193>K193),1,0)*AQ160 -> 1 | AM193: =IF(AND(S193=0,K193=L193),1,0)*AQ160 -> 0 | AN193: =AK193-AL193-AM193 -> 0 | AO193: =L193 -> 5 | AP193: =K193 -> 3 | AQ193: =((AL193*3)+AM193)*AQ160 -> 3 | BY193: =IF(S193=0,1,0) -> 1 | BZ193: =IF(AND(S193=0,K193>L193),1,0)*CE160 -> 0 | CA193: =IF(AND(S193=0,K193=L193),1,0)*CE160 -> 0 | CB193: =BY193-BZ193-CA193 -> 1 | CC193: =K193 -> 3 | CD193: =L193 -> 5 | CE193: =((BZ193*3)+CA193)*CE160 -> 0 | CH193: 7ª
B194: 1 | E194: =E193+1 -> 38 | F194: =F188 -> MAICON-PR | K194: 4 | L194: 8 | M194: =M189 -> SAMMARTINO-SP | S194: =COUNTBLANK(K194:L194) -> 0 | U194: =IF(S194=0,1,0) -> 1 | V194: =IF(AND(S194=0,L194>K194),1,0)*AA160 -> 1 | W194: =IF(AND(S194=0,K194=L194),1,0)*AA160 -> 0 | X194: =U194-V194-W194 -> 0 | Y194: =L194 -> 8 | Z194: =K194 -> 4 | AA194: =((V194*3)+W194)*AA160 -> 3 | BI194: =IF(S194=0,1,0) -> 1 | BJ194: =IF(AND(S194=0,K194>L194),1,0)*BO160 -> 0 | BK194: =IF(AND(S194=0,K194=L194),1,0)*BO160 -> 0 | BL194: =BI194-BJ194-BK194 -> 1 | BM194: =K194 -> 4 | BN194: =L194 -> 8 | BO194: =((BJ194*3)+BK194)*BO160 -> 0
B195: 1 | D195: =$D$39 -> 12:00:00 | E195: =E194+1 -> 39 | F195: =F191 -> MIGUEL MARIALVA-AM | K195: 5 | L195: 6 | M195: =M188 -> OLINO-SP | S195: =COUNTBLANK(K195:L195) -> 0 | AC195: =IF(S195=0,1,0) -> 1 | AD195: =IF(AND(S195=0,L195>K195),1,0)*AI160 -> 1 | AE195: =IF(AND(S195=0,K195=L195),1,0)*AI160 -> 0 | AF195: =AC195-AD195-AE195 -> 0 | AG195: =L195 -> 6 | AH195: =K195 -> 5 | AI195: =((AD195*3)+AE195)*AI160 -> 3 | BQ195: =IF(S195=0,1,0) -> 1 | BR195: =IF(AND(S195=0,K195>L195),1,0)*BW160 -> 0 | BS195: =IF(AND(S195=0,K195=L195),1,0)*BW160 -> 0 | BT195: =BQ195-BR195-BS195 -> 1 | BU195: =K195 -> 5 | BV195: =L195 -> 6 | BW195: =((BR195*3)+BS195)*BW160 -> 0
B196: 1 | E196: =E195+1 -> 40 | F196: =F189 -> PAULO FONSECA-RJ | K196: 2 | L196: 4 | M196: =M190 -> DEMETRIUS-SP | S196: =COUNTBLANK(K196:L196) -> 0 | AS196: =IF(S196=0,1,0) -> 1 | AT196: =IF(AND(S196=0,L196>K196),1,0)*AY160 -> 1 | AU196: =IF(AND(S196=0,K196=L196),1,0)*AY160 -> 0 | AV196: =AS196-AT196-AU196 -> 0 | AW196: =L196 -> 4 | AX196: =K196 -> 2 | AY196: =((AT196*3)+AU196)*AY160 -> 3 | BA196: =IF(S196=0,1,0) -> 1 | BB196: =IF(AND(S196=0,K196>L196),1,0)*BG160 -> 0 | BC196: =IF(AND(S196=0,K196=L196),1,0)*BG160 -> 0 | BD196: =BA196-BB196-BC196 -> 1 | BE196: =K196 -> 2 | BF196: =L196 -> 4 | BG196: =((BB196*3)+BC196)*BG160 -> 0
S197: =SUM(S163:S196) -> 0 | U197: =SUM(U163:U196) -> 7 | V197: 5 | W197: 2 | X197: 0 | Y197: 39 | Z197: 24 | AA197: =SUM(AA163:AA196) -> 17 | AC197: =SUM(AC163:AC196) -> 7 | AD197: 5 | AE197: 0 | AF197: 2 | AG197: 31 | AH197: 23 | AI197: 15 | AK197: =SUM(AK163:AK196) -> 7 | AL197: 4 | AM197: 2 | AN197: 1 | AO197: 39 | AP197: 30 | AQ197: 14 | AS197: =SUM(AS163:AS196) -> 7 | AT197: 2 | AU197: 0 | AV197: 5 | AW197: 19 | AX197: 33 | AY197: 6 | BA197: =SUM(BA163:BA196) -> 7 | BB197: 1 | BC197: 2 | BD197: 4 | BE197: 25 | BF197: 32 | BG197: 5 | BI197: =SUM(BI163:BI196) -> 7 | BJ197: 5 | BK197: 1 | BL197: 1 | BM197: 35 | BN197: 24 | BO197: 16 | BQ197: =SUM(BQ163:BQ196) -> 7 | BR197: 1 | BS197: 1 | BT197: 5 | BU197: 26 | BV197: 34 | BW197: 4 | BY197: =SUM(BY163:BY196) -> 7 | BZ197: 1 | CA197: 0 | CB197: 6 | CC197: 16 | CD197: 30 | CE197: 3
C199: Class | D199: Botonistas | I199: PG | J199: J | K199: V | L199: E | M199: D | N199: GP | O199: GC | P199: SG | Q199: Sorteio | S199: Cl | U199: Botonista | AC199: J | AD199: V | AE199: E | AF199: D | AG199: GP | AH199: GC | AI199: PG | AJ199: Chave Sort | AR199: Cl | AT199: Botonista | BA199: J | BB199: V | BC199: E | BD199: D | BE199: GP | BF199: GC | BG199: PG | BH199: Chave Sort
B200: =IF($S$197=0,"è","") -> è | C200: =AR200 -> 1 | D200: =AT200 -> SAMMARTINO-SP | I200: =BG200 -> 17 | J200: =BA200 -> 7 | K200: 5 | L200: 2 | M200: 0 | N200: 39 | O200: 24 | P200: =N200-O200 -> 15 | Q200: =IF(INT(BH200)=INT(BH201),ASC(CHAR(252)),"") ->  | S200: =RANK(AJ200,AJ200:AJ207,0) -> 1 | U200: =F163 -> SAMMARTINO-SP | AC200: =U197 -> 7 | AD200: 5 | AE200: 2 | AF200: 0 | AG200: 39 | AH200: 24 | AI200: 17 | AJ200: =(AI200*1000000000)+(AD200*1000000)+((AG200-AH200)*1000)+AG200+AR200/100 -> 1.700501504e+10 | AR200: 1 | AT200: =VLOOKUP(AR200,S200:AJ207,3,FALSE) -> SAMMARTINO-SP | BA200: =VLOOKUP(AR200,S200:AJ207,11,FALSE) -> 7 | BB200: =VLOOKUP(AR200,S200:AJ207,12,FALSE) -> 5 | BC200: =VLOOKUP(AR200,S200:AJ207,13,FALSE) -> 2 | BD200: =VLOOKUP(AR200,S200:AJ207,14,FALSE) -> 0 | BE200: =VLOOKUP(AR200,S200:AJ207,15,FALSE) -> 39 | BF200: =VLOOKUP(AR200,S200:AJ207,16,FALSE) -> 24 | BG200: =VLOOKUP(AR200,S200:AJ207,17,FALSE) -> 17 | BH200: =VLOOKUP(AR200,S200:AJ207,18,FALSE) -> 1.700501504e+10 | BI200: =VLOOKUP($AR200,$S$37:$AI$42,17,FALSE) -> 
B201: =IF($S$197=0,"è","") -> è | C201: 2 | D201: =AT201 -> MAICON-PR | I201: 16 | J201: 7 | K201: 5 | L201: 1 | M201: 1 | N201: 35 | O201: 24 | P201: 11 | Q201: =IF(OR(INT(BH201)=INT(BH200),INT(BH202)=INT(BH201)),ASC(CHAR(252)),"") ->  | S201: =RANK(AJ201,AJ200:AJ207,0) -> 3 | U201: =F164 -> OLINO-SP | AC201: =AC197 -> 7 | AD201: 5 | AE201: 0 | AF201: 2 | AG201: 31 | AH201: 23 | AI201: 15 | AJ201: =(AI201*1000000000)+(AD201*1000000)+((AG201-AH201)*1000)+AG201+AR201/100 -> 1.500500803e+10 | AR201: 2 | AT201: =VLOOKUP(AR201,S200:AJ207,3,FALSE) -> MAICON-PR | BA201: =VLOOKUP(AR201,S200:AJ207,11,FALSE) -> 7 | BB201: =VLOOKUP(AR201,S200:AJ207,12,FALSE) -> 5 | BC201: =VLOOKUP(AR201,S200:AJ207,13,FALSE) -> 1 | BD201: =VLOOKUP(AR201,S200:AJ207,14,FALSE) -> 1 | BE201: =VLOOKUP(AR201,S200:AJ207,15,FALSE) -> 35 | BF201: =VLOOKUP(AR201,S200:AJ207,16,FALSE) -> 24 | BG201: =VLOOKUP(AR201,S200:AJ207,17,FALSE) -> 16 | BH201: =VLOOKUP(AR201,S200:AJ207,18,FALSE) -> 1.600501104e+10
B202: =IF($S$197=0,"è","") -> è | C202: 3 | D202: OLINO-SP | I202: 15 | J202: 7 | K202: 5 | L202: 0 | M202: 2 | N202: 31 | O202: 23 | P202: 8 | S202: =RANK(AJ202,AJ200:AJ207,0) -> 4 | U202: =M164 -> PENTINHO-PE | AC202: =AK197 -> 7 | AD202: 4 | AE202: 2 | AF202: 1 | AG202: 39 | AH202: 30 | AI202: 14 | AJ202: 1.400400904e+10 | AR202: 3 | AT202: =VLOOKUP(AR202,S200:AJ207,3,FALSE) -> OLINO-SP | BA202: =VLOOKUP(AR202,S200:AJ207,11,FALSE) -> 7 | BB202: =VLOOKUP(AR202,S200:AJ207,12,FALSE) -> 5 | BC202: =VLOOKUP(AR202,S200:AJ207,13,FALSE) -> 0 | BD202: =VLOOKUP(AR202,S200:AJ207,14,FALSE) -> 2 | BE202: =VLOOKUP(AR202,S200:AJ207,15,FALSE) -> 31 | BF202: =VLOOKUP(AR202,S200:AJ207,16,FALSE) -> 23 | BG202: =VLOOKUP(AR202,S200:AJ207,17,FALSE) -> 15 | BH202: =VLOOKUP(AR202,S200:AJ207,18,FALSE) -> 1.500500803e+10
B203: =IF($S$197=0,"è","") -> è | C203: 4 | D203: PENTINHO-PE | I203: 14 | J203: 7 | K203: 4 | L203: 2 | M203: 1 | N203: 39 | O203: 30 | P203: 9 | S203: =RANK(AJ203,AJ200:AJ207,0) -> 5 | U203: =M163 -> DEMETRIUS-SP | AC203: =AS197 -> 7 | AD203: 2 | AE203: 0 | AF203: 5 | AG203: 19 | AH203: 33 | AI203: 6 | AJ203: 6001986019 | AR203: 4 | AT203: =VLOOKUP(AR203,S200:AJ207,3,FALSE) -> PENTINHO-PE | BA203: =VLOOKUP(AR203,S200:AJ207,11,FALSE) -> 7 | BB203: =VLOOKUP(AR203,S200:AJ207,12,FALSE) -> 4 | BC203: =VLOOKUP(AR203,S200:AJ207,13,FALSE) -> 2 | BD203: =VLOOKUP(AR203,S200:AJ207,14,FALSE) -> 1 | BE203: =VLOOKUP(AR203,S200:AJ207,15,FALSE) -> 39 | BF203: =VLOOKUP(AR203,S200:AJ207,16,FALSE) -> 30 | BG203: =VLOOKUP(AR203,S200:AJ207,17,FALSE) -> 14 | BH203: =VLOOKUP(AR203,S200:AJ207,18,FALSE) -> 1.400400904e+10
B204: =IF($S$197=0,"è","") -> è | C204: 5 | D204: DEMETRIUS-SP | I204: 6 | J204: 7 | K204: 2 | L204: 0 | M204: 5 | N204: 19 | O204: 33 | P204: -14 | S204: =RANK(AJ204,AJ200:AJ207,0) -> 6 | U204: =F165 -> PAULO FONSECA-RJ | AC204: =BA197 -> 7 | AD204: 1 | AE204: 2 | AF204: 4 | AG204: 25 | AH204: 32 | AI204: 5 | AJ204: =(AI204*1000000000)+(AD204*1000000)+((AG204-AH204)*1000)+AG204+AR204/100 -> 5000993025 | AR204: 5 | AT204: =VLOOKUP(AR204,S200:AJ207,3,FALSE) -> DEMETRIUS-SP | BA204: =VLOOKUP(AR204,S200:AJ207,11,FALSE) -> 7 | BB204: =VLOOKUP(AR204,S200:AJ207,12,FALSE) -> 2 | BC204: =VLOOKUP(AR204,S200:AJ207,13,FALSE) -> 0 | BD204: =VLOOKUP(AR204,S200:AJ207,14,FALSE) -> 5 | BE204: =VLOOKUP(AR204,S200:AJ207,15,FALSE) -> 19 | BF204: =VLOOKUP(AR204,S200:AJ207,16,FALSE) -> 33 | BG204: =VLOOKUP(AR204,S200:AJ207,17,FALSE) -> 6 | BH204: =VLOOKUP(AR204,S200:AJ207,18,FALSE) -> 6001986019
B205: =IF($S$197=0,"ó","") -> ó | C205: 6 | D205: PAULO FONSECA-RJ | I205: 5 | J205: 7 | K205: 1 | L205: 2 | M205: 4 | N205: 25 | O205: 32 | P205: -7 | S205: =RANK(AJ205,AJ200:AJ207,0) -> 2 | U205: =F166 -> MAICON-PR | AC205: =BI197 -> 7 | AD205: 5 | AE205: 1 | AF205: 1 | AG205: 35 | AH205: 24 | AI205: 16 | AJ205: 1.600501104e+10 | AR205: 6 | AT205: =VLOOKUP(AR205,S200:AJ207,3,FALSE) -> PAULO FONSECA-RJ | BA205: =VLOOKUP(AR205,S200:AJ207,11,FALSE) -> 7 | BB205: =VLOOKUP(AR205,S200:AJ207,12,FALSE) -> 1 | BC205: =VLOOKUP(AR205,S200:AJ207,13,FALSE) -> 2 | BD205: =VLOOKUP(AR205,S200:AJ207,14,FALSE) -> 4 | BE205: =VLOOKUP(AR205,S200:AJ207,15,FALSE) -> 25 | BF205: =VLOOKUP(AR205,S200:AJ207,16,FALSE) -> 32 | BG205: =VLOOKUP(AR205,S200:AJ207,17,FALSE) -> 5 | BH205: =VLOOKUP(AR205,S200:AJ207,18,FALSE) -> 5000993025
B206: =IF($S$197=0,"Ø","") -> Ø | C206: =AR206 -> 7 | D206: MIGUEL MARIALVA-AM | I206: 4 | J206: 7 | K206: 1 | L206: 1 | M206: 5 | N206: 26 | O206: 34 | P206: -8 | S206: =RANK(AJ206,AJ200:AJ207,0) -> 7 | U206: =M166 -> MIGUEL MARIALVA-AM | AC206: =BQ197 -> 7 | AD206: 1 | AE206: 1 | AF206: 5 | AG206: 26 | AH206: 34 | AI206: 4 | AJ206: 4000992026 | AR206: 7 | AT206: =VLOOKUP(AR206,S200:AJ207,3,FALSE) -> MIGUEL MARIALVA-AM | BA206: =VLOOKUP(AR206,S200:AJ207,11,FALSE) -> 7 | BB206: =VLOOKUP(AR206,S200:AJ207,12,FALSE) -> 1 | BC206: =VLOOKUP(AR206,S200:AJ207,13,FALSE) -> 1 | BD206: =VLOOKUP(AR206,S200:AJ207,14,FALSE) -> 5 | BE206: =VLOOKUP(AR206,S200:AJ207,15,FALSE) -> 26 | BF206: =VLOOKUP(AR206,S200:AJ207,16,FALSE) -> 34 | BG206: =VLOOKUP(AR206,S200:AJ207,17,FALSE) -> 4 | BH206: =VLOOKUP(AR206,S200:AJ207,18,FALSE) -> 4000992026
B207: =IF($S$197=0,"Ø","") -> Ø | C207: =AR207 -> 8 | D207: VILLANO-RJ | I207: 3 | J207: 7 | K207: 1 | L207: 0 | M207: 6 | N207: 16 | O207: 30 | P207: -14 | S207: =RANK(AJ207,AJ200:AJ207,0) -> 8 | U207: =M165 -> VILLANO-RJ | AC207: =BY197 -> 7 | AD207: 1 | AE207: 0 | AF207: 6 | AG207: 16 | AH207: 30 | AI207: 3 | AJ207: 3000986016 | AR207: 8 | AT207: =VLOOKUP(AR207,S200:AJ207,3,FALSE) -> VILLANO-RJ | BA207: =VLOOKUP(AR207,S200:AJ207,11,FALSE) -> 7 | BB207: =VLOOKUP(AR207,S200:AJ207,12,FALSE) -> 1 | BC207: =VLOOKUP(AR207,S200:AJ207,13,FALSE) -> 0 | BD207: =VLOOKUP(AR207,S200:AJ207,14,FALSE) -> 6 | BE207: =VLOOKUP(AR207,S200:AJ207,15,FALSE) -> 16 | BF207: =VLOOKUP(AR207,S200:AJ207,16,FALSE) -> 30 | BG207: =VLOOKUP(AR207,S200:AJ207,17,FALSE) -> 3 | BH207: =VLOOKUP(AR207,S200:AJ207,18,FALSE) -> 3000986016
C209: è | D209: 1a Divisão | I209: ó | J209: 1a ou 5a Divisão | N209: Ø | O209: 5a Divisão
C212: =$C$4 -> Master - 1a Divisão | Q212: =CONCATENATE("1ª Fase - ", 'G1'!$C$19) -> 1ª Fase - Grupo 5 | U212: =F215 -> BASILIO-SP | AA212: =IF(RIGHT(U212,4)="(WO)",0,1) -> 1 | AC212: =F216 -> BARBA-SP | AI212: =IF(RIGHT(AC212,4)="(WO)",0,1) -> 1 | AK212: =M216 -> ADRIANO BRANQUINHO-PE | AQ212: =IF(RIGHT(AK212,4)="(WO)",0,1) -> 1 | AS212: =M215 -> FLOSI-SP | AY212: =IF(RIGHT(AS212,4)="(WO)",0,1) -> 1 | BA212: =F217 -> ZE LUIZ-RJ | BG212: =IF(RIGHT(BA212,4)="(WO)",0,1) -> 1 | BI212: =F218 -> CB-RS | BO212: =IF(RIGHT(BI212,4)="(WO)",0,1) -> 1 | BQ212: =M218 -> RUBAO-PR | BW212: =IF(RIGHT(BQ212,4)="(WO)",0,1) -> 1 | BY212: =M217 -> ELCIO BURATINI-MG | CE212: =IF(RIGHT(BY212,4)="(WO)",0,1) -> 1
B213: Grp | C213: Rod. | D213: Data/Hora | E213: Mesa | F213: Jogos | S213: Ok | U213: J | V213: V | W213: E | X213: D | Y213: GP | Z213: GC | AA213: PG | AC213: J | AD213: V | AE213: E | AF213: D | AG213: GP | AH213: GC | AI213: PG | AK213: J | AL213: V | AM213: E | AN213: D | AO213: GP | AP213: GC | AQ213: PG | AS213: J | AT213: V | AU213: E | AV213: D | AW213: GP | AX213: GC | AY213: PG | BA213: J | BB213: V | BC213: E | BD213: D | BE213: GP | BF213: GC | BG213: PG | BI213: J | BJ213: V | BK213: E | BL213: D | BM213: GP | BN213: GC | BO213: PG | BQ213: J | BR213: V | BS213: E | BT213: D | BU213: GP | BV213: GC | BW213: PG | BY213: J | BZ213: V | CA213: E | CB213: D | CC213: GP | CD213: GC | CE213: PG | CH213: Rodada
B215: 1 | C215: 1 | D215: 2022-06-17 | E215: 17 | F215: ='G1'!$D$20 & IF('G1'!$E$20="S"," (WO)","") -> BASILIO-SP | K215: 4 | L215: 4 | M215: ='G1'!$D$23 & IF('G1'!$E$23="S"," (WO)","") -> FLOSI-SP | S215: =COUNTBLANK(K215:L215) -> 0 | U215: =IF(S215=0,1,0) -> 1 | V215: =IF(AND(S215=0,K215>L215),1,0)*AA212 -> 0 | W215: =IF(AND(S215=0,K215=L215),1,0)*AA212 -> 1 | X215: =U215-V215-W215 -> 0 | Y215: =K215 -> 4 | Z215: =L215 -> 4 | AA215: =((V215*3)+W215)*AA212 -> 1 | AS215: =IF(S215=0,1,0) -> 1 | AT215: =IF(AND(S215=0,L215>K215),1,0)*AY212 -> 0 | AU215: =IF(AND(S215=0,K215=L215),1,0)*AY212 -> 1 | AV215: =AS215-AT215-AU215 -> 0 | AW215: =L215 -> 4 | AX215: =K215 -> 4 | AY215: =((AT215*3)+AU215)*AY212 -> 1 | CH215: 1ª
B216: 1 | E216: =E215+1 -> 18 | F216: ='G1'!$D$21 & IF('G1'!$E$21="S"," (WO)","") -> BARBA-SP | K216: 5 | L216: 5 | M216: ='G1'!$D$22 & IF('G1'!$E$22="S"," (WO)","") -> ADRIANO BRANQUINHO-PE | S216: =COUNTBLANK(K216:L216) -> 0 | AC216: =IF(S216=0,1,0) -> 1 | AD216: =IF(AND(S216=0,K216>L216),1,0)*AI212 -> 0 | AE216: =IF(AND(S216=0,K216=L216),1,0)*AI212 -> 1 | AF216: =AC216-AD216-AE216 -> 0 | AG216: =K216 -> 5 | AH216: =L216 -> 5 | AI216: =((AD216*3)+AE216)*AI212 -> 1 | AK216: =IF(S216=0,1,0) -> 1 | AL216: =IF(AND(S216=0,L216>K216),1,0)*AQ212 -> 0 | AM216: =IF(AND(S216=0,K216=L216),1,0)*AQ212 -> 1 | AN216: =AK216-AL216-AM216 -> 0 | AO216: =L216 -> 5 | AP216: =K216 -> 5 | AQ216: =((AL216*3)+AM216)*AQ212 -> 1
B217: 1 | D217: =$D$9 -> 09:00:00 | E217: =E216+1 -> 19 | F217: ='G1'!$D$24 & IF('G1'!$E$24="S"," (WO)","") -> ZE LUIZ-RJ | K217: 1 | L217: 2 | M217: ='G1'!$D$27 & IF('G1'!$E$27="S"," (WO)","") -> ELCIO BURATINI-MG | S217: =COUNTBLANK(K217:L217) -> 0 | BA217: =IF(S217=0,1,0) -> 1 | BB217: =IF(AND(S217=0,K217>L217),1,0)*BG212 -> 0 | BC217: =IF(AND(S217=0,K217=L217),1,0)*BG212 -> 0 | BD217: =BA217-BB217-BC217 -> 1 | BE217: =K217 -> 1 | BF217: =L217 -> 2 | BG217: =((BB217*3)+BC217)*BG212 -> 0 | BY217: =IF(S217=0,1,0) -> 1 | BZ217: =IF(AND(S217=0,L217>K217),1,0)*CE212 -> 1 | CA217: =IF(AND(S217=0,K217=L217),1,0)*CE212 -> 0 | CB217: =BY217-BZ217-CA217 -> 0 | CC217: =L217 -> 2 | CD217: =K217 -> 1 | CE217: =((BZ217*3)+CA217)*CE212 -> 3
B218: 1 | E218: =E217+1 -> 20 | F218: ='G1'!$D$25 & IF('G1'!$E$25="S"," (WO)","") -> CB-RS | K218: 2 | L218: 3 | M218: ='G1'!$D$26 & IF('G1'!$E$26="S"," (WO)","") -> RUBAO-PR | S218: =COUNTBLANK(K218:L218) -> 0 | BI218: =IF(S218=0,1,0) -> 1 | BJ218: =IF(AND(S218=0,K218>L218),1,0)*BO212 -> 0 | BK218: =IF(AND(S218=0,K218=L218),1,0)*BO212 -> 0 | BL218: =BI218-BJ218-BK218 -> 1 | BM218: =K218 -> 2 | BN218: =L218 -> 3 | BO218: =((BJ218*3)+BK218)*BO212 -> 0 | BQ218: =IF(S218=0,1,0) -> 1 | BR218: =IF(AND(S218=0,L218>K218),1,0)*BW212 -> 1 | BS218: =IF(AND(S218=0,K218=L218),1,0)*BW212 -> 0 | BT218: =BQ218-BR218-BS218 -> 0 | BU218: =L218 -> 3 | BV218: =K218 -> 2 | BW218: =((BR218*3)+BS218)*BW212 -> 3
B219: 1
B220: 1 | C220: 2 | D220: =$D$7 -> 2022-06-17 | E220: 21 | F220: =F215 -> BASILIO-SP | K220: 4 | L220: 1 | M220: =M216 -> ADRIANO BRANQUINHO-PE | S220: =COUNTBLANK(K220:L220) -> 0 | U220: =IF(S220=0,1,0) -> 1 | V220: =IF(AND(S220=0,K220>L220),1,0)*AA212 -> 1 | W220: =IF(AND(S220=0,K220=L220),1,0)*AA212 -> 0 | X220: =U220-V220-W220 -> 0 | Y220: =K220 -> 4 | Z220: =L220 -> 1 | AA220: =((V220*3)+W220)*AA212 -> 3 | AK220: =IF(S220=0,1,0) -> 1 | AL220: =IF(AND(S220=0,L220>K220),1,0)*AQ212 -> 0 | AM220: =IF(AND(S220=0,K220=L220),1,0)*AQ212 -> 0 | AN220: =AK220-AL220-AM220 -> 1 | AO220: =L220 -> 1 | AP220: =K220 -> 4 | AQ220: =((AL220*3)+AM220)*AQ212 -> 0 | CH220: 2ª
B221: 1 | E221: =E220+1 -> 22 | F221: =F216 -> BARBA-SP | K221: 6 | L221: 3 | M221: =M215 -> FLOSI-SP | S221: =COUNTBLANK(K221:L221) -> 0 | AC221: =IF(S221=0,1,0) -> 1 | AD221: =IF(AND(S221=0,K221>L221),1,0)*AI212 -> 1 | AE221: =IF(AND(S221=0,K221=L221),1,0)*AI212 -> 0 | AF221: =AC221-AD221-AE221 -> 0 | AG221: =K221 -> 6 | AH221: =L221 -> 3 | AI221: =((AD221*3)+AE221)*AI212 -> 3 | AS221: =IF(S221=0,1,0) -> 1 | AT221: =IF(AND(S221=0,L221>K221),1,0)*AY212 -> 0 | AU221: =IF(AND(S221=0,K221=L221),1,0)*AY212 -> 0 | AV221: =AS221-AT221-AU221 -> 1 | AW221: =L221 -> 3 | AX221: =K221 -> 6 | AY221: =((AT221*3)+AU221)*AY212 -> 0
B222: 1 | D222: =$D$14 -> 09:30:00 | E222: =E221+1 -> 23 | F222: =F217 -> ZE LUIZ-RJ | K222: 2 | L222: 4 | M222: =M218 -> RUBAO-PR | S222: =COUNTBLANK(K222:L222) -> 0 | BA222: =IF(S222=0,1,0) -> 1 | BB222: =IF(AND(S222=0,K222>L222),1,0)*BG212 -> 0 | BC222: =IF(AND(S222=0,K222=L222),1,0)*BG212 -> 0 | BD222: =BA222-BB222-BC222 -> 1 | BE222: =K222 -> 2 | BF222: =L222 -> 4 | BG222: =((BB222*3)+BC222)*BG212 -> 0 | BQ222: =IF(S222=0,1,0) -> 1 | BR222: =IF(AND(S222=0,L222>K222),1,0)*BW212 -> 1 | BS222: =IF(AND(S222=0,K222=L222),1,0)*BW212 -> 0 | BT222: =BQ222-BR222-BS222 -> 0 | BU222: =L222 -> 4 | BV222: =K222 -> 2 | BW222: =((BR222*3)+BS222)*BW212 -> 3
B223: 1 | E223: =E222+1 -> 24 | F223: =F218 -> CB-RS | K223: 0 | L223: 2 | M223: =M217 -> ELCIO BURATINI-MG | S223: =COUNTBLANK(K223:L223) -> 0 | BI223: =IF(S223=0,1,0) -> 1 | BJ223: =IF(AND(S223=0,K223>L223),1,0)*BO212 -> 0 | BK223: =IF(AND(S223=0,K223=L223),1,0)*BO212 -> 0 | BL223: =BI223-BJ223-BK223 -> 1 | BM223: =K223 -> 0 | BN223: =L223 -> 2 | BO223: =((BJ223*3)+BK223)*BO212 -> 0 | BY223: =IF(S223=0,1,0) -> 1 | BZ223: =IF(AND(S223=0,L223>K223),1,0)*CE212 -> 1 | CA223: =IF(AND(S223=0,K223=L223),1,0)*CE212 -> 0 | CB223: =BY223-BZ223-CA223 -> 0 | CC223: =L223 -> 2 | CD223: =K223 -> 0 | CE223: =((BZ223*3)+CA223)*CE212 -> 3
B225: 1 | C225: 3 | D225: =$D$7 -> 2022-06-17 | E225: 25 | F225: =F220 -> BASILIO-SP | K225: 6 | L225: 3 | M225: =F221 -> BARBA-SP | S225: =COUNTBLANK(K225:L225) -> 0 | U225: =IF(S225=0,1,0) -> 1 | V225: =IF(AND(S225=0,K225>L225),1,0)*AA212 -> 1 | W225: =IF(AND(S225=0,K225=L225),1,0)*AA212 -> 0 | X225: =U225-V225-W225 -> 0 | Y225: =K225 -> 6 | Z225: =L225 -> 3 | AA225: =((V225*3)+W225)*AA212 -> 3 | AC225: =IF(S225=0,1,0) -> 1 | AD225: =IF(AND(S225=0,L225>K225),1,0)*AI212 -> 0 | AE225: =IF(AND(S225=0,K225=L225),1,0)*AI212 -> 0 | AF225: =AC225-AD225-AE225 -> 1 | AG225: =L225 -> 3 | AH225: =K225 -> 6 | AI225: =((AD225*3)+AE225)*AI212 -> 0 | CH225: 3ª
B226: 1 | E226: =E225+1 -> 26 | F226: =M220 -> ADRIANO BRANQUINHO-PE | K226: 3 | L226: 10 | M226: =M221 -> FLOSI-SP | S226: =COUNTBLANK(K226:L226) -> 0 | AK226: =IF(S226=0,1,0) -> 1 | AL226: =IF(AND(S226=0,K226>L226),1,0)*AQ212 -> 0 | AM226: =IF(AND(S226=0,K226=L226),1,0)*AQ212 -> 0 | AN226: =AK226-AL226-AM226 -> 1 | AO226: =K226 -> 3 | AP226: =L226 -> 10 | AQ226: =((AL226*3)+AM226)*AQ212 -> 0 | AS226: =IF(S226=0,1,0) -> 1 | AT226: =IF(AND(S226=0,L226>K226),1,0)*AY212 -> 1 | AU226: =IF(AND(S226=0,K226=L226),1,0)*AY212 -> 0 | AV226: =AS226-AT226-AU226 -> 0 | AW226: =L226 -> 10 | AX226: =K226 -> 3 | AY226: =((AT226*3)+AU226)*AY212 -> 3
B227: 1 | D227: =$D$19 -> 10:00:00 | E227: =E226+1 -> 27 | F227: =F222 -> ZE LUIZ-RJ | K227: 2 | L227: 0 | M227: =F223 -> CB-RS | S227: =COUNTBLANK(K227:L227) -> 0 | BA227: =IF(S227=0,1,0) -> 1 | BB227: =IF(AND(S227=0,K227>L227),1,0)*BG212 -> 1 | BC227: =IF(AND(S227=0,K227=L227),1,0)*BG212 -> 0 | BD227: =BA227-BB227-BC227 -> 0 | BE227: =K227 -> 2 | BF227: =L227 -> 0 | BG227: =((BB227*3)+BC227)*BG212 -> 3 | BI227: =IF(S227=0,1,0) -> 1 | BJ227: =IF(AND(S227=0,L227>K227),1,0)*BO212 -> 0 | BK227: =IF(AND(S227=0,K227=L227),1,0)*BO212 -> 0 | BL227: =BI227-BJ227-BK227 -> 1 | BM227: =L227 -> 0 | BN227: =K227 -> 2 | BO227: =((BJ227*3)+BK227)*BO212 -> 0
B228: 1 | E228: =E227+1 -> 28 | F228: =M222 -> RUBAO-PR | K228: 5 | L228: 1 | M228: =M223 -> ELCIO BURATINI-MG | S228: =COUNTBLANK(K228:L228) -> 0 | BQ228: =IF(S228=0,1,0) -> 1 | BR228: =IF(AND(S228=0,K228>L228),1,0)*BW212 -> 1 | BS228: =IF(AND(S228=0,K228=L228),1,0)*BW212 -> 0 | BT228: =BQ228-BR228-BS228 -> 0 | BU228: =K228 -> 5 | BV228: =L228 -> 1 | BW228: =((BR228*3)+BS228)*BW212 -> 3 | BY228: =IF(S228=0,1,0) -> 1 | BZ228: =IF(AND(S228=0,L228>K228),1,0)*CE212 -> 0 | CA228: =IF(AND(S228=0,K228=L228),1,0)*CE212 -> 0 | CB228: =BY228-BZ228-CA228 -> 1 | CC228: =L228 -> 1 | CD228: =K228 -> 5 | CE228: =((BZ228*3)+CA228)*CE212 -> 0
B230: 1 | C230: 4 | D230: =$D$7 -> 2022-06-17 | E230: 29 | F230: =F227 -> ZE LUIZ-RJ | K230: 3 | L230: 1 | M230: =M225 -> BARBA-SP | S230: =COUNTBLANK(K230:L230) -> 0 | AC230: =IF(S230=0,1,0) -> 1 | AD230: =IF(AND(S230=0,L230>K230),1,0)*AI212 -> 0 | AE230: =IF(AND(S230=0,K230=L230),1,0)*AI212 -> 0 | AF230: =AC230-AD230-AE230 -> 1 | AG230: =L230 -> 1 | AH230: =K230 -> 3 | AI230: =((AD230*3)+AE230)*AI212 -> 0 | BA230: =IF(S230=0,1,0) -> 1 | BB230: =IF(AND(S230=0,K230>L230),1,0)*BG212 -> 1 | BC230: =IF(AND(S230=0,K230=L230),1,0)*BG212 -> 0 | BD230: =BA230-BB230-BC230 -> 0 | BE230: =K230 -> 3 | BF230: =L230 -> 1 | BG230: =((BB230*3)+BC230)*BG212 -> 3 | CH230: 4ª
B231: 1 | E231: =E230+1 -> 30 | F231: =M227 -> CB-RS | K231: 2 | L231: 7 | M231: =F226 -> ADRIANO BRANQUINHO-PE | S231: =COUNTBLANK(K231:L231) -> 0 | AK231: =IF(S231=0,1,0) -> 1 | AL231: =IF(AND(S231=0,L231>K231),1,0)*AQ212 -> 1 | AM231: =IF(AND(S231=0,K231=L231),1,0)*AQ212 -> 0 | AN231: =AK231-AL231-AM231 -> 0 | AO231: =L231 -> 7 | AP231: =K231 -> 2 | AQ231: =((AL231*3)+AM231)*AQ212 -> 3 | BI231: =IF(S231=0,1,0) -> 1 | BJ231: =IF(AND(S231=0,K231>L231),1,0)*BO212 -> 0 | BK231: =IF(AND(S231=0,K231=L231),1,0)*BO212 -> 0 | BL231: =BI231-BJ231-BK231 -> 1 | BM231: =K231 -> 2 | BN231: =L231 -> 7 | BO231: =((BJ231*3)+BK231)*BO212 -> 0
B232: 1 | D232: =$D$24 -> 10:30:00 | E232: =E231+1 -> 31 | F232: =F228 -> RUBAO-PR | K232: 2 | L232: 4 | M232: =M226 -> FLOSI-SP | S232: =COUNTBLANK(K232:L232) -> 0 | AS232: =IF(S232=0,1,0) -> 1 | AT232: =IF(AND(S232=0,L232>K232),1,0)*AY212 -> 1 | AU232: =IF(AND(S232=0,K232=L232),1,0)*AY212 -> 0 | AV232: =AS232-AT232-AU232 -> 0 | AW232: =L232 -> 4 | AX232: =K232 -> 2 | AY232: =((AT232*3)+AU232)*AY212 -> 3 | BQ232: =IF(S232=0,1,0) -> 1 | BR232: =IF(AND(S232=0,K232>L232),1,0)*BW212 -> 0 | BS232: =IF(AND(S232=0,K232=L232),1,0)*BW212 -> 0 | BT232: =BQ232-BR232-BS232 -> 1 | BU232: =K232 -> 2 | BV232: =L232 -> 4 | BW232: =((BR232*3)+BS232)*BW212 -> 0
B233: 1 | E233: =E232+1 -> 32 | F233: =M228 -> ELCIO BURATINI-MG | K233: 3 | L233: 4 | M233: =F225 -> BASILIO-SP | S233: =COUNTBLANK(K233:L233) -> 0 | U233: =IF(S233=0,1,0) -> 1 | V233: =IF(AND(S233=0,L233>K233),1,0)*AA212 -> 1 | W233: =IF(AND(S233=0,K233=L233),1,0)*AA212 -> 0 | X233: =U233-V233-W233 -> 0 | Y233: =L233 -> 4 | Z233: =K233 -> 3 | AA233: =((V233*3)+W233)*AA212 -> 3 | BY233: =IF(S233=0,1,0) -> 1 | BZ233: =IF(AND(S233=0,K233>L233),1,0)*CE212 -> 0 | CA233: =IF(AND(S233=0,K233=L233),1,0)*CE212 -> 0 | CB233: =BY233-BZ233-CA233 -> 1 | CC233: =K233 -> 3 | CD233: =L233 -> 4 | CE233: =((BZ233*3)+CA233)*CE212 -> 0
B235: 1 | C235: 5 | D235: =$D$7 -> 2022-06-17 | E235: 33 | F235: =F230 -> ZE LUIZ-RJ | K235: 3 | L235: 5 | M235: =M231 -> ADRIANO BRANQUINHO-PE | S235: =COUNTBLANK(K235:L235) -> 0 | AK235: =IF(S235=0,1,0) -> 1 | AL235: =IF(AND(S235=0,L235>K235),1,0)*AQ212 -> 1 | AM235: =IF(AND(S235=0,K235=L235),1,0)*AQ212 -> 0 | AN235: =AK235-AL235-AM235 -> 0 | AO235: =L235 -> 5 | AP235: =K235 -> 3 | AQ235: =((AL235*3)+AM235)*AQ212 -> 3 | BA235: =IF(S235=0,1,0) -> 1 | BB235: =IF(AND(S235=0,K235>L235),1,0)*BG212 -> 0 | BC235: =IF(AND(S235=0,K235=L235),1,0)*BG212 -> 0 | BD235: =BA235-BB235-BC235 -> 1 | BE235: =K235 -> 3 | BF235: =L235 -> 5 | BG235: =((BB235*3)+BC235)*BG212 -> 0 | CH235: 5ª
B236: 1 | E236: =E235+1 -> 34 | F236: =F231 -> CB-RS | K236: 2 | L236: 6 | M236: =M232 -> FLOSI-SP | S236: =COUNTBLANK(K236:L236) -> 0 | AS236: =IF(S236=0,1,0) -> 1 | AT236: =IF(AND(S236=0,L236>K236),1,0)*AY212 -> 1 | AU236: =IF(AND(S236=0,K236=L236),1,0)*AY212 -> 0 | AV236: =AS236-AT236-AU236 -> 0 | AW236: =L236 -> 6 | AX236: =K236 -> 2 | AY236: =((AT236*3)+AU236)*AY212 -> 3 | BI236: =IF(S236=0,1,0) -> 1 | BJ236: =IF(AND(S236=0,K236>L236),1,0)*BO212 -> 0 | BK236: =IF(AND(S236=0,K236=L236),1,0)*BO212 -> 0 | BL236: =BI236-BJ236-BK236 -> 1 | BM236: =K236 -> 2 | BN236: =L236 -> 6 | BO236: =((BJ236*3)+BK236)*BO212 -> 0
B237: 1 | D237: =$D$29 -> 11:00:00 | E237: =E236+1 -> 35 | F237: =F232 -> RUBAO-PR | K237: 4 | L237: 6 | M237: =M233 -> BASILIO-SP | S237: =COUNTBLANK(K237:L237) -> 0 | U237: =IF(S237=0,1,0) -> 1 | V237: =IF(AND(S237=0,L237>K237),1,0)*AA212 -> 1 | W237: =IF(AND(S237=0,K237=L237),1,0)*AA212 -> 0 | X237: =U237-V237-W237 -> 0 | Y237: =L237 -> 6 | Z237: =K237 -> 4 | AA237: =((V237*3)+W237)*AA212 -> 3 | BQ237: =IF(S237=0,1,0) -> 1 | BR237: =IF(AND(S237=0,K237>L237),1,0)*BW212 -> 0 | BS237: =IF(AND(S237=0,K237=L237),1,0)*BW212 -> 0 | BT237: =BQ237-BR237-BS237 -> 1 | BU237: =K237 -> 4 | BV237: =L237 -> 6 | BW237: =((BR237*3)+BS237)*BW212 -> 0
B238: 1 | E238: =E237+1 -> 36 | F238: =F233 -> ELCIO BURATINI-MG | K238: 3 | L238: 7 | M238: =M230 -> BARBA-SP | S238: =COUNTBLANK(K238:L238) -> 0 | AC238: =IF(S238=0,1,0) -> 1 | AD238: =IF(AND(S238=0,L238>K238),1,0)*AI212 -> 1 | AE238: =IF(AND(S238=0,K238=L238),1,0)*AI212 -> 0 | AF238: =AC238-AD238-AE238 -> 0 | AG238: =L238 -> 7 | AH238: =K238 -> 3 | AI238: =((AD238*3)+AE238)*AI212 -> 3 | BY238: =IF(S238=0,1,0) -> 1 | BZ238: =IF(AND(S238=0,K238>L238),1,0)*CE212 -> 0 | CA238: =IF(AND(S238=0,K238=L238),1,0)*CE212 -> 0 | CB238: =BY238-BZ238-CA238 -> 1 | CC238: =K238 -> 3 | CD238: =L238 -> 7 | CE238: =((BZ238*3)+CA238)*CE212 -> 0
B240: 1 | C240: 6 | D240: =$D$7 -> 2022-06-17 | E240: 37 | F240: =F236 -> CB-RS | K240: 2 | L240: 4 | M240: =M238 -> BARBA-SP | S240: =COUNTBLANK(K240:L240) -> 0 | AC240: =IF(S240=0,1,0) -> 1 | AD240: =IF(AND(S240=0,L240>K240),1,0)*AI212 -> 1 | AE240: =IF(AND(S240=0,K240=L240),1,0)*AI212 -> 0 | AF240: =AC240-AD240-AE240 -> 0 | AG240: =L240 -> 4 | AH240: =K240 -> 2 | AI240: =((AD240*3)+AE240)*AI212 -> 3 | BI240: =IF(S240=0,1,0) -> 1 | BJ240: =IF(AND(S240=0,K240>L240),1,0)*BO212 -> 0 | BK240: =IF(AND(S240=0,K240=L240),1,0)*BO212 -> 0 | BL240: =BI240-BJ240-BK240 -> 1 | BM240: =K240 -> 2 | BN240: =L240 -> 4 | BO240: =((BJ240*3)+BK240)*BO212 -> 0 | CH240: 6ª
B241: 1 | E241: =E240+1 -> 38 | F241: =F235 -> ZE LUIZ-RJ | K241: 3 | L241: 2 | M241: =M237 -> BASILIO-SP | S241: =COUNTBLANK(K241:L241) -> 0 | U241: =IF(S241=0,1,0) -> 1 | V241: =IF(AND(S241=0,L241>K241),1,0)*AA212 -> 0 | W241: =IF(AND(S241=0,K241=L241),1,0)*AA212 -> 0 | X241: =U241-V241-W241 -> 1 | Y241: =L241 -> 2 | Z241: =K241 -> 3 | AA241: =((V241*3)+W241)*AA212 -> 0 | BA241: =IF(S241=0,1,0) -> 1 | BB241: =IF(AND(S241=0,K241>L241),1,0)*BG212 -> 1 | BC241: =IF(AND(S241=0,K241=L241),1,0)*BG212 -> 0 | BD241: =BA241-BB241-BC241 -> 0 | BE241: =K241 -> 3 | BF241: =L241 -> 2 | BG241: =((BB241*3)+BC241)*BG212 -> 3
B242: 1 | D242: =$D$34 -> 11:30:00 | E242: =E241+1 -> 39 | F242: =F238 -> ELCIO BURATINI-MG | K242: 1 | L242: 3 | M242: =M236 -> FLOSI-SP | S242: =COUNTBLANK(K242:L242) -> 0 | AS242: =IF(S242=0,1,0) -> 1 | AT242: =IF(AND(S242=0,L242>K242),1,0)*AY212 -> 1 | AU242: =IF(AND(S242=0,K242=L242),1,0)*AY212 -> 0 | AV242: =AS242-AT242-AU242 -> 0 | AW242: =L242 -> 3 | AX242: =K242 -> 1 | AY242: =((AT242*3)+AU242)*AY212 -> 3 | BY242: =IF(S242=0,1,0) -> 1 | BZ242: =IF(AND(S242=0,K242>L242),1,0)*CE212 -> 0 | CA242: =IF(AND(S242=0,K242=L242),1,0)*CE212 -> 0 | CB242: =BY242-BZ242-CA242 -> 1 | CC242: =K242 -> 1 | CD242: =L242 -> 3 | CE242: =((BZ242*3)+CA242)*CE212 -> 0
B243: 1 | E243: =E242+1 -> 40 | F243: =F237 -> RUBAO-PR | K243: 5 | L243: 3 | M243: =M235 -> ADRIANO BRANQUINHO-PE | S243: =COUNTBLANK(K243:L243) -> 0 | AK243: =IF(S243=0,1,0) -> 1 | AL243: =IF(AND(S243=0,L243>K243),1,0)*AQ212 -> 0 | AM243: =IF(AND(S243=0,K243=L243),1,0)*AQ212 -> 0 | AN243: =AK243-AL243-AM243 -> 1 | AO243: =L243 -> 3 | AP243: =K243 -> 5 | AQ243: =((AL243*3)+AM243)*AQ212 -> 0 | BQ243: =IF(S243=0,1,0) -> 1 | BR243: =IF(AND(S243=0,K243>L243),1,0)*BW212 -> 1 | BS243: =IF(AND(S243=0,K243=L243),1,0)*BW212 -> 0 | BT243: =BQ243-BR243-BS243 -> 0 | BU243: =K243 -> 5 | BV243: =L243 -> 3 | BW243: =((BR243*3)+BS243)*BW212 -> 3
B245: 1 | C245: 7 | D245: =$D$7 -> 2022-06-17 | E245: 41 | F245: =F242 -> ELCIO BURATINI-MG | K245: 3 | L245: 2 | M245: =M243 -> ADRIANO BRANQUINHO-PE | S245: =COUNTBLANK(K245:L245) -> 0 | AK245: =IF(S245=0,1,0) -> 1 | AL245: =IF(AND(S245=0,L245>K245),1,0)*AQ212 -> 0 | AM245: =IF(AND(S245=0,K245=L245),1,0)*AQ212 -> 0 | AN245: =AK245-AL245-AM245 -> 1 | AO245: =L245 -> 2 | AP245: =K245 -> 3 | AQ245: =((AL245*3)+AM245)*AQ212 -> 0 | BY245: =IF(S245=0,1,0) -> 1 | BZ245: =IF(AND(S245=0,K245>L245),1,0)*CE212 -> 1 | CA245: =IF(AND(S245=0,K245=L245),1,0)*CE212 -> 0 | CB245: =BY245-BZ245-CA245 -> 0 | CC245: =K245 -> 3 | CD245: =L245 -> 2 | CE245: =((BZ245*3)+CA245)*CE212 -> 3 | CH245: 7ª
B246: 1 | E246: =E245+1 -> 42 | F246: =F240 -> CB-RS | K246: 1 | L246: 9 | M246: =M241 -> BASILIO-SP | S246: =COUNTBLANK(K246:L246) -> 0 | U246: =IF(S246=0,1,0) -> 1 | V246: =IF(AND(S246=0,L246>K246),1,0)*AA212 -> 1 | W246: =IF(AND(S246=0,K246=L246),1,0)*AA212 -> 0 | X246: =U246-V246-W246 -> 0 | Y246: =L246 -> 9 | Z246: =K246 -> 1 | AA246: =((V246*3)+W246)*AA212 -> 3 | BI246: =IF(S246=0,1,0) -> 1 | BJ246: =IF(AND(S246=0,K246>L246),1,0)*BO212 -> 0 | BK246: =IF(AND(S246=0,K246=L246),1,0)*BO212 -> 0 | BL246: =BI246-BJ246-BK246 -> 1 | BM246: =K246 -> 1 | BN246: =L246 -> 9 | BO246: =((BJ246*3)+BK246)*BO212 -> 0
B247: 1 | D247: =$D$39 -> 12:00:00 | E247: =E246+1 -> 43 | F247: =F243 -> RUBAO-PR | K247: 2 | L247: 2 | M247: =M240 -> BARBA-SP | S247: =COUNTBLANK(K247:L247) -> 0 | AC247: =IF(S247=0,1,0) -> 1 | AD247: =IF(AND(S247=0,L247>K247),1,0)*AI212 -> 0 | AE247: =IF(AND(S247=0,K247=L247),1,0)*AI212 -> 1 | AF247: =AC247-AD247-AE247 -> 0 | AG247: =L247 -> 2 | AH247: =K247 -> 2 | AI247: =((AD247*3)+AE247)*AI212 -> 1 | BQ247: =IF(S247=0,1,0) -> 1 | BR247: =IF(AND(S247=0,K247>L247),1,0)*BW212 -> 0 | BS247: =IF(AND(S247=0,K247=L247),1,0)*BW212 -> 1 | BT247: =BQ247-BR247-BS247 -> 0 | BU247: =K247 -> 2 | BV247: =L247 -> 2 | BW247: =((BR247*3)+BS247)*BW212 -> 1
... 643 more rows

Sheet G2
C2: =INFO!$C$1 -> 32º Campeonato Brasileiro Individual
C4: =CONCATENATE('G1'!$I$8, " - 1a Divisão") -> Master - 1a Divisão | R4: ="2a Fase - Grupo " & Q6 -> 2a Fase - Grupo 13
C5: Class | D5: BOTONISTAS | I5: PG | J5: J | K5: V | L5: E | M5: D | N5: GP | O5: GC | P5: SG | Q5: Gr. | R5: Seq | T5: >>> Atenção <<<
C6: =RESUMO!A342 -> 1o G1 | D6: =RESUMO!B342 -> KLEBER-SP | I6: =RESUMO!D342 -> 18 | J6: =RESUMO!E342 -> 7 | K6: =RESUMO!F342 -> 6 | L6: =RESUMO!G342 -> 0 | M6: =RESUMO!H342 -> 1 | N6: =RESUMO!I342 -> 28 | O6: =RESUMO!J342 -> 16 | P6: =RESUMO!K342 -> 12 | Q6: 13 | R6: 1 | T6: Para completar o cálculo da 2a Fase proceda da seguinte forma:
C7: =RESUMO!A358 -> 2o G4 | D7: =RESUMO!B358 -> MAICON-PR | I7: =RESUMO!D358 -> 16 | J7: =RESUMO!E358 -> 7 | K7: =RESUMO!F358 -> 5 | L7: =RESUMO!G358 -> 1 | M7: =RESUMO!H358 -> 1 | N7: =RESUMO!I358 -> 35 | O7: =RESUMO!J358 -> 24 | P7: =RESUMO!K358 -> 11 | Q7: 13 | R7: 5 | T7: 1) Coloque os Botonistas do mesmo Estado/Clube dentro de
C8: =RESUMO!A363 -> 2o G5 | D8: =RESUMO!B363 -> FLOSI-SP | I8: =RESUMO!D363 -> 16 | J8: =RESUMO!E363 -> 7 | K8: =RESUMO!F363 -> 5 | L8: =RESUMO!G363 -> 1 | M8: =RESUMO!H363 -> 1 | N8: =RESUMO!I363 -> 34 | O8: =RESUMO!J363 -> 21 | P8: =RESUMO!K363 -> 13 | Q8: 13 | R8: 2 | T8: cada bloco.
C9: =RESUMO!A379 -> 3o G8 | D9: =RESUMO!B379 -> TERUEL-SP | I9: =RESUMO!D379 -> 13 | J9: =RESUMO!E379 -> 7 | K9: =RESUMO!F379 -> 4 | L9: =RESUMO!G379 -> 1 | M9: =RESUMO!H379 -> 2 | N9: =RESUMO!I379 -> 43 | O9: =RESUMO!J379 -> 28 | P9: =RESUMO!K379 -> 15 | Q9: 13 | R9: 4 | T9: • 2 botonistas: posições 1 e 4 ou 2 e 3 ou 5 e 8 ou 6 e 7
C10: =RESUMO!A384 -> 3o G9 | D10: =RESUMO!B384 -> RONY-PR | I10: =RESUMO!D384 -> 15 | J10: =RESUMO!E384 -> 7 | K10: =RESUMO!F384 -> 5 | L10: =RESUMO!G384 -> 0 | M10: =RESUMO!H384 -> 2 | N10: =RESUMO!I384 -> 27 | O10: =RESUMO!J384 -> 17 | P10: =RESUMO!K384 -> 10 | Q10: 13 | R10: 8 | T10: • 3 botonistas: posições 1, 2 e 4 ou 5, 6 e 8
C11: =RESUMO!A400 -> 4o G12 | D11: =RESUMO!B400 -> ELIAHOU-SP | I11: =RESUMO!D400 -> 12 | J11: =RESUMO!E400 -> 7 | K11: =RESUMO!F400 -> 3 | L11: =RESUMO!G400 -> 3 | M11: =RESUMO!H400 -> 1 | N11: =RESUMO!I400 -> 28 | O11: =RESUMO!J400 -> 22 | P11: =RESUMO!K400 -> 6 | Q11: 13 | R11: 3 | T11: • 4 botonistas: posições 1 a 4 ou 5 a 8
C12: =RESUMO!A396 -> 5o G11 | D12: =RESUMO!B396 -> EVANIR-SP | I12: =RESUMO!D396 -> 9 | J12: =RESUMO!E396 -> 7 | K12: =RESUMO!F396 -> 3 | L12: =RESUMO!G396 -> 0 | M12: =RESUMO!H396 -> 4 | N12: =RESUMO!I396 -> 25 | O12: =RESUMO!J396 -> 24 | P12: =RESUMO!K396 -> 1 | Q12: 13 | R12: 6
C13: =RESUMO!A402 -> 1º M.6º | D13: =RESUMO!B402 -> ELCIO BURATINI-MG | I13: =RESUMO!D402 -> 9 | J13: =RESUMO!E402 -> 7 | K13: =RESUMO!F402 -> 3 | L13: =RESUMO!G402 -> 0 | M13: =RESUMO!H402 -> 4 | N13: =RESUMO!I402 -> 15 | O13: =RESUMO!J402 -> 22 | P13: =RESUMO!K402 -> -7 | Q13: 13 | R13: 7
C14: =$C$4 -> Master - 1a Divisão | R14: ="2a Fase - Grupo " & Q16 -> 2a Fase - Grupo 14
C15: Class | D15: BOTONISTAS | I15: PG | J15: J | K15: V | L15: E | M15: D | N15: GP | O15: GC | P15: SG | Q15: Gr. | R15: Seq
C16: =RESUMO!A347 -> 1o G2 | D16: =RESUMO!B347 -> DALLA STELLA-PR | I16: =RESUMO!D347 -> 16 | J16: =RESUMO!E347 -> 7 | K16: =RESUMO!F347 -> 5 | L16: =RESUMO!G347 -> 1 | M16: =RESUMO!H347 -> 1 | N16: =RESUMO!I347 -> 41 | O16: =RESUMO!J347 -> 25 | P16: =RESUMO!K347 -> 16 | Q16: 14 | R16: 1
C17: =RESUMO!A353 -> 2o G3 | D17: =RESUMO!B353 -> LUIZ CARLOS-RJ | I17: =RESUMO!D353 -> 12 | J17: =RESUMO!E353 -> 7 | K17: =RESUMO!F353 -> 3 | L17: =RESUMO!G353 -> 3 | M17: =RESUMO!H353 -> 1 | N17: =RESUMO!I353 -> 28 | O17: =RESUMO!J353 -> 24 | P17: =RESUMO!K353 -> 4 | Q17: 14 | R17: 2
C18: =RESUMO!A368 -> 2o G6 | D18: =RESUMO!B368 -> ANOEL-SP | I18: =RESUMO!D368 -> 15 | J18: =RESUMO!E368 -> 7 | K18: =RESUMO!F368 -> 5 | L18: =RESUMO!G368 -> 0 | M18: =RESUMO!H368 -> 2 | N18: =RESUMO!I368 -> 26 | O18: =RESUMO!J368 -> 13 | P18: =RESUMO!K368 -> 13 | Q18: 14 | R18: 5
C19: =RESUMO!A374 -> 3o G7 | D19: =RESUMO!B374 -> HEAVY-MG | I19: =RESUMO!D374 -> 15 | J19: =RESUMO!E374 -> 7 | K19: =RESUMO!F374 -> 5 | L19: =RESUMO!G374 -> 0 | M19: =RESUMO!H374 -> 2 | N19: =RESUMO!I374 -> 25 | O19: =RESUMO!J374 -> 23 | P19: =RESUMO!K374 -> 2 | Q19: 14 | R19: 6
C20: =RESUMO!A389 -> 3o G10 | D20: =RESUMO!B389 -> SERGIO PIVATTO-SP | I20: =RESUMO!D389 -> 14 | J20: =RESUMO!E389 -> 7 | K20: =RESUMO!F389 -> 4 | L20: =RESUMO!G389 -> 2 | M20: =RESUMO!H389 -> 1 | N20: =RESUMO!I389 -> 25 | O20: =RESUMO!J389 -> 17 | P20: =RESUMO!K389 -> 8 | Q20: 14 | R20: 7
C21: =RESUMO!A395 -> 4o G11 | D21: =RESUMO!B395 -> LUIZ RICARDO-PR | I21: =RESUMO!D395 -> 12 | J21: =RESUMO!E395 -> 7 | K21: =RESUMO!F395 -> 4 | L21: =RESUMO!G395 -> 0 | M21: =RESUMO!H395 -> 3 | N21: =RESUMO!I395 -> 28 | O21: =RESUMO!J395 -> 25 | P21: =RESUMO!K395 -> 3 | Q21: 14 | R21: 4
C22: =RESUMO!A401 -> 5o G12 | D22: =RESUMO!B401 -> BAD-RJ | I22: =RESUMO!D401 -> 10 | J22: =RESUMO!E401 -> 7 | K22: =RESUMO!F401 -> 3 | L22: =RESUMO!G401 -> 1 | M22: =RESUMO!H401 -> 3 | N22: =RESUMO!I401 -> 28 | O22: =RESUMO!J401 -> 24 | P22: =RESUMO!K401 -> 4 | Q22: 14 | R22: 3
C23: =RESUMO!A403 -> 2º M.6º | D23: =RESUMO!B403 -> MARCELO LEITE-SP | I23: =RESUMO!D403 -> 9 | J23: =RESUMO!E403 -> 7 | K23: =RESUMO!F403 -> 3 | L23: =RESUMO!G403 -> 0 | M23: =RESUMO!H403 -> 4 | N23: =RESUMO!I403 -> 22 | O23: =RESUMO!J403 -> 36 | P23: =RESUMO!K403 -> -14 | Q23: 14 | R23: 8
C24: =$C$4 -> Master - 1a Divisão | R24: ="2a Fase - Grupo " & Q26 -> 2a Fase - Grupo 15
C25: Class | D25: BOTONISTAS | I25: PG | J25: J | K25: V | L25: E | M25: D | N25: GP | O25: GC | P25: SG | Q25: Gr. | R25: Seq
C26: =RESUMO!A352 -> 1o G3 | D26: =RESUMO!B352 -> HENRIQUE-SP | I26: =RESUMO!D352 -> 15 | J26: =RESUMO!E352 -> 7 | K26: =RESUMO!F352 -> 5 | L26: =RESUMO!G352 -> 0 | M26: =RESUMO!H352 -> 2 | N26: =RESUMO!I352 -> 22 | O26: =RESUMO!J352 -> 14 | P26: =RESUMO!K352 -> 8 | Q26: 15 | R26: 1
C27: =RESUMO!A348 -> 2o G2 | D27: =RESUMO!B348 -> PINNA-SP | I27: =RESUMO!D348 -> 15 | J27: =RESUMO!E348 -> 7 | K27: =RESUMO!F348 -> 5 | L27: =RESUMO!G348 -> 0 | M27: =RESUMO!H348 -> 2 | N27: =RESUMO!I348 -> 33 | O27: =RESUMO!J348 -> 23 | P27: =RESUMO!K348 -> 10 | Q27: 15 | R27: 2
C28: =RESUMO!A373 -> 2o G7 | D28: =RESUMO!B373 -> RONALDO-PR | I28: =RESUMO!D373 -> 15 | J28: =RESUMO!E373 -> 7 | K28: =RESUMO!F373 -> 5 | L28: =RESUMO!G373 -> 0 | M28: =RESUMO!H373 -> 2 | N28: =RESUMO!I373 -> 20 | O28: =RESUMO!J373 -> 17 | P28: =RESUMO!K373 -> 3 | Q28: 15 | R28: 3
C29: =RESUMO!A369 -> 3o G6 | D29: =RESUMO!B369 -> CAU MENDES-RJ | I29: =RESUMO!D369 -> 13 | J29: =RESUMO!E369 -> 7 | K29: =RESUMO!F369 -> 4 | L29: =RESUMO!G369 -> 1 | M29: =RESUMO!H369 -> 2 | N29: =RESUMO!I369 -> 27 | O29: =RESUMO!J369 -> 30 | P29: =RESUMO!K369 -> -3 | Q29: 15 | R29: 5
C30: =RESUMO!A394 -> 3o G11 | D30: =RESUMO!B394 -> MANOEL MOURA-CE | I30: =RESUMO!D394 -> 15 | J30: =RESUMO!E394 -> 7 | K30: =RESUMO!F394 -> 5 | L30: =RESUMO!G394 -> 0 | M30: =RESUMO!H394 -> 2 | N30: =RESUMO!I394 -> 31 | O30: =RESUMO!J394 -> 22 | P30: =RESUMO!K394 -> 9 | Q30: 15 | R30: 6
C31: =RESUMO!A390 -> 4o G10 | D31: =RESUMO!B390 -> SETTON-AL | I31: =RESUMO!D390 -> 9 | J31: =RESUMO!E390 -> 7 | K31: =RESUMO!F390 -> 2 | L31: =RESUMO!G390 -> 3 | M31: =RESUMO!H390 -> 2 | N31: =RESUMO!I390 -> 23 | O31: =RESUMO!J390 -> 20 | P31: =RESUMO!K390 -> 3 | Q31: 15 | R31: 7
C32: =RESUMO!A346 -> 5o G1 | D32: =RESUMO!B346 -> IVAN-GO | I32: =RESUMO!D346 -> 10 | J32: =RESUMO!E346 -> 7 | K32: =RESUMO!F346 -> 3 | L32: =RESUMO!G346 -> 1 | M32: =RESUMO!H346 -> 3 | N32: =RESUMO!I346 -> 20 | O32: =RESUMO!J346 -> 23 | P32: =RESUMO!K346 -> -3 | Q32: 15 | R32: 8
C33: =RESUMO!A404 -> 3º M.6º | D33: =RESUMO!B404 -> PATERNO-SP | I33: =RESUMO!D404 -> 8 | J33: =RESUMO!E404 -> 7 | K33: =RESUMO!F404 -> 2 | L33: =RESUMO!G404 -> 2 | M33: =RESUMO!H404 -> 3 | N33: =RESUMO!I404 -> 23 | O33: =RESUMO!J404 -> 23 | P33: =RESUMO!K404 -> 0 | Q33: 15 | R33: 4
C34: =$C$4 -> Master - 1a Divisão | R34: ="2a Fase - Grupo " & Q36 -> 2a Fase - Grupo 16
C35: Class | D35: BOTONISTAS | I35: PG | J35: J | K35: V | L35: E | M35: D | N35: GP | O35: GC | P35: SG | Q35: Gr. | R35: Seq
C36: =RESUMO!A357 -> 1o G4 | D36: =RESUMO!B357 -> SAMMARTINO-SP | I36: =RESUMO!D357 -> 17 | J36: =RESUMO!E357 -> 7 | K36: =RESUMO!F357 -> 5 | L36: =RESUMO!G357 -> 2 | M36: =RESUMO!H357 -> 0 | N36: =RESUMO!I357 -> 39 | O36: =RESUMO!J357 -> 24 | P36: =RESUMO!K357 -> 15 | Q36: 16 | R36: 1
C37: =RESUMO!A343 -> 2o G1 | D37: =RESUMO!B343 -> JOSE CARLOS-RJ | I37: =RESUMO!D343 -> 16 | J37: =RESUMO!E343 -> 7 | K37: =RESUMO!F343 -> 5 | L37: =RESUMO!G343 -> 1 | M37: =RESUMO!H343 -> 1 | N37: =RESUMO!I343 -> 29 | O37: =RESUMO!J343 -> 16 | P37: =RESUMO!K343 -> 13 | Q37: 16 | R37: 5
C38: =RESUMO!A378 -> 2o G8 | D38: =RESUMO!B378 -> RAMOS-RJ | I38: =RESUMO!D378 -> 14 | J38: =RESUMO!E378 -> 7 | K38: =RESUMO!F378 -> 4 | L38: =RESUMO!G378 -> 2 | M38: =RESUMO!H378 -> 1 | N38: =RESUMO!I378 -> 37 | O38: =RESUMO!J378 -> 24 | P38: =RESUMO!K378 -> 13 | Q38: 16 | R38: 6
C39: =RESUMO!A364 -> 3o G5 | D39: =RESUMO!B364 -> RUBAO-PR | I39: =RESUMO!D364 -> 13 | J39: =RESUMO!E364 -> 7 | K39: =RESUMO!F364 -> 4 | L39: =RESUMO!G364 -> 1 | M39: =RESUMO!H364 -> 2 | N39: =RESUMO!I364 -> 25 | O39: =RESUMO!J364 -> 20 | P39: =RESUMO!K364 -> 5 | Q39: 16 | R39: 4
C40: =RESUMO!A399 -> 3o G12 | D40: =RESUMO!B399 -> MARCELO PAIVA-SP | I40: =RESUMO!D399 -> 13 | J40: =RESUMO!E399 -> 7 | K40: =RESUMO!F399 -> 4 | L40: =RESUMO!G399 -> 1 | M40: =RESUMO!H399 -> 2 | N40: =RESUMO!I399 -> 28 | O40: =RESUMO!J399 -> 23 | P40: =RESUMO!K399 -> 5 | Q40: 16 | R40: 2
C41: =RESUMO!A385 -> 4o G9 | D41: =RESUMO!B385 -> NALDO CANTUARIA-RJ | I41: =RESUMO!D385 -> 15 | J41: =RESUMO!E385 -> 7 | K41: =RESUMO!F385 -> 5 | L41: =RESUMO!G385 -> 0 | M41: =RESUMO!H385 -> 2 | N41: =RESUMO!I385 -> 20 | O41: =RESUMO!J385 -> 16 | P41: =RESUMO!K385 -> 4 | Q41: 16 | R41: 7
C42: =RESUMO!A351 -> 5o G2 | D42: =RESUMO!B351 -> RAVANELLI-SP | I42: =RESUMO!D351 -> 9 | J42: =RESUMO!E351 -> 7 | K42: =RESUMO!F351 -> 3 | L42: =RESUMO!G351 -> 0 | M42: =RESUMO!H351 -> 4 | N42: =RESUMO!I351 -> 22 | O42: =RESUMO!J351 -> 22 | P42: =RESUMO!K351 -> 0 | Q42: 16 | R42: 3
C43: =RESUMO!A405 -> 4º M.6º | D43: =RESUMO!B405 -> FLAVIO AYRES-SC | I43: =RESUMO!D405 -> 7 | J43: =RESUMO!E405 -> 7 | K43: =RESUMO!F405 -> 2 | L43: =RESUMO!G405 -> 1 | M43: =RESUMO!H405 -> 4 | N43: =RESUMO!I405 -> 21 | O43: =RESUMO!J405 -> 21 | P43: =RESUMO!K405 -> 0 | Q43: 16 | R43: 8
C44: =$C$4 -> Master - 1a Divisão | R44: ="2a Fase - Grupo " & Q46 -> 2a Fase - Grupo 17
C45: Class | D45: BOTONISTAS | I45: PG | J45: J | K45: V | L45: E | M45: D | N45: GP | O45: GC | P45: SG | Q45: Gr. | R45: Seq | T45: >>> Atenção <<<
C46: =RESUMO!A362 -> 1o G5 | D46: =RESUMO!B362 -> BASILIO-SP | I46: =RESUMO!D362 -> 16 | J46: =RESUMO!E362 -> 7 | K46: =RESUMO!F362 -> 5 | L46: =RESUMO!G362 -> 1 | M46: =RESUMO!H362 -> 1 | N46: =RESUMO!I362 -> 35 | O46: =RESUMO!J362 -> 19 | P46: =RESUMO!K362 -> 16 | Q46: 17 | R46: 1 | T46: Para completar o cálculo da 2a Fase proceda da seguinte forma:
C47: =RESUMO!A397 -> 1o G12 | D47: =RESUMO!B397 -> MARCELLUS-PE | I47: =RESUMO!D397 -> 15 | J47: =RESUMO!E397 -> 7 | K47: =RESUMO!F397 -> 5 | L47: =RESUMO!G397 -> 0 | M47: =RESUMO!H397 -> 2 | N47: =RESUMO!I397 -> 29 | O47: =RESUMO!J397 -> 23 | P47: =RESUMO!K397 -> 6 | Q47: 17 | R47: 5 | T47: 1) Coloque os Botonistas do mesmo Estado/Clube dentro de
C48: =RESUMO!A383 -> 2o G9 | D48: =RESUMO!B383 -> FLAVIO MORAES-SP | I48: =RESUMO!D383 -> 16 | J48: =RESUMO!E383 -> 7 | K48: =RESUMO!F383 -> 5 | L48: =RESUMO!G383 -> 1 | M48: =RESUMO!H383 -> 1 | N48: =RESUMO!I383 -> 33 | O48: =RESUMO!J383 -> 16 | P48: =RESUMO!K383 -> 17 | Q48: 17 | R48: 2 | T48: cada bloco.
C49: =RESUMO!A359 -> 3o G4 | D49: =RESUMO!B359 -> OLINO-SP | I49: =RESUMO!D359 -> 15 | J49: =RESUMO!E359 -> 7 | K49: =RESUMO!F359 -> 5 | L49: =RESUMO!G359 -> 0 | M49: =RESUMO!H359 -> 2 | N49: =RESUMO!I359 -> 31 | O49: =RESUMO!J359 -> 23 | P49: =RESUMO!K359 -> 8 | Q49: 17 | R49: 3 | T49: • 2 botonistas: posições 1 e 4 ou 2 e 3 ou 5 e 8 ou 6 e 7
C50: =RESUMO!A345 -> 4o G1 | D50: =RESUMO!B345 -> MARIO NOVAES-SP | I50: =RESUMO!D345 -> 11 | J50: =RESUMO!E345 -> 7 | K50: =RESUMO!F345 -> 3 | L50: =RESUMO!G345 -> 2 | M50: =RESUMO!H345 -> 2 | N50: =RESUMO!I345 -> 29 | O50: =RESUMO!J345 -> 24 | P50: =RESUMO!K345 -> 5 | Q50: 17 | R50: 4 | T50: • 3 botonistas: posições 1, 2 e 4 ou 5, 6 e 8
C51: =RESUMO!A380 -> 4o G8 | D51: =RESUMO!B380 -> ANDRE LEAL-PR | I51: =RESUMO!D380 -> 13 | J51: =RESUMO!E380 -> 7 | K51: =RESUMO!F380 -> 4 | L51: =RESUMO!G380 -> 1 | M51: =RESUMO!H380 -> 2 | N51: =RESUMO!I380 -> 36 | O51: =RESUMO!J380 -> 30 | P51: =RESUMO!K380 -> 6 | Q51: 17 | R51: 6 | T51: • 4 botonistas: posições 1 a 4 ou 5 a 8
C52: =RESUMO!A356 -> 5o G3 | D52: =RESUMO!B356 -> GERALDO ROUXINOL-PE | I52: =RESUMO!D356 -> 8 | J52: =RESUMO!E356 -> 7 | K52: =RESUMO!F356 -> 2 | L52: =RESUMO!G356 -> 2 | M52: =RESUMO!H356 -> 3 | N52: =RESUMO!I356 -> 21 | O52: =RESUMO!J356 -> 20 | P52: =RESUMO!K356 -> 1 | Q52: 17 | R52: 8
C53: =RESUMO!A391 -> 5o G10 | D53: =RESUMO!B391 -> CESAR VIDAL-RS | I53: =RESUMO!D391 -> 7 | J53: =RESUMO!E391 -> 7 | K53: =RESUMO!F391 -> 2 | L53: =RESUMO!G391 -> 1 | M53: =RESUMO!H391 -> 4 | N53: =RESUMO!I391 -> 21 | O53: =RESUMO!J391 -> 24 | P53: =RESUMO!K391 -> -3 | Q53: 17 | R53: 7
C54: =$C$4 -> Master - 1a Divisão | R54: ="2a Fase - Grupo " & Q56 -> 2a Fase - Grupo 18
C55: Class | D55: BOTONISTAS | I55: PG | J55: J | K55: V | L55: E | M55: D | N55: GP | O55: GC | P55: SG | Q55: Gr. | R55: Seq
C56: =RESUMO!A367 -> 1o G6 | D56: =RESUMO!B367 -> CORUJEIRA-SP | I56: =RESUMO!D367 -> 18 | J56: =RESUMO!E367 -> 7 | K56: =RESUMO!F367 -> 6 | L56: =RESUMO!G367 -> 0 | M56: =RESUMO!H367 -> 1 | N56: =RESUMO!I367 -> 30 | O56: =RESUMO!J367 -> 16 | P56: =RESUMO!K367 -> 14 | Q56: 18 | R56: 1
C57: =RESUMO!A392 -> 1o G11 | D57: =RESUMO!B392 -> BRYANT-SP | I57: =RESUMO!D392 -> 18 | J57: =RESUMO!E392 -> 7 | K57: =RESUMO!F392 -> 6 | L57: =RESUMO!G392 -> 0 | M57: =RESUMO!H392 -> 1 | N57: =RESUMO!I392 -> 39 | O57: =RESUMO!J392 -> 21 | P57: =RESUMO!K392 -> 18 | Q57: 18 | R57: 2
C58: =RESUMO!A388 -> 2o G10 | D58: =RESUMO!B388 -> ARMANDO-RJ | I58: =RESUMO!D388 -> 16 | J58: =RESUMO!E388 -> 7 | K58: =RESUMO!F388 -> 5 | L58: =RESUMO!G388 -> 1 | M58: =RESUMO!H388 -> 1 | N58: =RESUMO!I388 -> 28 | O58: =RESUMO!J388 -> 17 | P58: =RESUMO!K388 -> 11 | Q58: 18 | R58: 5
C59: =RESUMO!A354 -> 3o G3 | D59: =RESUMO!B354 -> BITTENCOURT-PR | I59: =RESUMO!D354 -> 12 | J59: =RESUMO!E354 -> 7 | K59: =RESUMO!F354 -> 3 | L59: =RESUMO!G354 -> 3 | M59: =RESUMO!H354 -> 1 | N59: =RESUMO!I354 -> 25 | O59: =RESUMO!J354 -> 23 | P59: =RESUMO!K354 -> 2 | Q59: 18 | R59: 6
C60: =RESUMO!A350 -> 4o G2 | D60: =RESUMO!B350 -> IVO JR-SC | I60: =RESUMO!D350 -> 13 | J60: =RESUMO!E350 -> 7 | K60: =RESUMO!F350 -> 4 | L60: =RESUMO!G350 -> 1 | M60: =RESUMO!H350 -> 2 | N60: =RESUMO!I350 -> 30 | O60: =RESUMO!J350 -> 17 | P60: =RESUMO!K350 -> 13 | Q60: 18 | R60: 7
C61: =RESUMO!A375 -> 4o G7 | D61: =RESUMO!B375 -> MARCO ANTONIO-RJ | I61: =RESUMO!D375 -> 13 | J61: =RESUMO!E375 -> 7 | K61: =RESUMO!F375 -> 4 | L61: =RESUMO!G375 -> 1 | M61: =RESUMO!H375 -> 2 | N61: =RESUMO!I375 -> 29 | O61: =RESUMO!J375 -> 25 | P61: =RESUMO!K375 -> 4 | Q61: 18 | R61: 8
C62: =RESUMO!A361 -> 5o G4 | D62: =RESUMO!B361 -> DEMETRIUS-SP | I62: =RESUMO!D361 -> 6 | J62: =RESUMO!E361 -> 7 | K62: =RESUMO!F361 -> 2 | L62: =RESUMO!G361 -> 0 | M62: =RESUMO!H361 -> 5 | N62: =RESUMO!I361 -> 19 | O62: =RESUMO!J361 -> 33 | P62: =RESUMO!K361 -> -14 | Q62: 18 | R62: 3
C63: =RESUMO!A386 -> 5o G9 | D63: =RESUMO!B386 -> GIOVANNI-MG | I63: =RESUMO!D386 -> 10 | J63: =RESUMO!E386 -> 7 | K63: =RESUMO!F386 -> 3 | L63: =RESUMO!G386 -> 1 | M63: =RESUMO!H386 -> 3 | N63: =RESUMO!I386 -> 24 | O63: =RESUMO!J386 -> 21 | P63: =RESUMO!K386 -> 3 | Q63: 18 | R63: 4
C64: =$C$4 -> Master - 1a Divisão | R64: ="2a Fase - Grupo " & Q66 -> 2a Fase - Grupo 19
C65: Class | D65: BOTONISTAS | I65: PG | J65: J | K65: V | L65: E | M65: D | N65: GP | O65: GC | P65: SG | Q65: Gr. | R65: Seq
C66: =RESUMO!A372 -> 1o G7 | D66: =RESUMO!B372 -> RODOLF-SP | I66: =RESUMO!D372 -> 18 | J66: =RESUMO!E372 -> 7 | K66: =RESUMO!F372 -> 6 | L66: =RESUMO!G372 -> 0 | M66: =RESUMO!H372 -> 1 | N66: =RESUMO!I372 -> 32 | O66: =RESUMO!J372 -> 17 | P66: =RESUMO!K372 -> 15 | Q66: 19 | R66: 1
C67: =RESUMO!A387 -> 1o G10 | D67: =RESUMO!B387 -> EDER SERGIO-PE | I67: =RESUMO!D387 -> 16 | J67: =RESUMO!E387 -> 7 | K67: =RESUMO!F387 -> 5 | L67: =RESUMO!G387 -> 1 | M67: =RESUMO!H387 -> 1 | N67: =RESUMO!I387 -> 35 | O67: =RESUMO!J387 -> 24 | P67: =RESUMO!K387 -> 11 | Q67: 19 | R67: 5
C68: =RESUMO!A393 -> 2o G11 | D68: =RESUMO!B393 -> CELSO-SP | I68: =RESUMO!D393 -> 18 | J68: =RESUMO!E393 -> 7 | K68: =RESUMO!F393 -> 6 | L68: =RESUMO!G393 -> 0 | M68: =RESUMO!H393 -> 1 | N68: =RESUMO!I393 -> 35 | O68: =RESUMO!J393 -> 24 | P68: =RESUMO!K393 -> 11 | Q68: 19 | R68: 2
C69: =RESUMO!A349 -> 3o G2 | D69: =RESUMO!B349 -> SIRIO-SP | I69: =RESUMO!D349 -> 14 | J69: =RESUMO!E349 -> 7 | K69: =RESUMO!F349 -> 4 | L69: =RESUMO!G349 -> 2 | M69: =RESUMO!H349 -> 1 | N69: =RESUMO!I349 -> 41 | O69: =RESUMO!J349 -> 24 | P69: =RESUMO!K349 -> 17 | Q69: 19 | R69: 3
C70: =RESUMO!A355 -> 4o G3 | D70: =RESUMO!B355 -> BABY-SP | I70: =RESUMO!D355 -> 9 | J70: =RESUMO!E355 -> 7 | K70: =RESUMO!F355 -> 2 | L70: =RESUMO!G355 -> 3 | M70: =RESUMO!H355 -> 2 | N70: =RESUMO!I355 -> 25 | O70: =RESUMO!J355 -> 26 | P70: =RESUMO!K355 -> -1 | Q70: 19 | R70: 4
C71: =RESUMO!A370 -> 4o G6 | D71: =RESUMO!B370 -> ROBERTO ALVES-AL | I71: =RESUMO!D370 -> 12 | J71: =RESUMO!E370 -> 7 | K71: =RESUMO!F370 -> 4 | L71: =RESUMO!G370 -> 0 | M71: =RESUMO!H370 -> 3 | N71: =RESUMO!I370 -> 25 | O71: =RESUMO!J370 -> 18 | P71: =RESUMO!K370 -> 7 | Q71: 19 | R71: 6
C72: =RESUMO!A366 -> 5o G5 | D72: =RESUMO!B366 -> ZE LUIZ-RJ | I72: =RESUMO!D366 -> 9 | J72: =RESUMO!E366 -> 7 | K72: =RESUMO!F366 -> 3 | L72: =RESUMO!G366 -> 0 | M72: =RESUMO!H366 -> 4 | N72: =RESUMO!I366 -> 17 | O72: =RESUMO!J366 -> 18 | P72: =RESUMO!K366 -> -1 | Q72: 19 | R72: 7
C73: =RESUMO!A381 -> 5o G8 | D73: =RESUMO!B381 -> HUMBERTO SECURAO-PE | I73: =RESUMO!D381 -> 9 | J73: =RESUMO!E381 -> 7 | K73: =RESUMO!F381 -> 3 | L73: =RESUMO!G381 -> 0 | M73: =RESUMO!H381 -> 4 | N73: =RESUMO!I381 -> 34 | O73: =RESUMO!J381 -> 30 | P73: =RESUMO!K381 -> 4 | Q73: 19 | R73: 8
C74: =$C$4 -> Master - 1a Divisão | R74: ="2a Fase - Grupo " & Q76 -> 2a Fase - Grupo 20
C75: Class | D75: BOTONISTAS | I75: PG | J75: J | K75: V | L75: E | M75: D | N75: GP | O75: GC | P75: SG | Q75: Gr. | R75: Seq
C76: =RESUMO!A377 -> 1o G8 | D76: =RESUMO!B377 -> DEMA-SP | I76: =RESUMO!D377 -> 17 | J76: =RESUMO!E377 -> 7 | K76: =RESUMO!F377 -> 5 | L76: =RESUMO!G377 -> 2 | M76: =RESUMO!H377 -> 0 | N76: =RESUMO!I377 -> 35 | O76: =RESUMO!J377 -> 23 | P76: =RESUMO!K377 -> 12 | Q76: 20 | R76: 1
C77: =RESUMO!A382 -> 1o G9 | D77: =RESUMO!B382 -> WALNIR-SP | I77: =RESUMO!D382 -> 18 | J77: =RESUMO!E382 -> 7 | K77: =RESUMO!F382 -> 6 | L77: =RESUMO!G382 -> 0 | M77: =RESUMO!H382 -> 1 | N77: =RESUMO!I382 -> 36 | O77: =RESUMO!J382 -> 17 | P77: =RESUMO!K382 -> 19 | Q77: 20 | R77: 2
C78: =RESUMO!A398 -> 2o G12 | D78: =RESUMO!B398 -> MARCO PAI-SP | I78: =RESUMO!D398 -> 15 | J78: =RESUMO!E398 -> 7 | K78: =RESUMO!F398 -> 4 | L78: =RESUMO!G398 -> 3 | M78: =RESUMO!H398 -> 0 | N78: =RESUMO!I398 -> 29 | O78: =RESUMO!J398 -> 20 | P78: =RESUMO!K398 -> 9 | Q78: 20 | R78: 3
C79: =RESUMO!A344 -> 3o G1 | D79: =RESUMO!B344 -> JOAQUIM-AL | I79: =RESUMO!D344 -> 12 | J79: =RESUMO!E344 -> 7 | K79: =RESUMO!F344 -> 4 | L79: =RESUMO!G344 -> 0 | M79: =RESUMO!H344 -> 3 | N79: =RESUMO!I344 -> 25 | O79: =RESUMO!J344 -> 20 | P79: =RESUMO!K344 -> 5 | Q79: 20 | R79: 5
C80: =RESUMO!A360 -> 4o G4 | D80: =RESUMO!B360 -> PENTINHO-PE | I80: =RESUMO!D360 -> 14 | J80: =RESUMO!E360 -> 7 | K80: =RESUMO!F360 -> 4 | L80: =RESUMO!G360 -> 2 | M80: =RESUMO!H360 -> 1 | N80: =RESUMO!I360 -> 39 | O80: =RESUMO!J360 -> 30 | P80: =RESUMO!K360 -> 9 | Q80: 20 | R80: 6
C81: =RESUMO!A365 -> 4o G5 | D81: =RESUMO!B365 -> BARBA-SP | I81: =RESUMO!D365 -> 11 | J81: =RESUMO!E365 -> 7 | K81: =RESUMO!F365 -> 3 | L81: =RESUMO!G365 -> 2 | M81: =RESUMO!H365 -> 2 | N81: =RESUMO!I365 -> 28 | O81: =RESUMO!J365 -> 24 | P81: =RESUMO!K365 -> 4 | Q81: 20 | R81: 4
C82: =RESUMO!A371 -> 5o G6 | D82: =RESUMO!B371 -> PAULO SCHMIDT-MG | I82: =RESUMO!D371 -> 10 | J82: =RESUMO!E371 -> 7 | K82: =RESUMO!F371 -> 3 | L82: =RESUMO!G371 -> 1 | M82: =RESUMO!H371 -> 3 | N82: =RESUMO!I371 -> 18 | O82: =RESUMO!J371 -> 22 | P82: =RESUMO!K371 -> -4 | Q82: 20 | R82: 7
C83: =RESUMO!A376 -> 5o G7 | D83: =RESUMO!B376 -> MARCELO ARANHA-SP | I83: =RESUMO!D376 -> 9 | J83: =RESUMO!E376 -> 7 | K83: =RESUMO!F376 -> 3 | L83: =RESUMO!G376 -> 0 | M83: =RESUMO!H376 -> 4 | N83: =RESUMO!I376 -> 19 | O83: =RESUMO!J376 -> 17 | P83: =RESUMO!K376 -> 2 | Q83: 20 | R83: 8
C84: =CONCATENATE('G1'!$I$8, " - 5a Divisão") -> Master - 5a Divisão | R84: ="2a Fase - Grupo " & Q86 -> 2a Fase - Grupo 21
C85: Class | D85: BOTONISTAS | I85: PG | J85: J | K85: V | L85: E | M85: D | N85: GP | O85: GC | P85: SG | Q85: Gr. | R85: Seq | T85: >>> Atenção <<<
C86: =RESUMO!A409 -> 5º M.6º | D86: =RESUMO!B409 -> MARIO JR-SP | I86: =RESUMO!D409 -> 7 | J86: =RESUMO!E409 -> 7 | K86: =RESUMO!F409 -> 2 | L86: =RESUMO!G409 -> 1 | M86: =RESUMO!H409 -> 4 | N86: =RESUMO!I409 -> 24 | O86: =RESUMO!J409 -> 28 | P86: =RESUMO!K409 -> -4 | Q86: 21 | R86: 1 | T86: Para completar o cálculo da 2a Fase proceda da seguinte forma:
C87: =RESUMO!A416 -> 12º M.6º | D87: =RESUMO!B416 -> PAULO FONSECA-RJ | I87: =RESUMO!D416 -> 5 | J87: =RESUMO!E416 -> 7 | K87: =RESUMO!F416 -> 1 | L87: =RESUMO!G416 -> 2 | M87: =RESUMO!H416 -> 4 | N87: =RESUMO!I416 -> 25 | O87: =RESUMO!J416 -> 32 | P87: =RESUMO!K416 -> -7 | Q87: 21 | R87: 2 | T87: 1) Coloque os Botonistas do mesmo Estado/Clube dentro de
C88: =RESUMO!A417 -> 7o G1 | D88: =RESUMO!B417 -> PATRICK-RS | I88: =RESUMO!D417 -> 5 | J88: =RESUMO!E417 -> 7 | K88: =RESUMO!F417 -> 1 | L88: =RESUMO!G417 -> 2 | M88: =RESUMO!H417 -> 4 | N88: =RESUMO!I417 -> 16 | O88: =RESUMO!J417 -> 24 | P88: =RESUMO!K417 -> -8 | Q88: 21 | R88: 5 | T88: cada bloco.
C89: =RESUMO!A431 -> 7o G8 | D89: =RESUMO!B431 -> NANNINI-RS | I89: =RESUMO!D431 -> 6 | J89: =RESUMO!E431 -> 7 | K89: =RESUMO!F431 -> 2 | L89: =RESUMO!G431 -> 0 | M89: =RESUMO!H431 -> 5 | N89: =RESUMO!I431 -> 21 | O89: =RESUMO!J431 -> 36 | P89: =RESUMO!K431 -> -15 | Q89: 21 | R89: 8 | T89: • 2 botonistas: posições 1 e 4 ou 2 e 3 ou 5 e 8 ou 6 e 7
C90: =RESUMO!A433 -> 7o G9 | D90: =RESUMO!B433 -> CLAUDIO MASTRANGELO-RS (WO) | I90: =RESUMO!D433 -> 0 | J90: =RESUMO!E433 -> 7 | K90: =RESUMO!F433 -> 0 | L90: =RESUMO!G433 -> 0 | M90: =RESUMO!H433 -> 7 | N90: =RESUMO!I433 -> 0 | O90: =RESUMO!J433 -> 18 | P90: =RESUMO!K433 -> -18 | Q90: 21 | R90: 6 | T90: • 3 botonistas: posições 1, 2 e 4 ou 5, 6 e 8
C91: =RESUMO!A440 -> 8o G12 | D91: =RESUMO!B440 -> NICOLAZZI-PR (WO) | I91: =RESUMO!D440 -> 0 | J91: =RESUMO!E440 -> 7 | K91: =RESUMO!F440 -> 0 | L91: =RESUMO!G440 -> 0 | M91: =RESUMO!H440 -> 7 | N91: =RESUMO!I440 -> 0 | O91: =RESUMO!J440 -> 21 | P91: =RESUMO!K440 -> -21 | Q91: 21 | R91: 4 | T91: • 4 botonistas: posições 1 a 4 ou 5 a 8
C92: =RESUMO!A426 -> 8o G5 | D92: =RESUMO!B426 -> CB-RS | I92: =RESUMO!D426 -> 0 | J92: =RESUMO!E426 -> 7 | K92: =RESUMO!F426 -> 0 | L92: =RESUMO!G426 -> 0 | M92: =RESUMO!H426 -> 7 | N92: =RESUMO!I426 -> 9 | O92: =RESUMO!J426 -> 33 | P92: =RESUMO!K426 -> -24 | Q92: 21 | R92: 7
C93: =RESUMO!A424 -> 8o G4 | D93: =RESUMO!B424 -> VILLANO-RJ | I93: =RESUMO!D424 -> 3 | J93: =RESUMO!E424 -> 7 | K93: =RESUMO!F424 -> 1 | L93: =RESUMO!G424 -> 0 | M93: =RESUMO!H424 -> 6 | N93: =RESUMO!I424 -> 16 | O93: =RESUMO!J424 -> 30 | P93: =RESUMO!K424 -> -14 | Q93: 21 | R93: 3
C94: =$C$84 -> Master - 5a Divisão | R94: ="2a Fase - Grupo " & Q96 -> 2a Fase - Grupo 22
C95: Class | D95: BOTONISTAS | I95: PG | J95: J | K95: V | L95: E | M95: D | N95: GP | O95: GC | P95: SG | Q95: Gr. | R95: Seq
C96: =RESUMO!A410 -> 6º M.6º | D96: =RESUMO!B410 -> FERNANDO SCHMIDT-MG | I96: =RESUMO!D410 -> 7 | J96: =RESUMO!E410 -> 7 | K96: =RESUMO!F410 -> 2 | L96: =RESUMO!G410 -> 1 | M96: =RESUMO!H410 -> 4 | N96: =RESUMO!I410 -> 19 | O96: =RESUMO!J410 -> 28 | P96: =RESUMO!K410 -> -9 | Q96: 22 | R96: 1
C97: =RESUMO!A415 -> 11º M.6º | D97: =RESUMO!B415 -> FERNANDO CAMPOS-CE | I97: =RESUMO!D415 -> 6 | J97: =RESUMO!E415 -> 7 | K97: =RESUMO!F415 -> 2 | L97: =RESUMO!G415 -> 0 | M97: =RESUMO!H415 -> 5 | N97: =RESUMO!I415 -> 12 | O97: =RESUMO!J415 -> 29 | P97: =RESUMO!K415 -> -17 | Q97: 22 | R97: 2
C98: =RESUMO!A419 -> 7o G2 | D98: =RESUMO!B419 -> PC-RJ | I98: =RESUMO!D419 -> 7 | J98: =RESUMO!E419 -> 7 | K98: =RESUMO!F419 -> 2 | L98: =RESUMO!G419 -> 1 | M98: =RESUMO!H419 -> 4 | N98: =RESUMO!I419 -> 17 | O98: =RESUMO!J419 -> 28 | P98: =RESUMO!K419 -> -11 | Q98: 22 | R98: 5
C99: =RESUMO!A429 -> 7o G7 | D99: =RESUMO!B429 -> RICARDO SIMOES-CE | I99: =RESUMO!D429 -> 6 | J99: =RESUMO!E429 -> 7 | K99: =RESUMO!F429 -> 2 | L99: =RESUMO!G429 -> 0 | M99: =RESUMO!H429 -> 5 | N99: =RESUMO!I429 -> 21 | O99: =RESUMO!J429 -> 30 | P99: =RESUMO!K429 -> -9 | Q99: 22 | R99: 3
C100: =RESUMO!A435 -> 7o G10 | D100: =RESUMO!B435 -> BENE-SP | I100: =RESUMO!D435 -> 4 | J100: =RESUMO!E435 -> 7 | K100: =RESUMO!F435 -> 1 | L100: =RESUMO!G435 -> 1 | M100: =RESUMO!H435 -> 5 | N100: =RESUMO!I435 -> 9 | O100: =RESUMO!J435 -> 24 | P100: =RESUMO!K435 -> -15 | Q100: 22 | R100: 6
C101: =RESUMO!A438 -> 8o G11 | D101: =RESUMO!B438 -> ROBERTO SANTOS-RS (WO) | I101: =RESUMO!D438 -> 0 | J101: =RESUMO!E438 -> 7 | K101: =RESUMO!F438 -> 0 | L101: =RESUMO!G438 -> 0 | M101: =RESUMO!H438 -> 7 | N101: =RESUMO!I438 -> 0 | O101: =RESUMO!J438 -> 21 | P101: =RESUMO!K438 -> -21 | Q101: 22 | R101: 7
C102: =RESUMO!A428 -> 8o G6 | D102: =RESUMO!B428 -> PRACIANO-CE (WO) | I102: =RESUMO!D428 -> 0 | J102: =RESUMO!E428 -> 7 | K102: =RESUMO!F428 -> 0 | L102: =RESUMO!G428 -> 0 | M102: =RESUMO!H428 -> 7 | N102: =RESUMO!I428 -> 0 | O102: =RESUMO!J428 -> 21 | P102: =RESUMO!K428 -> -21 | Q102: 22 | R102: 4
C103: =RESUMO!A422 -> 8o G3 | D103: =RESUMO!B422 -> SCHUMACHER-SC | I103: =RESUMO!D422 -> 6 | J103: =RESUMO!E422 -> 7 | K103: =RESUMO!F422 -> 1 | L103: =RESUMO!G422 -> 3 | M103: =RESUMO!H422 -> 3 | N103: =RESUMO!I422 -> 17 | O103: =RESUMO!J422 -> 22 | P103: =RESUMO!K422 -> -5 | Q103: 22 | R103: 8
C104: =$C$84 -> Master - 5a Divisão | R104: ="2a Fase - Grupo " & Q106 -> 2a Fase - Grupo 23
C105: Class | D105: BOTONISTAS | I105: PG | J105: J | K105: V | L105: E | M105: D | N105: GP | O105: GC | P105: SG | Q105: Gr. | R105: Seq
C106: =RESUMO!A411 -> 7º M.6º | D106: =RESUMO!B411 -> PEPE-SP | I106: =RESUMO!D411 -> 7 | J106: =RESUMO!E411 -> 7 | K106: =RESUMO!F411 -> 2 | L106: =RESUMO!G411 -> 1 | M106: =RESUMO!H411 -> 4 | N106: =RESUMO!I411 -> 13 | O106: =RESUMO!J411 -> 22 | P106: =RESUMO!K411 -> -9 | Q106: 23 | R106: 5
C107: =RESUMO!A414 -> 10º M.6º | D107: =RESUMO!B414 -> ZANELLA-SP | I107: =RESUMO!D414 -> 6 | J107: =RESUMO!E414 -> 7 | K107: =RESUMO!F414 -> 2 | L107: =RESUMO!G414 -> 0 | M107: =RESUMO!H414 -> 5 | N107: =RESUMO!I414 -> 19 | O107: =RESUMO!J414 -> 27 | P107: =RESUMO!K414 -> -8 | Q107: 23 | R107: 1
C108: =RESUMO!A421 -> 7o G3 | D108: =RESUMO!B421 -> FERNANDO CASCAVEL-MG | I108: =RESUMO!D421 -> 7 | J108: =RESUMO!E421 -> 7 | K108: =RESUMO!F421 -> 2 | L108: =RESUMO!G421 -> 1 | M108: =RESUMO!H421 -> 4 | N108: =RESUMO!I421 -> 17 | O108: =RESUMO!J421 -> 22 | P108: =RESUMO!K421 -> -5 | Q108: 23 | R108: 6
C109: =RESUMO!A427 -> 7o G6 | D109: =RESUMO!B427 -> JULINHO-SP | I109: =RESUMO!D427 -> 7 | J109: =RESUMO!E427 -> 7 | K109: =RESUMO!F427 -> 2 | L109: =RESUMO!G427 -> 1 | M109: =RESUMO!H427 -> 4 | N109: =RESUMO!I427 -> 20 | O109: =RESUMO!J427 -> 26 | P109: =RESUMO!K427 -> -6 | Q109: 23 | R109: 2
C110: =RESUMO!A437 -> 7o G11 | D110: =RESUMO!B437 -> SIMPLA-DF | I110: =RESUMO!D437 -> 6 | J110: =RESUMO!E437 -> 7 | K110: =RESUMO!F437 -> 2 | L110: =RESUMO!G437 -> 0 | M110: =RESUMO!H437 -> 5 | N110: =RESUMO!I437 -> 17 | O110: =RESUMO!J437 -> 31 | P110: =RESUMO!K437 -> -14 | Q110: 23 | R110: 8
C111: =RESUMO!A436 -> 8o G10 | D111: =RESUMO!B436 -> TELE-SP | I111: =RESUMO!D436 -> 4 | J111: =RESUMO!E436 -> 7 | K111: =RESUMO!F436 -> 0 | L111: =RESUMO!G436 -> 4 | M111: =RESUMO!H436 -> 3 | N111: =RESUMO!I436 -> 16 | O111: =RESUMO!J436 -> 22 | P111: =RESUMO!K436 -> -6 | Q111: 23 | R111: 3
C112: =RESUMO!A430 -> 8o G7 | D112: =RESUMO!B430 -> BRITAO-SP | I112: =RESUMO!D430 -> 1 | J112: =RESUMO!E430 -> 7 | K112: =RESUMO!F430 -> 0 | L112: =RESUMO!G430 -> 1 | M112: =RESUMO!H430 -> 6 | N112: =RESUMO!I430 -> 16 | O112: =RESUMO!J430 -> 26 | P112: =RESUMO!K430 -> -10 | Q112: 23 | R112: 4
C113: =RESUMO!A420 -> 8o G2 | D113: =RESUMO!B420 -> WAGNER SCHMIDT-MG | I113: =RESUMO!D420 -> 0 | J113: =RESUMO!E420 -> 7 | K113: =RESUMO!F420 -> 0 | L113: =RESUMO!G420 -> 0 | M113: =RESUMO!H420 -> 7 | N113: =RESUMO!I420 -> 5 | O113: =RESUMO!J420 -> 41 | P113: =RESUMO!K420 -> -36 | Q113: 23 | R113: 7
C114: =$C$84 -> Master - 5a Divisão | R114: ="2a Fase - Grupo " & Q116 -> 2a Fase - Grupo 24
C115: Class | D115: BOTONISTAS | I115: PG | J115: J | K115: V | L115: E | M115: D | N115: GP | O115: GC | P115: SG | Q115: Gr. | R115: Seq
C116: =RESUMO!A412 -> 8º M.6º | D116: =RESUMO!B412 -> RICARDINHO-RJ | I116: =RESUMO!D412 -> 6 | J116: =RESUMO!E412 -> 7 | K116: =RESUMO!F412 -> 2 | L116: =RESUMO!G412 -> 0 | M116: =RESUMO!H412 -> 5 | N116: =RESUMO!I412 -> 20 | O116: =RESUMO!J412 -> 27 | P116: =RESUMO!K412 -> -7 | Q116: 24 | R116: 1
C117: =RESUMO!A413 -> 9º M.6º | D117: =RESUMO!B413 -> FRED MARTINS-RJ | I117: =RESUMO!D413 -> 6 | J117: =RESUMO!E413 -> 7 | K117: =RESUMO!F413 -> 2 | L117: =RESUMO!G413 -> 0 | M117: =RESUMO!H413 -> 5 | N117: =RESUMO!I413 -> 11 | O117: =RESUMO!J413 -> 18 | P117: =RESUMO!K413 -> -7 | Q117: 24 | R117: 4
C118: =RESUMO!A423 -> 7o G4 | D118: =RESUMO!B423 -> MIGUEL MARIALVA-AM | I118: =RESUMO!D423 -> 4 | J118: =RESUMO!E423 -> 7 | K118: =RESUMO!F423 -> 1 | L118: =RESUMO!G423 -> 1 | M118: =RESUMO!H423 -> 5 | N118: =RESUMO!I423 -> 26 | O118: =RESUMO!J423 -> 34 | P118: =RESUMO!K423 -> -8 | Q118: 24 | R118: 2
C119: =RESUMO!A425 -> 7o G5 | D119: =RESUMO!B425 -> ADRIANO BRANQUINHO-PE | I119: =RESUMO!D425 -> 7 | J119: =RESUMO!E425 -> 7 | K119: =RESUMO!F425 -> 2 | L119: =RESUMO!G425 -> 1 | M119: =RESUMO!H425 -> 4 | N119: =RESUMO!I425 -> 26 | O119: =RESUMO!J425 -> 32 | P119: =RESUMO!K425 -> -6 | Q119: 24 | R119: 5
C120: =RESUMO!A439 -> 7o G12 | D120: =RESUMO!B439 -> CASTILHO-RS | I120: =RESUMO!D439 -> 5 | J120: =RESUMO!E439 -> 7 | K120: =RESUMO!F439 -> 1 | L120: =RESUMO!G439 -> 2 | M120: =RESUMO!H439 -> 4 | N120: =RESUMO!I439 -> 14 | O120: =RESUMO!J439 -> 23 | P120: =RESUMO!K439 -> -9 | Q120: 24 | R120: 6
C121: =RESUMO!A434 -> 8o G9 | D121: =RESUMO!B434 -> PAULINHO MEIRA-SP (WO) | I121: =RESUMO!D434 -> 0 | J121: =RESUMO!E434 -> 7 | K121: =RESUMO!F434 -> 0 | L121: =RESUMO!G434 -> 0 | M121: =RESUMO!H434 -> 7 | N121: =RESUMO!I434 -> 0 | O121: =RESUMO!J434 -> 18 | P121: =RESUMO!K434 -> -18 | Q121: 24 | R121: 7
C122: =RESUMO!A432 -> 8o G8 | D122: =RESUMO!B432 -> PAULO SOUZA-AM | I122: =RESUMO!D432 -> 0 | J122: =RESUMO!E432 -> 7 | K122: =RESUMO!F432 -> 0 | L122: =RESUMO!G432 -> 0 | M122: =RESUMO!H432 -> 7 | N122: =RESUMO!I432 -> 18 | O122: =RESUMO!J432 -> 39 | P122: =RESUMO!K432 -> -21 | Q122: 24 | R122: 3
C123: =RESUMO!A418 -> 8o G1 | D123: =RESUMO!B418 -> SERGIO FT-PE | I123: =RESUMO!D418 -> 3 | J123: =RESUMO!E418 -> 7 | K123: =RESUMO!F418 -> 1 | L123: =RESUMO!G418 -> 0 | M123: =RESUMO!H418 -> 6 | N123: =RESUMO!I418 -> 13 | O123: =RESUMO!J418 -> 29 | P123: =RESUMO!K418 -> -16 | Q123: 24 | R123: 8
C150: Master - 1a Divisão | R150: 2a Fase - Grupo 13
C151: Class | D151: BOTONISTAS | I151: PG | J151: J | K151: V | L151: E | M151: D | N151: GP | O151: GC | P151: SG | Q151: Gr. | R151: Seq
C152: 1o G1 | D152: KLEBER-SP | I152: 18 | J152: 7 | K152: 6 | L152: 0 | M152: 1 | N152: 28 | O152: 16 | P152: 12 | Q152: 13 | R152: 1
C153: 2o G5 | D153: FLOSI-SP | I153: 16 | J153: 7 | K153: 5 | L153: 1 | M153: 1 | N153: 34 | O153: 21 | P153: 13 | Q153: 13 | R153: 2
C154: 4o G12 | D154: ELIAHOU-SP | I154: 12 | J154: 7 | K154: 3 | L154: 3 | M154: 1 | N154: 28 | O154: 22 | P154: 6 | Q154: 13 | R154: 3
C155: 3o G8 | D155: TERUEL-SP | I155: 13 | J155: 7 | K155: 4 | L155: 1 | M155: 2 | N155: 43 | O155: 28 | P155: 15 | Q155: 13 | R155: 4
C156: 2o G4 | D156: MAICON-PR | I156: 16 | J156: 7 | K156: 5 | L156: 1 | M156: 1 | N156: 35 | O156: 24 | P156: 11 | Q156: 13 | R156: 5
C157: 5o G11 | D157: EVANIR-SP | I157: 9 | J157: 7 | K157: 3 | L157: 0 | M157: 4 | N157: 25 | O157: 24 | P157: 1 | Q157: 13 | R157: 6
C158: 1º M.6º | D158: ELCIO BURATINI-MG | I158: 9 | J158: 7 | K158: 3 | L158: 0 | M158: 4 | N158: 15 | O158: 22 | P158: -7 | Q158: 13 | R158: 7
C159: 3o G9 | D159: RONY-PR | I159: 15 | J159: 7 | K159: 5 | L159: 0 | M159: 2 | N159: 27 | O159: 17 | P159: 10 | Q159: 13 | R159: 8
C160: Master - 1a Divisão | R160: 2a Fase - Grupo 14
C161: Class | D161: BOTONISTAS | I161: PG | J161: J | K161: V | L161: E | M161: D | N161: GP | O161: GC | P161: SG | Q161: Gr. | R161: Seq
C162: 1o G2 | D162: DALLA STELLA-PR | I162: 16 | J162: 7 | K162: 5 | L162: 1 | M162: 1 | N162: 41 | O162: 25 | P162: 16 | Q162: 14 | R162: 1
C163: 2o G3 | D163: LUIZ CARLOS-RJ | I163: 12 | J163: 7 | K163: 3 | L163: 3 | M163: 1 | N163: 28 | O163: 24 | P163: 4 | Q163: 14 | R163: 2
C164: 5o G12 | D164: BAD-RJ | I164: 10 | J164: 7 | K164: 3 | L164: 1 | M164: 3 | N164: 28 | O164: 24 | P164: 4 | Q164: 14 | R164: 3
C165: 4o G11 | D165: LUIZ RICARDO-PR | I165: 12 | J165: 7 | K165: 4 | L165: 0 | M165: 3 | N165: 28 | O165: 25 | P165: 3 | Q165: 14 | R165: 4
C166: 2o G6 | D166: ANOEL-SP | I166: 15 | J166: 7 | K166: 5 | L166: 0 | M166: 2 | N166: 26 | O166: 13 | P166: 13 | Q166: 14 | R166: 5
C167: 3o G7 | D167: HEAVY-MG | I167: 15 | J167: 7 | K167: 5 | L167: 0 | M167: 2 | N167: 25 | O167: 23 | P167: 2 | Q167: 14 | R167: 6
C168: 3o G10 | D168: SERGIO PIVATTO-SP | I168: 14 | J168: 7 | K168: 4 | L168: 2 | M168: 1 | N168: 25 | O168: 17 | P168: 8 | Q168: 14 | R168: 7
C169: 2º M.6º | D169: MARCELO LEITE-SP | I169: 9 | J169: 7 | K169: 3 | L169: 0 | M169: 4 | N169: 22 | O169: 36 | P169: -14 | Q169: 14 | R169: 8
C170: Master - 1a Divisão | R170: 2a Fase - Grupo 15
C171: Class | D171: BOTONISTAS | I171: PG | J171: J | K171: V | L171: E | M171: D | N171: GP | O171: GC | P171: SG | Q171: Gr. | R171: Seq
C172: 1o G3 | D172: HENRIQUE-SP | I172: 15 | J172: 7 | K172: 5 | L172: 0 | M172: 2 | N172: 22 | O172: 14 | P172: 8 | Q172: 15 | R172: 1
C173: 2o G2 | D173: PINNA-SP | I173: 15 | J173: 7 | K173: 5 | L173: 0 | M173: 2 | N173: 33 | O173: 23 | P173: 10 | Q173: 15 | R173: 2
C174: 2o G7 | D174: RONALDO-PR | I174: 15 | J174: 7 | K174: 5 | L174: 0 | M174: 2 | N174: 20 | O174: 17 | P174: 3 | Q174: 15 | R174: 3
C175: 3º M.6º | D175: PATERNO-SP | I175: 8 | J175: 7 | K175: 2 | L175: 2 | M175: 3 | N175: 23 | O175: 23 | P175: 0 | Q175: 15 | R175: 4
C176: 3o G6 | D176: CAU MENDES-RJ | I176: 13 | J176: 7 | K176: 4 | L176: 1 | M176: 2 | N176: 27 | O176: 30 | P176: -3 | Q176: 15 | R176: 5
C177: 3o G11 | D177: MANOEL MOURA-CE | I177: 15 | J177: 7 | K177: 5 | L177: 0 | M177: 2 | N177: 31 | O177: 22 | P177: 9 | Q177: 15 | R177: 6
C178: 4o G10 | D178: SETTON-AL | I178: 9 | J178: 7 | K178: 2 | L178: 3 | M178: 2 | N178: 23 | O178: 20 | P178: 3 | Q178: 15 | R178: 7
C179: 5o G1 | D179: IVAN-GO | I179: 10 | J179: 7 | K179: 3 | L179: 1 | M179: 3 | N179: 20 | O179: 23 | P179: -3 | Q179: 15 | R179: 8
C180: Master - 1a Divisão | R180: 2a Fase - Grupo 16
C181: Class | D181: BOTONISTAS | I181: PG | J181: J | K181: V | L181: E | M181: D | N181: GP | O181: GC | P181: SG | Q181: Gr. | R181: Seq
C182: 1o G4 | D182: SAMMARTINO-SP | I182: 17 | J182: 7 | K182: 5 | L182: 2 | M182: 0 | N182: 39 | O182: 24 | P182: 15 | Q182: 16 | R182: 1
C183: 3o G12 | D183: MARCELO PAIVA-SP | I183: 13 | J183: 7 | K183: 4 | L183: 1 | M183: 2 | N183: 28 | O183: 23 | P183: 5 | Q183: 16 | R183: 2
C184: 5o G2 | D184: RAVANELLI-SP | I184: 9 | J184: 7 | K184: 3 | L184: 0 | M184: 4 | N184: 22 | O184: 22 | P184: 0 | Q184: 16 | R184: 3
C185: 3o G5 | D185: RUBAO-PR | I185: 13 | J185: 7 | K185: 4 | L185: 1 | M185: 2 | N185: 25 | O185: 20 | P185: 5 | Q185: 16 | R185: 4
C186: 2o G1 | D186: JOSE CARLOS-RJ | I186: 16 | J186: 7 | K186: 5 | L186: 1 | M186: 1 | N186: 29 | O186: 16 | P186: 13 | Q186: 16 | R186: 5
C187: 2o G8 | D187: RAMOS-RJ | I187: 14 | J187: 7 | K187: 4 | L187: 2 | M187: 1 | N187: 37 | O187: 24 | P187: 13 | Q187: 16 | R187: 6
C188: 4o G9 | D188: NALDO CANTUARIA-RJ | I188: 15 | J188: 7 | K188: 5 | L188: 0 | M188: 2 | N188: 20 | O188: 16 | P188: 4 | Q188: 16 | R188: 7
C189: 4º M.6º | D189: FLAVIO AYRES-SC | I189: 7 | J189: 7 | K189: 2 | L189: 1 | M189: 4 | N189: 21 | O189: 21 | P189: 0 | Q189: 16 | R189: 8
C190: Master - 1a Divisão | R190: 2a Fase - Grupo 17
C191: Class | D191: BOTONISTAS | I191: PG | J191: J | K191: V | L191: E | M191: D | N191: GP | O191: GC | P191: SG | Q191: Gr. | R191: Seq
C192: 1o G5 | D192: BASILIO-SP | I192: 16 | J192: 7 | K192: 5 | L192: 1 | M192: 1 | N192: 35 | O192: 19 | P192: 16 | Q192: 17 | R192: 1
C193: 2o G9 | D193: FLAVIO MORAES-SP | I193: 16 | J193: 7 | K193: 5 | L193: 1 | M193: 1 | N193: 33 | O193: 16 | P193: 17 | Q193: 17 | R193: 2
C194: 3o G4 | D194: OLINO-SP | I194: 15 | J194: 7 | K194: 5 | L194: 0 | M194: 2 | N194: 31 | O194: 23 | P194: 8 | Q194: 17 | R194: 3
C195: 4o G1 | D195: MARIO NOVAES-SP | I195: 11 | J195: 7 | K195: 3 | L195: 2 | M195: 2 | N195: 29 | O195: 24 | P195: 5 | Q195: 17 | R195: 4
C196: 1o G12 | D196: MARCELLUS-PE | I196: 15 | J196: 7 | K196: 5 | L196: 0 | M196: 2 | N196: 29 | O196: 23 | P196: 6 | Q196: 17 | R196: 5
C197: 4o G8 | D197: ANDRE LEAL-PR | I197: 13 | J197: 7 | K197: 4 | L197: 1 | M197: 2 | N197: 36 | O197: 30 | P197: 6 | Q197: 17 | R197: 6
C198: 5o G10 | D198: CESAR VIDAL-RS | I198: 7 | J198: 7 | K198: 2 | L198: 1 | M198: 4 | N198: 21 | O198: 24 | P198: -3 | Q198: 17 | R198: 7
C199: 5o G3 | D199: GERALDO ROUXINOL-PE | I199: 8 | J199: 7 | K199: 2 | L199: 2 | M199: 3 | N199: 21 | O199: 20 | P199: 1 | Q199: 17 | R199: 8
C200: Master - 1a Divisão | R200: 2a Fase - Grupo 18
C201: Class | D201: BOTONISTAS | I201: PG | J201: J | K201: V | L201: E | M201: D | N201: GP | O201: GC | P201: SG | Q201: Gr. | R201: Seq
C202: 1o G6 | D202: CORUJEIRA-SP | I202: 18 | J202: 7 | K202: 6 | L202: 0 | M202: 1 | N202: 30 | O202: 16 | P202: 14 | Q202: 18 | R202: 1
C203: 1o G11 | D203: BRYANT-SP | I203: 18 | J203: 7 | K203: 6 | L203: 0 | M203: 1 | N203: 39 | O203: 21 | P203: 18 | Q203: 18 | R203: 2
C204: 5o G4 | D204: DEMETRIUS-SP | I204: 6 | J204: 7 | K204: 2 | L204: 0 | M204: 5 | N204: 19 | O204: 33 | P204: -14 | Q204: 18 | R204: 3
C205: 5o G9 | D205: GIOVANNI-MG | I205: 10 | J205: 7 | K205: 3 | L205: 1 | M205: 3 | N205: 24 | O205: 21 | P205: 3 | Q205: 18 | R205: 4
C206: 2o G10 | D206: ARMANDO-RJ | I206: 16 | J206: 7 | K206: 5 | L206: 1 | M206: 1 | N206: 28 | O206: 17 | P206: 11 | Q206: 18 | R206: 5
C207: 3o G3 | D207: BITTENCOURT-PR | I207: 12 | J207: 7 | K207: 3 | L207: 3 | M207: 1 | N207: 25 | O207: 23 | P207: 2 | Q207: 18 | R207: 6
C208: 4o G2 | D208: IVO JR-SC | I208: 13 | J208: 7 | K208: 4 | L208: 1 | M208: 2 | N208: 30 | O208: 17 | P208: 13 | Q208: 18 | R208: 7
C209: 4o G7 | D209: MARCO ANTONIO-RJ | I209: 13 | J209: 7 | K209: 4 | L209: 1 | M209: 2 | N209: 29 | O209: 25 | P209: 4 | Q209: 18 | R209: 8
C210: Master - 1a Divisão | R210: 2a Fase - Grupo 19
C211: Class | D211: BOTONISTAS | I211: PG | J211: J | K211: V | L211: E | M211: D | N211: GP | O211: GC | P211: SG | Q211: Gr. | R211: Seq
C212: 1o G7 | D212: RODOLF-SP | I212: 18 | J212: 7 | K212: 6 | L212: 0 | M212: 1 | N212: 32 | O212: 17 | P212: 15 | Q212: 19 | R212: 1
C213: 2o G11 | D213: CELSO-SP | I213: 18 | J213: 7 | K213: 6 | L213: 0 | M213: 1 | N213: 35 | O213: 24 | P213: 11 | Q213: 19 | R213: 2
C214: 3o G2 | D214: SIRIO-SP | I214: 14 | J214: 7 | K214: 4 | L214: 2 | M214: 1 | N214: 41 | O214: 24 | P214: 17 | Q214: 19 | R214: 3
C215: 4o G3 | D215: BABY-SP | I215: 9 | J215: 7 | K215: 2 | L215: 3 | M215: 2 | N215: 25 | O215: 26 | P215: -1 | Q215: 19 | R215: 4
C216: 1o G10 | D216: EDER SERGIO-PE | I216: 16 | J216: 7 | K216: 5 | L216: 1 | M216: 1 | N216: 35 | O216: 24 | P216: 11 | Q216: 19 | R216: 5
C217: 4o G6 | D217: ROBERTO ALVES-AL | I217: 12 | J217: 7 | K217: 4 | L217: 0 | M217: 3 | N217: 25 | O217: 18 | P217: 7 | Q217: 19 | R217: 6
C218: 5o G5 | D218: ZE LUIZ-RJ | I218: 9 | J218: 7 | K218: 3 | L218: 0 | M218: 4 | N218: 17 | O218: 18 | P218: -1 | Q218: 19 | R218: 7
C219: 5o G8 | D219: HUMBERTO SECURAO-PE | I219: 9 | J219: 7 | K219: 3 | L219: 0 | M219: 4 | N219: 34 | O219: 30 | P219: 4 | Q219: 19 | R219: 8
C220: Master - 1a Divisão | R220: 2a Fase - Grupo 20
C221: Class | D221: BOTONISTAS | I221: PG | J221: J | K221: V | L221: E | M221: D | N221: GP | O221: GC | P221: SG | Q221: Gr. | R221: Seq
C222: 1o G8 | D222: DEMA-SP | I222: 17 | J222: 7 | K222: 5 | L222: 2 | M222: 0 | N222: 35 | O222: 23 | P222: 12 | Q222: 20 | R222: 1
C223: 1o G9 | D223: WALNIR-SP | I223: 18 | J223: 7 | K223: 6 | L223: 0 | M223: 1 | N223: 36 | O223: 17 | P223: 19 | Q223: 20 | R223: 2
C224: 2o G12 | D224: MARCO PAI-SP | I224: 15 | J224: 7 | K224: 4 | L224: 3 | M224: 0 | N224: 29 | O224: 20 | P224: 9 | Q224: 20 | R224: 3
C225: 4o G5 | D225: BARBA-SP | I225: 11 | J225: 7 | K225: 3 | L225: 2 | M225: 2 | N225: 28 | O225: 24 | P225: 4 | Q225: 20 | R225: 4
C226: 3o G1 | D226: JOAQUIM-AL | I226: 12 | J226: 7 | K226: 4 | L226: 0 | M226: 3 | N226: 25 | O226: 20 | P226: 5 | Q226: 20 | R226: 5
C227: 4o G4 | D227: PENTINHO-PE | I227: 14 | J227: 7 | K227: 4 | L227: 2 | M227: 1 | N227: 39 | O227: 30 | P227: 9 | Q227: 20 | R227: 6
C228: 5o G6 | D228: PAULO SCHMIDT-MG | I228: 10 | J228: 7 | K228: 3 | L228: 1 | M228: 3 | N228: 18 | O228: 22 | P228: -4 | Q228: 20 | R228: 7
... 41 more rows

Sheet F2
S1: =#REF!+#REF!+#REF!+#REF! -> 
C2: =INFO!$C$1 -> 32º Campeonato Brasileiro Individual
C4: =CONCATENATE('G1'!$I$8, " - 1a Divisão") -> Master - 1a Divisão | Q4: ='G2'!$R$150 -> 2a Fase - Grupo 13 | U4: =F7 -> KLEBER-SP | AA4: =IF(RIGHT(U4,4)="(WO)",0,1) -> 1 | AC4: =F8 -> FLOSI-SP | AI4: =IF(RIGHT(AC4,4)="(WO)",0,1) -> 1 | AK4: =M8 -> ELIAHOU-SP | AQ4: =IF(RIGHT(AK4,4)="(WO)",0,1) -> 1 | AS4: =M7 -> TERUEL-SP | AY4: =IF(RIGHT(AS4,4)="(WO)",0,1) -> 1 | BA4: =F9 -> MAICON-PR | BG4: =IF(RIGHT(BA4,4)="(WO)",0,1) -> 1 | BI4: =F10 -> EVANIR-SP | BO4: =IF(RIGHT(BI4,4)="(WO)",0,1) -> 1 | BQ4: =M10 -> ELCIO BURATINI-MG | BW4: =IF(RIGHT(BQ4,4)="(WO)",0,1) -> 1 | BY4: =M9 -> RONY-PR | CE4: =IF(RIGHT(BY4,4)="(WO)",0,1) -> 1
B5: Grp | C5: Rod. | D5: Data/Hora | E5: Mesa | F5: Jogos | S5: Ok | U5: J | V5: V | W5: E | X5: D | Y5: GP | Z5: GC | AA5: PG | AC5: J | AD5: V | AE5: E | AF5: D | AG5: GP | AH5: GC | AI5: PG | AK5: J | AL5: V | AM5: E | AN5: D | AO5: GP | AP5: GC | AQ5: PG | AS5: J | AT5: V | AU5: E | AV5: D | AW5: GP | AX5: GC | AY5: PG | BA5: J | BB5: V | BC5: E | BD5: D | BE5: GP | BF5: GC | BG5: PG | BI5: J | BJ5: V | BK5: E | BL5: D | BM5: GP | BN5: GC | BO5: PG | BQ5: J | BR5: V | BS5: E | BT5: D | BU5: GP | BV5: GC | BW5: PG | BY5: J | BZ5: V | CA5: E | CB5: D | CC5: GP | CD5: GC | CE5: PG | CH5: Rodada
B7: 1 | C7: 8 | D7: 2022-06-18 | E7: 1 | F7: =D44 -> KLEBER-SP | K7: 4 | L7: 4 | M7: =D47 -> TERUEL-SP | S7: =COUNTBLANK(K7:L7) -> 0 | U7: =IF(S7=0,1,0) -> 1 | V7: =IF(AND(S7=0,K7>L7),1,0)*AA4 -> 0 | W7: =IF(AND(S7=0,K7=L7),1,0)*AA4 -> 1 | X7: =U7-V7-W7 -> 0 | Y7: =K7 -> 4 | Z7: =L7 -> 4 | AA7: =((V7*3)+W7)*AA4 -> 1 | AS7: =IF(S7=0,1,0) -> 1 | AT7: =IF(AND(S7=0,L7>K7),1,0)*AY4 -> 0 | AU7: =IF(AND(S7=0,K7=L7),1,0)*AY4 -> 1 | AV7: =AS7-AT7-AU7 -> 0 | AW7: =L7 -> 4 | AX7: =K7 -> 4 | AY7: =((AT7*3)+AU7)*AY4 -> 1 | CH7: 1ª
B8: 1 | E8: =E7+1 -> 2 | F8: =D45 -> FLOSI-SP | K8: 4 | L8: 3 | M8: =D46 -> ELIAHOU-SP | S8: =COUNTBLANK(K8:L8) -> 0 | AC8: =IF(S8=0,1,0) -> 1 | AD8: =IF(AND(S8=0,K8>L8),1,0)*AI4 -> 1 | AE8: =IF(AND(S8=0,K8=L8),1,0)*AI4 -> 0 | AF8: =AC8-AD8-AE8 -> 0 | AG8: =K8 -> 4 | AH8: =L8 -> 3 | AI8: =((AD8*3)+AE8)*AI4 -> 3 | AK8: =IF(S8=0,1,0) -> 1 | AL8: =IF(AND(S8=0,L8>K8),1,0)*AQ4 -> 0 | AM8: =IF(AND(S8=0,K8=L8),1,0)*AQ4 -> 0 | AN8: =AK8-AL8-AM8 -> 1 | AO8: =L8 -> 3 | AP8: =K8 -> 4 | AQ8: =((AL8*3)+AM8)*AQ4 -> 0
B9: 1 | D9: 09:00:00 | E9: =E8+1 -> 3 | F9: =D48 -> MAICON-PR | K9: 3 | L9: 3 | M9: =D51 -> RONY-PR | S9: =COUNTBLANK(K9:L9) -> 0 | BA9: =IF(S9=0,1,0) -> 1 | BB9: =IF(AND(S9=0,K9>L9),1,0)*BG4 -> 0 | BC9: =IF(AND(S9=0,K9=L9),1,0)*BG4 -> 1 | BD9: =BA9-BB9-BC9 -> 0 | BE9: =K9 -> 3 | BF9: =L9 -> 3 | BG9: =((BB9*3)+BC9)*BG4 -> 1 | BY9: =IF(S9=0,1,0) -> 1 | BZ9: =IF(AND(S9=0,L9>K9),1,0)*CE4 -> 0 | CA9: =IF(AND(S9=0,K9=L9),1,0)*CE4 -> 1 | CB9: =BY9-BZ9-CA9 -> 0 | CC9: =L9 -> 3 | CD9: =K9 -> 3 | CE9: =((BZ9*3)+CA9)*CE4 -> 1
B10: 1 | E10: =E9+1 -> 4 | F10: =D49 -> EVANIR-SP | K10: 2 | L10: 2 | M10: =D50 -> ELCIO BURATINI-MG | S10: =COUNTBLANK(K10:L10) -> 0 | BI10: =IF(S10=0,1,0) -> 1 | BJ10: =IF(AND(S10=0,K10>L10),1,0)*BO4 -> 0 | BK10: =IF(AND(S10=0,K10=L10),1,0)*BO4 -> 1 | BL10: =BI10-BJ10-BK10 -> 0 | BM10: =K10 -> 2 | BN10: =L10 -> 2 | BO10: =((BJ10*3)+BK10)*BO4 -> 1 | BQ10: =IF(S10=0,1,0) -> 1 | BR10: =IF(AND(S10=0,L10>K10),1,0)*BW4 -> 0 | BS10: =IF(AND(S10=0,K10=L10),1,0)*BW4 -> 1 | BT10: =BQ10-BR10-BS10 -> 0 | BU10: =L10 -> 2 | BV10: =K10 -> 2 | BW10: =((BR10*3)+BS10)*BW4 -> 1
B11: 1
B12: 1 | C12: 9 | D12: =$D$7 -> 2022-06-18 | E12: 5 | F12: =F7 -> KLEBER-SP | K12: 7 | L12: 2 | M12: =M8 -> ELIAHOU-SP | S12: =COUNTBLANK(K12:L12) -> 0 | U12: =IF(S12=0,1,0) -> 1 | V12: =IF(AND(S12=0,K12>L12),1,0)*AA4 -> 1 | W12: =IF(AND(S12=0,K12=L12),1,0)*AA4 -> 0 | X12: =U12-V12-W12 -> 0 | Y12: =K12 -> 7 | Z12: =L12 -> 2 | AA12: =((V12*3)+W12)*AA4 -> 3 | AK12: =IF(S12=0,1,0) -> 1 | AL12: =IF(AND(S12=0,L12>K12),1,0)*AQ4 -> 0 | AM12: =IF(AND(S12=0,K12=L12),1,0)*AQ4 -> 0 | AN12: =AK12-AL12-AM12 -> 1 | AO12: =L12 -> 2 | AP12: =K12 -> 7 | AQ12: =((AL12*3)+AM12)*AQ4 -> 0 | CH12: 2ª
B13: 1 | E13: =E12+1 -> 6 | F13: =F8 -> FLOSI-SP | K13: 4 | L13: 5 | M13: =M7 -> TERUEL-SP | S13: =COUNTBLANK(K13:L13) -> 0 | AC13: =IF(S13=0,1,0) -> 1 | AD13: =IF(AND(S13=0,K13>L13),1,0)*AI4 -> 0 | AE13: =IF(AND(S13=0,K13=L13),1,0)*AI4 -> 0 | AF13: =AC13-AD13-AE13 -> 1 | AG13: =K13 -> 4 | AH13: =L13 -> 5 | AI13: =((AD13*3)+AE13)*AI4 -> 0 | AS13: =IF(S13=0,1,0) -> 1 | AT13: =IF(AND(S13=0,L13>K13),1,0)*AY4 -> 1 | AU13: =IF(AND(S13=0,K13=L13),1,0)*AY4 -> 0 | AV13: =AS13-AT13-AU13 -> 0 | AW13: =L13 -> 5 | AX13: =K13 -> 4 | AY13: =((AT13*3)+AU13)*AY4 -> 3
B14: 1 | D14: 09:30:00 | E14: =E13+1 -> 7 | F14: =F9 -> MAICON-PR | K14: 2 | L14: 2 | M14: =M10 -> ELCIO BURATINI-MG | S14: =COUNTBLANK(K14:L14) -> 0 | BA14: =IF(S14=0,1,0) -> 1 | BB14: =IF(AND(S14=0,K14>L14),1,0)*BG4 -> 0 | BC14: =IF(AND(S14=0,K14=L14),1,0)*BG4 -> 1 | BD14: =BA14-BB14-BC14 -> 0 | BE14: =K14 -> 2 | BF14: =L14 -> 2 | BG14: =((BB14*3)+BC14)*BG4 -> 1 | BQ14: =IF(S14=0,1,0) -> 1 | BR14: =IF(AND(S14=0,L14>K14),1,0)*BW4 -> 0 | BS14: =IF(AND(S14=0,K14=L14),1,0)*BW4 -> 1 | BT14: =BQ14-BR14-BS14 -> 0 | BU14: =L14 -> 2 | BV14: =K14 -> 2 | BW14: =((BR14*3)+BS14)*BW4 -> 1
B15: 1 | E15: =E14+1 -> 8 | F15: =F10 -> EVANIR-SP | K15: 3 | L15: 5 | M15: =M9 -> RONY-PR | S15: =COUNTBLANK(K15:L15) -> 0 | BI15: =IF(S15=0,1,0) -> 1 | BJ15: =IF(AND(S15=0,K15>L15),1,0)*BO4 -> 0 | BK15: =IF(AND(S15=0,K15=L15),1,0)*BO4 -> 0 | BL15: =BI15-BJ15-BK15 -> 1 | BM15: =K15 -> 3 | BN15: =L15 -> 5 | BO15: =((BJ15*3)+BK15)*BO4 -> 0 | BY15: =IF(S15=0,1,0) -> 1 | BZ15: =IF(AND(S15=0,L15>K15),1,0)*CE4 -> 1 | CA15: =IF(AND(S15=0,K15=L15),1,0)*CE4 -> 0 | CB15: =BY15-BZ15-CA15 -> 0 | CC15: =L15 -> 5 | CD15: =K15 -> 3 | CE15: =((BZ15*3)+CA15)*CE4 -> 3
B17: 1 | C17: 10 | D17: =$D$7 -> 2022-06-18 | E17: 9 | F17: =F12 -> KLEBER-SP | K17: 4 | L17: 5 | M17: =F13 -> FLOSI-SP | S17: =COUNTBLANK(K17:L17) -> 0 | U17: =IF(S17=0,1,0) -> 1 | V17: =IF(AND(S17=0,K17>L17),1,0)*AA4 -> 0 | W17: =IF(AND(S17=0,K17=L17),1,0)*AA4 -> 0 | X17: =U17-V17-W17 -> 1 | Y17: =K17 -> 4 | Z17: =L17 -> 5 | AA17: =((V17*3)+W17)*AA4 -> 0 | AC17: =IF(S17=0,1,0) -> 1 | AD17: =IF(AND(S17=0,L17>K17),1,0)*AI4 -> 1 | AE17: =IF(AND(S17=0,K17=L17),1,0)*AI4 -> 0 | AF17: =AC17-AD17-AE17 -> 0 | AG17: =L17 -> 5 | AH17: =K17 -> 4 | AI17: =((AD17*3)+AE17)*AI4 -> 3 | CH17: 3ª
B18: 1 | E18: =E17+1 -> 10 | F18: =M12 -> ELIAHOU-SP | K18: 4 | L18: 5 | M18: =M13 -> TERUEL-SP | S18: =COUNTBLANK(K18:L18) -> 0 | AK18: =IF(S18=0,1,0) -> 1 | AL18: =IF(AND(S18=0,K18>L18),1,0)*AQ4 -> 0 | AM18: =IF(AND(S18=0,K18=L18),1,0)*AQ4 -> 0 | AN18: =AK18-AL18-AM18 -> 1 | AO18: =K18 -> 4 | AP18: =L18 -> 5 | AQ18: =((AL18*3)+AM18)*AQ4 -> 0 | AS18: =IF(S18=0,1,0) -> 1 | AT18: =IF(AND(S18=0,L18>K18),1,0)*AY4 -> 1 | AU18: =IF(AND(S18=0,K18=L18),1,0)*AY4 -> 0 | AV18: =AS18-AT18-AU18 -> 0 | AW18: =L18 -> 5 | AX18: =K18 -> 4 | AY18: =((AT18*3)+AU18)*AY4 -> 3
B19: 1 | D19: 10:00:00 | E19: =E18+1 -> 11 | F19: =F14 -> MAICON-PR | K19: 4 | L19: 5 | M19: =F15 -> EVANIR-SP | S19: =COUNTBLANK(K19:L19) -> 0 | BA19: =IF(S19=0,1,0) -> 1 | BB19: =IF(AND(S19=0,K19>L19),1,0)*BG4 -> 0 | BC19: =IF(AND(S19=0,K19=L19),1,0)*BG4 -> 0 | BD19: =BA19-BB19-BC19 -> 1 | BE19: =K19 -> 4 | BF19: =L19 -> 5 | BG19: =((BB19*3)+BC19)*BG4 -> 0 | BI19: =IF(S19=0,1,0) -> 1 | BJ19: =IF(AND(S19=0,L19>K19),1,0)*BO4 -> 1 | BK19: =IF(AND(S19=0,K19=L19),1,0)*BO4 -> 0 | BL19: =BI19-BJ19-BK19 -> 0 | BM19: =L19 -> 5 | BN19: =K19 -> 4 | BO19: =((BJ19*3)+BK19)*BO4 -> 3
B20: 1 | E20: =E19+1 -> 12 | F20: =M14 -> ELCIO BURATINI-MG | K20: 2 | L20: 2 | M20: =M15 -> RONY-PR | S20: =COUNTBLANK(K20:L20) -> 0 | BQ20: =IF(S20=0,1,0) -> 1 | BR20: =IF(AND(S20=0,K20>L20),1,0)*BW4 -> 0 | BS20: =IF(AND(S20=0,K20=L20),1,0)*BW4 -> 1 | BT20: =BQ20-BR20-BS20 -> 0 | BU20: =K20 -> 2 | BV20: =L20 -> 2 | BW20: =((BR20*3)+BS20)*BW4 -> 1 | BY20: =IF(S20=0,1,0) -> 1 | BZ20: =IF(AND(S20=0,L20>K20),1,0)*CE4 -> 0 | CA20: =IF(AND(S20=0,K20=L20),1,0)*CE4 -> 1 | CB20: =BY20-BZ20-CA20 -> 0 | CC20: =L20 -> 2 | CD20: =K20 -> 2 | CE20: =((BZ20*3)+CA20)*CE4 -> 1
B22: 1 | C22: 11 | D22: =$D$7 -> 2022-06-18 | E22: 13 | F22: =F19 -> MAICON-PR | K22: 5 | L22: 3 | M22: =M17 -> FLOSI-SP | S22: =COUNTBLANK(K22:L22) -> 0 | AC22: =IF(S22=0,1,0) -> 1 | AD22: =IF(AND(S22=0,L22>K22),1,0)*AI4 -> 0 | AE22: =IF(AND(S22=0,K22=L22),1,0)*AI4 -> 0 | AF22: =AC22-AD22-AE22 -> 1 | AG22: =L22 -> 3 | AH22: =K22 -> 5 | AI22: =((AD22*3)+AE22)*AI4 -> 0 | BA22: =IF(S22=0,1,0) -> 1 | BB22: =IF(AND(S22=0,K22>L22),1,0)*BG4 -> 1 | BC22: =IF(AND(S22=0,K22=L22),1,0)*BG4 -> 0 | BD22: =BA22-BB22-BC22 -> 0 | BE22: =K22 -> 5 | BF22: =L22 -> 3 | BG22: =((BB22*3)+BC22)*BG4 -> 3 | CH22: 4ª
B23: 1 | E23: =E22+1 -> 14 | F23: =M19 -> EVANIR-SP | K23: 3 | L23: 5 | M23: =F18 -> ELIAHOU-SP | S23: =COUNTBLANK(K23:L23) -> 0 | AK23: =IF(S23=0,1,0) -> 1 | AL23: =IF(AND(S23=0,L23>K23),1,0)*AQ4 -> 1 | AM23: =IF(AND(S23=0,K23=L23),1,0)*AQ4 -> 0 | AN23: =AK23-AL23-AM23 -> 0 | AO23: =L23 -> 5 | AP23: =K23 -> 3 | AQ23: =((AL23*3)+AM23)*AQ4 -> 3 | BI23: =IF(S23=0,1,0) -> 1 | BJ23: =IF(AND(S23=0,K23>L23),1,0)*BO4 -> 0 | BK23: =IF(AND(S23=0,K23=L23),1,0)*BO4 -> 0 | BL23: =BI23-BJ23-BK23 -> 1 | BM23: =K23 -> 3 | BN23: =L23 -> 5 | BO23: =((BJ23*3)+BK23)*BO4 -> 0
B24: 1 | D24: 10:30:00 | E24: =E23+1 -> 15 | F24: =F20 -> ELCIO BURATINI-MG | K24: 2 | L24: 7 | M24: =M18 -> TERUEL-SP | S24: =COUNTBLANK(K24:L24) -> 0 | AS24: =IF(S24=0,1,0) -> 1 | AT24: =IF(AND(S24=0,L24>K24),1,0)*AY4 -> 1 | AU24: =IF(AND(S24=0,K24=L24),1,0)*AY4 -> 0 | AV24: =AS24-AT24-AU24 -> 0 | AW24: =L24 -> 7 | AX24: =K24 -> 2 | AY24: =((AT24*3)+AU24)*AY4 -> 3 | BQ24: =IF(S24=0,1,0) -> 1 | BR24: =IF(AND(S24=0,K24>L24),1,0)*BW4 -> 0 | BS24: =IF(AND(S24=0,K24=L24),1,0)*BW4 -> 0 | BT24: =BQ24-BR24-BS24 -> 1 | BU24: =K24 -> 2 | BV24: =L24 -> 7 | BW24: =((BR24*3)+BS24)*BW4 -> 0
B25: 1 | E25: =E24+1 -> 16 | F25: =M20 -> RONY-PR | K25: 3 | L25: 6 | M25: =F17 -> KLEBER-SP | S25: =COUNTBLANK(K25:L25) -> 0 | U25: =IF(S25=0,1,0) -> 1 | V25: =IF(AND(S25=0,L25>K25),1,0)*AA4 -> 1 | W25: =IF(AND(S25=0,K25=L25),1,0)*AA4 -> 0 | X25: =U25-V25-W25 -> 0 | Y25: =L25 -> 6 | Z25: =K25 -> 3 | AA25: =((V25*3)+W25)*AA4 -> 3 | BY25: =IF(S25=0,1,0) -> 1 | BZ25: =IF(AND(S25=0,K25>L25),1,0)*CE4 -> 0 | CA25: =IF(AND(S25=0,K25=L25),1,0)*CE4 -> 0 | CB25: =BY25-BZ25-CA25 -> 1 | CC25: =K25 -> 3 | CD25: =L25 -> 6 | CE25: =((BZ25*3)+CA25)*CE4 -> 0
B27: 1 | C27: 12 | D27: =$D$7 -> 2022-06-18 | E27: 17 | F27: =F22 -> MAICON-PR | K27: 8 | L27: 4 | M27: =M23 -> ELIAHOU-SP | S27: =COUNTBLANK(K27:L27) -> 0 | AK27: =IF(S27=0,1,0) -> 1 | AL27: =IF(AND(S27=0,L27>K27),1,0)*AQ4 -> 0 | AM27: =IF(AND(S27=0,K27=L27),1,0)*AQ4 -> 0 | AN27: =AK27-AL27-AM27 -> 1 | AO27: =L27 -> 4 | AP27: =K27 -> 8 | AQ27: =((AL27*3)+AM27)*AQ4 -> 0 | BA27: =IF(S27=0,1,0) -> 1 | BB27: =IF(AND(S27=0,K27>L27),1,0)*BG4 -> 1 | BC27: =IF(AND(S27=0,K27=L27),1,0)*BG4 -> 0 | BD27: =BA27-BB27-BC27 -> 0 | BE27: =K27 -> 8 | BF27: =L27 -> 4 | BG27: =((BB27*3)+BC27)*BG4 -> 3 | CH27: 5ª
B28: 1 | E28: =E27+1 -> 18 | F28: =F23 -> EVANIR-SP | K28: 2 | L28: 6 | M28: =M24 -> TERUEL-SP | S28: =COUNTBLANK(K28:L28) -> 0 | AS28: =IF(S28=0,1,0) -> 1 | AT28: =IF(AND(S28=0,L28>K28),1,0)*AY4 -> 1 | AU28: =IF(AND(S28=0,K28=L28),1,0)*AY4 -> 0 | AV28: =AS28-AT28-AU28 -> 0 | AW28: =L28 -> 6 | AX28: =K28 -> 2 | AY28: =((AT28*3)+AU28)*AY4 -> 3 | BI28: =IF(S28=0,1,0) -> 1 | BJ28: =IF(AND(S28=0,K28>L28),1,0)*BO4 -> 0 | BK28: =IF(AND(S28=0,K28=L28),1,0)*BO4 -> 0 | BL28: =BI28-BJ28-BK28 -> 1 | BM28: =K28 -> 2 | BN28: =L28 -> 6 | BO28: =((BJ28*3)+BK28)*BO4 -> 0
B29: 1 | D29: 11:00:00 | E29: =E28+1 -> 19 | F29: =F24 -> ELCIO BURATINI-MG | K29: 2 | L29: 5 | M29: =M25 -> KLEBER-SP | S29: =COUNTBLANK(K29:L29) -> 0 | U29: =IF(S29=0,1,0) -> 1 | V29: =IF(AND(S29=0,L29>K29),1,0)*AA4 -> 1 | W29: =IF(AND(S29=0,K29=L29),1,0)*AA4 -> 0 | X29: =U29-V29-W29 -> 0 | Y29: =L29 -> 5 | Z29: =K29 -> 2 | AA29: =((V29*3)+W29)*AA4 -> 3 | BQ29: =IF(S29=0,1,0) -> 1 | BR29: =IF(AND(S29=0,K29>L29),1,0)*BW4 -> 0 | BS29: =IF(AND(S29=0,K29=L29),1,0)*BW4 -> 0 | BT29: =BQ29-BR29-BS29 -> 1 | BU29: =K29 -> 2 | BV29: =L29 -> 5 | BW29: =((BR29*3)+BS29)*BW4 -> 0
B30: 1 | E30: =E29+1 -> 20 | F30: =F25 -> RONY-PR | K30: 3 | L30: 4 | M30: =M22 -> FLOSI-SP | S30: =COUNTBLANK(K30:L30) -> 0 | AC30: =IF(S30=0,1,0) -> 1 | AD30: =IF(AND(S30=0,L30>K30),1,0)*AI4 -> 1 | AE30: =IF(AND(S30=0,K30=L30),1,0)*AI4 -> 0 | AF30: =AC30-AD30-AE30 -> 0 | AG30: =L30 -> 4 | AH30: =K30 -> 3 | AI30: =((AD30*3)+AE30)*AI4 -> 3 | BY30: =IF(S30=0,1,0) -> 1 | BZ30: =IF(AND(S30=0,K30>L30),1,0)*CE4 -> 0 | CA30: =IF(AND(S30=0,K30=L30),1,0)*CE4 -> 0 | CB30: =BY30-BZ30-CA30 -> 1 | CC30: =K30 -> 3 | CD30: =L30 -> 4 | CE30: =((BZ30*3)+CA30)*CE4 -> 0
B32: 1 | C32: 13 | D32: =$D$7 -> 2022-06-18 | E32: 21 | F32: =F28 -> EVANIR-SP | K32: 4 | L32: 5 | M32: =M30 -> FLOSI-SP | S32: =COUNTBLANK(K32:L32) -> 0 | AC32: =IF(S32=0,1,0) -> 1 | AD32: =IF(AND(S32=0,L32>K32),1,0)*AI4 -> 1 | AE32: =IF(AND(S32=0,K32=L32),1,0)*AI4 -> 0 | AF32: =AC32-AD32-AE32 -> 0 | AG32: =L32 -> 5 | AH32: =K32 -> 4 | AI32: =((AD32*3)+AE32)*AI4 -> 3 | BI32: =IF(S32=0,1,0) -> 1 | BJ32: =IF(AND(S32=0,K32>L32),1,0)*BO4 -> 0 | BK32: =IF(AND(S32=0,K32=L32),1,0)*BO4 -> 0 | BL32: =BI32-BJ32-BK32 -> 1 | BM32: =K32 -> 4 | BN32: =L32 -> 5 | BO32: =((BJ32*3)+BK32)*BO4 -> 0 | CH32: 6ª
B33: 1 | E33: =E32+1 -> 22 | F33: =F27 -> MAICON-PR | K33: 4 | L33: 5 | M33: =M29 -> KLEBER-SP | S33: =COUNTBLANK(K33:L33) -> 0 | U33: =IF(S33=0,1,0) -> 1 | V33: =IF(AND(S33=0,L33>K33),1,0)*AA4 -> 1 | W33: =IF(AND(S33=0,K33=L33),1,0)*AA4 -> 0 | X33: =U33-V33-W33 -> 0 | Y33: =L33 -> 5 | Z33: =K33 -> 4 | AA33: =((V33*3)+W33)*AA4 -> 3 | BA33: =IF(S33=0,1,0) -> 1 | BB33: =IF(AND(S33=0,K33>L33),1,0)*BG4 -> 0 | BC33: =IF(AND(S33=0,K33=L33),1,0)*BG4 -> 0 | BD33: =BA33-BB33-BC33 -> 1 | BE33: =K33 -> 4 | BF33: =L33 -> 5 | BG33: =((BB33*3)+BC33)*BG4 -> 0
B34: 1 | D34: 11:30:00 | E34: =E33+1 -> 23 | F34: =F30 -> RONY-PR | K34: 6 | L34: 6 | M34: =M28 -> TERUEL-SP | S34: =COUNTBLANK(K34:L34) -> 0 | AS34: =IF(S34=0,1,0) -> 1 | AT34: =IF(AND(S34=0,L34>K34),1,0)*AY4 -> 0 | AU34: =IF(AND(S34=0,K34=L34),1,0)*AY4 -> 1 | AV34: =AS34-AT34-AU34 -> 0 | AW34: =L34 -> 6 | AX34: =K34 -> 6 | AY34: =((AT34*3)+AU34)*AY4 -> 1 | BY34: =IF(S34=0,1,0) -> 1 | BZ34: =IF(AND(S34=0,K34>L34),1,0)*CE4 -> 0 | CA34: =IF(AND(S34=0,K34=L34),1,0)*CE4 -> 1 | CB34: =BY34-BZ34-CA34 -> 0 | CC34: =K34 -> 6 | CD34: =L34 -> 6 | CE34: =((BZ34*3)+CA34)*CE4 -> 1
B35: 1 | E35: =E34+1 -> 24 | F35: =F29 -> ELCIO BURATINI-MG | K35: 4 | L35: 4 | M35: =M27 -> ELIAHOU-SP | S35: =COUNTBLANK(K35:L35) -> 0 | AK35: =IF(S35=0,1,0) -> 1 | AL35: =IF(AND(S35=0,L35>K35),1,0)*AQ4 -> 0 | AM35: =IF(AND(S35=0,K35=L35),1,0)*AQ4 -> 1 | AN35: =AK35-AL35-AM35 -> 0 | AO35: =L35 -> 4 | AP35: =K35 -> 4 | AQ35: =((AL35*3)+AM35)*AQ4 -> 1 | BQ35: =IF(S35=0,1,0) -> 1 | BR35: =IF(AND(S35=0,K35>L35),1,0)*BW4 -> 0 | BS35: =IF(AND(S35=0,K35=L35),1,0)*BW4 -> 1 | BT35: =BQ35-BR35-BS35 -> 0 | BU35: =K35 -> 4 | BV35: =L35 -> 4 | BW35: =((BR35*3)+BS35)*BW4 -> 1
B37: 1 | C37: 14 | D37: =$D$7 -> 2022-06-18 | E37: 25 | F37: =F34 -> RONY-PR | K37: 4 | L37: 9 | M37: =M35 -> ELIAHOU-SP | S37: =COUNTBLANK(K37:L37) -> 0 | AK37: =IF(S37=0,1,0) -> 1 | AL37: =IF(AND(S37=0,L37>K37),1,0)*AQ4 -> 1 | AM37: =IF(AND(S37=0,K37=L37),1,0)*AQ4 -> 0 | AN37: =AK37-AL37-AM37 -> 0 | AO37: =L37 -> 9 | AP37: =K37 -> 4 | AQ37: =((AL37*3)+AM37)*AQ4 -> 3 | BY37: =IF(S37=0,1,0) -> 1 | BZ37: =IF(AND(S37=0,K37>L37),1,0)*CE4 -> 0 | CA37: =IF(AND(S37=0,K37=L37),1,0)*CE4 -> 0 | CB37: =BY37-BZ37-CA37 -> 1 | CC37: =K37 -> 4 | CD37: =L37 -> 9 | CE37: =((BZ37*3)+CA37)*CE4 -> 0 | CH37: 7ª
B38: 1 | E38: =E37+1 -> 26 | F38: =F32 -> EVANIR-SP | K38: 2 | L38: 5 | M38: =M33 -> KLEBER-SP | S38: =COUNTBLANK(K38:L38) -> 0 | U38: =IF(S38=0,1,0) -> 1 | V38: =IF(AND(S38=0,L38>K38),1,0)*AA4 -> 1 | W38: =IF(AND(S38=0,K38=L38),1,0)*AA4 -> 0 | X38: =U38-V38-W38 -> 0 | Y38: =L38 -> 5 | Z38: =K38 -> 2 | AA38: =((V38*3)+W38)*AA4 -> 3 | BI38: =IF(S38=0,1,0) -> 1 | BJ38: =IF(AND(S38=0,K38>L38),1,0)*BO4 -> 0 | BK38: =IF(AND(S38=0,K38=L38),1,0)*BO4 -> 0 | BL38: =BI38-BJ38-BK38 -> 1 | BM38: =K38 -> 2 | BN38: =L38 -> 5 | BO38: =((BJ38*3)+BK38)*BO4 -> 0
B39: 1 | D39: 12:00:00 | E39: =E38+1 -> 27 | F39: =F35 -> ELCIO BURATINI-MG | K39: 2 | L39: 4 | M39: =M32 -> FLOSI-SP | S39: =COUNTBLANK(K39:L39) -> 0 | AC39: =IF(S39=0,1,0) -> 1 | AD39: =IF(AND(S39=0,L39>K39),1,0)*AI4 -> 1 | AE39: =IF(AND(S39=0,K39=L39),1,0)*AI4 -> 0 | AF39: =AC39-AD39-AE39 -> 0 | AG39: =L39 -> 4 | AH39: =K39 -> 2 | AI39: =((AD39*3)+AE39)*AI4 -> 3 | BQ39: =IF(S39=0,1,0) -> 1 | BR39: =IF(AND(S39=0,K39>L39),1,0)*BW4 -> 0 | BS39: =IF(AND(S39=0,K39=L39),1,0)*BW4 -> 0 | BT39: =BQ39-BR39-BS39 -> 1 | BU39: =K39 -> 2 | BV39: =L39 -> 4 | BW39: =((BR39*3)+BS39)*BW4 -> 0
B40: 1 | E40: =E39+1 -> 28 | F40: =F33 -> MAICON-PR | K40: 6 | L40: 4 | M40: =M34 -> TERUEL-SP | S40: =COUNTBLANK(K40:L40) -> 0 | AS40: =IF(S40=0,1,0) -> 1 | AT40: =IF(AND(S40=0,L40>K40),1,0)*AY4 -> 0 | AU40: =IF(AND(S40=0,K40=L40),1,0)*AY4 -> 0 | AV40: =AS40-AT40-AU40 -> 1 | AW40: =L40 -> 4 | AX40: =K40 -> 6 | AY40: =((AT40*3)+AU40)*AY4 -> 0 | BA40: =IF(S40=0,1,0) -> 1 | BB40: =IF(AND(S40=0,K40>L40),1,0)*BG4 -> 1 | BC40: =IF(AND(S40=0,K40=L40),1,0)*BG4 -> 0 | BD40: =BA40-BB40-BC40 -> 0 | BE40: =K40 -> 6 | BF40: =L40 -> 4 | BG40: =((BB40*3)+BC40)*BG4 -> 3
S41: =SUM(S7:S40) -> 0 | U41: =SUM(U7:U40) -> 7 | V41: 5 | W41: 1 | X41: 1 | Y41: 36 | Z41: 22 | AA41: =SUM(AA7:AA40) -> 16 | AC41: =SUM(AC7:AC40) -> 7 | AD41: 5 | AE41: 0 | AF41: 2 | AG41: 29 | AH41: 26 | AI41: 15 | AK41: =SUM(AK7:AK40) -> 7 | AL41: 2 | AM41: 1 | AN41: 4 | AO41: 31 | AP41: 35 | AQ41: 7 | AS41: =SUM(AS7:AS40) -> 7 | AT41: 4 | AU41: 2 | AV41: 1 | AW41: 37 | AX41: 28 | AY41: 14 | BA41: =SUM(BA7:BA40) -> 7 | BB41: 3 | BC41: 2 | BD41: 2 | BE41: 32 | BF41: 26 | BG41: 11 | BI41: =SUM(BI7:BI40) -> 7 | BJ41: 1 | BK41: 1 | BL41: 5 | BM41: 21 | BN41: 32 | BO41: 4 | BQ41: =SUM(BQ7:BQ40) -> 7 | BR41: 0 | BS41: 4 | BT41: 3 | BU41: 16 | BV41: 26 | BW41: 4 | BY41: =SUM(BY7:BY40) -> 7 | BZ41: 1 | CA41: 3 | CB41: 3 | CC41: 26 | CD41: 33 | CE41: 6
C42: Acumulado da 1a Fase | S42: Resumo da 1a Fase
C43: Class | D43: Botonistas | I43: PG | J43: J | K43: V | L43: E | M43: D | N43: GP | O43: GC | P43: SG | S43: Cl | U43: Nome | AC43: J | AD43: V | AE43: E | AF43: D | AG43: GP | AH43: GC | AI43: PG
C44: ='G2'!C152 -> 1o G1 | D44: ='G2'!D152 -> KLEBER-SP | I44: ='G2'!I152 -> 18 | J44: ='G2'!J152 -> 7 | K44: ='G2'!K152 -> 6 | L44: ='G2'!L152 -> 0 | M44: ='G2'!M152 -> 1 | N44: ='G2'!N152 -> 28 | O44: ='G2'!O152 -> 16 | P44: ='G2'!P152 -> 12 | U44: =D44 -> KLEBER-SP | AC44: =J44 -> 7 | AD44: 6 | AE44: 0 | AF44: 1 | AG44: 28 | AH44: 16 | AI44: =I44 -> 18
C45: ='G2'!C153 -> 2o G5 | D45: ='G2'!D153 -> FLOSI-SP | I45: ='G2'!I153 -> 16 | J45: ='G2'!J153 -> 7 | K45: ='G2'!K153 -> 5 | L45: ='G2'!L153 -> 1 | M45: ='G2'!M153 -> 1 | N45: ='G2'!N153 -> 34 | O45: ='G2'!O153 -> 21 | P45: ='G2'!P153 -> 13 | U45: =D45 -> FLOSI-SP | AC45: =J45 -> 7 | AD45: =K45 -> 5 | AE45: =L45 -> 1 | AF45: =M45 -> 1 | AG45: =N45 -> 34 | AH45: =O45 -> 21 | AI45: =I45 -> 16
C46: ='G2'!C154 -> 4o G12 | D46: ='G2'!D154 -> ELIAHOU-SP | I46: ='G2'!I154 -> 12 | J46: ='G2'!J154 -> 7 | K46: ='G2'!K154 -> 3 | L46: ='G2'!L154 -> 3 | M46: ='G2'!M154 -> 1 | N46: ='G2'!N154 -> 28 | O46: ='G2'!O154 -> 22 | P46: ='G2'!P154 -> 6 | U46: =D46 -> ELIAHOU-SP | AC46: =J46 -> 7 | AD46: 3 | AE46: 3 | AF46: 1 | AG46: 28 | AH46: 22 | AI46: 12
C47: ='G2'!C155 -> 3o G8 | D47: ='G2'!D155 -> TERUEL-SP | I47: ='G2'!I155 -> 13 | J47: ='G2'!J155 -> 7 | K47: ='G2'!K155 -> 4 | L47: ='G2'!L155 -> 1 | M47: ='G2'!M155 -> 2 | N47: ='G2'!N155 -> 43 | O47: ='G2'!O155 -> 28 | P47: ='G2'!P155 -> 15 | U47: TERUEL-SP | AC47: 7 | AD47: 4 | AE47: 1 | AF47: 2 | AG47: 43 | AH47: 28 | AI47: 13
C48: ='G2'!C156 -> 2o G4 | D48: ='G2'!D156 -> MAICON-PR | I48: ='G2'!I156 -> 16 | J48: ='G2'!J156 -> 7 | K48: ='G2'!K156 -> 5 | L48: ='G2'!L156 -> 1 | M48: ='G2'!M156 -> 1 | N48: ='G2'!N156 -> 35 | O48: ='G2'!O156 -> 24 | P48: ='G2'!P156 -> 11 | U48: MAICON-PR | AC48: 7 | AD48: 5 | AE48: 1 | AF48: 1 | AG48: 35 | AH48: 24 | AI48: 16
C49: ='G2'!C157 -> 5o G11 | D49: ='G2'!D157 -> EVANIR-SP | I49: ='G2'!I157 -> 9 | J49: ='G2'!J157 -> 7 | K49: ='G2'!K157 -> 3 | L49: ='G2'!L157 -> 0 | M49: ='G2'!M157 -> 4 | N49: ='G2'!N157 -> 25 | O49: ='G2'!O157 -> 24 | P49: ='G2'!P157 -> 1 | U49: EVANIR-SP | AC49: 7 | AD49: 3 | AE49: 0 | AF49: 4 | AG49: 25 | AH49: 24 | AI49: 9
C50: ='G2'!C158 -> 1º M.6º | D50: ='G2'!D158 -> ELCIO BURATINI-MG | I50: ='G2'!I158 -> 9 | J50: ='G2'!J158 -> 7 | K50: ='G2'!K158 -> 3 | L50: ='G2'!L158 -> 0 | M50: ='G2'!M158 -> 4 | N50: ='G2'!N158 -> 15 | O50: ='G2'!O158 -> 22 | P50: ='G2'!P158 -> -7 | U50: ELCIO BURATINI-MG | AC50: 7 | AD50: 3 | AE50: 0 | AF50: 4 | AG50: 15 | AH50: 22 | AI50: 9
C51: ='G2'!C159 -> 3o G9 | D51: ='G2'!D159 -> RONY-PR | I51: ='G2'!I159 -> 15 | J51: ='G2'!J159 -> 7 | K51: ='G2'!K159 -> 5 | L51: ='G2'!L159 -> 0 | M51: ='G2'!M159 -> 2 | N51: ='G2'!N159 -> 27 | O51: ='G2'!O159 -> 17 | P51: ='G2'!P159 -> 10 | U51: RONY-PR | AC51: 7 | AD51: 5 | AE51: 0 | AF51: 2 | AG51: 27 | AH51: 17 | AI51: 15
C52: 2a Fase | S52: Resumo da 2a Fase
C53: Class | D53: Botonistas | I53: PG | J53: J | K53: V | L53: E | M53: D | N53: GP | O53: GC | P53: SG | Q53: Sorteio | S53: Cl | U53: Botonista | AC53: J | AD53: V | AE53: E | AF53: D | AG53: GP | AH53: GC | AI53: PG | AJ53: Chave Sort | AR53: Cl | AT53: Botonista | BA53: J | BB53: V | BC53: E | BD53: D | BE53: GP | BF53: GC | BG53: PG | BH53: Chave Sort
B54: =IF($S$41=0,"è","") -> è | C54: =AR54 -> 1 | D54: =AT54 -> KLEBER-SP | I54: =BG54 -> 16 | J54: =BA54 -> 7 | K54: 5 | L54: 1 | M54: 1 | N54: =BE54 -> 36 | O54: 22 | P54: =N54-O54 -> 14 | Q54: =IF(INT(BH54)=INT(BH55),ASC(CHAR(252)),"") ->  | S54: =RANK(AJ54,AJ54:AJ61,0) -> 1 | U54: =F7 -> KLEBER-SP | AC54: =U41 -> 7 | AD54: 5 | AE54: 1 | AF54: 1 | AG54: 36 | AH54: 22 | AI54: 16 | AJ54: =(AI54*1000000000000000)+((AI54+AI44)*1000000000000)+((AD54+AD44)*1000000000)+((AG54+AG44-AH54-AH44)*1000000)+((AG54+AG44)*1000)+((AG54-AH54))+(AR54/10) -> 1.603401103e+16 | AR54: 1 | AT54: =VLOOKUP(AR54,S54:AJ61,3,FALSE) -> KLEBER-SP | BA54: =VLOOKUP(AR54,S54:AJ61,11,FALSE) -> 7 | BB54: =VLOOKUP(AR54,S54:AJ61,12,FALSE) -> 5 | BC54: =VLOOKUP(AR54,S54:AJ61,13,FALSE) -> 1 | BD54: =VLOOKUP(AR54,S54:AJ61,14,FALSE) -> 1 | BE54: =VLOOKUP(AR54,S54:AJ61,15,FALSE) -> 36 | BF54: =VLOOKUP(AR54,S54:AJ61,16,FALSE) -> 22 | BG54: =VLOOKUP(AR54,S54:AJ61,17,FALSE) -> 16 | BH54: =VLOOKUP(AR54,S54:AJ61,18,FALSE) -> 1.603401103e+16 | BI54: =VLOOKUP($AR54,$S$37:$AI$51,17,FALSE) -> 
B55: =IF($S$41=0,"è","") -> è | C55: 2 | D55: =AT55 -> FLOSI-SP | I55: 15 | J55: 7 | K55: 5 | L55: 0 | M55: 2 | N55: 29 | O55: 26 | P55: 3 | Q55: =IF(OR(INT(BH55)=INT(BH54),INT(BH56)=INT(BH55)),ASC(CHAR(252)),"") ->  | S55: =RANK(AJ55,AJ54:AJ61,0) -> 2 | U55: =U45 -> FLOSI-SP | AC55: =AC41 -> 7 | AD55: 5 | AE55: 0 | AF55: 2 | AG55: 29 | AH55: 26 | AI55: 15 | AJ55: =(AI55*1000000000000000)+((AI55+AI45)*1000000000000)+((AD55+AD45)*1000000000)+((AG55+AG45-AH55-AH45)*1000000)+((AG55+AG45)*1000)+((AG55-AH55))+(AR55/10) -> 1.503101002e+16 | AR55: 2 | AT55: =VLOOKUP(AR55,S54:AJ61,3,FALSE) -> FLOSI-SP | BA55: =VLOOKUP(AR55,S54:AJ61,11,FALSE) -> 7 | BB55: =VLOOKUP(AR55,S54:AJ61,12,FALSE) -> 5 | BC55: =VLOOKUP(AR55,S54:AJ61,13,FALSE) -> 0 | BD55: =VLOOKUP(AR55,S54:AJ61,14,FALSE) -> 2 | BE55: =VLOOKUP(AR55,S54:AJ61,15,FALSE) -> 29 | BF55: =VLOOKUP(AR55,S54:AJ61,16,FALSE) -> 26 | BG55: =VLOOKUP(AR55,S54:AJ61,17,FALSE) -> 15 | BH55: =VLOOKUP(AR55,S54:AJ61,18,FALSE) -> 1.503101002e+16
B56: =IF($S$41=0,"ð","") -> ð | C56: 3 | D56: TERUEL-SP | I56: 14 | J56: 7 | K56: 4 | L56: 2 | M56: 1 | N56: 37 | O56: 28 | P56: 9 | S56: =RANK(AJ56,AJ54:AJ61,0) -> 5 | U56: =U46 -> ELIAHOU-SP | AC56: =AK41 -> 7 | AD56: 2 | AE56: 1 | AF56: 4 | AG56: 31 | AH56: 35 | AI56: 7 | AJ56: =(AI56*1000000000000000)+((AI56+AI46)*1000000000000)+((AD56+AD46)*1000000000)+((AG56+AG46-AH56-AH46)*1000000)+((AG56+AG46)*1000)+((AG56-AH56))+(AR56/10) -> 7019005002058996 | AR56: 3 | AT56: =VLOOKUP(AR56,S54:AJ61,3,FALSE) -> TERUEL-SP | BA56: =VLOOKUP(AR56,S54:AJ61,11,FALSE) -> 7 | BB56: =VLOOKUP(AR56,S54:AJ61,12,FALSE) -> 4 | BC56: =VLOOKUP(AR56,S54:AJ61,13,FALSE) -> 2 | BD56: =VLOOKUP(AR56,S54:AJ61,14,FALSE) -> 1 | BE56: =VLOOKUP(AR56,S54:AJ61,15,FALSE) -> 37 | BF56: =VLOOKUP(AR56,S54:AJ61,16,FALSE) -> 28 | BG56: =VLOOKUP(AR56,S54:AJ61,17,FALSE) -> 14 | BH56: =VLOOKUP(AR56,S54:AJ61,18,FALSE) -> 1.402700802e+16
B57: =IF($S$41=0,"ð","") -> ð | C57: 4 | D57: MAICON-PR | I57: 11 | J57: 7 | K57: 3 | L57: 2 | M57: 2 | N57: 32 | O57: 26 | P57: 6 | S57: =RANK(AJ57,AJ54:AJ61,0) -> 3 | U57: TERUEL-SP | AC57: =AS41 -> 7 | AD57: 4 | AE57: 2 | AF57: 1 | AG57: 37 | AH57: 28 | AI57: 14 | AJ57: =(AI57*1000000000000000)+((AI57+AI47)*1000000000000)+((AD57+AD47)*1000000000)+((AG57+AG47-AH57-AH47)*1000000)+((AG57+AG47)*1000)+((AG57-AH57))+(AR57/10) -> 1.402700802e+16 | AR57: 4 | AT57: =VLOOKUP(AR57,S54:AJ61,3,FALSE) -> MAICON-PR | BA57: =VLOOKUP(AR57,S54:AJ61,11,FALSE) -> 7 | BB57: =VLOOKUP(AR57,S54:AJ61,12,FALSE) -> 3 | BC57: =VLOOKUP(AR57,S54:AJ61,13,FALSE) -> 2 | BD57: =VLOOKUP(AR57,S54:AJ61,14,FALSE) -> 2 | BE57: =VLOOKUP(AR57,S54:AJ61,15,FALSE) -> 32 | BF57: =VLOOKUP(AR57,S54:AJ61,16,FALSE) -> 26 | BG57: =VLOOKUP(AR57,S54:AJ61,17,FALSE) -> 11 | BH57: =VLOOKUP(AR57,S54:AJ61,18,FALSE) -> 1.102700802e+16
B58: =IF($S$41=0,"Ø","") -> Ø | C58: 5 | D58: ELIAHOU-SP | I58: 7 | J58: 7 | K58: 2 | L58: 1 | M58: 4 | N58: 31 | O58: 35 | P58: -4 | S58: =RANK(AJ58,AJ54:AJ61,0) -> 4 | U58: MAICON-PR | AC58: =BA41 -> 7 | AD58: 3 | AE58: 2 | AF58: 2 | AG58: 32 | AH58: 26 | AI58: 11 | AJ58: 1.102700802e+16 | AR58: 5 | AT58: =VLOOKUP(AR58,S54:AJ61,3,FALSE) -> ELIAHOU-SP | BA58: =VLOOKUP(AR58,S54:AJ61,11,FALSE) -> 7 | BB58: =VLOOKUP(AR58,S54:AJ61,12,FALSE) -> 2 | BC58: =VLOOKUP(AR58,S54:AJ61,13,FALSE) -> 1 | BD58: =VLOOKUP(AR58,S54:AJ61,14,FALSE) -> 4 | BE58: =VLOOKUP(AR58,S54:AJ61,15,FALSE) -> 31 | BF58: =VLOOKUP(AR58,S54:AJ61,16,FALSE) -> 35 | BG58: =VLOOKUP(AR58,S54:AJ61,17,FALSE) -> 7 | BH58: =VLOOKUP(AR58,S54:AJ61,18,FALSE) -> 7019005002058996
B59: =IF($S$41=0,"Ø","") -> Ø | C59: 6 | D59: RONY-PR | I59: 6 | J59: 7 | K59: 1 | L59: 3 | M59: 3 | N59: 26 | O59: 33 | P59: -7 | S59: =RANK(AJ59,AJ54:AJ61,0) -> 7 | U59: EVANIR-SP | AC59: =BI41 -> 7 | AD59: 1 | AE59: 1 | AF59: 5 | AG59: 21 | AH59: 32 | AI59: 4 | AJ59: 4.01300399e+15 | AR59: 6 | AT59: =VLOOKUP(AR59,S54:AJ61,3,FALSE) -> RONY-PR | BA59: =VLOOKUP(AR59,S54:AJ61,11,FALSE) -> 7 | BB59: =VLOOKUP(AR59,S54:AJ61,12,FALSE) -> 1 | BC59: =VLOOKUP(AR59,S54:AJ61,13,FALSE) -> 3 | BD59: =VLOOKUP(AR59,S54:AJ61,14,FALSE) -> 3 | BE59: =VLOOKUP(AR59,S54:AJ61,15,FALSE) -> 26 | BF59: =VLOOKUP(AR59,S54:AJ61,16,FALSE) -> 33 | BG59: =VLOOKUP(AR59,S54:AJ61,17,FALSE) -> 6 | BH59: =VLOOKUP(AR59,S54:AJ61,18,FALSE) -> 6021006003052994
B60: =IF($S$41=0,"à","") -> à | C60: =AR60 -> 7 | D60: EVANIR-SP | I60: 4 | J60: 7 | K60: 1 | L60: 1 | M60: 5 | N60: 21 | O60: 32 | P60: -11 | S60: =RANK(AJ60,AJ54:AJ61,0) -> 8 | U60: ELCIO BURATINI-MG | AC60: =BQ41 -> 7 | AD60: 0 | AE60: 4 | AF60: 3 | AG60: 16 | AH60: 26 | AI60: 4 | AJ60: 4.013002983e+15 | AR60: 7 | AT60: =VLOOKUP(AR60,S54:AJ61,3,FALSE) -> EVANIR-SP | BA60: =VLOOKUP(AR60,S54:AJ61,11,FALSE) -> 7 | BB60: =VLOOKUP(AR60,S54:AJ61,12,FALSE) -> 1 | BC60: =VLOOKUP(AR60,S54:AJ61,13,FALSE) -> 1 | BD60: =VLOOKUP(AR60,S54:AJ61,14,FALSE) -> 5 | BE60: =VLOOKUP(AR60,S54:AJ61,15,FALSE) -> 21 | BF60: =VLOOKUP(AR60,S54:AJ61,16,FALSE) -> 32 | BG60: =VLOOKUP(AR60,S54:AJ61,17,FALSE) -> 4 | BH60: =VLOOKUP(AR60,S54:AJ61,18,FALSE) -> 4.01300399e+15
B61: =IF($S$41=0,"à","") -> à | C61: =AR61 -> 8 | D61: ELCIO BURATINI-MG | I61: 4 | J61: 7 | K61: 0 | L61: 4 | M61: 3 | N61: 16 | O61: 26 | P61: -10 | S61: =RANK(AJ61,AJ54:AJ61,0) -> 6 | U61: RONY-PR | AC61: =BY41 -> 7 | AD61: 1 | AE61: 3 | AF61: 3 | AG61: 26 | AH61: 33 | AI61: 6 | AJ61: 6021006003052994 | AR61: 8 | AT61: =VLOOKUP(AR61,S54:AJ61,3,FALSE) -> ELCIO BURATINI-MG | BA61: =VLOOKUP(AR61,S54:AJ61,11,FALSE) -> 7 | BB61: =VLOOKUP(AR61,S54:AJ61,12,FALSE) -> 0 | BC61: =VLOOKUP(AR61,S54:AJ61,13,FALSE) -> 4 | BD61: =VLOOKUP(AR61,S54:AJ61,14,FALSE) -> 3 | BE61: =VLOOKUP(AR61,S54:AJ61,15,FALSE) -> 16 | BF61: =VLOOKUP(AR61,S54:AJ61,16,FALSE) -> 26 | BG61: =VLOOKUP(AR61,S54:AJ61,17,FALSE) -> 4 | BH61: =VLOOKUP(AR61,S54:AJ61,18,FALSE) -> 4.013002983e+15
C63: è | D63: 1a Divisão | G63: ð | H63: 2a Divisão | K63: Ø | L63: 3a Divisão | O63: à | P63: 4a Divisão
C66: =$C$4 -> Master - 1a Divisão | Q66: ='G2'!$R$160 -> 2a Fase - Grupo 14 | U66: =F69 -> DALLA STELLA-PR | AA66: =IF(RIGHT(U66,4)="(WO)",0,1) -> 1 | AC66: =F70 -> LUIZ CARLOS-RJ | AI66: =IF(RIGHT(AC66,4)="(WO)",0,1) -> 1 | AK66: =M70 -> BAD-RJ | AQ66: =IF(RIGHT(AK66,4)="(WO)",0,1) -> 1 | AS66: =M69 -> LUIZ RICARDO-PR | AY66: =IF(RIGHT(AS66,4)="(WO)",0,1) -> 1 | BA66: =F71 -> ANOEL-SP | BG66: =IF(RIGHT(BA66,4)="(WO)",0,1) -> 1 | BI66: =F72 -> HEAVY-MG | BO66: =IF(RIGHT(BI66,4)="(WO)",0,1) -> 1 | BQ66: =M72 -> SERGIO PIVATTO-SP | BW66: =IF(RIGHT(BQ66,4)="(WO)",0,1) -> 1 | BY66: =M71 -> MARCELO LEITE-SP | CE66: =IF(RIGHT(BY66,4)="(WO)",0,1) -> 1
B67: Grp | C67: Rod. | D67: Data/Hora | E67: Mesa | F67: Jogos | S67: Ok | U67: J | V67: V | W67: E | X67: D | Y67: GP | Z67: GC | AA67: PG | AC67: J | AD67: V | AE67: E | AF67: D | AG67: GP | AH67: GC | AI67: PG | AK67: J | AL67: V | AM67: E | AN67: D | AO67: GP | AP67: GC | AQ67: PG | AS67: J | AT67: V | AU67: E | AV67: D | AW67: GP | AX67: GC | AY67: PG | BA67: J | BB67: V | BC67: E | BD67: D | BE67: GP | BF67: GC | BG67: PG | BI67: J | BJ67: V | BK67: E | BL67: D | BM67: GP | BN67: GC | BO67: PG | BQ67: J | BR67: V | BS67: E | BT67: D | BU67: GP | BV67: GC | BW67: PG | BY67: J | BZ67: V | CA67: E | CB67: D | CC67: GP | CD67: GC | CE67: PG | CH67: Rodada
B69: 1 | C69: 8 | D69: =$D$7 -> 2022-06-18 | E69: 5 | F69: =D106 -> DALLA STELLA-PR | K69: 4 | L69: 5 | M69: =D109 -> LUIZ RICARDO-PR | S69: =COUNTBLANK(K69:L69) -> 0 | U69: =IF(S69=0,1,0) -> 1 | V69: =IF(AND(S69=0,K69>L69),1,0)*AA66 -> 0 | W69: =IF(AND(S69=0,K69=L69),1,0)*AA66 -> 0 | X69: =U69-V69-W69 -> 1 | Y69: =K69 -> 4 | Z69: =L69 -> 5 | AA69: =((V69*3)+W69)*AA66 -> 0 | AS69: =IF(S69=0,1,0) -> 1 | AT69: =IF(AND(S69=0,L69>K69),1,0)*AY66 -> 1 | AU69: =IF(AND(S69=0,K69=L69),1,0)*AY66 -> 0 | AV69: =AS69-AT69-AU69 -> 0 | AW69: =L69 -> 5 | AX69: =K69 -> 4 | AY69: =((AT69*3)+AU69)*AY66 -> 3 | CH69: 1ª
B70: 1 | E70: =E69+1 -> 6 | F70: =D107 -> LUIZ CARLOS-RJ | K70: 5 | L70: 2 | M70: =D108 -> BAD-RJ | S70: =COUNTBLANK(K70:L70) -> 0 | AC70: =IF(S70=0,1,0) -> 1 | AD70: =IF(AND(S70=0,K70>L70),1,0)*AI66 -> 1 | AE70: =IF(AND(S70=0,K70=L70),1,0)*AI66 -> 0 | AF70: =AC70-AD70-AE70 -> 0 | AG70: =K70 -> 5 | AH70: =L70 -> 2 | AI70: =((AD70*3)+AE70)*AI66 -> 3 | AK70: =IF(S70=0,1,0) -> 1 | AL70: =IF(AND(S70=0,L70>K70),1,0)*AQ66 -> 0 | AM70: =IF(AND(S70=0,K70=L70),1,0)*AQ66 -> 0 | AN70: =AK70-AL70-AM70 -> 1 | AO70: =L70 -> 2 | AP70: =K70 -> 5 | AQ70: =((AL70*3)+AM70)*AQ66 -> 0
B71: 1 | D71: =$D$9 -> 09:00:00 | E71: =E70+1 -> 7 | F71: =D110 -> ANOEL-SP | K71: 4 | L71: 1 | M71: =D113 -> MARCELO LEITE-SP | S71: =COUNTBLANK(K71:L71) -> 0 | BA71: =IF(S71=0,1,0) -> 1 | BB71: =IF(AND(S71=0,K71>L71),1,0)*BG66 -> 1 | BC71: =IF(AND(S71=0,K71=L71),1,0)*BG66 -> 0 | BD71: =BA71-BB71-BC71 -> 0 | BE71: =K71 -> 4 | BF71: =L71 -> 1 | BG71: =((BB71*3)+BC71)*BG66 -> 3 | BY71: =IF(S71=0,1,0) -> 1 | BZ71: =IF(AND(S71=0,L71>K71),1,0)*CE66 -> 0 | CA71: =IF(AND(S71=0,K71=L71),1,0)*CE66 -> 0 | CB71: =BY71-BZ71-CA71 -> 1 | CC71: =L71 -> 1 | CD71: =K71 -> 4 | CE71: =((BZ71*3)+CA71)*CE66 -> 0
B72: 1 | E72: =E71+1 -> 8 | F72: =D111 -> HEAVY-MG | K72: 1 | L72: 1 | M72: =D112 -> SERGIO PIVATTO-SP | S72: =COUNTBLANK(K72:L72) -> 0 | BI72: =IF(S72=0,1,0) -> 1 | BJ72: =IF(AND(S72=0,K72>L72),1,0)*BO66 -> 0 | BK72: =IF(AND(S72=0,K72=L72),1,0)*BO66 -> 1 | BL72: =BI72-BJ72-BK72 -> 0 | BM72: =K72 -> 1 | BN72: =L72 -> 1 | BO72: =((BJ72*3)+BK72)*BO66 -> 1 | BQ72: =IF(S72=0,1,0) -> 1 | BR72: =IF(AND(S72=0,L72>K72),1,0)*BW66 -> 0 | BS72: =IF(AND(S72=0,K72=L72),1,0)*BW66 -> 1 | BT72: =BQ72-BR72-BS72 -> 0 | BU72: =L72 -> 1 | BV72: =K72 -> 1 | BW72: =((BR72*3)+BS72)*BW66 -> 1
B73: 1
B74: 1 | C74: 9 | D74: =$D$7 -> 2022-06-18 | E74: 9 | F74: =F69 -> DALLA STELLA-PR | K74: 6 | L74: 7 | M74: =M70 -> BAD-RJ | S74: =COUNTBLANK(K74:L74) -> 0 | U74: =IF(S74=0,1,0) -> 1 | V74: =IF(AND(S74=0,K74>L74),1,0)*AA66 -> 0 | W74: =IF(AND(S74=0,K74=L74),1,0)*AA66 -> 0 | X74: =U74-V74-W74 -> 1 | Y74: =K74 -> 6 | Z74: =L74 -> 7 | AA74: =((V74*3)+W74)*AA66 -> 0 | AK74: =IF(S74=0,1,0) -> 1 | AL74: =IF(AND(S74=0,L74>K74),1,0)*AQ66 -> 1 | AM74: =IF(AND(S74=0,K74=L74),1,0)*AQ66 -> 0 | AN74: =AK74-AL74-AM74 -> 0 | AO74: =L74 -> 7 | AP74: =K74 -> 6 | AQ74: =((AL74*3)+AM74)*AQ66 -> 3 | CH74: 2ª
B75: 1 | E75: =E74+1 -> 10 | F75: =F70 -> LUIZ CARLOS-RJ | K75: 2 | L75: 2 | M75: =M69 -> LUIZ RICARDO-PR | S75: =COUNTBLANK(K75:L75) -> 0 | AC75: =IF(S75=0,1,0) -> 1 | AD75: =IF(AND(S75=0,K75>L75),1,0)*AI66 -> 0 | AE75: =IF(AND(S75=0,K75=L75),1,0)*AI66 -> 1 | AF75: =AC75-AD75-AE75 -> 0 | AG75: =K75 -> 2 | AH75: =L75 -> 2 | AI75: =((AD75*3)+AE75)*AI66 -> 1 | AS75: =IF(S75=0,1,0) -> 1 | AT75: =IF(AND(S75=0,L75>K75),1,0)*AY66 -> 0 | AU75: =IF(AND(S75=0,K75=L75),1,0)*AY66 -> 1 | AV75: =AS75-AT75-AU75 -> 0 | AW75: =L75 -> 2 | AX75: =K75 -> 2 | AY75: =((AT75*3)+AU75)*AY66 -> 1
B76: 1 | D76: =$D$14 -> 09:30:00 | E76: =E75+1 -> 11 | F76: =F71 -> ANOEL-SP | K76: 2 | L76: 4 | M76: =M72 -> SERGIO PIVATTO-SP | S76: =COUNTBLANK(K76:L76) -> 0 | BA76: =IF(S76=0,1,0) -> 1 | BB76: =IF(AND(S76=0,K76>L76),1,0)*BG66 -> 0 | BC76: =IF(AND(S76=0,K76=L76),1,0)*BG66 -> 0 | BD76: =BA76-BB76-BC76 -> 1 | BE76: =K76 -> 2 | BF76: =L76 -> 4 | BG76: =((BB76*3)+BC76)*BG66 -> 0 | BQ76: =IF(S76=0,1,0) -> 1 | BR76: =IF(AND(S76=0,L76>K76),1,0)*BW66 -> 1 | BS76: =IF(AND(S76=0,K76=L76),1,0)*BW66 -> 0 | BT76: =BQ76-BR76-BS76 -> 0 | BU76: =L76 -> 4 | BV76: =K76 -> 2 | BW76: =((BR76*3)+BS76)*BW66 -> 3
B77: 1 | E77: =E76+1 -> 12 | F77: =F72 -> HEAVY-MG | K77: 2 | L77: 4 | M77: =M71 -> MARCELO LEITE-SP | S77: =COUNTBLANK(K77:L77) -> 0 | BI77: =IF(S77=0,1,0) -> 1 | BJ77: =IF(AND(S77=0,K77>L77),1,0)*BO66 -> 0 | BK77: =IF(AND(S77=0,K77=L77),1,0)*BO66 -> 0 | BL77: =BI77-BJ77-BK77 -> 1 | BM77: =K77 -> 2 | BN77: =L77 -> 4 | BO77: =((BJ77*3)+BK77)*BO66 -> 0 | BY77: =IF(S77=0,1,0) -> 1 | BZ77: =IF(AND(S77=0,L77>K77),1,0)*CE66 -> 1 | CA77: =IF(AND(S77=0,K77=L77),1,0)*CE66 -> 0 | CB77: =BY77-BZ77-CA77 -> 0 | CC77: =L77 -> 4 | CD77: =K77 -> 2 | CE77: =((BZ77*3)+CA77)*CE66 -> 3
B79: 1 | C79: 10 | D79: =$D$7 -> 2022-06-18 | E79: 13 | F79: =F74 -> DALLA STELLA-PR | K79: 3 | L79: 6 | M79: =F75 -> LUIZ CARLOS-RJ | S79: =COUNTBLANK(K79:L79) -> 0 | U79: =IF(S79=0,1,0) -> 1 | V79: =IF(AND(S79=0,K79>L79),1,0)*AA66 -> 0 | W79: =IF(AND(S79=0,K79=L79),1,0)*AA66 -> 0 | X79: =U79-V79-W79 -> 1 | Y79: =K79 -> 3 | Z79: =L79 -> 6 | AA79: =((V79*3)+W79)*AA66 -> 0 | AC79: =IF(S79=0,1,0) -> 1 | AD79: =IF(AND(S79=0,L79>K79),1,0)*AI66 -> 1 | AE79: =IF(AND(S79=0,K79=L79),1,0)*AI66 -> 0 | AF79: =AC79-AD79-AE79 -> 0 | AG79: =L79 -> 6 | AH79: =K79 -> 3 | AI79: =((AD79*3)+AE79)*AI66 -> 3 | CH79: 3ª
B80: 1 | E80: =E79+1 -> 14 | F80: =M74 -> BAD-RJ | K80: 5 | L80: 6 | M80: =M75 -> LUIZ RICARDO-PR | S80: =COUNTBLANK(K80:L80) -> 0 | AK80: =IF(S80=0,1,0) -> 1 | AL80: =IF(AND(S80=0,K80>L80),1,0)*AQ66 -> 0 | AM80: =IF(AND(S80=0,K80=L80),1,0)*AQ66 -> 0 | AN80: =AK80-AL80-AM80 -> 1 | AO80: =K80 -> 5 | AP80: =L80 -> 6 | AQ80: =((AL80*3)+AM80)*AQ66 -> 0 | AS80: =IF(S80=0,1,0) -> 1 | AT80: =IF(AND(S80=0,L80>K80),1,0)*AY66 -> 1 | AU80: =IF(AND(S80=0,K80=L80),1,0)*AY66 -> 0 | AV80: =AS80-AT80-AU80 -> 0 | AW80: =L80 -> 6 | AX80: =K80 -> 5 | AY80: =((AT80*3)+AU80)*AY66 -> 3
B81: 1 | D81: =$D$19 -> 10:00:00 | E81: =E80+1 -> 15 | F81: =F76 -> ANOEL-SP | K81: 7 | L81: 4 | M81: =F77 -> HEAVY-MG | S81: =COUNTBLANK(K81:L81) -> 0 | BA81: =IF(S81=0,1,0) -> 1 | BB81: =IF(AND(S81=0,K81>L81),1,0)*BG66 -> 1 | BC81: =IF(AND(S81=0,K81=L81),1,0)*BG66 -> 0 | BD81: =BA81-BB81-BC81 -> 0 | BE81: =K81 -> 7 | BF81: =L81 -> 4 | BG81: =((BB81*3)+BC81)*BG66 -> 3 | BI81: =IF(S81=0,1,0) -> 1 | BJ81: =IF(AND(S81=0,L81>K81),1,0)*BO66 -> 0 | BK81: =IF(AND(S81=0,K81=L81),1,0)*BO66 -> 0 | BL81: =BI81-BJ81-BK81 -> 1 | BM81: =L81 -> 4 | BN81: =K81 -> 7 | BO81: =((BJ81*3)+BK81)*BO66 -> 0
B82: 1 | E82: =E81+1 -> 16 | F82: =M76 -> SERGIO PIVATTO-SP | K82: 5 | L82: 4 | M82: =M77 -> MARCELO LEITE-SP | S82: =COUNTBLANK(K82:L82) -> 0 | BQ82: =IF(S82=0,1,0) -> 1 | BR82: =IF(AND(S82=0,K82>L82),1,0)*BW66 -> 1 | BS82: =IF(AND(S82=0,K82=L82),1,0)*BW66 -> 0 | BT82: =BQ82-BR82-BS82 -> 0 | BU82: =K82 -> 5 | BV82: =L82 -> 4 | BW82: =((BR82*3)+BS82)*BW66 -> 3 | BY82: =IF(S82=0,1,0) -> 1 | BZ82: =IF(AND(S82=0,L82>K82),1,0)*CE66 -> 0 | CA82: =IF(AND(S82=0,K82=L82),1,0)*CE66 -> 0 | CB82: =BY82-BZ82-CA82 -> 1 | CC82: =L82 -> 4 | CD82: =K82 -> 5 | CE82: =((BZ82*3)+CA82)*CE66 -> 0
B84: 1 | C84: 11 | D84: =$D$7 -> 2022-06-18 | E84: 17 | F84: =F81 -> ANOEL-SP | K84: 4 | L84: 2 | M84: =M79 -> LUIZ CARLOS-RJ | S84: =COUNTBLANK(K84:L84) -> 0 | AC84: =IF(S84=0,1,0) -> 1 | AD84: =IF(AND(S84=0,L84>K84),1,0)*AI66 -> 0 | AE84: =IF(AND(S84=0,K84=L84),1,0)*AI66 -> 0 | AF84: =AC84-AD84-AE84 -> 1 | AG84: =L84 -> 2 | AH84: =K84 -> 4 | AI84: =((AD84*3)+AE84)*AI66 -> 0 | BA84: =IF(S84=0,1,0) -> 1 | BB84: =IF(AND(S84=0,K84>L84),1,0)*BG66 -> 1 | BC84: =IF(AND(S84=0,K84=L84),1,0)*BG66 -> 0 | BD84: =BA84-BB84-BC84 -> 0 | BE84: =K84 -> 4 | BF84: =L84 -> 2 | BG84: =((BB84*3)+BC84)*BG66 -> 3 | CH84: 4ª
B85: 1 | E85: =E84+1 -> 18 | F85: =M81 -> HEAVY-MG | K85: 4 | L85: 5 | M85: =F80 -> BAD-RJ | S85: =COUNTBLANK(K85:L85) -> 0 | AK85: =IF(S85=0,1,0) -> 1 | AL85: =IF(AND(S85=0,L85>K85),1,0)*AQ66 -> 1 | AM85: =IF(AND(S85=0,K85=L85),1,0)*AQ66 -> 0 | AN85: =AK85-AL85-AM85 -> 0 | AO85: =L85 -> 5 | AP85: =K85 -> 4 | AQ85: =((AL85*3)+AM85)*AQ66 -> 3 | BI85: =IF(S85=0,1,0) -> 1 | BJ85: =IF(AND(S85=0,K85>L85),1,0)*BO66 -> 0 | BK85: =IF(AND(S85=0,K85=L85),1,0)*BO66 -> 0 | BL85: =BI85-BJ85-BK85 -> 1 | BM85: =K85 -> 4 | BN85: =L85 -> 5 | BO85: =((BJ85*3)+BK85)*BO66 -> 0
B86: 1 | D86: =$D$24 -> 10:30:00 | E86: =E85+1 -> 19 | F86: =F82 -> SERGIO PIVATTO-SP | K86: 3 | L86: 3 | M86: =M80 -> LUIZ RICARDO-PR | S86: =COUNTBLANK(K86:L86) -> 0 | AS86: =IF(S86=0,1,0) -> 1 | AT86: =IF(AND(S86=0,L86>K86),1,0)*AY66 -> 0 | AU86: =IF(AND(S86=0,K86=L86),1,0)*AY66 -> 1 | AV86: =AS86-AT86-AU86 -> 0 | AW86: =L86 -> 3 | AX86: =K86 -> 3 | AY86: =((AT86*3)+AU86)*AY66 -> 1 | BQ86: =IF(S86=0,1,0) -> 1 | BR86: =IF(AND(S86=0,K86>L86),1,0)*BW66 -> 0 | BS86: =IF(AND(S86=0,K86=L86),1,0)*BW66 -> 1 | BT86: =BQ86-BR86-BS86 -> 0 | BU86: =K86 -> 3 | BV86: =L86 -> 3 | BW86: =((BR86*3)+BS86)*BW66 -> 1
B87: 1 | E87: =E86+1 -> 20 | F87: =M82 -> MARCELO LEITE-SP | K87: 4 | L87: 6 | M87: =F79 -> DALLA STELLA-PR | S87: =COUNTBLANK(K87:L87) -> 0 | U87: =IF(S87=0,1,0) -> 1 | V87: =IF(AND(S87=0,L87>K87),1,0)*AA66 -> 1 | W87: =IF(AND(S87=0,K87=L87),1,0)*AA66 -> 0 | X87: =U87-V87-W87 -> 0 | Y87: =L87 -> 6 | Z87: =K87 -> 4 | AA87: =((V87*3)+W87)*AA66 -> 3 | BY87: =IF(S87=0,1,0) -> 1 | BZ87: =IF(AND(S87=0,K87>L87),1,0)*CE66 -> 0 | CA87: =IF(AND(S87=0,K87=L87),1,0)*CE66 -> 0 | CB87: =BY87-BZ87-CA87 -> 1 | CC87: =K87 -> 4 | CD87: =L87 -> 6 | CE87: =((BZ87*3)+CA87)*CE66 -> 0
B89: 1 | C89: 12 | D89: =$D$7 -> 2022-06-18 | E89: 21 | F89: =F84 -> ANOEL-SP | K89: 3 | L89: 5 | M89: =M85 -> BAD-RJ | S89: =COUNTBLANK(K89:L89) -> 0 | AK89: =IF(S89=0,1,0) -> 1 | AL89: =IF(AND(S89=0,L89>K89),1,0)*AQ66 -> 1 | AM89: =IF(AND(S89=0,K89=L89),1,0)*AQ66 -> 0 | AN89: =AK89-AL89-AM89 -> 0 | AO89: =L89 -> 5 | AP89: =K89 -> 3 | AQ89: =((AL89*3)+AM89)*AQ66 -> 3 | BA89: =IF(S89=0,1,0) -> 1 | BB89: =IF(AND(S89=0,K89>L89),1,0)*BG66 -> 0 | BC89: =IF(AND(S89=0,K89=L89),1,0)*BG66 -> 0 | BD89: =BA89-BB89-BC89 -> 1 | BE89: =K89 -> 3 | BF89: =L89 -> 5 | BG89: =((BB89*3)+BC89)*BG66 -> 0 | CH89: 5ª
B90: 1 | E90: =E89+1 -> 22 | F90: =F85 -> HEAVY-MG | K90: 2 | L90: 3 | M90: =M86 -> LUIZ RICARDO-PR | S90: =COUNTBLANK(K90:L90) -> 0 | AS90: =IF(S90=0,1,0) -> 1 | AT90: =IF(AND(S90=0,L90>K90),1,0)*AY66 -> 1 | AU90: =IF(AND(S90=0,K90=L90),1,0)*AY66 -> 0 | AV90: =AS90-AT90-AU90 -> 0 | AW90: =L90 -> 3 | AX90: =K90 -> 2 | AY90: =((AT90*3)+AU90)*AY66 -> 3 | BI90: =IF(S90=0,1,0) -> 1 | BJ90: =IF(AND(S90=0,K90>L90),1,0)*BO66 -> 0 | BK90: =IF(AND(S90=0,K90=L90),1,0)*BO66 -> 0 | BL90: =BI90-BJ90-BK90 -> 1 | BM90: =K90 -> 2 | BN90: =L90 -> 3 | BO90: =((BJ90*3)+BK90)*BO66 -> 0
B91: 1 | D91: =$D$29 -> 11:00:00 | E91: =E90+1 -> 23 | F91: =F86 -> SERGIO PIVATTO-SP | K91: 2 | L91: 3 | M91: =M87 -> DALLA STELLA-PR | S91: =COUNTBLANK(K91:L91) -> 0 | U91: =IF(S91=0,1,0) -> 1 | V91: =IF(AND(S91=0,L91>K91),1,0)*AA66 -> 1 | W91: =IF(AND(S91=0,K91=L91),1,0)*AA66 -> 0 | X91: =U91-V91-W91 -> 0 | Y91: =L91 -> 3 | Z91: =K91 -> 2 | AA91: =((V91*3)+W91)*AA66 -> 3 | BQ91: =IF(S91=0,1,0) -> 1 | BR91: =IF(AND(S91=0,K91>L91),1,0)*BW66 -> 0 | BS91: =IF(AND(S91=0,K91=L91),1,0)*BW66 -> 0 | BT91: =BQ91-BR91-BS91 -> 1 | BU91: =K91 -> 2 | BV91: =L91 -> 3 | BW91: =((BR91*3)+BS91)*BW66 -> 0
B92: 1 | E92: =E91+1 -> 24 | F92: =F87 -> MARCELO LEITE-SP | K92: 3 | L92: 3 | M92: =M84 -> LUIZ CARLOS-RJ | S92: =COUNTBLANK(K92:L92) -> 0 | AC92: =IF(S92=0,1,0) -> 1 | AD92: =IF(AND(S92=0,L92>K92),1,0)*AI66 -> 0 | AE92: =IF(AND(S92=0,K92=L92),1,0)*AI66 -> 1 | AF92: =AC92-AD92-AE92 -> 0 | AG92: =L92 -> 3 | AH92: =K92 -> 3 | AI92: =((AD92*3)+AE92)*AI66 -> 1 | BY92: =IF(S92=0,1,0) -> 1 | BZ92: =IF(AND(S92=0,K92>L92),1,0)*CE66 -> 0 | CA92: =IF(AND(S92=0,K92=L92),1,0)*CE66 -> 1 | CB92: =BY92-BZ92-CA92 -> 0 | CC92: =K92 -> 3 | CD92: =L92 -> 3 | CE92: =((BZ92*3)+CA92)*CE66 -> 1
B94: 1 | C94: 13 | D94: =$D$7 -> 2022-06-18 | E94: 25 | F94: =F90 -> HEAVY-MG | K94: 2 | L94: 5 | M94: =M92 -> LUIZ CARLOS-RJ | S94: =COUNTBLANK(K94:L94) -> 0 | AC94: =IF(S94=0,1,0) -> 1 | AD94: =IF(AND(S94=0,L94>K94),1,0)*AI66 -> 1 | AE94: =IF(AND(S94=0,K94=L94),1,0)*AI66 -> 0 | AF94: =AC94-AD94-AE94 -> 0 | AG94: =L94 -> 5 | AH94: =K94 -> 2 | AI94: =((AD94*3)+AE94)*AI66 -> 3 | BI94: =IF(S94=0,1,0) -> 1 | BJ94: =IF(AND(S94=0,K94>L94),1,0)*BO66 -> 0 | BK94: =IF(AND(S94=0,K94=L94),1,0)*BO66 -> 0 | BL94: =BI94-BJ94-BK94 -> 1 | BM94: =K94 -> 2 | BN94: =L94 -> 5 | BO94: =((BJ94*3)+BK94)*BO66 -> 0 | CH94: 6ª
B95: 1 | E95: =E94+1 -> 26 | F95: =F89 -> ANOEL-SP | K95: 6 | L95: 6 | M95: =M91 -> DALLA STELLA-PR | S95: =COUNTBLANK(K95:L95) -> 0 | U95: =IF(S95=0,1,0) -> 1 | V95: =IF(AND(S95=0,L95>K95),1,0)*AA66 -> 0 | W95: =IF(AND(S95=0,K95=L95),1,0)*AA66 -> 1 | X95: =U95-V95-W95 -> 0 | Y95: =L95 -> 6 | Z95: =K95 -> 6 | AA95: =((V95*3)+W95)*AA66 -> 1 | BA95: =IF(S95=0,1,0) -> 1 | BB95: =IF(AND(S95=0,K95>L95),1,0)*BG66 -> 0 | BC95: =IF(AND(S95=0,K95=L95),1,0)*BG66 -> 1 | BD95: =BA95-BB95-BC95 -> 0 | BE95: =K95 -> 6 | BF95: =L95 -> 6 | BG95: =((BB95*3)+BC95)*BG66 -> 1
B96: 1 | D96: =$D$34 -> 11:30:00 | E96: =E95+1 -> 27 | F96: =F92 -> MARCELO LEITE-SP | K96: 4 | L96: 6 | M96: =M90 -> LUIZ RICARDO-PR | S96: =COUNTBLANK(K96:L96) -> 0 | AS96: =IF(S96=0,1,0) -> 1 | AT96: =IF(AND(S96=0,L96>K96),1,0)*AY66 -> 1 | AU96: =IF(AND(S96=0,K96=L96),1,0)*AY66 -> 0 | AV96: =AS96-AT96-AU96 -> 0 | AW96: =L96 -> 6 | AX96: =K96 -> 4 | AY96: =((AT96*3)+AU96)*AY66 -> 3 | BY96: =IF(S96=0,1,0) -> 1 | BZ96: =IF(AND(S96=0,K96>L96),1,0)*CE66 -> 0 | CA96: =IF(AND(S96=0,K96=L96),1,0)*CE66 -> 0 | CB96: =BY96-BZ96-CA96 -> 1 | CC96: =K96 -> 4 | CD96: =L96 -> 6 | CE96: =((BZ96*3)+CA96)*CE66 -> 0
B97: 1 | E97: =E96+1 -> 28 | F97: =F91 -> SERGIO PIVATTO-SP | K97: 3 | L97: 3 | M97: =M89 -> BAD-RJ | S97: =COUNTBLANK(K97:L97) -> 0 | AK97: =IF(S97=0,1,0) -> 1 | AL97: =IF(AND(S97=0,L97>K97),1,0)*AQ66 -> 0 | AM97: =IF(AND(S97=0,K97=L97),1,0)*AQ66 -> 1 | AN97: =AK97-AL97-AM97 -> 0 | AO97: =L97 -> 3 | AP97: =K97 -> 3 | AQ97: =((AL97*3)+AM97)*AQ66 -> 1 | BQ97: =IF(S97=0,1,0) -> 1 | BR97: =IF(AND(S97=0,K97>L97),1,0)*BW66 -> 0 | BS97: =IF(AND(S97=0,K97=L97),1,0)*BW66 -> 1 | BT97: =BQ97-BR97-BS97 -> 0 | BU97: =K97 -> 3 | BV97: =L97 -> 3 | BW97: =((BR97*3)+BS97)*BW66 -> 1
B99: 1 | C99: 14 | D99: =$D$7 -> 2022-06-18 | E99: 29 | F99: =F96 -> MARCELO LEITE-SP | K99: 3 | L99: 4 | M99: =M97 -> BAD-RJ | S99: =COUNTBLANK(K99:L99) -> 0 | AK99: =IF(S99=0,1,0) -> 1 | AL99: =IF(AND(S99=0,L99>K99),1,0)*AQ66 -> 1 | AM99: =IF(AND(S99=0,K99=L99),1,0)*AQ66 -> 0 | AN99: =AK99-AL99-AM99 -> 0 | AO99: =L99 -> 4 | AP99: =K99 -> 3 | AQ99: =((AL99*3)+AM99)*AQ66 -> 3 | BY99: =IF(S99=0,1,0) -> 1 | BZ99: =IF(AND(S99=0,K99>L99),1,0)*CE66 -> 0 | CA99: =IF(AND(S99=0,K99=L99),1,0)*CE66 -> 0 | CB99: =BY99-BZ99-CA99 -> 1 | CC99: =K99 -> 3 | CD99: =L99 -> 4 | CE99: =((BZ99*3)+CA99)*CE66 -> 0 | CH99: 7ª
B100: 1 | E100: =E99+1 -> 30 | F100: =F94 -> HEAVY-MG | K100: 4 | L100: 10 | M100: =M95 -> DALLA STELLA-PR | S100: =COUNTBLANK(K100:L100) -> 0 | U100: =IF(S100=0,1,0) -> 1 | V100: =IF(AND(S100=0,L100>K100),1,0)*AA66 -> 1 | W100: =IF(AND(S100=0,K100=L100),1,0)*AA66 -> 0 | X100: =U100-V100-W100 -> 0 | Y100: =L100 -> 10 | Z100: =K100 -> 4 | AA100: =((V100*3)+W100)*AA66 -> 3 | BI100: =IF(S100=0,1,0) -> 1 | BJ100: =IF(AND(S100=0,K100>L100),1,0)*BO66 -> 0 | BK100: =IF(AND(S100=0,K100=L100),1,0)*BO66 -> 0 | BL100: =BI100-BJ100-BK100 -> 1 | BM100: =K100 -> 4 | BN100: =L100 -> 10 | BO100: =((BJ100*3)+BK100)*BO66 -> 0
B101: 1 | D101: =$D$39 -> 12:00:00 | E101: =E100+1 -> 31 | F101: =F97 -> SERGIO PIVATTO-SP | K101: 4 | L101: 2 | M101: =M94 -> LUIZ CARLOS-RJ | S101: =COUNTBLANK(K101:L101) -> 0 | AC101: =IF(S101=0,1,0) -> 1 | AD101: =IF(AND(S101=0,L101>K101),1,0)*AI66 -> 0 | AE101: =IF(AND(S101=0,K101=L101),1,0)*AI66 -> 0 | AF101: =AC101-AD101-AE101 -> 1 | AG101: =L101 -> 2 | AH101: =K101 -> 4 | AI101: =((AD101*3)+AE101)*AI66 -> 0 | BQ101: =IF(S101=0,1,0) -> 1 | BR101: =IF(AND(S101=0,K101>L101),1,0)*BW66 -> 1 | BS101: =IF(AND(S101=0,K101=L101),1,0)*BW66 -> 0 | BT101: =BQ101-BR101-BS101 -> 0 | BU101: =K101 -> 4 | BV101: =L101 -> 2 | BW101: =((BR101*3)+BS101)*BW66 -> 3
B102: 1 | E102: =E101+1 -> 32 | F102: =F95 -> ANOEL-SP | K102: 7 | L102: 4 | M102: =M96 -> LUIZ RICARDO-PR | S102: =COUNTBLANK(K102:L102) -> 0 | AS102: =IF(S102=0,1,0) -> 1 | AT102: =IF(AND(S102=0,L102>K102),1,0)*AY66 -> 0 | AU102: =IF(AND(S102=0,K102=L102),1,0)*AY66 -> 0 | AV102: =AS102-AT102-AU102 -> 1 | AW102: =L102 -> 4 | AX102: =K102 -> 7 | AY102: =((AT102*3)+AU102)*AY66 -> 0 | BA102: =IF(S102=0,1,0) -> 1 | BB102: =IF(AND(S102=0,K102>L102),1,0)*BG66 -> 1 | BC102: =IF(AND(S102=0,K102=L102),1,0)*BG66 -> 0 | BD102: =BA102-BB102-BC102 -> 0 | BE102: =K102 -> 7 | BF102: =L102 -> 4 | BG102: =((BB102*3)+BC102)*BG66 -> 3
S103: =SUM(S69:S102) -> 0 | U103: =SUM(U69:U102) -> 7 | V103: 3 | W103: 1 | X103: 3 | Y103: 38 | Z103: 34 | AA103: =SUM(AA69:AA102) -> 10 | AC103: =SUM(AC69:AC102) -> 7 | AD103: 3 | AE103: 2 | AF103: 2 | AG103: 25 | AH103: 20 | AI103: 11 | AK103: =SUM(AK69:AK102) -> 7 | AL103: 4 | AM103: 1 | AN103: 2 | AO103: 31 | AP103: 30 | AQ103: 13 | AS103: =SUM(AS69:AS102) -> 7 | AT103: 4 | AU103: 2 | AV103: 1 | AW103: 29 | AX103: 27 | AY103: 14 | BA103: =SUM(BA69:BA102) -> 7 | BB103: 4 | BC103: 1 | BD103: 2 | BE103: 33 | BF103: 26 | BG103: 13 | BI103: =SUM(BI69:BI102) -> 7 | BJ103: 0 | BK103: 1 | BL103: 6 | BM103: 19 | BN103: 35 | BO103: 1 | BQ103: =SUM(BQ69:BQ102) -> 7 | BR103: 3 | BS103: 3 | BT103: 1 | BU103: 22 | BV103: 18 | BW103: 12 | BY103: =SUM(BY69:BY102) -> 7 | BZ103: 1 | CA103: 1 | CB103: 5 | CC103: 23 | CD103: 30 | CE103: 4
C104: Acumulado da 1a Fase | S104: Resumo da 1a Fase
C105: Class | D105: Botonistas | I105: PG | J105: J | K105: V | L105: E | M105: D | N105: GP | O105: GC | P105: SG | S105: Cl | U105: Nome | AC105: J | AD105: V | AE105: E | AF105: D | AG105: GP | AH105: GC | AI105: PG
C106: ='G2'!C162 -> 1o G2 | D106: ='G2'!D162 -> DALLA STELLA-PR | I106: ='G2'!I162 -> 16 | J106: ='G2'!J162 -> 7 | K106: ='G2'!K162 -> 5 | L106: ='G2'!L162 -> 1 | M106: ='G2'!M162 -> 1 | N106: ='G2'!N162 -> 41 | O106: ='G2'!O162 -> 25 | P106: ='G2'!P162 -> 16 | U106: =D106 -> DALLA STELLA-PR | AC106: =J106 -> 7 | AD106: =K106 -> 5 | AE106: =L106 -> 1 | AF106: =M106 -> 1 | AG106: =N106 -> 41 | AH106: =O106 -> 25 | AI106: =I106 -> 16
C107: ='G2'!C163 -> 2o G3 | D107: ='G2'!D163 -> LUIZ CARLOS-RJ | I107: ='G2'!I163 -> 12 | J107: ='G2'!J163 -> 7 | K107: ='G2'!K163 -> 3 | L107: ='G2'!L163 -> 3 | M107: ='G2'!M163 -> 1 | N107: ='G2'!N163 -> 28 | O107: ='G2'!O163 -> 24 | P107: ='G2'!P163 -> 4 | U107: LUIZ CARLOS-RJ | AC107: =J107 -> 7 | AD107: 3 | AE107: 3 | AF107: 1 | AG107: 28 | AH107: 24 | AI107: =I107 -> 12
C108: ='G2'!C164 -> 5o G12 | D108: ='G2'!D164 -> BAD-RJ | I108: ='G2'!I164 -> 10 | J108: ='G2'!J164 -> 7 | K108: ='G2'!K164 -> 3 | L108: ='G2'!L164 -> 1 | M108: ='G2'!M164 -> 3 | N108: ='G2'!N164 -> 28 | O108: ='G2'!O164 -> 24 | P108: ='G2'!P164 -> 4 | U108: BAD-RJ | AC108: 7 | AD108: 3 | AE108: 1 | AF108: 3 | AG108: 28 | AH108: 24 | AI108: 10
C109: ='G2'!C165 -> 4o G11 | D109: ='G2'!D165 -> LUIZ RICARDO-PR | I109: ='G2'!I165 -> 12 | J109: ='G2'!J165 -> 7 | K109: ='G2'!K165 -> 4 | L109: ='G2'!L165 -> 0 | M109: ='G2'!M165 -> 3 | N109: ='G2'!N165 -> 28 | O109: ='G2'!O165 -> 25 | P109: ='G2'!P165 -> 3 | U109: LUIZ RICARDO-PR | AC109: 7 | AD109: 4 | AE109: 0 | AF109: 3 | AG109: 28 | AH109: 25 | AI109: 12
C110: ='G2'!C166 -> 2o G6 | D110: ='G2'!D166 -> ANOEL-SP | I110: ='G2'!I166 -> 15 | J110: ='G2'!J166 -> 7 | K110: ='G2'!K166 -> 5 | L110: ='G2'!L166 -> 0 | M110: ='G2'!M166 -> 2 | N110: ='G2'!N166 -> 26 | O110: ='G2'!O166 -> 13 | P110: ='G2'!P166 -> 13 | U110: ANOEL-SP | AC110: 7 | AD110: 5 | AE110: 0 | AF110: 2 | AG110: 26 | AH110: 13 | AI110: 15
C111: ='G2'!C167 -> 3o G7 | D111: ='G2'!D167 -> HEAVY-MG | I111: ='G2'!I167 -> 15 | J111: ='G2'!J167 -> 7 | K111: ='G2'!K167 -> 5 | L111: ='G2'!L167 -> 0 | M111: ='G2'!M167 -> 2 | N111: ='G2'!N167 -> 25 | O111: ='G2'!O167 -> 23 | P111: ='G2'!P167 -> 2 | U111: HEAVY-MG | AC111: 7 | AD111: 5 | AE111: 0 | AF111: 2 | AG111: 25 | AH111: 23 | AI111: 15
C112: ='G2'!C168 -> 3o G10 | D112: ='G2'!D168 -> SERGIO PIVATTO-SP | I112: ='G2'!I168 -> 14 | J112: ='G2'!J168 -> 7 | K112: ='G2'!K168 -> 4 | L112: ='G2'!L168 -> 2 | M112: ='G2'!M168 -> 1 | N112: ='G2'!N168 -> 25 | O112: ='G2'!O168 -> 17 | P112: ='G2'!P168 -> 8 | U112: SERGIO PIVATTO-SP | AC112: 7 | AD112: 4 | AE112: 2 | AF112: 1 | AG112: 25 | AH112: 17 | AI112: 14
C113: ='G2'!C169 -> 2º M.6º | D113: ='G2'!D169 -> MARCELO LEITE-SP | I113: ='G2'!I169 -> 9 | J113: ='G2'!J169 -> 7 | K113: ='G2'!K169 -> 3 | L113: ='G2'!L169 -> 0 | M113: ='G2'!M169 -> 4 | N113: ='G2'!N169 -> 22 | O113: ='G2'!O169 -> 36 | P113: ='G2'!P169 -> -14 | U113: MARCELO LEITE-SP | AC113: 7 | AD113: 3 | AE113: 0 | AF113: 4 | AG113: 22 | AH113: 36 | AI113: 9
C114: 2a Fase | S114: Resumo da 2a Fase
C115: Class | D115: Botonistas | I115: PG | J115: J | K115: V | L115: E | M115: D | N115: GP | O115: GC | P115: SG | Q115: Sorteio | S115: Cl | U115: Botonista | AC115: J | AD115: V | AE115: E | AF115: D | AG115: GP | AH115: GC | AI115: PG | AJ115: Chave Sort | AR115: Cl | AT115: Botonista | BA115: J | BB115: V | BC115: E | BD115: D | BE115: GP | BF115: GC | BG115: PG | BH115: Chave Sort
B116: =IF($S$103=0,"è","") -> è | C116: =AR116 -> 1 | D116: =AT116 -> LUIZ RICARDO-PR | I116: =BG116 -> 14 | J116: =BA116 -> 7 | K116: 4 | L116: 2 | M116: 1 | N116: 29 | O116: 27 | P116: =N116-O116 -> 2 | Q116: =IF(INT(BH116)=INT(BH117),ASC(CHAR(252)),"") ->  | S116: =RANK(AJ116,AJ116:AJ123,0) -> 6 | U116: =F69 -> DALLA STELLA-PR | AC116: =U103 -> 7 | AD116: 3 | AE116: 1 | AF116: 3 | AG116: 38 | AH116: 34 | AI116: 10 | AJ116: =(AI116*1000000000000000)+((AI116+AI106)*1000000000000)+((AD116+AD106)*1000000000)+((AG116+AG106-AH116-AH106)*1000000)+((AG116+AG106)*1000)+((AG116-AH116))+(AR116/10) -> 1.002600802e+16 | AR116: 1 | AT116: =VLOOKUP(AR116,S116:AJ123,3,FALSE) -> LUIZ RICARDO-PR | BA116: =VLOOKUP(AR116,S116:AJ123,11,FALSE) -> 7 | BB116: =VLOOKUP(AR116,S116:AJ123,12,FALSE) -> 4 | BC116: =VLOOKUP(AR116,S116:AJ123,13,FALSE) -> 2 | BD116: =VLOOKUP(AR116,S116:AJ123,14,FALSE) -> 1 | BE116: =VLOOKUP(AR116,S116:AJ123,15,FALSE) -> 29 | BF116: =VLOOKUP(AR116,S116:AJ123,16,FALSE) -> 27 | BG116: =VLOOKUP(AR116,S116:AJ123,17,FALSE) -> 14 | BH116: =VLOOKUP(AR116,S116:AJ123,18,FALSE) -> 1.402600801e+16 | BI116: =VLOOKUP($AR116,$S$37:$AI$51,17,FALSE) -> 
B117: =IF($S$103=0,"è","") -> è | C117: 2 | D117: =AT117 -> ANOEL-SP | I117: 13 | J117: 7 | K117: 4 | L117: 1 | M117: 2 | N117: 33 | O117: 26 | P117: 7 | Q117: =IF(OR(INT(BH117)=INT(BH116),INT(BH118)=INT(BH117)),ASC(CHAR(252)),"") ->  | S117: =RANK(AJ117,AJ116:AJ123,0) -> 5 | U117: =U107 -> LUIZ CARLOS-RJ | AC117: =AC103 -> 7 | AD117: 3 | AE117: 2 | AF117: 2 | AG117: 25 | AH117: 20 | AI117: 11 | AJ117: 1.102300601e+16 | AR117: 2 | AT117: =VLOOKUP(AR117,S116:AJ123,3,FALSE) -> ANOEL-SP | BA117: =VLOOKUP(AR117,S116:AJ123,11,FALSE) -> 7 | BB117: =VLOOKUP(AR117,S116:AJ123,12,FALSE) -> 4 | BC117: =VLOOKUP(AR117,S116:AJ123,13,FALSE) -> 1 | BD117: =VLOOKUP(AR117,S116:AJ123,14,FALSE) -> 2 | BE117: =VLOOKUP(AR117,S116:AJ123,15,FALSE) -> 33 | BF117: =VLOOKUP(AR117,S116:AJ123,16,FALSE) -> 26 | BG117: =VLOOKUP(AR117,S116:AJ123,17,FALSE) -> 13 | BH117: =VLOOKUP(AR117,S116:AJ123,18,FALSE) -> 1.302800902e+16
B118: =IF($S$103=0,"ð","") -> ð | C118: 3 | D118: BAD-RJ | I118: 13 | J118: 7 | K118: 4 | L118: 1 | M118: 2 | N118: 31 | O118: 30 | P118: 1 | S118: =RANK(AJ118,AJ116:AJ123,0) -> 3 | U118: =U108 -> BAD-RJ | AC118: =AK103 -> 7 | AD118: 4 | AE118: 1 | AF118: 2 | AG118: 31 | AH118: 30 | AI118: 13 | AJ118: 1.302300701e+16 | AR118: 3 | AT118: =VLOOKUP(AR118,S116:AJ123,3,FALSE) -> BAD-RJ | BA118: =VLOOKUP(AR118,S116:AJ123,11,FALSE) -> 7 | BB118: =VLOOKUP(AR118,S116:AJ123,12,FALSE) -> 4 | BC118: =VLOOKUP(AR118,S116:AJ123,13,FALSE) -> 1 | BD118: =VLOOKUP(AR118,S116:AJ123,14,FALSE) -> 2 | BE118: =VLOOKUP(AR118,S116:AJ123,15,FALSE) -> 31 | BF118: =VLOOKUP(AR118,S116:AJ123,16,FALSE) -> 30 | BG118: =VLOOKUP(AR118,S116:AJ123,17,FALSE) -> 13 | BH118: =VLOOKUP(AR118,S116:AJ123,18,FALSE) -> 1.302300701e+16
B119: =IF($S$103=0,"ð","") -> ð | C119: 4 | D119: SERGIO PIVATTO-SP | I119: 12 | J119: 7 | K119: 3 | L119: 3 | M119: 1 | N119: 22 | O119: 18 | P119: 4 | S119: =RANK(AJ119,AJ116:AJ123,0) -> 1 | U119: LUIZ RICARDO-PR | AC119: =AS103 -> 7 | AD119: 4 | AE119: 2 | AF119: 1 | AG119: 29 | AH119: 27 | AI119: 14 | AJ119: 1.402600801e+16 | AR119: 4 | AT119: =VLOOKUP(AR119,S116:AJ123,3,FALSE) -> SERGIO PIVATTO-SP | BA119: =VLOOKUP(AR119,S116:AJ123,11,FALSE) -> 7 | BB119: =VLOOKUP(AR119,S116:AJ123,12,FALSE) -> 3 | BC119: =VLOOKUP(AR119,S116:AJ123,13,FALSE) -> 3 | BD119: =VLOOKUP(AR119,S116:AJ123,14,FALSE) -> 1 | BE119: =VLOOKUP(AR119,S116:AJ123,15,FALSE) -> 22 | BF119: =VLOOKUP(AR119,S116:AJ123,16,FALSE) -> 18 | BG119: =VLOOKUP(AR119,S116:AJ123,17,FALSE) -> 12 | BH119: =VLOOKUP(AR119,S116:AJ123,18,FALSE) -> 1.202600701e+16
B120: =IF($S$103=0,"Ø","") -> Ø | C120: 5 | D120: LUIZ CARLOS-RJ | I120: 11 | J120: 7 | K120: 3 | L120: 2 | M120: 2 | N120: 25 | O120: 20 | P120: 5 | S120: =RANK(AJ120,AJ116:AJ123,0) -> 2 | U120: ANOEL-SP | AC120: =BA103 -> 7 | AD120: 4 | AE120: 1 | AF120: 2 | AG120: 33 | AH120: 26 | AI120: 13 | AJ120: 1.302800902e+16 | AR120: 5 | AT120: =VLOOKUP(AR120,S116:AJ123,3,FALSE) -> LUIZ CARLOS-RJ | BA120: =VLOOKUP(AR120,S116:AJ123,11,FALSE) -> 7 | BB120: =VLOOKUP(AR120,S116:AJ123,12,FALSE) -> 3 | BC120: =VLOOKUP(AR120,S116:AJ123,13,FALSE) -> 2 | BD120: =VLOOKUP(AR120,S116:AJ123,14,FALSE) -> 2 | BE120: =VLOOKUP(AR120,S116:AJ123,15,FALSE) -> 25 | BF120: =VLOOKUP(AR120,S116:AJ123,16,FALSE) -> 20 | BG120: =VLOOKUP(AR120,S116:AJ123,17,FALSE) -> 11 | BH120: =VLOOKUP(AR120,S116:AJ123,18,FALSE) -> 1.102300601e+16
B121: =IF($S$103=0,"Ø","") -> Ø | C121: 6 | D121: DALLA STELLA-PR | I121: 10 | J121: 7 | K121: 3 | L121: 1 | M121: 3 | N121: 38 | O121: 34 | P121: 4 | S121: =RANK(AJ121,AJ116:AJ123,0) -> 8 | U121: HEAVY-MG | AC121: =BI103 -> 7 | AD121: 0 | AE121: 1 | AF121: 6 | AG121: 19 | AH121: 35 | AI121: 1 | AJ121: 1.016004986e+15 | AR121: 6 | AT121: =VLOOKUP(AR121,S116:AJ123,3,FALSE) -> DALLA STELLA-PR | BA121: =VLOOKUP(AR121,S116:AJ123,11,FALSE) -> 7 | BB121: =VLOOKUP(AR121,S116:AJ123,12,FALSE) -> 3 | BC121: =VLOOKUP(AR121,S116:AJ123,13,FALSE) -> 1 | BD121: =VLOOKUP(AR121,S116:AJ123,14,FALSE) -> 3 | BE121: =VLOOKUP(AR121,S116:AJ123,15,FALSE) -> 38 | BF121: =VLOOKUP(AR121,S116:AJ123,16,FALSE) -> 34 | BG121: =VLOOKUP(AR121,S116:AJ123,17,FALSE) -> 10 | BH121: =VLOOKUP(AR121,S116:AJ123,18,FALSE) -> 1.002600802e+16
B122: =IF($S$103=0,"à","") -> à | C122: =AR122 -> 7 | D122: MARCELO LEITE-SP | I122: 4 | J122: 7 | K122: 1 | L122: 1 | M122: 5 | N122: 23 | O122: 30 | P122: -7 | S122: =RANK(AJ122,AJ116:AJ123,0) -> 4 | U122: SERGIO PIVATTO-SP | AC122: =BQ103 -> 7 | AD122: 3 | AE122: 3 | AF122: 1 | AG122: 22 | AH122: 18 | AI122: 12 | AJ122: 1.202600701e+16 | AR122: 7 | AT122: =VLOOKUP(AR122,S116:AJ123,3,FALSE) -> MARCELO LEITE-SP | BA122: =VLOOKUP(AR122,S116:AJ123,11,FALSE) -> 7 | BB122: =VLOOKUP(AR122,S116:AJ123,12,FALSE) -> 1 | BC122: =VLOOKUP(AR122,S116:AJ123,13,FALSE) -> 1 | BD122: =VLOOKUP(AR122,S116:AJ123,14,FALSE) -> 5 | BE122: =VLOOKUP(AR122,S116:AJ123,15,FALSE) -> 23 | BF122: =VLOOKUP(AR122,S116:AJ123,16,FALSE) -> 30 | BG122: =VLOOKUP(AR122,S116:AJ123,17,FALSE) -> 4 | BH122: =VLOOKUP(AR122,S116:AJ123,18,FALSE) -> 4013003979044994
B123: =IF($S$103=0,"à","") -> à | C123: =AR123 -> 8 | D123: HEAVY-MG | I123: 1 | J123: 7 | K123: 0 | L123: 1 | M123: 6 | N123: 19 | O123: 35 | P123: -16 | S123: =RANK(AJ123,AJ116:AJ123,0) -> 7 | U123: MARCELO LEITE-SP | AC123: =BY103 -> 7 | AD123: 1 | AE123: 1 | AF123: 5 | AG123: 23 | AH123: 30 | AI123: 4 | AJ123: 4013003979044994 | AR123: 8 | AT123: =VLOOKUP(AR123,S116:AJ123,3,FALSE) -> HEAVY-MG | BA123: =VLOOKUP(AR123,S116:AJ123,11,FALSE) -> 7 | BB123: =VLOOKUP(AR123,S116:AJ123,12,FALSE) -> 0 | BC123: =VLOOKUP(AR123,S116:AJ123,13,FALSE) -> 1 | BD123: =VLOOKUP(AR123,S116:AJ123,14,FALSE) -> 6 | BE123: =VLOOKUP(AR123,S116:AJ123,15,FALSE) -> 19 | BF123: =VLOOKUP(AR123,S116:AJ123,16,FALSE) -> 35 | BG123: =VLOOKUP(AR123,S116:AJ123,17,FALSE) -> 1 | BH123: =VLOOKUP(AR123,S116:AJ123,18,FALSE) -> 1.016004986e+15
C125: è | D125: 1a Divisão | G125: ð | H125: 2a Divisão | K125: Ø | L125: 3a Divisão | O125: à | P125: 4a Divisão
C128: =$C$4 -> Master - 1a Divisão | Q128: ='G2'!$R$170 -> 2a Fase - Grupo 15 | U128: =F131 -> HENRIQUE-SP | AA128: =IF(RIGHT(U128,4)="(WO)",0,1) -> 1 | AC128: =F132 -> PINNA-SP | AI128: =IF(RIGHT(AC128,4)="(WO)",0,1) -> 1 | AK128: =M132 -> RONALDO-PR | AQ128: =IF(RIGHT(AK128,4)="(WO)",0,1) -> 1 | AS128: =M131 -> PATERNO-SP | AY128: =IF(RIGHT(AS128,4)="(WO)",0,1) -> 1 | BA128: =F133 -> CAU MENDES-RJ | BG128: =IF(RIGHT(BA128,4)="(WO)",0,1) -> 1 | BI128: =F134 -> MANOEL MOURA-CE | BO128: =IF(RIGHT(BI128,4)="(WO)",0,1) -> 1 | BQ128: =M134 -> SETTON-AL | BW128: =IF(RIGHT(BQ128,4)="(WO)",0,1) -> 1 | BY128: =M133 -> IVAN-GO | CE128: =IF(RIGHT(BY128,4)="(WO)",0,1) -> 1
B129: Grp | C129: Rod. | D129: Data/Hora | E129: Mesa | F129: Jogos | S129: Ok | U129: J | V129: V | W129: E | X129: D | Y129: GP | Z129: GC | AA129: PG | AC129: J | AD129: V | AE129: E | AF129: D | AG129: GP | AH129: GC | AI129: PG | AK129: J | AL129: V | AM129: E | AN129: D | AO129: GP | AP129: GC | AQ129: PG | AS129: J | AT129: V | AU129: E | AV129: D | AW129: GP | AX129: GC | AY129: PG | BA129: J | BB129: V | BC129: E | BD129: D | BE129: GP | BF129: GC | BG129: PG | BI129: J | BJ129: V | BK129: E | BL129: D | BM129: GP | BN129: GC | BO129: PG | BQ129: J | BR129: V | BS129: E | BT129: D | BU129: GP | BV129: GC | BW129: PG | BY129: J | BZ129: V | CA129: E | CB129: D | CC129: GP | CD129: GC | CE129: PG | CH129: Rodada
B131: 1 | C131: 8 | D131: =$D$7 -> 2022-06-18 | E131: 9 | F131: =D168 -> HENRIQUE-SP | K131: 4 | L131: 4 | M131: =D171 -> PATERNO-SP | S131: =COUNTBLANK(K131:L131) -> 0 | U131: =IF(S131=0,1,0) -> 1 | V131: =IF(AND(S131=0,K131>L131),1,0)*AA128 -> 0 | W131: =IF(AND(S131=0,K131=L131),1,0)*AA128 -> 1 | X131: =U131-V131-W131 -> 0 | Y131: =K131 -> 4 | Z131: =L131 -> 4 | AA131: =((V131*3)+W131)*AA128 -> 1 | AS131: =IF(S131=0,1,0) -> 1 | AT131: =IF(AND(S131=0,L131>K131),1,0)*AY128 -> 0 | AU131: =IF(AND(S131=0,K131=L131),1,0)*AY128 -> 1 | AV131: =AS131-AT131-AU131 -> 0 | AW131: =L131 -> 4 | AX131: =K131 -> 4 | AY131: =((AT131*3)+AU131)*AY128 -> 1 | CH131: 1ª
B132: 1 | E132: =E131+1 -> 10 | F132: =D169 -> PINNA-SP | K132: 5 | L132: 5 | M132: =D170 -> RONALDO-PR | S132: =COUNTBLANK(K132:L132) -> 0 | AC132: =IF(S132=0,1,0) -> 1 | AD132: =IF(AND(S132=0,K132>L132),1,0)*AI128 -> 0 | AE132: =IF(AND(S132=0,K132=L132),1,0)*AI128 -> 1 | AF132: =AC132-AD132-AE132 -> 0 | AG132: =K132 -> 5 | AH132: =L132 -> 5 | AI132: =((AD132*3)+AE132)*AI128 -> 1 | AK132: =IF(S132=0,1,0) -> 1 | AL132: =IF(AND(S132=0,L132>K132),1,0)*AQ128 -> 0 | AM132: =IF(AND(S132=0,K132=L132),1,0)*AQ128 -> 1 | AN132: =AK132-AL132-AM132 -> 0 | AO132: =L132 -> 5 | AP132: =K132 -> 5 | AQ132: =((AL132*3)+AM132)*AQ128 -> 1
B133: 1 | D133: =$D$9 -> 09:00:00 | E133: =E132+1 -> 11 | F133: =D172 -> CAU MENDES-RJ | K133: 6 | L133: 1 | M133: =D175 -> IVAN-GO | S133: =COUNTBLANK(K133:L133) -> 0 | BA133: =IF(S133=0,1,0) -> 1 | BB133: =IF(AND(S133=0,K133>L133),1,0)*BG128 -> 1 | BC133: =IF(AND(S133=0,K133=L133),1,0)*BG128 -> 0 | BD133: =BA133-BB133-BC133 -> 0 | BE133: =K133 -> 6 | BF133: =L133 -> 1 | BG133: =((BB133*3)+BC133)*BG128 -> 3 | BY133: =IF(S133=0,1,0) -> 1 | BZ133: =IF(AND(S133=0,L133>K133),1,0)*CE128 -> 0 | CA133: =IF(AND(S133=0,K133=L133),1,0)*CE128 -> 0 | CB133: =BY133-BZ133-CA133 -> 1 | CC133: =L133 -> 1 | CD133: =K133 -> 6 | CE133: =((BZ133*3)+CA133)*CE128 -> 0
B134: 1 | E134: =E133+1 -> 12 | F134: =D173 -> MANOEL MOURA-CE | K134: 4 | L134: 7 | M134: =D174 -> SETTON-AL | S134: =COUNTBLANK(K134:L134) -> 0 | BI134: =IF(S134=0,1,0) -> 1 | BJ134: =IF(AND(S134=0,K134>L134),1,0)*BO128 -> 0 | BK134: =IF(AND(S134=0,K134=L134),1,0)*BO128 -> 0 | BL134: =BI134-BJ134-BK134 -> 1 | BM134: =K134 -> 4 | BN134: =L134 -> 7 | BO134: =((BJ134*3)+BK134)*BO128 -> 0 | BQ134: =IF(S134=0,1,0) -> 1 | BR134: =IF(AND(S134=0,L134>K134),1,0)*BW128 -> 1 | BS134: =IF(AND(S134=0,K134=L134),1,0)*BW128 -> 0 | BT134: =BQ134-BR134-BS134 -> 0 | BU134: =L134 -> 7 | BV134: =K134 -> 4 | BW134: =((BR134*3)+BS134)*BW128 -> 3
B135: 1
B136: 1 | C136: 9 | D136: =$D$7 -> 2022-06-18 | E136: 13 | F136: =F131 -> HENRIQUE-SP | K136: 8 | L136: 3 | M136: =M132 -> RONALDO-PR | S136: =COUNTBLANK(K136:L136) -> 0 | U136: =IF(S136=0,1,0) -> 1 | V136: =IF(AND(S136=0,K136>L136),1,0)*AA128 -> 1 | W136: =IF(AND(S136=0,K136=L136),1,0)*AA128 -> 0 | X136: =U136-V136-W136 -> 0 | Y136: =K136 -> 8 | Z136: =L136 -> 3 | AA136: =((V136*3)+W136)*AA128 -> 3 | AK136: =IF(S136=0,1,0) -> 1 | AL136: =IF(AND(S136=0,L136>K136),1,0)*AQ128 -> 0 | AM136: =IF(AND(S136=0,K136=L136),1,0)*AQ128 -> 0 | AN136: =AK136-AL136-AM136 -> 1 | AO136: =L136 -> 3 | AP136: =K136 -> 8 | AQ136: =((AL136*3)+AM136)*AQ128 -> 0 | CH136: 2ª
B137: 1 | E137: =E136+1 -> 14 | F137: =F132 -> PINNA-SP | K137: 2 | L137: 4 | M137: =M131 -> PATERNO-SP | S137: =COUNTBLANK(K137:L137) -> 0 | AC137: =IF(S137=0,1,0) -> 1 | AD137: =IF(AND(S137=0,K137>L137),1,0)*AI128 -> 0 | AE137: =IF(AND(S137=0,K137=L137),1,0)*AI128 -> 0 | AF137: =AC137-AD137-AE137 -> 1 | AG137: =K137 -> 2 | AH137: =L137 -> 4 | AI137: =((AD137*3)+AE137)*AI128 -> 0 | AS137: =IF(S137=0,1,0) -> 1 | AT137: =IF(AND(S137=0,L137>K137),1,0)*AY128 -> 1 | AU137: =IF(AND(S137=0,K137=L137),1,0)*AY128 -> 0 | AV137: =AS137-AT137-AU137 -> 0 | AW137: =L137 -> 4 | AX137: =K137 -> 2 | AY137: =((AT137*3)+AU137)*AY128 -> 3
B138: 1 | D138: =$D$14 -> 09:30:00 | E138: =E137+1 -> 15 | F138: =F133 -> CAU MENDES-RJ | K138: 3 | L138: 5 | M138: =M134 -> SETTON-AL | S138: =COUNTBLANK(K138:L138) -> 0 | BA138: =IF(S138=0,1,0) -> 1 | BB138: =IF(AND(S138=0,K138>L138),1,0)*BG128 -> 0 | BC138: =IF(AND(S138=0,K138=L138),1,0)*BG128 -> 0 | BD138: =BA138-BB138-BC138 -> 1 | BE138: =K138 -> 3 | BF138: =L138 -> 5 | BG138: =((BB138*3)+BC138)*BG128 -> 0 | BQ138: =IF(S138=0,1,0) -> 1 | BR138: =IF(AND(S138=0,L138>K138),1,0)*BW128 -> 1 | BS138: =IF(AND(S138=0,K138=L138),1,0)*BW128 -> 0 | BT138: =BQ138-BR138-BS138 -> 0 | BU138: =L138 -> 5 | BV138: =K138 -> 3 | BW138: =((BR138*3)+BS138)*BW128 -> 3
B139: 1 | E139: =E138+1 -> 16 | F139: =F134 -> MANOEL MOURA-CE | K139: 3 | L139: 2 | M139: =M133 -> IVAN-GO | S139: =COUNTBLANK(K139:L139) -> 0 | BI139: =IF(S139=0,1,0) -> 1 | BJ139: =IF(AND(S139=0,K139>L139),1,0)*BO128 -> 1 | BK139: =IF(AND(S139=0,K139=L139),1,0)*BO128 -> 0 | BL139: =BI139-BJ139-BK139 -> 0 | BM139: =K139 -> 3 | BN139: =L139 -> 2 | BO139: =((BJ139*3)+BK139)*BO128 -> 3 | BY139: =IF(S139=0,1,0) -> 1 | BZ139: =IF(AND(S139=0,L139>K139),1,0)*CE128 -> 0 | CA139: =IF(AND(S139=0,K139=L139),1,0)*CE128 -> 0 | CB139: =BY139-BZ139-CA139 -> 1 | CC139: =L139 -> 2 | CD139: =K139 -> 3 | CE139: =((BZ139*3)+CA139)*CE128 -> 0
B141: 1 | C141: 10 | D141: =$D$7 -> 2022-06-18 | E141: 17 | F141: =F136 -> HENRIQUE-SP | K141: 6 | L141: 3 | M141: =F137 -> PINNA-SP | S141: =COUNTBLANK(K141:L141) -> 0 | U141: =IF(S141=0,1,0) -> 1 | V141: =IF(AND(S141=0,K141>L141),1,0)*AA128 -> 1 | W141: =IF(AND(S141=0,K141=L141),1,0)*AA128 -> 0 | X141: =U141-V141-W141 -> 0 | Y141: =K141 -> 6 | Z141: =L141 -> 3 | AA141: =((V141*3)+W141)*AA128 -> 3 | AC141: =IF(S141=0,1,0) -> 1 | AD141: =IF(AND(S141=0,L141>K141),1,0)*AI128 -> 0 | AE141: =IF(AND(S141=0,K141=L141),1,0)*AI128 -> 0 | AF141: =AC141-AD141-AE141 -> 1 | AG141: =L141 -> 3 | AH141: =K141 -> 6 | AI141: =((AD141*3)+AE141)*AI128 -> 0 | CH141: 3ª
B142: 1 | E142: =E141+1 -> 18 | F142: =M136 -> RONALDO-PR | K142: 3 | L142: 3 | M142: =M137 -> PATERNO-SP | S142: =COUNTBLANK(K142:L142) -> 0 | AK142: =IF(S142=0,1,0) -> 1 | AL142: =IF(AND(S142=0,K142>L142),1,0)*AQ128 -> 0 | AM142: =IF(AND(S142=0,K142=L142),1,0)*AQ128 -> 1 | AN142: =AK142-AL142-AM142 -> 0 | AO142: =K142 -> 3 | AP142: =L142 -> 3 | AQ142: =((AL142*3)+AM142)*AQ128 -> 1 | AS142: =IF(S142=0,1,0) -> 1 | AT142: =IF(AND(S142=0,L142>K142),1,0)*AY128 -> 0 | AU142: =IF(AND(S142=0,K142=L142),1,0)*AY128 -> 1 | AV142: =AS142-AT142-AU142 -> 0 | AW142: =L142 -> 3 | AX142: =K142 -> 3 | AY142: =((AT142*3)+AU142)*AY128 -> 1
B143: 1 | D143: =$D$19 -> 10:00:00 | E143: =E142+1 -> 19 | F143: =F138 -> CAU MENDES-RJ | K143: 3 | L143: 5 | M143: =F139 -> MANOEL MOURA-CE | S143: =COUNTBLANK(K143:L143) -> 0 | BA143: =IF(S143=0,1,0) -> 1 | BB143: =IF(AND(S143=0,K143>L143),1,0)*BG128 -> 0 | BC143: =IF(AND(S143=0,K143=L143),1,0)*BG128 -> 0 | BD143: =BA143-BB143-BC143 -> 1 | BE143: =K143 -> 3 | BF143: =L143 -> 5 | BG143: =((BB143*3)+BC143)*BG128 -> 0 | BI143: =IF(S143=0,1,0) -> 1 | BJ143: =IF(AND(S143=0,L143>K143),1,0)*BO128 -> 1 | BK143: =IF(AND(S143=0,K143=L143),1,0)*BO128 -> 0 | BL143: =BI143-BJ143-BK143 -> 0 | BM143: =L143 -> 5 | BN143: =K143 -> 3 | BO143: =((BJ143*3)+BK143)*BO128 -> 3
B144: 1 | E144: =E143+1 -> 20 | F144: =M138 -> SETTON-AL | K144: 5 | L144: 2 | M144: =M139 -> IVAN-GO | S144: =COUNTBLANK(K144:L144) -> 0 | BQ144: =IF(S144=0,1,0) -> 1 | BR144: =IF(AND(S144=0,K144>L144),1,0)*BW128 -> 1 | BS144: =IF(AND(S144=0,K144=L144),1,0)*BW128 -> 0 | BT144: =BQ144-BR144-BS144 -> 0 | BU144: =K144 -> 5 | BV144: =L144 -> 2 | BW144: =((BR144*3)+BS144)*BW128 -> 3 | BY144: =IF(S144=0,1,0) -> 1 | BZ144: =IF(AND(S144=0,L144>K144),1,0)*CE128 -> 0 | CA144: =IF(AND(S144=0,K144=L144),1,0)*CE128 -> 0 | CB144: =BY144-BZ144-CA144 -> 1 | CC144: =L144 -> 2 | CD144: =K144 -> 5 | CE144: =((BZ144*3)+CA144)*CE128 -> 0
B146: 1 | C146: 11 | D146: =$D$7 -> 2022-06-18 | E146: 21 | F146: =F143 -> CAU MENDES-RJ | K146: 4 | L146: 6 | M146: =M141 -> PINNA-SP | S146: =COUNTBLANK(K146:L146) -> 0 | AC146: =IF(S146=0,1,0) -> 1 | AD146: =IF(AND(S146=0,L146>K146),1,0)*AI128 -> 1 | AE146: =IF(AND(S146=0,K146=L146),1,0)*AI128 -> 0 | AF146: =AC146-AD146-AE146 -> 0 | AG146: =L146 -> 6 | AH146: =K146 -> 4 | AI146: =((AD146*3)+AE146)*AI128 -> 3 | BA146: =IF(S146=0,1,0) -> 1 | BB146: =IF(AND(S146=0,K146>L146),1,0)*BG128 -> 0 | BC146: =IF(AND(S146=0,K146=L146),1,0)*BG128 -> 0 | BD146: =BA146-BB146-BC146 -> 1 | BE146: =K146 -> 4 | BF146: =L146 -> 6 | BG146: =((BB146*3)+BC146)*BG128 -> 0 | CH146: 4ª
B147: 1 | E147: =E146+1 -> 22 | F147: =M143 -> MANOEL MOURA-CE | K147: 4 | L147: 3 | M147: =F142 -> RONALDO-PR | S147: =COUNTBLANK(K147:L147) -> 0 | AK147: =IF(S147=0,1,0) -> 1 | AL147: =IF(AND(S147=0,L147>K147),1,0)*AQ128 -> 0 | AM147: =IF(AND(S147=0,K147=L147),1,0)*AQ128 -> 0 | AN147: =AK147-AL147-AM147 -> 1 | AO147: =L147 -> 3 | AP147: =K147 -> 4 | AQ147: =((AL147*3)+AM147)*AQ128 -> 0 | BI147: =IF(S147=0,1,0) -> 1 | BJ147: =IF(AND(S147=0,K147>L147),1,0)*BO128 -> 1 | BK147: =IF(AND(S147=0,K147=L147),1,0)*BO128 -> 0 | BL147: =BI147-BJ147-BK147 -> 0 | BM147: =K147 -> 4 | BN147: =L147 -> 3 | BO147: =((BJ147*3)+BK147)*BO128 -> 3
B148: 1 | D148: =$D$24 -> 10:30:00 | E148: =E147+1 -> 23 | F148: =F144 -> SETTON-AL | K148: 4 | L148: 3 | M148: =M142 -> PATERNO-SP | S148: =COUNTBLANK(K148:L148) -> 0 | AS148: =IF(S148=0,1,0) -> 1 | AT148: =IF(AND(S148=0,L148>K148),1,0)*AY128 -> 0 | AU148: =IF(AND(S148=0,K148=L148),1,0)*AY128 -> 0 | AV148: =AS148-AT148-AU148 -> 1 | AW148: =L148 -> 3 | AX148: =K148 -> 4 | AY148: =((AT148*3)+AU148)*AY128 -> 0 | BQ148: =IF(S148=0,1,0) -> 1 | BR148: =IF(AND(S148=0,K148>L148),1,0)*BW128 -> 1 | BS148: =IF(AND(S148=0,K148=L148),1,0)*BW128 -> 0 | BT148: =BQ148-BR148-BS148 -> 0 | BU148: =K148 -> 4 | BV148: =L148 -> 3 | BW148: =((BR148*3)+BS148)*BW128 -> 3
B149: 1 | E149: =E148+1 -> 24 | F149: =M144 -> IVAN-GO | K149: 2 | L149: 5 | M149: =F141 -> HENRIQUE-SP | S149: =COUNTBLANK(K149:L149) -> 0 | U149: =IF(S149=0,1,0) -> 1 | V149: =IF(AND(S149=0,L149>K149),1,0)*AA128 -> 1 | W149: =IF(AND(S149=0,K149=L149),1,0)*AA128 -> 0 | X149: =U149-V149-W149 -> 0 | Y149: =L149 -> 5 | Z149: =K149 -> 2 | AA149: =((V149*3)+W149)*AA128 -> 3 | BY149: =IF(S149=0,1,0) -> 1 | BZ149: =IF(AND(S149=0,K149>L149),1,0)*CE128 -> 0 | CA149: =IF(AND(S149=0,K149=L149),1,0)*CE128 -> 0 | CB149: =BY149-BZ149-CA149 -> 1 | CC149: =K149 -> 2 | CD149: =L149 -> 5 | CE149: =((BZ149*3)+CA149)*CE128 -> 0
B151: 1 | C151: 12 | D151: =$D$7 -> 2022-06-18 | E151: 25 | F151: =F146 -> CAU MENDES-RJ | K151: 4 | L151: 1 | M151: =M147 -> RONALDO-PR | S151: =COUNTBLANK(K151:L151) -> 0 | AK151: =IF(S151=0,1,0) -> 1 | AL151: =IF(AND(S151=0,L151>K151),1,0)*AQ128 -> 0 | AM151: =IF(AND(S151=0,K151=L151),1,0)*AQ128 -> 0 | AN151: =AK151-AL151-AM151 -> 1 | AO151: =L151 -> 1 | AP151: =K151 -> 4 | AQ151: =((AL151*3)+AM151)*AQ128 -> 0 | BA151: =IF(S151=0,1,0) -> 1 | BB151: =IF(AND(S151=0,K151>L151),1,0)*BG128 -> 1 | BC151: =IF(AND(S151=0,K151=L151),1,0)*BG128 -> 0 | BD151: =BA151-BB151-BC151 -> 0 | BE151: =K151 -> 4 | BF151: =L151 -> 1 | BG151: =((BB151*3)+BC151)*BG128 -> 3 | CH151: 5ª
B152: 1 | E152: =E151+1 -> 26 | F152: =F147 -> MANOEL MOURA-CE | K152: 4 | L152: 5 | M152: =M148 -> PATERNO-SP | S152: =COUNTBLANK(K152:L152) -> 0 | AS152: =IF(S152=0,1,0) -> 1 | AT152: =IF(AND(S152=0,L152>K152),1,0)*AY128 -> 1 | AU152: =IF(AND(S152=0,K152=L152),1,0)*AY128 -> 0 | AV152: =AS152-AT152-AU152 -> 0 | AW152: =L152 -> 5 | AX152: =K152 -> 4 | AY152: =((AT152*3)+AU152)*AY128 -> 3 | BI152: =IF(S152=0,1,0) -> 1 | BJ152: =IF(AND(S152=0,K152>L152),1,0)*BO128 -> 0 | BK152: =IF(AND(S152=0,K152=L152),1,0)*BO128 -> 0 | BL152: =BI152-BJ152-BK152 -> 1 | BM152: =K152 -> 4 | BN152: =L152 -> 5 | BO152: =((BJ152*3)+BK152)*BO128 -> 0
B153: 1 | D153: =$D$29 -> 11:00:00 | E153: =E152+1 -> 27 | F153: =F148 -> SETTON-AL | K153: 4 | L153: 2 | M153: =M149 -> HENRIQUE-SP | S153: =COUNTBLANK(K153:L153) -> 0 | U153: =IF(S153=0,1,0) -> 1 | V153: =IF(AND(S153=0,L153>K153),1,0)*AA128 -> 0 | W153: =IF(AND(S153=0,K153=L153),1,0)*AA128 -> 0 | X153: =U153-V153-W153 -> 1 | Y153: =L153 -> 2 | Z153: =K153 -> 4 | AA153: =((V153*3)+W153)*AA128 -> 0 | BQ153: =IF(S153=0,1,0) -> 1 | BR153: =IF(AND(S153=0,K153>L153),1,0)*BW128 -> 1 | BS153: =IF(AND(S153=0,K153=L153),1,0)*BW128 -> 0 | BT153: =BQ153-BR153-BS153 -> 0 | BU153: =K153 -> 4 | BV153: =L153 -> 2 | BW153: =((BR153*3)+BS153)*BW128 -> 3
B154: 1 | E154: =E153+1 -> 28 | F154: =F149 -> IVAN-GO | K154: 3 | L154: 2 | M154: =M146 -> PINNA-SP | S154: =COUNTBLANK(K154:L154) -> 0 | AC154: =IF(S154=0,1,0) -> 1 | AD154: =IF(AND(S154=0,L154>K154),1,0)*AI128 -> 0 | AE154: =IF(AND(S154=0,K154=L154),1,0)*AI128 -> 0 | AF154: =AC154-AD154-AE154 -> 1 | AG154: =L154 -> 2 | AH154: =K154 -> 3 | AI154: =((AD154*3)+AE154)*AI128 -> 0 | BY154: =IF(S154=0,1,0) -> 1 | BZ154: =IF(AND(S154=0,K154>L154),1,0)*CE128 -> 1 | CA154: =IF(AND(S154=0,K154=L154),1,0)*CE128 -> 0 | CB154: =BY154-BZ154-CA154 -> 0 | CC154: =K154 -> 3 | CD154: =L154 -> 2 | CE154: =((BZ154*3)+CA154)*CE128 -> 3
B156: 1 | C156: 13 | D156: =$D$7 -> 2022-06-18 | E156: 29 | F156: =F152 -> MANOEL MOURA-CE | K156: 7 | L156: 4 | M156: =M154 -> PINNA-SP | S156: =COUNTBLANK(K156:L156) -> 0 | AC156: =IF(S156=0,1,0) -> 1 | AD156: =IF(AND(S156=0,L156>K156),1,0)*AI128 -> 0 | AE156: =IF(AND(S156=0,K156=L156),1,0)*AI128 -> 0 | AF156: =AC156-AD156-AE156 -> 1 | AG156: =L156 -> 4 | AH156: =K156 -> 7 | AI156: =((AD156*3)+AE156)*AI128 -> 0 | BI156: =IF(S156=0,1,0) -> 1 | BJ156: =IF(AND(S156=0,K156>L156),1,0)*BO128 -> 1 | BK156: =IF(AND(S156=0,K156=L156),1,0)*BO128 -> 0 | BL156: =BI156-BJ156-BK156 -> 0 | BM156: =K156 -> 7 | BN156: =L156 -> 4 | BO156: =((BJ156*3)+BK156)*BO128 -> 3 | CH156: 6ª
B157: 1 | E157: =E156+1 -> 30 | F157: =F151 -> CAU MENDES-RJ | K157: 3 | L157: 3 | M157: =M153 -> HENRIQUE-SP | S157: =COUNTBLANK(K157:L157) -> 0 | U157: =IF(S157=0,1,0) -> 1 | V157: =IF(AND(S157=0,L157>K157),1,0)*AA128 -> 0 | W157: =IF(AND(S157=0,K157=L157),1,0)*AA128 -> 1 | X157: =U157-V157-W157 -> 0 | Y157: =L157 -> 3 | Z157: =K157 -> 3 | AA157: =((V157*3)+W157)*AA128 -> 1 | BA157: =IF(S157=0,1,0) -> 1 | BB157: =IF(AND(S157=0,K157>L157),1,0)*BG128 -> 0 | BC157: =IF(AND(S157=0,K157=L157),1,0)*BG128 -> 1 | BD157: =BA157-BB157-BC157 -> 0 | BE157: =K157 -> 3 | BF157: =L157 -> 3 | BG157: =((BB157*3)+BC157)*BG128 -> 1
B158: 1 | D158: =$D$34 -> 11:30:00 | E158: =E157+1 -> 31 | F158: =F154 -> IVAN-GO | K158: 4 | L158: 5 | M158: =M152 -> PATERNO-SP | S158: =COUNTBLANK(K158:L158) -> 0 | AS158: =IF(S158=0,1,0) -> 1 | AT158: =IF(AND(S158=0,L158>K158),1,0)*AY128 -> 1 | AU158: =IF(AND(S158=0,K158=L158),1,0)*AY128 -> 0 | AV158: =AS158-AT158-AU158 -> 0 | AW158: =L158 -> 5 | AX158: =K158 -> 4 | AY158: =((AT158*3)+AU158)*AY128 -> 3 | BY158: =IF(S158=0,1,0) -> 1 | BZ158: =IF(AND(S158=0,K158>L158),1,0)*CE128 -> 0 | CA158: =IF(AND(S158=0,K158=L158),1,0)*CE128 -> 0 | CB158: =BY158-BZ158-CA158 -> 1 | CC158: =K158 -> 4 | CD158: =L158 -> 5 | CE158: =((BZ158*3)+CA158)*CE128 -> 0
B159: 1 | E159: =E158+1 -> 32 | F159: =F153 -> SETTON-AL | K159: 3 | L159: 1 | M159: =M151 -> RONALDO-PR | S159: =COUNTBLANK(K159:L159) -> 0 | AK159: =IF(S159=0,1,0) -> 1 | AL159: =IF(AND(S159=0,L159>K159),1,0)*AQ128 -> 0 | AM159: =IF(AND(S159=0,K159=L159),1,0)*AQ128 -> 0 | AN159: =AK159-AL159-AM159 -> 1 | AO159: =L159 -> 1 | AP159: =K159 -> 3 | AQ159: =((AL159*3)+AM159)*AQ128 -> 0 | BQ159: =IF(S159=0,1,0) -> 1 | BR159: =IF(AND(S159=0,K159>L159),1,0)*BW128 -> 1 | BS159: =IF(AND(S159=0,K159=L159),1,0)*BW128 -> 0 | BT159: =BQ159-BR159-BS159 -> 0 | BU159: =K159 -> 3 | BV159: =L159 -> 1 | BW159: =((BR159*3)+BS159)*BW128 -> 3
B161: 1 | C161: 14 | D161: =$D$7 -> 2022-06-18 | E161: 33 | F161: =F158 -> IVAN-GO | K161: 4 | L161: 3 | M161: =M159 -> RONALDO-PR | S161: =COUNTBLANK(K161:L161) -> 0 | AK161: =IF(S161=0,1,0) -> 1 | AL161: =IF(AND(S161=0,L161>K161),1,0)*AQ128 -> 0 | AM161: =IF(AND(S161=0,K161=L161),1,0)*AQ128 -> 0 | AN161: =AK161-AL161-AM161 -> 1 | AO161: =L161 -> 3 | AP161: =K161 -> 4 | AQ161: =((AL161*3)+AM161)*AQ128 -> 0 | BY161: =IF(S161=0,1,0) -> 1 | BZ161: =IF(AND(S161=0,K161>L161),1,0)*CE128 -> 1 | CA161: =IF(AND(S161=0,K161=L161),1,0)*CE128 -> 0 | CB161: =BY161-BZ161-CA161 -> 0 | CC161: =K161 -> 4 | CD161: =L161 -> 3 | CE161: =((BZ161*3)+CA161)*CE128 -> 3 | CH161: 7ª
B162: 1 | E162: =E161+1 -> 34 | F162: =F156 -> MANOEL MOURA-CE | K162: 3 | L162: 5 | M162: =M157 -> HENRIQUE-SP | S162: =COUNTBLANK(K162:L162) -> 0 | U162: =IF(S162=0,1,0) -> 1 | V162: =IF(AND(S162=0,L162>K162),1,0)*AA128 -> 1 | W162: =IF(AND(S162=0,K162=L162),1,0)*AA128 -> 0 | X162: =U162-V162-W162 -> 0 | Y162: =L162 -> 5 | Z162: =K162 -> 3 | AA162: =((V162*3)+W162)*AA128 -> 3 | BI162: =IF(S162=0,1,0) -> 1 | BJ162: =IF(AND(S162=0,K162>L162),1,0)*BO128 -> 0 | BK162: =IF(AND(S162=0,K162=L162),1,0)*BO128 -> 0 | BL162: =BI162-BJ162-BK162 -> 1 | BM162: =K162 -> 3 | BN162: =L162 -> 5 | BO162: =((BJ162*3)+BK162)*BO128 -> 0
B163: 1 | D163: =$D$39 -> 12:00:00 | E163: =E162+1 -> 35 | F163: =F159 -> SETTON-AL | K163: 4 | L163: 2 | M163: =M156 -> PINNA-SP | S163: =COUNTBLANK(K163:L163) -> 0 | AC163: =IF(S163=0,1,0) -> 1 | AD163: =IF(AND(S163=0,L163>K163),1,0)*AI128 -> 0 | AE163: =IF(AND(S163=0,K163=L163),1,0)*AI128 -> 0 | AF163: =AC163-AD163-AE163 -> 1 | AG163: =L163 -> 2 | AH163: =K163 -> 4 | AI163: =((AD163*3)+AE163)*AI128 -> 0 | BQ163: =IF(S163=0,1,0) -> 1 | BR163: =IF(AND(S163=0,K163>L163),1,0)*BW128 -> 1 | BS163: =IF(AND(S163=0,K163=L163),1,0)*BW128 -> 0 | BT163: =BQ163-BR163-BS163 -> 0 | BU163: =K163 -> 4 | BV163: =L163 -> 2 | BW163: =((BR163*3)+BS163)*BW128 -> 3
B164: 1 | E164: =E163+1 -> 36 | F164: =F157 -> CAU MENDES-RJ | K164: 5 | L164: 4 | M164: =M158 -> PATERNO-SP | S164: =COUNTBLANK(K164:L164) -> 0 | AS164: =IF(S164=0,1,0) -> 1 | AT164: =IF(AND(S164=0,L164>K164),1,0)*AY128 -> 0 | AU164: =IF(AND(S164=0,K164=L164),1,0)*AY128 -> 0 | AV164: =AS164-AT164-AU164 -> 1 | AW164: =L164 -> 4 | AX164: =K164 -> 5 | AY164: =((AT164*3)+AU164)*AY128 -> 0 | BA164: =IF(S164=0,1,0) -> 1 | BB164: =IF(AND(S164=0,K164>L164),1,0)*BG128 -> 1 | BC164: =IF(AND(S164=0,K164=L164),1,0)*BG128 -> 0 | BD164: =BA164-BB164-BC164 -> 0 | BE164: =K164 -> 5 | BF164: =L164 -> 4 | BG164: =((BB164*3)+BC164)*BG128 -> 3
S165: =SUM(S131:S164) -> 0 | U165: =SUM(U131:U164) -> 7 | V165: 4 | W165: 2 | X165: 1 | Y165: 33 | Z165: 22 | AA165: =SUM(AA131:AA164) -> 14 | AC165: =SUM(AC131:AC164) -> 7 | AD165: 1 | AE165: 1 | AF165: 5 | AG165: 24 | AH165: 33 | AI165: 4 | AK165: =SUM(AK131:AK164) -> 7 | AL165: 0 | AM165: 2 | AN165: 5 | AO165: 19 | AP165: 31 | AQ165: 2 | AS165: =SUM(AS131:AS164) -> 7 | AT165: 3 | AU165: 2 | AV165: 2 | AW165: 28 | AX165: 26 | AY165: 11 | BA165: =SUM(BA131:BA164) -> 7 | BB165: 3 | BC165: 1 | BD165: 3 | BE165: 28 | BF165: 25 | BG165: 10 | BI165: =SUM(BI131:BI164) -> 7 | BJ165: 4 | BK165: 0 | BL165: 3 | BM165: 30 | BN165: 29 | BO165: 12 | BQ165: =SUM(BQ131:BQ164) -> 7 | BR165: 7 | BS165: 0 | BT165: 0 | BU165: 32 | BV165: 17 | BW165: 21 | BY165: =SUM(BY131:BY164) -> 7 | BZ165: 2 | CA165: 0 | CB165: 5 | CC165: 18 | CD165: 29 | CE165: 6
C166: Acumulado da 1a Fase | S166: Resumo da 1a Fase
C167: Class | D167: Botonistas | I167: PG | J167: J | K167: V | L167: E | M167: D | N167: GP | O167: GC | P167: SG | S167: Cl | U167: Nome | AC167: J | AD167: V | AE167: E | AF167: D | AG167: GP | AH167: GC | AI167: PG
C168: ='G2'!C172 -> 1o G3 | D168: ='G2'!D172 -> HENRIQUE-SP | I168: ='G2'!I172 -> 15 | J168: ='G2'!J172 -> 7 | K168: ='G2'!K172 -> 5 | L168: ='G2'!L172 -> 0 | M168: ='G2'!M172 -> 2 | N168: ='G2'!N172 -> 22 | O168: ='G2'!O172 -> 14 | P168: ='G2'!P172 -> 8 | U168: =D168 -> HENRIQUE-SP | AC168: =J168 -> 7 | AD168: =K168 -> 5 | AE168: =L168 -> 0 | AF168: =M168 -> 2 | AG168: =N168 -> 22 | AH168: =O168 -> 14 | AI168: =I168 -> 15
C169: ='G2'!C173 -> 2o G2 | D169: ='G2'!D173 -> PINNA-SP | I169: ='G2'!I173 -> 15 | J169: ='G2'!J173 -> 7 | K169: ='G2'!K173 -> 5 | L169: ='G2'!L173 -> 0 | M169: ='G2'!M173 -> 2 | N169: ='G2'!N173 -> 33 | O169: ='G2'!O173 -> 23 | P169: ='G2'!P173 -> 10 | U169: =D169 -> PINNA-SP | AC169: =J169 -> 7 | AD169: 5 | AE169: 0 | AF169: 2 | AG169: 33 | AH169: 23 | AI169: =I169 -> 15
C170: ='G2'!C174 -> 2o G7 | D170: ='G2'!D174 -> RONALDO-PR | I170: ='G2'!I174 -> 15 | J170: ='G2'!J174 -> 7 | K170: ='G2'!K174 -> 5 | L170: ='G2'!L174 -> 0 | M170: ='G2'!M174 -> 2 | N170: ='G2'!N174 -> 20 | O170: ='G2'!O174 -> 17 | P170: ='G2'!P174 -> 3 | U170: RONALDO-PR | AC170: 7 | AD170: 5 | AE170: 0 | AF170: 2 | AG170: 20 | AH170: 17 | AI170: 15
C171: ='G2'!C175 -> 3º M.6º | D171: ='G2'!D175 -> PATERNO-SP | I171: ='G2'!I175 -> 8 | J171: ='G2'!J175 -> 7 | K171: ='G2'!K175 -> 2 | L171: ='G2'!L175 -> 2 | M171: ='G2'!M175 -> 3 | N171: ='G2'!N175 -> 23 | O171: ='G2'!O175 -> 23 | P171: ='G2'!P175 -> 0 | U171: PATERNO-SP | AC171: 7 | AD171: 2 | AE171: 2 | AF171: 3 | AG171: 23 | AH171: 23 | AI171: 8
C172: ='G2'!C176 -> 3o G6 | D172: ='G2'!D176 -> CAU MENDES-RJ | I172: ='G2'!I176 -> 13 | J172: ='G2'!J176 -> 7 | K172: ='G2'!K176 -> 4 | L172: ='G2'!L176 -> 1 | M172: ='G2'!M176 -> 2 | N172: ='G2'!N176 -> 27 | O172: ='G2'!O176 -> 30 | P172: ='G2'!P176 -> -3 | U172: CAU MENDES-RJ | AC172: 7 | AD172: 4 | AE172: 1 | AF172: 2 | AG172: 27 | AH172: 30 | AI172: 13
C173: ='G2'!C177 -> 3o G11 | D173: ='G2'!D177 -> MANOEL MOURA-CE | I173: ='G2'!I177 -> 15 | J173: ='G2'!J177 -> 7 | K173: ='G2'!K177 -> 5 | L173: ='G2'!L177 -> 0 | M173: ='G2'!M177 -> 2 | N173: ='G2'!N177 -> 31 | O173: ='G2'!O177 -> 22 | P173: ='G2'!P177 -> 9 | U173: MANOEL MOURA-CE | AC173: 7 | AD173: 5 | AE173: 0 | AF173: 2 | AG173: 31 | AH173: 22 | AI173: 15
C174: ='G2'!C178 -> 4o G10 | D174: ='G2'!D178 -> SETTON-AL | I174: ='G2'!I178 -> 9 | J174: ='G2'!J178 -> 7 | K174: ='G2'!K178 -> 2 | L174: ='G2'!L178 -> 3 | M174: ='G2'!M178 -> 2 | N174: ='G2'!N178 -> 23 | O174: ='G2'!O178 -> 20 | P174: ='G2'!P178 -> 3 | U174: SETTON-AL | AC174: 7 | AD174: 2 | AE174: 3 | AF174: 2 | AG174: 23 | AH174: 20 | AI174: 9
C175: ='G2'!C179 -> 5o G1 | D175: ='G2'!D179 -> IVAN-GO | I175: ='G2'!I179 -> 10 | J175: ='G2'!J179 -> 7 | K175: ='G2'!K179 -> 3 | L175: ='G2'!L179 -> 1 | M175: ='G2'!M179 -> 3 | N175: ='G2'!N179 -> 20 | O175: ='G2'!O179 -> 23 | P175: ='G2'!P179 -> -3 | U175: IVAN-GO | AC175: 7 | AD175: 3 | AE175: 1 | AF175: 3 | AG175: 20 | AH175: 23 | AI175: 10
C176: 2a Fase | S176: Resumo da 2a Fase
C177: Class | D177: Botonistas | I177: PG | J177: J | K177: V | L177: E | M177: D | N177: GP | O177: GC | P177: SG | Q177: Sorteio | S177: Cl | U177: Botonista | AC177: J | AD177: V | AE177: E | AF177: D | AG177: GP | AH177: GC | AI177: PG | AJ177: Chave Sort | AR177: Cl | AT177: Botonista | BA177: J | BB177: V | BC177: E | BD177: D | BE177: GP | BF177: GC | BG177: PG | BH177: Chave Sort
B178: =IF($S$165=0,"è","") -> è | C178: =AR178 -> 1 | D178: =AT178 -> SETTON-AL | I178: =BG178 -> 21 | J178: =BA178 -> 7 | K178: 7 | L178: 0 | M178: 0 | N178: 32 | O178: 17 | P178: =N178-O178 -> 15 | Q178: =IF(INT(BH178)=INT(BH179),ASC(CHAR(252)),"") ->  | S178: =RANK(AJ178,AJ178:AJ185,0) -> 2 | U178: =F131 -> HENRIQUE-SP | AC178: =U165 -> 7 | AD178: 4 | AE178: 2 | AF178: 1 | AG178: 33 | AH178: 22 | AI178: 14 | AJ178: =(AI178*1000000000000000)+((AI178+AI168)*1000000000000)+((AD178+AD168)*1000000000)+((AG178+AG168-AH178-AH168)*1000000)+((AG178+AG168)*1000)+((AG178-AH178))+(AR178/10) -> 1.402900902e+16 | AR178: 1 | AT178: =VLOOKUP(AR178,S178:AJ185,3,FALSE) -> SETTON-AL | BA178: =VLOOKUP(AR178,S178:AJ185,11,FALSE) -> 7 | BB178: =VLOOKUP(AR178,S178:AJ185,12,FALSE) -> 7 | BC178: =VLOOKUP(AR178,S178:AJ185,13,FALSE) -> 0 | BD178: =VLOOKUP(AR178,S178:AJ185,14,FALSE) -> 0 | BE178: =VLOOKUP(AR178,S178:AJ185,15,FALSE) -> 32 | BF178: =VLOOKUP(AR178,S178:AJ185,16,FALSE) -> 17 | BG178: =VLOOKUP(AR178,S178:AJ185,17,FALSE) -> 21 | BH178: =VLOOKUP(AR178,S178:AJ185,18,FALSE) -> 2.103000902e+16 | BI178: =VLOOKUP($AR178,$S$37:$AI$51,17,FALSE) -> 
B179: =IF($S$165=0,"è","") -> è | C179: 2 | D179: =AT179 -> HENRIQUE-SP | I179: 14 | J179: 7 | K179: 4 | L179: 2 | M179: 1 | N179: 33 | O179: 22 | P179: 11 | Q179: =IF(OR(INT(BH179)=INT(BH178),INT(BH180)=INT(BH179)),ASC(CHAR(252)),"") ->  | S179: =RANK(AJ179,AJ178:AJ185,0) -> 7 | U179: =U169 -> PINNA-SP | AC179: =AC165 -> 7 | AD179: 1 | AE179: 1 | AF179: 5 | AG179: 24 | AH179: 33 | AI179: 4 | AJ179: 4019006001056991 | AR179: 2 | AT179: =VLOOKUP(AR179,S178:AJ185,3,FALSE) -> HENRIQUE-SP | BA179: =VLOOKUP(AR179,S178:AJ185,11,FALSE) -> 7 | BB179: =VLOOKUP(AR179,S178:AJ185,12,FALSE) -> 4 | BC179: =VLOOKUP(AR179,S178:AJ185,13,FALSE) -> 2 | BD179: =VLOOKUP(AR179,S178:AJ185,14,FALSE) -> 1 | BE179: =VLOOKUP(AR179,S178:AJ185,15,FALSE) -> 33 | BF179: =VLOOKUP(AR179,S178:AJ185,16,FALSE) -> 22 | BG179: =VLOOKUP(AR179,S178:AJ185,17,FALSE) -> 14 | BH179: =VLOOKUP(AR179,S178:AJ185,18,FALSE) -> 1.402900902e+16
B180: =IF($S$165=0,"ð","") -> ð | C180: 3 | D180: MANOEL MOURA-CE | I180: 12 | J180: 7 | K180: 4 | L180: 0 | M180: 3 | N180: 30 | O180: 29 | P180: 1 | S180: =RANK(AJ180,AJ178:AJ185,0) -> 8 | U180: =U170 -> RONALDO-PR | AC180: =AK165 -> 7 | AD180: 0 | AE180: 2 | AF180: 5 | AG180: 19 | AH180: 31 | AI180: 2 | AJ180: 2.017004991e+15 | AR180: 3 | AT180: =VLOOKUP(AR180,S178:AJ185,3,FALSE) -> MANOEL MOURA-CE | BA180: =VLOOKUP(AR180,S178:AJ185,11,FALSE) -> 7 | BB180: =VLOOKUP(AR180,S178:AJ185,12,FALSE) -> 4 | BC180: =VLOOKUP(AR180,S178:AJ185,13,FALSE) -> 0 | BD180: =VLOOKUP(AR180,S178:AJ185,14,FALSE) -> 3 | BE180: =VLOOKUP(AR180,S178:AJ185,15,FALSE) -> 30 | BF180: =VLOOKUP(AR180,S178:AJ185,16,FALSE) -> 29 | BG180: =VLOOKUP(AR180,S178:AJ185,17,FALSE) -> 12 | BH180: =VLOOKUP(AR180,S178:AJ185,18,FALSE) -> 1.202700901e+16
B181: =IF($S$165=0,"ð","") -> ð | C181: 4 | D181: PATERNO-SP | I181: 11 | J181: 7 | K181: 3 | L181: 2 | M181: 2 | N181: 28 | O181: 26 | P181: 2 | S181: =RANK(AJ181,AJ178:AJ185,0) -> 4 | U181: PATERNO-SP | AC181: =AS165 -> 7 | AD181: 3 | AE181: 2 | AF181: 2 | AG181: 28 | AH181: 26 | AI181: 11 | AJ181: 1.1019005e+16 | AR181: 4 | AT181: =VLOOKUP(AR181,S178:AJ185,3,FALSE) -> PATERNO-SP | BA181: =VLOOKUP(AR181,S178:AJ185,11,FALSE) -> 7 | BB181: =VLOOKUP(AR181,S178:AJ185,12,FALSE) -> 3 | BC181: =VLOOKUP(AR181,S178:AJ185,13,FALSE) -> 2 | BD181: =VLOOKUP(AR181,S178:AJ185,14,FALSE) -> 2 | BE181: =VLOOKUP(AR181,S178:AJ185,15,FALSE) -> 28 | BF181: =VLOOKUP(AR181,S178:AJ185,16,FALSE) -> 26 | BG181: =VLOOKUP(AR181,S178:AJ185,17,FALSE) -> 11 | BH181: =VLOOKUP(AR181,S178:AJ185,18,FALSE) -> 1.1019005e+16
B182: =IF($S$165=0,"Ø","") -> Ø | C182: 5 | D182: CAU MENDES-RJ | I182: 10 | J182: 7 | K182: 3 | L182: 1 | M182: 3 | N182: 28 | O182: 25 | P182: 3 | S182: =RANK(AJ182,AJ178:AJ185,0) -> 5 | U182: CAU MENDES-RJ | AC182: =BA165 -> 7 | AD182: 3 | AE182: 1 | AF182: 3 | AG182: 28 | AH182: 25 | AI182: 10 | AJ182: 1.0023007e+16 | AR182: 5 | AT182: =VLOOKUP(AR182,S178:AJ185,3,FALSE) -> CAU MENDES-RJ | BA182: =VLOOKUP(AR182,S178:AJ185,11,FALSE) -> 7 | BB182: =VLOOKUP(AR182,S178:AJ185,12,FALSE) -> 3 | BC182: =VLOOKUP(AR182,S178:AJ185,13,FALSE) -> 1 | BD182: =VLOOKUP(AR182,S178:AJ185,14,FALSE) -> 3 | BE182: =VLOOKUP(AR182,S178:AJ185,15,FALSE) -> 28 | BF182: =VLOOKUP(AR182,S178:AJ185,16,FALSE) -> 25 | BG182: =VLOOKUP(AR182,S178:AJ185,17,FALSE) -> 10 | BH182: =VLOOKUP(AR182,S178:AJ185,18,FALSE) -> 1.0023007e+16
B183: =IF($S$165=0,"Ø","") -> Ø | C183: 6 | D183: IVAN-GO | I183: 6 | J183: 7 | K183: 2 | L183: 0 | M183: 5 | N183: 18 | O183: 29 | P183: -11 | S183: =RANK(AJ183,AJ178:AJ185,0) -> 3 | U183: MANOEL MOURA-CE | AC183: =BI165 -> 7 | AD183: 4 | AE183: 0 | AF183: 3 | AG183: 30 | AH183: 29 | AI183: 12 | AJ183: 1.202700901e+16 | AR183: 6 | AT183: =VLOOKUP(AR183,S178:AJ185,3,FALSE) -> IVAN-GO | BA183: =VLOOKUP(AR183,S178:AJ185,11,FALSE) -> 7 | BB183: =VLOOKUP(AR183,S178:AJ185,12,FALSE) -> 2 | BC183: =VLOOKUP(AR183,S178:AJ185,13,FALSE) -> 0 | BD183: =VLOOKUP(AR183,S178:AJ185,14,FALSE) -> 5 | BE183: =VLOOKUP(AR183,S178:AJ185,15,FALSE) -> 18 | BF183: =VLOOKUP(AR183,S178:AJ185,16,FALSE) -> 29 | BG183: =VLOOKUP(AR183,S178:AJ185,17,FALSE) -> 6 | BH183: =VLOOKUP(AR183,S178:AJ185,18,FALSE) -> 6016004986037990
B184: =IF($S$165=0,"à","") -> à | C184: =AR184 -> 7 | D184: PINNA-SP | I184: 4 | J184: 7 | K184: 1 | L184: 1 | M184: 5 | N184: 24 | O184: 33 | P184: -9 | S184: =RANK(AJ184,AJ178:AJ185,0) -> 1 | U184: SETTON-AL | AC184: =BQ165 -> 7 | AD184: 7 | AE184: 0 | AF184: 0 | AG184: 32 | AH184: 17 | AI184: 21 | AJ184: 2.103000902e+16 | AR184: 7 | AT184: =VLOOKUP(AR184,S178:AJ185,3,FALSE) -> PINNA-SP | BA184: =VLOOKUP(AR184,S178:AJ185,11,FALSE) -> 7 | BB184: =VLOOKUP(AR184,S178:AJ185,12,FALSE) -> 1 | BC184: =VLOOKUP(AR184,S178:AJ185,13,FALSE) -> 1 | BD184: =VLOOKUP(AR184,S178:AJ185,14,FALSE) -> 5 | BE184: =VLOOKUP(AR184,S178:AJ185,15,FALSE) -> 24 | BF184: =VLOOKUP(AR184,S178:AJ185,16,FALSE) -> 33 | BG184: =VLOOKUP(AR184,S178:AJ185,17,FALSE) -> 4 | BH184: =VLOOKUP(AR184,S178:AJ185,18,FALSE) -> 4019006001056991
B185: =IF($S$165=0,"à","") -> à | C185: =AR185 -> 8 | D185: RONALDO-PR | I185: 2 | J185: 7 | K185: 0 | L185: 2 | M185: 5 | N185: 19 | O185: 31 | P185: -12 | S185: =RANK(AJ185,AJ178:AJ185,0) -> 6 | U185: IVAN-GO | AC185: =BY165 -> 7 | AD185: 2 | AE185: 0 | AF185: 5 | AG185: 18 | AH185: 29 | AI185: 6 | AJ185: 6016004986037990 | AR185: 8 | AT185: =VLOOKUP(AR185,S178:AJ185,3,FALSE) -> RONALDO-PR | BA185: =VLOOKUP(AR185,S178:AJ185,11,FALSE) -> 7 | BB185: =VLOOKUP(AR185,S178:AJ185,12,FALSE) -> 0 | BC185: =VLOOKUP(AR185,S178:AJ185,13,FALSE) -> 2 | BD185: =VLOOKUP(AR185,S178:AJ185,14,FALSE) -> 5 | BE185: =VLOOKUP(AR185,S178:AJ185,15,FALSE) -> 19 | BF185: =VLOOKUP(AR185,S178:AJ185,16,FALSE) -> 31 | BG185: =VLOOKUP(AR185,S178:AJ185,17,FALSE) -> 2 | BH185: =VLOOKUP(AR185,S178:AJ185,18,FALSE) -> 2.017004991e+15
C187: è | D187: 1a Divisão | G187: ð | H187: 2a Divisão | K187: Ø | L187: 3a Divisão | O187: à | P187: 4a Divisão
C190: =$C$4 -> Master - 1a Divisão | Q190: ='G2'!$R$180 -> 2a Fase - Grupo 16 | U190: =F193 -> SAMMARTINO-SP | AA190: =IF(RIGHT(U190,4)="(WO)",0,1) -> 1 | AC190: =F194 -> MARCELO PAIVA-SP | AI190: =IF(RIGHT(AC190,4)="(WO)",0,1) -> 1 | AK190: =M194 -> RAVANELLI-SP | AQ190: =IF(RIGHT(AK190,4)="(WO)",0,1) -> 1 | AS190: =M193 -> RUBAO-PR | AY190: =IF(RIGHT(AS190,4)="(WO)",0,1) -> 1 | BA190: =F195 -> JOSE CARLOS-RJ | BG190: =IF(RIGHT(BA190,4)="(WO)",0,1) -> 1 | BI190: =F196 -> RAMOS-RJ | BO190: =IF(RIGHT(BI190,4)="(WO)",0,1) -> 1 | BQ190: =M196 -> NALDO CANTUARIA-RJ | BW190: =IF(RIGHT(BQ190,4)="(WO)",0,1) -> 1 | BY190: =M195 -> FLAVIO AYRES-SC | CE190: =IF(RIGHT(BY190,4)="(WO)",0,1) -> 1
B191: Grp | C191: Rod. | D191: Data/Hora | E191: Mesa | F191: Jogos | S191: Ok | U191: J | V191: V | W191: E | X191: D | Y191: GP | Z191: GC | AA191: PG | AC191: J | AD191: V | AE191: E | AF191: D | AG191: GP | AH191: GC | AI191: PG | AK191: J | AL191: V | AM191: E | AN191: D | AO191: GP | AP191: GC | AQ191: PG | AS191: J | AT191: V | AU191: E | AV191: D | AW191: GP | AX191: GC | AY191: PG | BA191: J | BB191: V | BC191: E | BD191: D | BE191: GP | BF191: GC | BG191: PG | BI191: J | BJ191: V | BK191: E | BL191: D | BM191: GP | BN191: GC | BO191: PG | BQ191: J | BR191: V | BS191: E | BT191: D | BU191: GP | BV191: GC | BW191: PG | BY191: J | BZ191: V | CA191: E | CB191: D | CC191: GP | CD191: GC | CE191: PG | CH191: Rodada
B193: 1 | C193: 8 | D193: =$D$7 -> 2022-06-18 | E193: 13 | F193: =D230 -> SAMMARTINO-SP | K193: 4 | L193: 5 | M193: =D233 -> RUBAO-PR | S193: =COUNTBLANK(K193:L193) -> 0 | U193: =IF(S193=0,1,0) -> 1 | V193: =IF(AND(S193=0,K193>L193),1,0)*AA190 -> 0 | W193: =IF(AND(S193=0,K193=L193),1,0)*AA190 -> 0 | X193: =U193-V193-W193 -> 1 | Y193: =K193 -> 4 | Z193: =L193 -> 5 | AA193: =((V193*3)+W193)*AA190 -> 0 | AS193: =IF(S193=0,1,0) -> 1 | AT193: =IF(AND(S193=0,L193>K193),1,0)*AY190 -> 1 | AU193: =IF(AND(S193=0,K193=L193),1,0)*AY190 -> 0 | AV193: =AS193-AT193-AU193 -> 0 | AW193: =L193 -> 5 | AX193: =K193 -> 4 | AY193: =((AT193*3)+AU193)*AY190 -> 3 | CH193: 1ª
